{"text_format":"1","workbook":"xlsx","n_sheets":2,"sheets":["MASTER","Sheet1"],"not_rendered":{"charts":0,"images":5,"macros":1,"external_links":0,"defined_names":2,"comments":0,"pivot_tables":0},"unopened":[],"bounds":{"document_bytes":16777216,"sheet_cells":100000,"rows_first":2000,"rows_last":500,"rows_between":2000,"halvings":0,"cell_chars":16384,"cell_head_chars":4096},"cells_cut":0,"cells_raw":0,"read":"whole","date_system":"1900"}

{"sheet":"MASTER","index":0,"n_rows":80,"n_cols":53,"rows_kept":80,"cut":false,"hidden":false,"merged":[[44,0,46,0],[47,0,49,0],[59,0,61,0],[56,0,58,0],[53,0,55,0],[41,0,43,0],[56,3,58,3],[53,3,55,3],[50,3,52,3],[65,2,67,2],[68,2,70,2],[71,2,73,2],[68,0,70,0],[65,0,67,0],[62,0,64,0],[50,2,52,2],[53,2,55,2],[56,2,58,2],[59,2,61,2],[62,2,64,2],[71,0,73,0],[50,0,52,0],[29,13,31,13],[26,13,28,13],[26,14,28,14],[32,14,34,14],[32,13,34,13],[32,3,34,3],[26,2,28,2],[29,2,31,2],[35,0,37,0],[2,5,2,7],[17,14,19,14],[17,13,19,13],[35,2,37,2],[38,2,40,2],[41,2,43,2],[44,2,46,2],[47,2,49,2],[29,3,31,3],[14,2,16,2],[14,3,16,3],[17,2,19,2],[17,3,19,3],[32,2,34,2],[20,13,22,13],[23,2,25,2],[23,3,25,3],[26,3,28,3],[23,13,25,13],[47,3,49,3],[44,3,46,3],[41,3,43,3],[38,3,40,3],[29,14,31,14],[5,14,7,14],[5,2,7,2],[8,2,10,2],[5,3,7,3],[8,3,10,3],[11,3,13,3],[11,2,13,2],[20,2,22,2],[20,3,22,3],[5,12,7,12],[8,12,10,12],[8,11,10,11],[11,11,13,11],[11,12,13,12],[14,0,16,0],[17,0,19,0],[20,0,22,0],[3,13,4,13],[3,14,4,14],[3,11,4,11],[3,12,4,12],[20,14,22,14],[23,14,25,14],[3,0,4,0],[3,3,4,3],[3,2,4,2],[3,1,4,1],[8,13,10,13],[8,14,10,14],[11,13,13,13],[11,14,13,14],[14,14,16,14],[14,13,16,13],[5,0,7,0],[8,0,10,0],[11,0,13,0],[5,11,7,11],[5,13,7,13],[59,13,61,13],[62,13,64,13],[65,13,67,13],[68,13,70,13],[71,13,73,13],[74,13,76,13],[77,13,79,13],[23,0,25,0],[26,0,28,0],[29,0,31,0],[77,3,79,3],[74,3,76,3],[71,3,73,3],[68,3,70,3],[65,3,67,3],[74,2,76,2],[77,2,79,2],[35,3,37,3],[62,3,64,3],[59,3,61,3],[32,0,34,0],[77,0,79,0],[74,0,76,0],[38,0,40,0],[1,8,1,10],[62,14,64,14],[65,14,67,14],[68,14,70,14],[71,14,73,14],[74,14,76,14],[77,14,79,14],[3,4,4,4],[35,14,37,14],[38,14,40,14],[41,14,43,14],[44,14,46,14],[47,14,49,14],[50,14,52,14],[53,14,55,14],[56,14,58,14],[59,14,61,14],[35,13,37,13],[38,13,40,13],[41,13,43,13],[44,13,46,13],[47,13,49,13],[50,13,52,13],[53,13,55,13],[3,15,4,15],[3,16,4,16],[2,11,2,16],[65,15,67,15],[68,15,70,15],[71,15,73,15],[74,15,76,15],[77,15,79,15],[50,15,52,15],[53,15,55,15],[56,15,58,15],[59,15,61,15],[62,15,64,15],[35,15,37,15],[38,15,40,15],[41,15,43,15],[44,15,46,15],[47,15,49,15],[20,15,22,15],[23,15,25,15],[26,15,28,15],[29,15,31,15],[32,15,34,15],[56,13,58,13],[5,16,7,16],[8,16,10,16],[11,16,13,16],[14,16,16,16],[17,16,19,16],[20,16,22,16],[23,16,25,16],[5,15,7,15],[8,15,10,15],[11,15,13,15],[14,15,16,15],[17,15,19,15],[26,16,28,16],[29,16,31,16],[32,16,34,16],[35,16,37,16],[38,16,40,16],[41,16,43,16],[44,16,46,16],[47,16,49,16],[50,16,52,16],[53,16,55,16],[56,16,58,16],[59,16,61,16],[62,16,64,16],[65,16,67,16],[68,16,70,16],[71,16,73,16],[74,16,76,16],[77,16,79,16]]}
[null,null,null,null,null,null,null,null,null,null,null,null,null,null,null,null,null,null,null,null,null,null,null,null,null,null,null,null,null,null,null,null,null,null,null,null,null,null,null,null,null,null,null,null,null,null,null,null,null,null,null,null,"الفاتحة"]
[null,null,null,null,null,null,null,null,null,null,null,null,null,null,null,null,null,null,null,null,null,null,null,null,null,null,null,null,null,null,null,null,null,null,null,null,null,null,null,null,null,null,null,null,null,null,null,null,null,null,null,null,"البقرة"]
[null,"السورة","آل عمران",{"$f":"VLOOKUP($C$3,Sheet1!$A$3:$C$242,2,0)","v":21},null,null,null,null,null,null,null,{"$f":"TODAY()","v":"2019-07-29"},null,null,null,null,null,null,null,null,null,null,{"$f":"IF(ISERROR(MacrosEnabled()&NOW()),\"Macros are disabled\",\"Macros are enabled\")","v":"Macros are enabled"},null,null,null,null,null,null,null,null,null,null,null,null,null,null,null,null,null,null,null,null,null,null,null,null,null,null,null,null,null,"آل عمران"]
["م","اسم الطالب","رقم الدرس","الجزء",null,"مـــــــــــــــن",null,null,"إلــــــــــــــــــــــــى",null,null,"إجمالي الدروس في الخطة",240,"الدروس المتبقية","تاريخ الانتهاء من الخطة"," تسبق خطتك","متأخر عن الخطة",null,null,null,null,null,null,null,null,null,null,null,null,null,null,null,null,null,null,null,null,null,null,null,null,null,null,null,null,null,null,null,null,null,null,null,"النساء"]
[null,null,null,null,null,"السورة","الآية","نص الآية","السورة","الآية","نص الآية",null,null,null,null,null,null,null,null,null,null,null,null,null,null,null,null,null,null,null,null,null,null,null,null,null,null,null,null,null,null,null,null,null,null,1,null,null,null,null,null,null,"المائدة"]
[1,{"$f":"IF(B7=\"\",\"\")","v":false},2,{"$f":"IFERROR(VLOOKUP($C6,Sheet1!$B$3:K242,2,0),\"\")","v":"الأول"},"الحفظ الجديد",{"$f":"IFERROR(VLOOKUP($C6,Sheet1!$B$3:$W$247,5,0),\"\")","v":"البقرة"},{"$f":"IFERROR(VLOOKUP($C6,Sheet1!$B$3:$W$247,6,0),\"\")","v":26},{"$f":"IFERROR(VLOOKUP($C6,Sheet1!$B$3:$W$247,7,0),\"\")","v":"إن الله لا يستحى"},{"$f":"IFERROR(VLOOKUP($C6,Sheet1!$B$3:$W$247,8,0),\"\")","v":"البقرة"},{"$f":"IFERROR(VLOOKUP($C6,Sheet1!$B$3:$W$247,9,0),\"\")","v":43},{"$f":"IFERROR(VLOOKUP($C6,Sheet1!$B$3:$W$247,10,0),\"\")","v":"وَأَقِيمُواْ الصَّلاَةَ وَآتُواْ الزَّكَاةَ وَارْكَعُواْ مَعَ الرَّاكِعِينَ"},null,null,{"$f":"$M$4-$C6","v":238},{"$f":"$L$3+$N6","v":"2020-03-23"},{"$f":"IFERROR(DATEDIF(O6,S7-1,\"D\"),\"\")","v":""},{"$f":"IFERROR(DATEDIF(S7,O6,\"D\"),\"\")","v":12},null,null,null,null,null,null,null,null,null,null,null,null,null,null,null,null,null,null,null,null,null,null,null,null,null,null,null,null,2,null,null,null,null,null,null,"الأنعام"]
[null,"عبدالرحمن",null,null,"المراجعة الصغرى",{"$f":"IFERROR(VLOOKUP($C6,Sheet1!$B$3:$W$247,11,0),\"\")","v":"الفاتحة"},{"$f":"IFERROR(VLOOKUP($C6,Sheet1!$B$3:$W$247,12,0),\"\")","v":1},{"$f":"IFERROR(VLOOKUP($C6,Sheet1!$B$3:$W$247,13,0),\"\")","v":"بسم الله الرحمن الرحيم"},{"$f":"IFERROR(VLOOKUP($C6,Sheet1!$B$3:$W$247,14,0),\"\")","v":"البقرة"},{"$f":"IFERROR(VLOOKUP($C6,Sheet1!$B$3:$W$247,15,0),\"\")","v":25},{"$f":"IFERROR(VLOOKUP($C6,Sheet1!$B$3:$W$247,16,0),\"\")","v":"وَبَشِّرِ ٱلَّذِينَ ءَامَنُوا۟ وَعَمِلُوا۟ ٱلصَّٰلِحَٰتِ أَنَّ لَهُمْ جَنَّٰتٍۢ تَجْرِى مِن تَحْتِهَا ٱلْأَنْهَٰرُ ۖ كُلَّمَا رُزِقُوا۟ مِنْهَا مِن ثَمَرَةٍۢ رِّزْقًۭا ۙ قَالُوا۟ هَٰذَا ٱلَّذِى رُزِقْنَا مِن قَبْلُ ۖ وَأُتُوا۟ بِهِۦ مُتَشَٰبِهًۭا ۖ وَلَهُمْ فِيهَآ أَزْوَٰجٌۭ مُّطَهَّرَةٌۭ ۖ وَهُمْ فِيهَا خَٰلِدُونَ."},null,null,null,null,null,null,{"$f":"IF($B7<>\"\",IF($R7=\"\",NOW(),$R7),\"\")","v":"2019-05-27T09:05:46.930"},{"$f":"$R7+240","v":"2020-01-22T09:05:46.930"},null,null,null,null,null,null,null,null,null,null,null,null,null,null,null,null,null,null,null,null,null,null,null,null,null,null,3,null,null,null,null,null,null,"الأعراف"]
[null,{"$f":"IF(B7=\"\",\"\")","v":false},null,null,"المراجعة الكبرى",{"$f":"IFERROR(VLOOKUP($C6,Sheet1!$B$3:$W$247,17,0),\"\")","v":0},{"$f":"IFERROR(VLOOKUP($C6,Sheet1!$B$3:$W$247,18,0),\"\")","v":0},{"$f":"IFERROR(VLOOKUP($C6,Sheet1!$B$3:$W$247,19,0),\"\")","v":0},{"$f":"IFERROR(VLOOKUP($C6,Sheet1!$B$3:$W$247,20,0),\"\")","v":0},{"$f":"IFERROR(VLOOKUP($C6,Sheet1!$B$3:$W$247,21,0),\"\")","v":0},{"$f":"IFERROR(VLOOKUP($C6,Sheet1!$B$3:$W$247,22,0),\"\")","v":0},null,null,null,null,null,null,null,null,null,null,null,null,null,null,null,null,null,null,null,null,null,null,null,null,null,null,null,null,null,null,null,null,null,null,4,null,null,null,null,null,null,"الأنفال"]
[2,null,0,{"$f":"IFERROR(VLOOKUP($C9,Sheet1!$B$3:K245,2,0),\"\")","v":""},"الحفظ الجديد",{"$f":"IFERROR(VLOOKUP($C9,Sheet1!$B$3:$W$247,5,0),\"\")","v":""},{"$f":"IFERROR(VLOOKUP($C9,Sheet1!$B$3:$W$247,6,0),\"\")","v":""},{"$f":"IFERROR(VLOOKUP($C9,Sheet1!$B$3:$W$247,7,0),\"\")","v":""},{"$f":"IFERROR(VLOOKUP($C9,Sheet1!$B$3:$W$247,8,0),\"\")","v":""},{"$f":"IFERROR(VLOOKUP($C9,Sheet1!$B$3:$W$247,9,0),\"\")","v":""},{"$f":"IFERROR(VLOOKUP($C9,Sheet1!$B$3:$W$247,10,0),\"\")","v":""},null,null,{"$f":"$M$4-$C9","v":240},{"$f":"$L$3+$N9","v":"2020-03-25"},{"$f":"IFERROR(DATEDIF(O9,S10,\"D\"),\"\")","v":""},{"$f":"IFERROR(DATEDIF(S10,O9,\"D\"),\"\")","v":""},null,null,null,null,null,null,null,null,null,null,null,null,null,null,null,null,null,null,null,null,null,null,null,null,null,null,null,null,5,null,null,null,null,null,null,"التوبة"]
[null,null,null,null,"المراجعة الصغرى",{"$f":"IFERROR(VLOOKUP($C9,Sheet1!$B$3:$W$247,11,0),\"\")","v":""},{"$f":"IFERROR(VLOOKUP($C9,Sheet1!$B$3:$W$247,12,0),\"\")","v":""},{"$f":"IFERROR(VLOOKUP($C9,Sheet1!$B$3:$W$247,13,0),\"\")","v":""},{"$f":"IFERROR(VLOOKUP($C9,Sheet1!$B$3:$W$247,14,0),\"\")","v":""},{"$f":"IFERROR(VLOOKUP($C9,Sheet1!$B$3:$W$247,15,0),\"\")","v":""},{"$f":"IFERROR(VLOOKUP($C9,Sheet1!$B$3:$W$247,16,0),\"\")","v":""},null,null,null,null,null,null,{"$f":"IF($B10<>\"\",IF($R10=\"\",NOW(),$R10),\"\")","v":""},{"$f":"$R10+240","v":{"$error":"#VALUE!"}},null,null,null,null,null,null,null,null,null,null,null,null,null,null,null,null,null,null,null,null,null,null,null,null,null,null,6,null,null,null,null,null,null,"يونس"]
[null,null,null,null,"المراجعة الكبرى",{"$f":"IFERROR(VLOOKUP($C9,Sheet1!$B$3:$W$247,17,0),\"\")","v":""},{"$f":"IFERROR(VLOOKUP($C9,Sheet1!$B$3:$W$247,18,0),\"\")","v":""},{"$f":"IFERROR(VLOOKUP($C9,Sheet1!$B$3:$W$247,19,0),\"\")","v":""},{"$f":"IFERROR(VLOOKUP($C9,Sheet1!$B$3:$W$247,20,0),\"\")","v":""},{"$f":"IFERROR(VLOOKUP($C9,Sheet1!$B$3:$W$247,21,0),\"\")","v":""},{"$f":"IFERROR(VLOOKUP($C9,Sheet1!$B$3:$W$247,22,0),\"\")","v":""},null,null,null,null,null,null,null,null,null,null,null,null,null,null,null,null,null,null,null,null,null,null,null,null,null,null,null,null,null,null,null,null,null,null,7,null,null,null,null,null,null,"هود"]
[3,null,0,{"$f":"IFERROR(VLOOKUP($C12,Sheet1!$B$3:K248,2,0),\"\")","v":""},"الحفظ الجديد",{"$f":"IFERROR(VLOOKUP($C12,Sheet1!$B$3:$W$247,5,0),\"\")","v":""},{"$f":"IFERROR(VLOOKUP($C12,Sheet1!$B$3:$W$247,6,0),\"\")","v":""},{"$f":"IFERROR(VLOOKUP($C12,Sheet1!$B$3:$W$247,7,0),\"\")","v":""},{"$f":"IFERROR(VLOOKUP($C12,Sheet1!$B$3:$W$247,8,0),\"\")","v":""},{"$f":"IFERROR(VLOOKUP($C12,Sheet1!$B$3:$W$247,9,0),\"\")","v":""},{"$f":"IFERROR(VLOOKUP($C12,Sheet1!$B$3:$W$247,10,0),\"\")","v":""},null,null,{"$f":"$M$4-$C12","v":240},{"$f":"$L$3+$N12","v":"2020-03-25"},{"$f":"IFERROR(DATEDIF(O12,S13,\"D\"),\"\")","v":""},{"$f":"IFERROR(DATEDIF(S13,O12,\"D\"),\"\")","v":""},null,null,null,null,null,null,null,null,null,null,null,null,null,null,null,null,null,null,null,null,null,null,null,null,null,null,null,null,8,null,null,null,null,null,null,"يوسف"]
[null,null,null,null,"المراجعة الصغرى",{"$f":"IFERROR(VLOOKUP($C12,Sheet1!$B$3:$W$247,11,0),\"\")","v":""},{"$f":"IFERROR(VLOOKUP($C12,Sheet1!$B$3:$W$247,12,0),\"\")","v":""},{"$f":"IFERROR(VLOOKUP($C12,Sheet1!$B$3:$W$247,13,0),\"\")","v":""},{"$f":"IFERROR(VLOOKUP($C12,Sheet1!$B$3:$W$247,14,0),\"\")","v":""},{"$f":"IFERROR(VLOOKUP($C12,Sheet1!$B$3:$W$247,15,0),\"\")","v":""},{"$f":"IFERROR(VLOOKUP($C12,Sheet1!$B$3:$W$247,16,0),\"\")","v":""},null,null,null,null,null,null,{"$f":"IF($B13<>\"\",IF($R13=\"\",NOW(),$R13),\"\")","v":""},{"$f":"$R13+240","v":{"$error":"#VALUE!"}},null,null,null,null,null,null,null,null,null,null,null,null,null,null,null,null,null,null,null,null,null,null,null,null,null,null,9,null,null,null,null,null,null,"الرعد"]
[null,null,null,null,"المراجعة الكبرى",{"$f":"IFERROR(VLOOKUP($C12,Sheet1!$B$3:$W$247,17,0),\"\")","v":""},{"$f":"IFERROR(VLOOKUP($C12,Sheet1!$B$3:$W$247,18,0),\"\")","v":""},{"$f":"IFERROR(VLOOKUP($C12,Sheet1!$B$3:$W$247,19,0),\"\")","v":""},{"$f":"IFERROR(VLOOKUP($C12,Sheet1!$B$3:$W$247,20,0),\"\")","v":""},{"$f":"IFERROR(VLOOKUP($C12,Sheet1!$B$3:$W$247,21,0),\"\")","v":""},{"$f":"IFERROR(VLOOKUP($C12,Sheet1!$B$3:$W$247,22,0),\"\")","v":""},null,null,null,null,null,null,null,null,null,null,null,null,null,null,null,null,null,null,null,null,null,null,null,null,null,null,null,null,null,null,null,null,null,null,10,null,null,null,null,null,null,"إبراهيم"]
[4,null,0,{"$f":"IFERROR(VLOOKUP($C15,Sheet1!$B$3:K249,2,0),\"\")","v":""},"الحفظ الجديد",{"$f":"IFERROR(VLOOKUP($C15,Sheet1!$B$3:$W$247,5,0),\"\")","v":""},{"$f":"IFERROR(VLOOKUP($C15,Sheet1!$B$3:$W$247,6,0),\"\")","v":""},{"$f":"IFERROR(VLOOKUP($C15,Sheet1!$B$3:$W$247,7,0),\"\")","v":""},{"$f":"IFERROR(VLOOKUP($C15,Sheet1!$B$3:$W$247,8,0),\"\")","v":""},{"$f":"IFERROR(VLOOKUP($C15,Sheet1!$B$3:$W$247,9,0),\"\")","v":""},{"$f":"IFERROR(VLOOKUP($C15,Sheet1!$B$3:$W$247,10,0),\"\")","v":""},null,null,{"$f":"$M$4-$C15","v":240},{"$f":"$L$3+$N15","v":"2020-03-25"},{"$f":"IFERROR(DATEDIF(O15,S16,\"D\"),\"\")","v":""},{"$f":"IFERROR(DATEDIF(S16,O15,\"D\"),\"\")","v":""},null,null,null,null,null,null,null,null,null,null,null,null,null,null,null,null,null,null,null,null,null,null,null,null,null,null,null,null,11,null,null,null,null,null,null,"الحجر"]
[null,null,null,null,"المراجعة الصغرى",{"$f":"IFERROR(VLOOKUP($C15,Sheet1!$B$3:$W$247,11,0),\"\")","v":""},{"$f":"IFERROR(VLOOKUP($C15,Sheet1!$B$3:$W$247,12,0),\"\")","v":""},{"$f":"IFERROR(VLOOKUP($C15,Sheet1!$B$3:$W$247,13,0),\"\")","v":""},{"$f":"IFERROR(VLOOKUP($C15,Sheet1!$B$3:$W$247,14,0),\"\")","v":""},{"$f":"IFERROR(VLOOKUP($C15,Sheet1!$B$3:$W$247,15,0),\"\")","v":""},{"$f":"IFERROR(VLOOKUP($C15,Sheet1!$B$3:$W$247,16,0),\"\")","v":""},null,null,null,null,null,null,{"$f":"IF($B16<>\"\",IF($R16=\"\",NOW(),$R16),\"\")","v":""},{"$f":"$R16+240","v":{"$error":"#VALUE!"}},null,null,null,null,null,null,null,null,null,null,null,null,null,null,null,null,null,null,null,null,null,null,null,null,null,null,12,null,null,null,null,null,null,"النحل"]
[null,null,null,null,"المراجعة الكبرى",{"$f":"IFERROR(VLOOKUP($C15,Sheet1!$B$3:$W$247,17,0),\"\")","v":""},{"$f":"IFERROR(VLOOKUP($C15,Sheet1!$B$3:$W$247,18,0),\"\")","v":""},{"$f":"IFERROR(VLOOKUP($C15,Sheet1!$B$3:$W$247,19,0),\"\")","v":""},{"$f":"IFERROR(VLOOKUP($C15,Sheet1!$B$3:$W$247,20,0),\"\")","v":""},{"$f":"IFERROR(VLOOKUP($C15,Sheet1!$B$3:$W$247,21,0),\"\")","v":""},{"$f":"IFERROR(VLOOKUP($C15,Sheet1!$B$3:$W$247,22,0),\"\")","v":""},null,null,null,null,null,null,null,null,null,null,null,null,null,null,null,null,null,null,null,null,null,null,null,null,null,null,null,null,null,null,null,null,null,null,13,null,null,null,null,null,null,"الإسراء"]
[5,null,0,{"$f":"IFERROR(VLOOKUP($C18,Sheet1!$B$3:K249,2,0),\"\")","v":""},"الحفظ الجديد",{"$f":"IFERROR(VLOOKUP($C18,Sheet1!$B$3:$W$247,5,0),\"\")","v":""},{"$f":"IFERROR(VLOOKUP($C18,Sheet1!$B$3:$W$247,6,0),\"\")","v":""},{"$f":"IFERROR(VLOOKUP($C18,Sheet1!$B$3:$W$247,7,0),\"\")","v":""},{"$f":"IFERROR(VLOOKUP($C18,Sheet1!$B$3:$W$247,8,0),\"\")","v":""},{"$f":"IFERROR(VLOOKUP($C18,Sheet1!$B$3:$W$247,9,0),\"\")","v":""},{"$f":"IFERROR(VLOOKUP($C18,Sheet1!$B$3:$W$247,10,0),\"\")","v":""},null,null,{"$f":"$M$4-$C18","v":240},{"$f":"$L$3+$N18","v":"2020-03-25"},{"$f":"IFERROR(DATEDIF(O18,S19,\"D\"),\"\")","v":""},{"$f":"IFERROR(DATEDIF(S19,O18,\"D\"),\"\")","v":""},null,null,null,null,null,null,null,null,null,null,null,null,null,null,null,null,null,null,null,null,null,null,null,null,null,null,null,null,14,null,null,null,null,null,null,"الكهف"]
[null,null,null,null,"المراجعة الصغرى",{"$f":"IFERROR(VLOOKUP($C18,Sheet1!$B$3:$W$247,11,0),\"\")","v":""},{"$f":"IFERROR(VLOOKUP($C18,Sheet1!$B$3:$W$247,12,0),\"\")","v":""},{"$f":"IFERROR(VLOOKUP($C18,Sheet1!$B$3:$W$247,13,0),\"\")","v":""},{"$f":"IFERROR(VLOOKUP($C18,Sheet1!$B$3:$W$247,14,0),\"\")","v":""},{"$f":"IFERROR(VLOOKUP($C18,Sheet1!$B$3:$W$247,15,0),\"\")","v":""},{"$f":"IFERROR(VLOOKUP($C18,Sheet1!$B$3:$W$247,16,0),\"\")","v":""},null,null,null,null,null,null,{"$f":"IF($B19<>\"\",IF($R19=\"\",NOW(),$R19),\"\")","v":""},{"$f":"$R19+240","v":{"$error":"#VALUE!"}},null,null,null,null,null,null,null,null,null,null,null,null,null,null,null,null,null,null,null,null,null,null,null,null,null,null,15,null,null,null,null,null,null,"مريم"]
[null,null,null,null,"المراجعة الكبرى",{"$f":"IFERROR(VLOOKUP($C18,Sheet1!$B$3:$W$247,17,0),\"\")","v":""},{"$f":"IFERROR(VLOOKUP($C18,Sheet1!$B$3:$W$247,18,0),\"\")","v":""},{"$f":"IFERROR(VLOOKUP($C18,Sheet1!$B$3:$W$247,19,0),\"\")","v":""},{"$f":"IFERROR(VLOOKUP($C18,Sheet1!$B$3:$W$247,20,0),\"\")","v":""},{"$f":"IFERROR(VLOOKUP($C18,Sheet1!$B$3:$W$247,21,0),\"\")","v":""},{"$f":"IFERROR(VLOOKUP($C18,Sheet1!$B$3:$W$247,22,0),\"\")","v":""},null,null,null,null,null,null,null,null,null,null,null,null,null,null,null,null,null,null,null,null,null,null,null,null,null,null,null,null,null,null,null,null,null,null,16,null,null,null,null,null,null,"طه"]
[6,null,0,{"$f":"IFERROR(VLOOKUP($C21,Sheet1!$B$3:K249,2,0),\"\")","v":""},"الحفظ الجديد",{"$f":"IFERROR(VLOOKUP($C21,Sheet1!$B$3:$W$247,5,0),\"\")","v":""},{"$f":"IFERROR(VLOOKUP($C21,Sheet1!$B$3:$W$247,6,0),\"\")","v":""},{"$f":"IFERROR(VLOOKUP($C21,Sheet1!$B$3:$W$247,7,0),\"\")","v":""},{"$f":"IFERROR(VLOOKUP($C21,Sheet1!$B$3:$W$247,8,0),\"\")","v":""},{"$f":"IFERROR(VLOOKUP($C21,Sheet1!$B$3:$W$247,9,0),\"\")","v":""},{"$f":"IFERROR(VLOOKUP($C21,Sheet1!$B$3:$W$247,10,0),\"\")","v":""},null,null,{"$f":"$M$4-$C21","v":240},{"$f":"$L$3+$N21","v":"2020-03-25"},{"$f":"IFERROR(DATEDIF(O21,S22,\"D\"),\"\")","v":""},{"$f":"IFERROR(DATEDIF(S22,O21,\"D\"),\"\")","v":""},null,null,null,null,null,null,null,null,null,null,null,null,null,null,null,null,null,null,null,null,null,null,null,null,null,null,null,null,17,null,null,null,null,null,null,"الأنبياء"]
[null,null,null,null,"المراجعة الصغرى",{"$f":"IFERROR(VLOOKUP($C21,Sheet1!$B$3:$W$247,11,0),\"\")","v":""},{"$f":"IFERROR(VLOOKUP($C21,Sheet1!$B$3:$W$247,12,0),\"\")","v":""},{"$f":"IFERROR(VLOOKUP($C21,Sheet1!$B$3:$W$247,13,0),\"\")","v":""},{"$f":"IFERROR(VLOOKUP($C21,Sheet1!$B$3:$W$247,14,0),\"\")","v":""},{"$f":"IFERROR(VLOOKUP($C21,Sheet1!$B$3:$W$247,15,0),\"\")","v":""},{"$f":"IFERROR(VLOOKUP($C21,Sheet1!$B$3:$W$247,16,0),\"\")","v":""},null,null,null,null,null,null,{"$f":"IF($B22<>\"\",IF($R22=\"\",NOW(),$R22),\"\")","v":""},{"$f":"$R22+240","v":{"$error":"#VALUE!"}},null,null,null,null,null,null,null,null,null,null,null,null,null,null,null,null,null,null,null,null,null,null,null,null,null,null,18,null,null,null,null,null,null,"الحج"]
[null,null,null,null,"المراجعة الكبرى",{"$f":"IFERROR(VLOOKUP($C21,Sheet1!$B$3:$W$247,17,0),\"\")","v":""},{"$f":"IFERROR(VLOOKUP($C21,Sheet1!$B$3:$W$247,18,0),\"\")","v":""},{"$f":"IFERROR(VLOOKUP($C21,Sheet1!$B$3:$W$247,19,0),\"\")","v":""},{"$f":"IFERROR(VLOOKUP($C21,Sheet1!$B$3:$W$247,20,0),\"\")","v":""},{"$f":"IFERROR(VLOOKUP($C21,Sheet1!$B$3:$W$247,21,0),\"\")","v":""},{"$f":"IFERROR(VLOOKUP($C21,Sheet1!$B$3:$W$247,22,0),\"\")","v":""},null,null,null,null,null,null,null,null,null,null,null,null,null,null,null,null,null,null,null,null,null,null,null,null,null,null,null,null,null,null,null,null,null,null,19,null,null,null,null,null,null,"المؤمنون"]
[7,null,0,{"$f":"IFERROR(VLOOKUP($C24,Sheet1!$B$3:K249,2,0),\"\")","v":""},"الحفظ الجديد",{"$f":"IFERROR(VLOOKUP($C24,Sheet1!$B$3:$W$247,5,0),\"\")","v":""},{"$f":"IFERROR(VLOOKUP($C24,Sheet1!$B$3:$W$247,6,0),\"\")","v":""},{"$f":"IFERROR(VLOOKUP($C24,Sheet1!$B$3:$W$247,7,0),\"\")","v":""},{"$f":"IFERROR(VLOOKUP($C24,Sheet1!$B$3:$W$247,8,0),\"\")","v":""},{"$f":"IFERROR(VLOOKUP($C24,Sheet1!$B$3:$W$247,9,0),\"\")","v":""},{"$f":"IFERROR(VLOOKUP($C24,Sheet1!$B$3:$W$247,10,0),\"\")","v":""},null,null,{"$f":"$M$4-$C24","v":240},{"$f":"$L$3+$N24","v":"2020-03-25"},{"$f":"IFERROR(DATEDIF(O24,S25,\"D\"),\"\")","v":""},{"$f":"IFERROR(DATEDIF(S25,O24,\"D\"),\"\")","v":""},null,null,null,null,null,null,null,null,null,null,null,null,null,null,null,null,null,null,null,null,null,null,null,null,null,null,null,null,20,null,null,null,null,null,null,"النور"]
[null,null,null,null,"المراجعة الصغرى",{"$f":"IFERROR(VLOOKUP($C24,Sheet1!$B$3:$W$247,11,0),\"\")","v":""},{"$f":"IFERROR(VLOOKUP($C24,Sheet1!$B$3:$W$247,12,0),\"\")","v":""},{"$f":"IFERROR(VLOOKUP($C24,Sheet1!$B$3:$W$247,13,0),\"\")","v":""},{"$f":"IFERROR(VLOOKUP($C24,Sheet1!$B$3:$W$247,14,0),\"\")","v":""},{"$f":"IFERROR(VLOOKUP($C24,Sheet1!$B$3:$W$247,15,0),\"\")","v":""},{"$f":"IFERROR(VLOOKUP($C24,Sheet1!$B$3:$W$247,16,0),\"\")","v":""},null,null,null,null,null,null,{"$f":"IF($B25<>\"\",IF($R25=\"\",NOW(),$R25),\"\")","v":""},{"$f":"$R25+240","v":{"$error":"#VALUE!"}},null,null,null,null,null,null,null,null,null,null,null,null,null,null,null,null,null,null,null,null,null,null,null,null,null,null,21,null,null,null,null,null,null,"الفرقان"]
[null,{"$f":"IF(B25=\"\",\"\")","v":""},null,null,"المراجعة الكبرى",{"$f":"IFERROR(VLOOKUP($C24,Sheet1!$B$3:$W$247,17,0),\"\")","v":""},{"$f":"IFERROR(VLOOKUP($C24,Sheet1!$B$3:$W$247,18,0),\"\")","v":""},{"$f":"IFERROR(VLOOKUP($C24,Sheet1!$B$3:$W$247,19,0),\"\")","v":""},{"$f":"IFERROR(VLOOKUP($C24,Sheet1!$B$3:$W$247,20,0),\"\")","v":""},{"$f":"IFERROR(VLOOKUP($C24,Sheet1!$B$3:$W$247,21,0),\"\")","v":""},{"$f":"IFERROR(VLOOKUP($C24,Sheet1!$B$3:$W$247,22,0),\"\")","v":""},null,null,null,null,null,null,null,null,null,null,null,null,null,null,null,null,null,null,null,null,null,null,null,null,null,null,null,null,null,null,null,null,null,null,22,null,null,null,null,null,null,"الشعراء"]
[8,{"$f":"IF(B28=\"\",\"\")","v":""},0,{"$f":"IFERROR(VLOOKUP($C27,Sheet1!$B$3:K249,2,0),\"\")","v":""},"الحفظ الجديد",{"$f":"IFERROR(VLOOKUP($C27,Sheet1!$B$3:$W$247,5,0),\"\")","v":""},{"$f":"IFERROR(VLOOKUP($C27,Sheet1!$B$3:$W$247,6,0),\"\")","v":""},{"$f":"IFERROR(VLOOKUP($C27,Sheet1!$B$3:$W$247,7,0),\"\")","v":""},{"$f":"IFERROR(VLOOKUP($C27,Sheet1!$B$3:$W$247,8,0),\"\")","v":""},{"$f":"IFERROR(VLOOKUP($C27,Sheet1!$B$3:$W$247,9,0),\"\")","v":""},{"$f":"IFERROR(VLOOKUP($C27,Sheet1!$B$3:$W$247,10,0),\"\")","v":""},null,null,{"$f":"$M$4-$C27","v":240},{"$f":"$L$3+$N27","v":"2020-03-25"},{"$f":"IFERROR(DATEDIF(O27,S28,\"D\"),\"\")","v":""},{"$f":"IFERROR(DATEDIF(S28,O27,\"D\"),\"\")","v":""},null,null,null,null,null,null,null,null,null,null,null,null,null,null,null,null,null,null,null,null,null,null,null,null,null,null,null,null,23,null,null,null,null,null,null,"النمل"]
[null,null,null,null,"المراجعة الصغرى",{"$f":"IFERROR(VLOOKUP($C27,Sheet1!$B$3:$W$247,11,0),\"\")","v":""},{"$f":"IFERROR(VLOOKUP($C27,Sheet1!$B$3:$W$247,12,0),\"\")","v":""},{"$f":"IFERROR(VLOOKUP($C27,Sheet1!$B$3:$W$247,13,0),\"\")","v":""},{"$f":"IFERROR(VLOOKUP($C27,Sheet1!$B$3:$W$247,14,0),\"\")","v":""},{"$f":"IFERROR(VLOOKUP($C27,Sheet1!$B$3:$W$247,15,0),\"\")","v":""},{"$f":"IFERROR(VLOOKUP($C27,Sheet1!$B$3:$W$247,16,0),\"\")","v":""},null,null,null,null,null,null,{"$f":"IF($B28<>\"\",IF($R28=\"\",NOW(),$R28),\"\")","v":""},{"$f":"$R28+240","v":{"$error":"#VALUE!"}},null,null,null,null,null,null,null,null,null,null,null,null,null,null,null,null,null,null,null,null,null,null,null,null,null,null,24,null,null,null,null,null,null,"القصص"]
[null,{"$f":"IF(B28=\"\",\"\")","v":""},null,null,"المراجعة الكبرى",{"$f":"IFERROR(VLOOKUP($C27,Sheet1!$B$3:$W$247,17,0),\"\")","v":""},{"$f":"IFERROR(VLOOKUP($C27,Sheet1!$B$3:$W$247,18,0),\"\")","v":""},{"$f":"IFERROR(VLOOKUP($C27,Sheet1!$B$3:$W$247,19,0),\"\")","v":""},{"$f":"IFERROR(VLOOKUP($C27,Sheet1!$B$3:$W$247,20,0),\"\")","v":""},{"$f":"IFERROR(VLOOKUP($C27,Sheet1!$B$3:$W$247,21,0),\"\")","v":""},{"$f":"IFERROR(VLOOKUP($C27,Sheet1!$B$3:$W$247,22,0),\"\")","v":""},null,null,null,null,null,null,null,null,null,null,null,null,null,null,null,null,null,null,null,null,null,null,null,null,null,null,null,null,null,null,null,null,null,null,25,null,null,null,null,null,null,"العنكبوت"]
[9,{"$f":"IF(B31=\"\",\"\")","v":""},0,{"$f":"IFERROR(VLOOKUP($C30,Sheet1!$B$3:K249,2,0),\"\")","v":""},"الحفظ الجديد",{"$f":"IFERROR(VLOOKUP($C30,Sheet1!$B$3:$W$247,5,0),\"\")","v":""},{"$f":"IFERROR(VLOOKUP($C30,Sheet1!$B$3:$W$247,6,0),\"\")","v":""},{"$f":"IFERROR(VLOOKUP($C30,Sheet1!$B$3:$W$247,7,0),\"\")","v":""},{"$f":"IFERROR(VLOOKUP($C30,Sheet1!$B$3:$W$247,8,0),\"\")","v":""},{"$f":"IFERROR(VLOOKUP($C30,Sheet1!$B$3:$W$247,9,0),\"\")","v":""},{"$f":"IFERROR(VLOOKUP($C30,Sheet1!$B$3:$W$247,10,0),\"\")","v":""},null,null,{"$f":"$M$4-$C30","v":240},{"$f":"$L$3+$N30","v":"2020-03-25"},{"$f":"IFERROR(DATEDIF(O30,S31,\"D\"),\"\")","v":""},{"$f":"IFERROR(DATEDIF(S31,O30,\"D\"),\"\")","v":""},null,null,null,null,null,null,null,null,null,null,null,null,null,null,null,null,null,null,null,null,null,null,null,null,null,null,null,null,null,null,null,null,null,null,null,"الروم"]
[null,null,null,null,"المراجعة الصغرى",{"$f":"IFERROR(VLOOKUP($C30,Sheet1!$B$3:$W$247,11,0),\"\")","v":""},{"$f":"IFERROR(VLOOKUP($C30,Sheet1!$B$3:$W$247,12,0),\"\")","v":""},{"$f":"IFERROR(VLOOKUP($C30,Sheet1!$B$3:$W$247,13,0),\"\")","v":""},{"$f":"IFERROR(VLOOKUP($C30,Sheet1!$B$3:$W$247,14,0),\"\")","v":""},{"$f":"IFERROR(VLOOKUP($C30,Sheet1!$B$3:$W$247,15,0),\"\")","v":""},{"$f":"IFERROR(VLOOKUP($C30,Sheet1!$B$3:$W$247,16,0),\"\")","v":""},null,null,null,null,null,null,{"$f":"IF($B31<>\"\",IF($R31=\"\",NOW(),$R31),\"\")","v":""},{"$f":"$R31+240","v":{"$error":"#VALUE!"}},null,null,null,null,null,null,null,null,null,null,null,null,null,null,null,null,null,null,null,null,null,null,null,null,null,null,null,null,null,null,null,null,null,"لقمان "]
[null,{"$f":"IF(B31=\"\",\"\")","v":""},null,null,"المراجعة الكبرى",{"$f":"IFERROR(VLOOKUP($C30,Sheet1!$B$3:$W$247,17,0),\"\")","v":""},{"$f":"IFERROR(VLOOKUP($C30,Sheet1!$B$3:$W$247,18,0),\"\")","v":""},{"$f":"IFERROR(VLOOKUP($C30,Sheet1!$B$3:$W$247,19,0),\"\")","v":""},{"$f":"IFERROR(VLOOKUP($C30,Sheet1!$B$3:$W$247,20,0),\"\")","v":""},{"$f":"IFERROR(VLOOKUP($C30,Sheet1!$B$3:$W$247,21,0),\"\")","v":""},{"$f":"IFERROR(VLOOKUP($C30,Sheet1!$B$3:$W$247,22,0),\"\")","v":""},null,null,null,null,null,null,null,null,null,null,null,null,null,null,null,null,null,null,null,null,null,null,null,null,null,null,null,null,null,null,null,null,null,null,null,null,null,null,null,null,null,"السجدة"]
[10,{"$f":"IF(B34=\"\",\"\")","v":""},0,{"$f":"IFERROR(VLOOKUP($C33,Sheet1!$B$3:K249,2,0),\"\")","v":""},"الحفظ الجديد",{"$f":"IFERROR(VLOOKUP($C33,Sheet1!$B$3:$W$247,5,0),\"\")","v":""},{"$f":"IFERROR(VLOOKUP($C33,Sheet1!$B$3:$W$247,6,0),\"\")","v":""},{"$f":"IFERROR(VLOOKUP($C33,Sheet1!$B$3:$W$247,7,0),\"\")","v":""},{"$f":"IFERROR(VLOOKUP($C33,Sheet1!$B$3:$W$247,8,0),\"\")","v":""},{"$f":"IFERROR(VLOOKUP($C33,Sheet1!$B$3:$W$247,9,0),\"\")","v":""},{"$f":"IFERROR(VLOOKUP($C33,Sheet1!$B$3:$W$247,10,0),\"\")","v":""},null,null,{"$f":"$M$4-$C33","v":240},{"$f":"$L$3+$N33","v":"2020-03-25"},{"$f":"IFERROR(DATEDIF(O33,S34,\"D\"),\"\")","v":""},{"$f":"IFERROR(DATEDIF(S34,O33,\"D\"),\"\")","v":""},null,null,null,null,null,null,null,null,null,null,null,null,null,null,null,null,null,null,null,null,null,null,null,null,null,null,null,null,null,null,null,null,null,null,null,"الأحزاب"]
[null,null,null,null,"المراجعة الصغرى",{"$f":"IFERROR(VLOOKUP($C33,Sheet1!$B$3:$W$247,11,0),\"\")","v":""},{"$f":"IFERROR(VLOOKUP($C33,Sheet1!$B$3:$W$247,12,0),\"\")","v":""},{"$f":"IFERROR(VLOOKUP($C33,Sheet1!$B$3:$W$247,13,0),\"\")","v":""},{"$f":"IFERROR(VLOOKUP($C33,Sheet1!$B$3:$W$247,14,0),\"\")","v":""},{"$f":"IFERROR(VLOOKUP($C33,Sheet1!$B$3:$W$247,15,0),\"\")","v":""},{"$f":"IFERROR(VLOOKUP($C33,Sheet1!$B$3:$W$247,16,0),\"\")","v":""},null,null,null,null,null,null,{"$f":"IF($B34<>\"\",IF($R34=\"\",NOW(),$R34),\"\")","v":""},{"$f":"$R34+240","v":{"$error":"#VALUE!"}},null,null,null,null,null,null,null,null,null,null,null,null,null,null,null,null,null,null,null,null,null,null,null,null,null,null,null,null,null,null,null,null,null,"سبأ"]
[null,{"$f":"IF(B34=\"\",\"\")","v":""},null,null,"المراجعة الكبرى",{"$f":"IFERROR(VLOOKUP($C33,Sheet1!$B$3:$W$247,17,0),\"\")","v":""},{"$f":"IFERROR(VLOOKUP($C33,Sheet1!$B$3:$W$247,18,0),\"\")","v":""},{"$f":"IFERROR(VLOOKUP($C33,Sheet1!$B$3:$W$247,19,0),\"\")","v":""},{"$f":"IFERROR(VLOOKUP($C33,Sheet1!$B$3:$W$247,20,0),\"\")","v":""},{"$f":"IFERROR(VLOOKUP($C33,Sheet1!$B$3:$W$247,21,0),\"\")","v":""},{"$f":"IFERROR(VLOOKUP($C33,Sheet1!$B$3:$W$247,22,0),\"\")","v":""},null,null,null,null,null,null,null,null,null,null,null,null,null,null,null,null,null,null,null,null,null,null,null,null,null,null,null,null,null,null,null,null,null,null,null,null,null,null,null,null,null,"فاطر"]
[11,{"$f":"IF(B37=\"\",\"\")","v":""},0,{"$f":"IFERROR(VLOOKUP($C36,Sheet1!$B$3:K249,2,0),\"\")","v":""},"الحفظ الجديد",{"$f":"IFERROR(VLOOKUP($C36,Sheet1!$B$3:$W$247,5,0),\"\")","v":""},{"$f":"IFERROR(VLOOKUP($C36,Sheet1!$B$3:$W$247,6,0),\"\")","v":""},{"$f":"IFERROR(VLOOKUP($C36,Sheet1!$B$3:$W$247,7,0),\"\")","v":""},{"$f":"IFERROR(VLOOKUP($C36,Sheet1!$B$3:$W$247,8,0),\"\")","v":""},{"$f":"IFERROR(VLOOKUP($C36,Sheet1!$B$3:$W$247,9,0),\"\")","v":""},{"$f":"IFERROR(VLOOKUP($C36,Sheet1!$B$3:$W$247,10,0),\"\")","v":""},null,null,{"$f":"$M$4-$C36","v":240},{"$f":"$L$3+$N36","v":"2020-03-25"},{"$f":"IFERROR(DATEDIF(O36,S37,\"D\"),\"\")","v":""},{"$f":"IFERROR(DATEDIF(S37,O36,\"D\"),\"\")","v":""},null,null,null,null,null,null,null,null,null,null,null,null,null,null,null,null,null,null,null,null,null,null,null,null,null,null,null,null,null,null,null,null,null,null,null,"يس"]
[null,null,null,null,"المراجعة الصغرى",{"$f":"IFERROR(VLOOKUP($C36,Sheet1!$B$3:$W$247,11,0),\"\")","v":""},{"$f":"IFERROR(VLOOKUP($C36,Sheet1!$B$3:$W$247,12,0),\"\")","v":""},{"$f":"IFERROR(VLOOKUP($C36,Sheet1!$B$3:$W$247,13,0),\"\")","v":""},{"$f":"IFERROR(VLOOKUP($C36,Sheet1!$B$3:$W$247,14,0),\"\")","v":""},{"$f":"IFERROR(VLOOKUP($C36,Sheet1!$B$3:$W$247,15,0),\"\")","v":""},{"$f":"IFERROR(VLOOKUP($C36,Sheet1!$B$3:$W$247,16,0),\"\")","v":""},null,null,null,null,null,null,{"$f":"IF($B37<>\"\",IF($R37=\"\",NOW(),$R37),\"\")","v":""},{"$f":"$R37+240","v":{"$error":"#VALUE!"}},null,null,null,null,null,null,null,null,null,null,null,null,null,null,null,null,null,null,null,null,null,null,null,null,null,null,null,null,null,null,null,null,null,"الصافات"]
[null,{"$f":"IF(B37=\"\",\"\")","v":""},null,null,"المراجعة الكبرى",{"$f":"IFERROR(VLOOKUP($C36,Sheet1!$B$3:$W$247,17,0),\"\")","v":""},{"$f":"IFERROR(VLOOKUP($C36,Sheet1!$B$3:$W$247,18,0),\"\")","v":""},{"$f":"IFERROR(VLOOKUP($C36,Sheet1!$B$3:$W$247,19,0),\"\")","v":""},{"$f":"IFERROR(VLOOKUP($C36,Sheet1!$B$3:$W$247,20,0),\"\")","v":""},{"$f":"IFERROR(VLOOKUP($C36,Sheet1!$B$3:$W$247,21,0),\"\")","v":""},{"$f":"IFERROR(VLOOKUP($C36,Sheet1!$B$3:$W$247,22,0),\"\")","v":""},null,null,null,null,null,null,null,null,null,null,null,null,null,null,null,null,null,null,null,null,null,null,null,null,null,null,null,null,null,null,null,null,null,null,null,null,null,null,null,null,null,"ص"]
[12,{"$f":"IF(B40=\"\",\"\")","v":""},0,{"$f":"IFERROR(VLOOKUP($C39,Sheet1!$B$3:K249,2,0),\"\")","v":""},"الحفظ الجديد",{"$f":"IFERROR(VLOOKUP($C39,Sheet1!$B$3:$W$247,5,0),\"\")","v":""},{"$f":"IFERROR(VLOOKUP($C39,Sheet1!$B$3:$W$247,6,0),\"\")","v":""},{"$f":"IFERROR(VLOOKUP($C39,Sheet1!$B$3:$W$247,7,0),\"\")","v":""},{"$f":"IFERROR(VLOOKUP($C39,Sheet1!$B$3:$W$247,8,0),\"\")","v":""},{"$f":"IFERROR(VLOOKUP($C39,Sheet1!$B$3:$W$247,9,0),\"\")","v":""},{"$f":"IFERROR(VLOOKUP($C39,Sheet1!$B$3:$W$247,10,0),\"\")","v":""},null,null,{"$f":"$M$4-$C39","v":240},{"$f":"$L$3+$N39","v":"2020-03-25"},{"$f":"IFERROR(DATEDIF(O39,S40,\"D\"),\"\")","v":""},{"$f":"IFERROR(DATEDIF(S40,O39,\"D\"),\"\")","v":""},null,null,null,null,null,null,null,null,null,null,null,null,null,null,null,null,null,null,null,null,null,null,null,null,null,null,null,null,null,null,null,null,null,null,null,"الزمر"]
[null,null,null,null,"المراجعة الصغرى",{"$f":"IFERROR(VLOOKUP($C39,Sheet1!$B$3:$W$247,11,0),\"\")","v":""},{"$f":"IFERROR(VLOOKUP($C39,Sheet1!$B$3:$W$247,12,0),\"\")","v":""},{"$f":"IFERROR(VLOOKUP($C39,Sheet1!$B$3:$W$247,13,0),\"\")","v":""},{"$f":"IFERROR(VLOOKUP($C39,Sheet1!$B$3:$W$247,14,0),\"\")","v":""},{"$f":"IFERROR(VLOOKUP($C39,Sheet1!$B$3:$W$247,15,0),\"\")","v":""},{"$f":"IFERROR(VLOOKUP($C39,Sheet1!$B$3:$W$247,16,0),\"\")","v":""},null,null,null,null,null,null,{"$f":"IF($B40<>\"\",IF($R40=\"\",NOW(),$R40),\"\")","v":""},{"$f":"$R40+240","v":{"$error":"#VALUE!"}},null,null,null,null,null,null,null,null,null,null,null,null,null,null,null,null,null,null,null,null,null,null,null,null,null,null,null,null,null,null,null,null,null,"غافر"]
[null,{"$f":"IF(B40=\"\",\"\")","v":""},null,null,"المراجعة الكبرى",{"$f":"IFERROR(VLOOKUP($C39,Sheet1!$B$3:$W$247,17,0),\"\")","v":""},{"$f":"IFERROR(VLOOKUP($C39,Sheet1!$B$3:$W$247,18,0),\"\")","v":""},{"$f":"IFERROR(VLOOKUP($C39,Sheet1!$B$3:$W$247,19,0),\"\")","v":""},{"$f":"IFERROR(VLOOKUP($C39,Sheet1!$B$3:$W$247,20,0),\"\")","v":""},{"$f":"IFERROR(VLOOKUP($C39,Sheet1!$B$3:$W$247,21,0),\"\")","v":""},{"$f":"IFERROR(VLOOKUP($C39,Sheet1!$B$3:$W$247,22,0),\"\")","v":""},null,null,null,null,null,null,null,null,null,null,null,null,null,null,null,null,null,null,null,null,null,null,null,null,null,null,null,null,null,null,null,null,null,null,null,null,null,null,null,null,null,"فصلت"]
[13,{"$f":"IF(B43=\"\",\"\")","v":""},0,{"$f":"IFERROR(VLOOKUP($C42,Sheet1!$B$3:K249,2,0),\"\")","v":""},"الحفظ الجديد",{"$f":"IFERROR(VLOOKUP($C42,Sheet1!$B$3:$W$247,5,0),\"\")","v":""},{"$f":"IFERROR(VLOOKUP($C42,Sheet1!$B$3:$W$247,6,0),\"\")","v":""},{"$f":"IFERROR(VLOOKUP($C42,Sheet1!$B$3:$W$247,7,0),\"\")","v":""},{"$f":"IFERROR(VLOOKUP($C42,Sheet1!$B$3:$W$247,8,0),\"\")","v":""},{"$f":"IFERROR(VLOOKUP($C42,Sheet1!$B$3:$W$247,9,0),\"\")","v":""},{"$f":"IFERROR(VLOOKUP($C42,Sheet1!$B$3:$W$247,10,0),\"\")","v":""},null,null,{"$f":"$M$4-$C42","v":240},{"$f":"$L$3+$N42","v":"2020-03-25"},{"$f":"IFERROR(DATEDIF(O42,S43,\"D\"),\"\")","v":""},{"$f":"IFERROR(DATEDIF(S43,O42,\"D\"),\"\")","v":""},null,null,null,null,null,null,null,null,null,null,null,null,null,null,null,null,null,null,null,null,null,null,null,null,null,null,null,null,null,null,null,null,null,null,null,"الشورى"]
[null,null,null,null,"المراجعة الصغرى",{"$f":"IFERROR(VLOOKUP($C42,Sheet1!$B$3:$W$247,11,0),\"\")","v":""},{"$f":"IFERROR(VLOOKUP($C42,Sheet1!$B$3:$W$247,12,0),\"\")","v":""},{"$f":"IFERROR(VLOOKUP($C42,Sheet1!$B$3:$W$247,13,0),\"\")","v":""},{"$f":"IFERROR(VLOOKUP($C42,Sheet1!$B$3:$W$247,14,0),\"\")","v":""},{"$f":"IFERROR(VLOOKUP($C42,Sheet1!$B$3:$W$247,15,0),\"\")","v":""},{"$f":"IFERROR(VLOOKUP($C42,Sheet1!$B$3:$W$247,16,0),\"\")","v":""},null,null,null,null,null,null,{"$f":"IF($B43<>\"\",IF($R43=\"\",NOW(),$R43),\"\")","v":""},{"$f":"$R43+240","v":{"$error":"#VALUE!"}},null,null,null,null,null,null,null,null,null,null,null,null,null,null,null,null,null,null,null,null,null,null,null,null,null,null,null,null,null,null,null,null,null,"الزخرف"]
[null,{"$f":"IF(B43=\"\",\"\")","v":""},null,null,"المراجعة الكبرى",{"$f":"IFERROR(VLOOKUP($C42,Sheet1!$B$3:$W$247,17,0),\"\")","v":""},{"$f":"IFERROR(VLOOKUP($C42,Sheet1!$B$3:$W$247,18,0),\"\")","v":""},{"$f":"IFERROR(VLOOKUP($C42,Sheet1!$B$3:$W$247,19,0),\"\")","v":""},{"$f":"IFERROR(VLOOKUP($C42,Sheet1!$B$3:$W$247,20,0),\"\")","v":""},{"$f":"IFERROR(VLOOKUP($C42,Sheet1!$B$3:$W$247,21,0),\"\")","v":""},{"$f":"IFERROR(VLOOKUP($C42,Sheet1!$B$3:$W$247,22,0),\"\")","v":""},null,null,null,null,null,null,null,null,null,null,null,null,null,null,null,null,null,null,null,null,null,null,null,null,null,null,null,null,null,null,null,null,null,null,null,null,null,null,null,null,null,"الدخان"]
[14,{"$f":"IF(B$46=\"\",\"\")","v":""},0,{"$f":"IFERROR(VLOOKUP($C45,Sheet1!$B$3:K249,2,0),\"\")","v":""},"الحفظ الجديد",{"$f":"IFERROR(VLOOKUP($C45,Sheet1!$B$3:$W$247,5,0),\"\")","v":""},{"$f":"IFERROR(VLOOKUP($C45,Sheet1!$B$3:$W$247,6,0),\"\")","v":""},{"$f":"IFERROR(VLOOKUP($C45,Sheet1!$B$3:$W$247,7,0),\"\")","v":""},{"$f":"IFERROR(VLOOKUP($C45,Sheet1!$B$3:$W$247,8,0),\"\")","v":""},{"$f":"IFERROR(VLOOKUP($C45,Sheet1!$B$3:$W$247,9,0),\"\")","v":""},{"$f":"IFERROR(VLOOKUP($C45,Sheet1!$B$3:$W$247,10,0),\"\")","v":""},null,null,{"$f":"$M$4-$C45","v":240},{"$f":"$L$3+$N45","v":"2020-03-25"},{"$f":"IFERROR(DATEDIF(O45,S46,\"D\"),\"\")","v":""},{"$f":"IFERROR(DATEDIF(S46,O45,\"D\"),\"\")","v":""},null,null,null,null,null,null,null,null,null,null,null,null,null,null,null,null,null,null,null,null,null,null,null,null,null,null,null,null,null,null,null,null,null,null,null,"الجاثية"]
[null,null,null,null,"المراجعة الصغرى",{"$f":"IFERROR(VLOOKUP($C45,Sheet1!$B$3:$W$247,11,0),\"\")","v":""},{"$f":"IFERROR(VLOOKUP($C45,Sheet1!$B$3:$W$247,12,0),\"\")","v":""},{"$f":"IFERROR(VLOOKUP($C45,Sheet1!$B$3:$W$247,13,0),\"\")","v":""},{"$f":"IFERROR(VLOOKUP($C45,Sheet1!$B$3:$W$247,14,0),\"\")","v":""},{"$f":"IFERROR(VLOOKUP($C45,Sheet1!$B$3:$W$247,15,0),\"\")","v":""},{"$f":"IFERROR(VLOOKUP($C45,Sheet1!$B$3:$W$247,16,0),\"\")","v":""},null,null,null,null,null,null,{"$f":"IF($B46<>\"\",IF($R46=\"\",NOW(),$R46),\"\")","v":""},{"$f":"$R46+240","v":{"$error":"#VALUE!"}},null,null,null,null,null,null,null,null,null,null,null,null,null,null,null,null,null,null,null,null,null,null,null,null,null,null,null,null,null,null,null,null,null,"الأحقاف"]
[null,{"$f":"IF(B$46=\"\",\"\")","v":""},null,null,"المراجعة الكبرى",{"$f":"IFERROR(VLOOKUP($C45,Sheet1!$B$3:$W$247,17,0),\"\")","v":""},{"$f":"IFERROR(VLOOKUP($C45,Sheet1!$B$3:$W$247,18,0),\"\")","v":""},{"$f":"IFERROR(VLOOKUP($C45,Sheet1!$B$3:$W$247,19,0),\"\")","v":""},{"$f":"IFERROR(VLOOKUP($C45,Sheet1!$B$3:$W$247,20,0),\"\")","v":""},{"$f":"IFERROR(VLOOKUP($C45,Sheet1!$B$3:$W$247,21,0),\"\")","v":""},{"$f":"IFERROR(VLOOKUP($C45,Sheet1!$B$3:$W$247,22,0),\"\")","v":""},null,null,null,null,null,null,null,null,null,null,null,null,null,null,null,null,null,null,null,null,null,null,null,null,null,null,null,null,null,null,null,null,null,null,null,null,null,null,null,null,null,"محمد"]
[15,{"$f":"IF(B$49=\"\",\"\")","v":""},0,{"$f":"IFERROR(VLOOKUP($C48,Sheet1!$B$3:K249,2,0),\"\")","v":""},"الحفظ الجديد",{"$f":"IFERROR(VLOOKUP($C48,Sheet1!$B$3:$W$247,5,0),\"\")","v":""},{"$f":"IFERROR(VLOOKUP($C48,Sheet1!$B$3:$W$247,6,0),\"\")","v":""},{"$f":"IFERROR(VLOOKUP($C48,Sheet1!$B$3:$W$247,7,0),\"\")","v":""},{"$f":"IFERROR(VLOOKUP($C48,Sheet1!$B$3:$W$247,8,0),\"\")","v":""},{"$f":"IFERROR(VLOOKUP($C48,Sheet1!$B$3:$W$247,9,0),\"\")","v":""},{"$f":"IFERROR(VLOOKUP($C48,Sheet1!$B$3:$W$247,10,0),\"\")","v":""},null,null,{"$f":"$M$4-$C48","v":240},{"$f":"$L$3+$N48","v":"2020-03-25"},{"$f":"IFERROR(DATEDIF(O48,S49,\"D\"),\"\")","v":""},{"$f":"IFERROR(DATEDIF(S49,O48,\"D\"),\"\")","v":""},null,null,null,null,null,null,null,null,null,null,null,null,null,null,null,null,null,null,null,null,null,null,null,null,null,null,null,null,null,null,null,null,null,null,null,"الفتح"]
[null,null,null,null,"المراجعة الصغرى",{"$f":"IFERROR(VLOOKUP($C48,Sheet1!$B$3:$W$247,11,0),\"\")","v":""},{"$f":"IFERROR(VLOOKUP($C48,Sheet1!$B$3:$W$247,12,0),\"\")","v":""},{"$f":"IFERROR(VLOOKUP($C48,Sheet1!$B$3:$W$247,13,0),\"\")","v":""},{"$f":"IFERROR(VLOOKUP($C48,Sheet1!$B$3:$W$247,14,0),\"\")","v":""},{"$f":"IFERROR(VLOOKUP($C48,Sheet1!$B$3:$W$247,15,0),\"\")","v":""},{"$f":"IFERROR(VLOOKUP($C48,Sheet1!$B$3:$W$247,16,0),\"\")","v":""},null,null,null,null,null,null,{"$f":"IF($B49<>\"\",IF($R49=\"\",NOW(),$R49),\"\")","v":""},{"$f":"$R49+240","v":{"$error":"#VALUE!"}},null,null,null,null,null,null,null,null,null,null,null,null,null,null,null,null,null,null,null,null,null,null,null,null,null,null,null,null,null,null,null,null,null,"الحجرات"]
[null,{"$f":"IF(B$49=\"\",\"\")","v":""},null,null,"المراجعة الكبرى",{"$f":"IFERROR(VLOOKUP($C48,Sheet1!$B$3:$W$247,17,0),\"\")","v":""},{"$f":"IFERROR(VLOOKUP($C48,Sheet1!$B$3:$W$247,18,0),\"\")","v":""},{"$f":"IFERROR(VLOOKUP($C48,Sheet1!$B$3:$W$247,19,0),\"\")","v":""},{"$f":"IFERROR(VLOOKUP($C48,Sheet1!$B$3:$W$247,20,0),\"\")","v":""},{"$f":"IFERROR(VLOOKUP($C48,Sheet1!$B$3:$W$247,21,0),\"\")","v":""},{"$f":"IFERROR(VLOOKUP($C48,Sheet1!$B$3:$W$247,22,0),\"\")","v":""},null,null,null,null,null,null,null,null,null,null,null,null,null,null,null,null,null,null,null,null,null,null,null,null,null,null,null,null,null,null,null,null,null,null,null,null,null,null,null,null,null,"ق"]
[16,{"$f":"IF(B$52=\"\",\"\")","v":""},0,{"$f":"IFERROR(VLOOKUP($C51,Sheet1!$B$3:K249,2,0),\"\")","v":""},"الحفظ الجديد",{"$f":"IFERROR(VLOOKUP($C51,Sheet1!$B$3:$W$247,5,0),\"\")","v":""},{"$f":"IFERROR(VLOOKUP($C51,Sheet1!$B$3:$W$247,6,0),\"\")","v":""},{"$f":"IFERROR(VLOOKUP($C51,Sheet1!$B$3:$W$247,7,0),\"\")","v":""},{"$f":"IFERROR(VLOOKUP($C51,Sheet1!$B$3:$W$247,8,0),\"\")","v":""},{"$f":"IFERROR(VLOOKUP($C51,Sheet1!$B$3:$W$247,9,0),\"\")","v":""},{"$f":"IFERROR(VLOOKUP($C51,Sheet1!$B$3:$W$247,10,0),\"\")","v":""},null,null,{"$f":"$M$4-$C51","v":240},{"$f":"$L$3+$N51","v":"2020-03-25"},{"$f":"IFERROR(DATEDIF(O51,S52,\"D\"),\"\")","v":""},{"$f":"IFERROR(DATEDIF(S52,O51,\"D\"),\"\")","v":""},null,null,null,null,null,null,null,null,null,null,null,null,null,null,null,null,null,null,null,null,null,null,null,null,null,null,null,null,null,null,null,null,null,null,null,"الذاريات"]
[null,null,null,null,"المراجعة الصغرى",{"$f":"IFERROR(VLOOKUP($C51,Sheet1!$B$3:$W$247,11,0),\"\")","v":""},{"$f":"IFERROR(VLOOKUP($C51,Sheet1!$B$3:$W$247,12,0),\"\")","v":""},{"$f":"IFERROR(VLOOKUP($C51,Sheet1!$B$3:$W$247,13,0),\"\")","v":""},{"$f":"IFERROR(VLOOKUP($C51,Sheet1!$B$3:$W$247,14,0),\"\")","v":""},{"$f":"IFERROR(VLOOKUP($C51,Sheet1!$B$3:$W$247,15,0),\"\")","v":""},{"$f":"IFERROR(VLOOKUP($C51,Sheet1!$B$3:$W$247,16,0),\"\")","v":""},null,null,null,null,null,null,{"$f":"IF($B52<>\"\",IF($R52=\"\",NOW(),$R52),\"\")","v":""},{"$f":"$R52+240","v":{"$error":"#VALUE!"}},null,null,null,null,null,null,null,null,null,null,null,null,null,null,null,null,null,null,null,null,null,null,null,null,null,null,null,null,null,null,null,null,null,"الطور "]
[null,{"$f":"IF(B$52=\"\",\"\")","v":""},null,null,"المراجعة الكبرى",{"$f":"IFERROR(VLOOKUP($C51,Sheet1!$B$3:$W$247,17,0),\"\")","v":""},{"$f":"IFERROR(VLOOKUP($C51,Sheet1!$B$3:$W$247,18,0),\"\")","v":""},{"$f":"IFERROR(VLOOKUP($C51,Sheet1!$B$3:$W$247,19,0),\"\")","v":""},{"$f":"IFERROR(VLOOKUP($C51,Sheet1!$B$3:$W$247,20,0),\"\")","v":""},{"$f":"IFERROR(VLOOKUP($C51,Sheet1!$B$3:$W$247,21,0),\"\")","v":""},{"$f":"IFERROR(VLOOKUP($C51,Sheet1!$B$3:$W$247,22,0),\"\")","v":""},null,null,null,null,null,null,null,null,null,null,null,null,null,null,null,null,null,null,null,null,null,null,null,null,null,null,null,null,null,null,null,null,null,null,null,null,null,null,null,null,null,"النجم"]
[17,{"$f":"IF(B$55=\"\",\"\")","v":""},0,{"$f":"IFERROR(VLOOKUP($C54,Sheet1!$B$3:K249,2,0),\"\")","v":""},"الحفظ الجديد",{"$f":"IFERROR(VLOOKUP($C54,Sheet1!$B$3:$W$247,5,0),\"\")","v":""},{"$f":"IFERROR(VLOOKUP($C54,Sheet1!$B$3:$W$247,6,0),\"\")","v":""},{"$f":"IFERROR(VLOOKUP($C54,Sheet1!$B$3:$W$247,7,0),\"\")","v":""},{"$f":"IFERROR(VLOOKUP($C54,Sheet1!$B$3:$W$247,8,0),\"\")","v":""},{"$f":"IFERROR(VLOOKUP($C54,Sheet1!$B$3:$W$247,9,0),\"\")","v":""},{"$f":"IFERROR(VLOOKUP($C54,Sheet1!$B$3:$W$247,10,0),\"\")","v":""},null,null,{"$f":"$M$4-$C54","v":240},{"$f":"$L$3+$N54","v":"2020-03-25"},{"$f":"IFERROR(DATEDIF(O54,S55,\"D\"),\"\")","v":""},{"$f":"IFERROR(DATEDIF(S55,O54,\"D\"),\"\")","v":""},null,null,null,null,null,null,null,null,null,null,null,null,null,null,null,null,null,null,null,null,null,null,null,null,null,null,null,null,null,null,null,null,null,null,null,"القمر"]
[null,null,null,null,"المراجعة الصغرى",{"$f":"IFERROR(VLOOKUP($C54,Sheet1!$B$3:$W$247,11,0),\"\")","v":""},{"$f":"IFERROR(VLOOKUP($C54,Sheet1!$B$3:$W$247,12,0),\"\")","v":""},{"$f":"IFERROR(VLOOKUP($C54,Sheet1!$B$3:$W$247,13,0),\"\")","v":""},{"$f":"IFERROR(VLOOKUP($C54,Sheet1!$B$3:$W$247,14,0),\"\")","v":""},{"$f":"IFERROR(VLOOKUP($C54,Sheet1!$B$3:$W$247,15,0),\"\")","v":""},{"$f":"IFERROR(VLOOKUP($C54,Sheet1!$B$3:$W$247,16,0),\"\")","v":""},null,null,null,null,null,null,{"$f":"IF($B55<>\"\",IF($R55=\"\",NOW(),$R55),\"\")","v":""},{"$f":"$R55+240","v":{"$error":"#VALUE!"}},null,null,null,null,null,null,null,null,null,null,null,null,null,null,null,null,null,null,null,null,null,null,null,null,null,null,null,null,null,null,null,null,null,"الرحمن"]
[null,{"$f":"IF(B$55=\"\",\"\")","v":""},null,null,"المراجعة الكبرى",{"$f":"IFERROR(VLOOKUP($C54,Sheet1!$B$3:$W$247,17,0),\"\")","v":""},{"$f":"IFERROR(VLOOKUP($C54,Sheet1!$B$3:$W$247,18,0),\"\")","v":""},{"$f":"IFERROR(VLOOKUP($C54,Sheet1!$B$3:$W$247,19,0),\"\")","v":""},{"$f":"IFERROR(VLOOKUP($C54,Sheet1!$B$3:$W$247,20,0),\"\")","v":""},{"$f":"IFERROR(VLOOKUP($C54,Sheet1!$B$3:$W$247,21,0),\"\")","v":""},{"$f":"IFERROR(VLOOKUP($C54,Sheet1!$B$3:$W$247,22,0),\"\")","v":""},null,null,null,null,null,null,null,null,null,null,null,null,null,null,null,null,null,null,null,null,null,null,null,null,null,null,null,null,null,null,null,null,null,null,null,null,null,null,null,null,null,"الواقعة"]
[18,{"$f":"IF(B$58=\"\",\"\")","v":""},0,{"$f":"IFERROR(VLOOKUP($C57,Sheet1!$B$3:K249,2,0),\"\")","v":""},"الحفظ الجديد",{"$f":"IFERROR(VLOOKUP($C57,Sheet1!$B$3:$W$247,5,0),\"\")","v":""},{"$f":"IFERROR(VLOOKUP($C57,Sheet1!$B$3:$W$247,6,0),\"\")","v":""},{"$f":"IFERROR(VLOOKUP($C57,Sheet1!$B$3:$W$247,7,0),\"\")","v":""},{"$f":"IFERROR(VLOOKUP($C57,Sheet1!$B$3:$W$247,8,0),\"\")","v":""},{"$f":"IFERROR(VLOOKUP($C57,Sheet1!$B$3:$W$247,9,0),\"\")","v":""},{"$f":"IFERROR(VLOOKUP($C57,Sheet1!$B$3:$W$247,10,0),\"\")","v":""},null,null,{"$f":"$M$4-$C57","v":240},{"$f":"$L$3+$N57","v":"2020-03-25"},{"$f":"IFERROR(DATEDIF(O57,S58,\"D\"),\"\")","v":""},{"$f":"IFERROR(DATEDIF(S58,O57,\"D\"),\"\")","v":""},null,null,null,null,null,null,null,null,null,null,null,null,null,null,null,null,null,null,null,null,null,null,null,null,null,null,null,null,null,null,null,null,null,null,null,"الحديد"]
[null,null,null,null,"المراجعة الصغرى",{"$f":"IFERROR(VLOOKUP($C57,Sheet1!$B$3:$W$247,11,0),\"\")","v":""},{"$f":"IFERROR(VLOOKUP($C57,Sheet1!$B$3:$W$247,12,0),\"\")","v":""},{"$f":"IFERROR(VLOOKUP($C57,Sheet1!$B$3:$W$247,13,0),\"\")","v":""},{"$f":"IFERROR(VLOOKUP($C57,Sheet1!$B$3:$W$247,14,0),\"\")","v":""},{"$f":"IFERROR(VLOOKUP($C57,Sheet1!$B$3:$W$247,15,0),\"\")","v":""},{"$f":"IFERROR(VLOOKUP($C57,Sheet1!$B$3:$W$247,16,0),\"\")","v":""},null,null,null,null,null,null,{"$f":"IF($B58<>\"\",IF($R58=\"\",NOW(),$R58),\"\")","v":""},{"$f":"$R58+240","v":{"$error":"#VALUE!"}},null,null,null,null,null,null,null,null,null,null,null,null,null,null,null,null,null,null,null,null,null,null,null,null,null,null,null,null,null,null,null,null,null,"المجادلة"]
[null,{"$f":"IF(B$58=\"\",\"\")","v":""},null,null,"المراجعة الكبرى",{"$f":"IFERROR(VLOOKUP($C57,Sheet1!$B$3:$W$247,17,0),\"\")","v":""},{"$f":"IFERROR(VLOOKUP($C57,Sheet1!$B$3:$W$247,18,0),\"\")","v":""},{"$f":"IFERROR(VLOOKUP($C57,Sheet1!$B$3:$W$247,19,0),\"\")","v":""},{"$f":"IFERROR(VLOOKUP($C57,Sheet1!$B$3:$W$247,20,0),\"\")","v":""},{"$f":"IFERROR(VLOOKUP($C57,Sheet1!$B$3:$W$247,21,0),\"\")","v":""},{"$f":"IFERROR(VLOOKUP($C57,Sheet1!$B$3:$W$247,22,0),\"\")","v":""},null,null,null,null,null,null,null,null,null,null,null,null,null,null,null,null,null,null,null,null,null,null,null,null,null,null,null,null,null,null,null,null,null,null,null,null,null,null,null,null,null,"الحشر"]
[19,{"$f":"IF(B$61=\"\",\"\")","v":""},0,{"$f":"IFERROR(VLOOKUP($C60,Sheet1!$B$3:K249,2,0),\"\")","v":""},"الحفظ الجديد",{"$f":"IFERROR(VLOOKUP($C60,Sheet1!$B$3:$W$247,5,0),\"\")","v":""},{"$f":"IFERROR(VLOOKUP($C60,Sheet1!$B$3:$W$247,6,0),\"\")","v":""},{"$f":"IFERROR(VLOOKUP($C60,Sheet1!$B$3:$W$247,7,0),\"\")","v":""},{"$f":"IFERROR(VLOOKUP($C60,Sheet1!$B$3:$W$247,8,0),\"\")","v":""},{"$f":"IFERROR(VLOOKUP($C60,Sheet1!$B$3:$W$247,9,0),\"\")","v":""},{"$f":"IFERROR(VLOOKUP($C60,Sheet1!$B$3:$W$247,10,0),\"\")","v":""},null,null,{"$f":"$M$4-$C60","v":240},{"$f":"$L$3+$N60","v":"2020-03-25"},{"$f":"IFERROR(DATEDIF(O60,S61,\"D\"),\"\")","v":""},{"$f":"IFERROR(DATEDIF(S61,O60,\"D\"),\"\")","v":""},null,null,null,null,null,null,null,null,null,null,null,null,null,null,null,null,null,null,null,null,null,null,null,null,null,null,null,null,null,null,null,null,null,null,null,"الممتحنة"]
[null,null,null,null,"المراجعة الصغرى",{"$f":"IFERROR(VLOOKUP($C60,Sheet1!$B$3:$W$247,11,0),\"\")","v":""},{"$f":"IFERROR(VLOOKUP($C60,Sheet1!$B$3:$W$247,12,0),\"\")","v":""},{"$f":"IFERROR(VLOOKUP($C60,Sheet1!$B$3:$W$247,13,0),\"\")","v":""},{"$f":"IFERROR(VLOOKUP($C60,Sheet1!$B$3:$W$247,14,0),\"\")","v":""},{"$f":"IFERROR(VLOOKUP($C60,Sheet1!$B$3:$W$247,15,0),\"\")","v":""},{"$f":"IFERROR(VLOOKUP($C60,Sheet1!$B$3:$W$247,16,0),\"\")","v":""},null,null,null,null,null,null,{"$f":"IF($B61<>\"\",IF($R61=\"\",NOW(),$R61),\"\")","v":""},{"$f":"$R61+240","v":{"$error":"#VALUE!"}},null,null,null,null,null,null,null,null,null,null,null,null,null,null,null,null,null,null,null,null,null,null,null,null,null,null,null,null,null,null,null,null,null,"الجمعة"]
[null,{"$f":"IF(B$61=\"\",\"\")","v":""},null,null,"المراجعة الكبرى",{"$f":"IFERROR(VLOOKUP($C60,Sheet1!$B$3:$W$247,17,0),\"\")","v":""},{"$f":"IFERROR(VLOOKUP($C60,Sheet1!$B$3:$W$247,18,0),\"\")","v":""},{"$f":"IFERROR(VLOOKUP($C60,Sheet1!$B$3:$W$247,19,0),\"\")","v":""},{"$f":"IFERROR(VLOOKUP($C60,Sheet1!$B$3:$W$247,20,0),\"\")","v":""},{"$f":"IFERROR(VLOOKUP($C60,Sheet1!$B$3:$W$247,21,0),\"\")","v":""},{"$f":"IFERROR(VLOOKUP($C60,Sheet1!$B$3:$W$247,22,0),\"\")","v":""},null,null,null,null,null,null,null,null,null,null,null,null,null,null,null,null,null,null,null,null,null,null,null,null,null,null,null,null,null,null,null,null,null,null,null,null,null,null,null,null,null,"المنافقون"]
[20,{"$f":"IF(B$64=\"\",\"\")","v":""},0,{"$f":"IFERROR(VLOOKUP($C63,Sheet1!$B$3:K249,2,0),\"\")","v":""},"الحفظ الجديد",{"$f":"IFERROR(VLOOKUP($C63,Sheet1!$B$3:$W$247,5,0),\"\")","v":""},{"$f":"IFERROR(VLOOKUP($C63,Sheet1!$B$3:$W$247,6,0),\"\")","v":""},{"$f":"IFERROR(VLOOKUP($C63,Sheet1!$B$3:$W$247,7,0),\"\")","v":""},{"$f":"IFERROR(VLOOKUP($C63,Sheet1!$B$3:$W$247,8,0),\"\")","v":""},{"$f":"IFERROR(VLOOKUP($C63,Sheet1!$B$3:$W$247,9,0),\"\")","v":""},{"$f":"IFERROR(VLOOKUP($C63,Sheet1!$B$3:$W$247,10,0),\"\")","v":""},null,null,{"$f":"$M$4-$C63","v":240},{"$f":"$L$3+$N63","v":"2020-03-25"},{"$f":"IFERROR(DATEDIF(O63,S64,\"D\"),\"\")","v":""},{"$f":"IFERROR(DATEDIF(S64,O63,\"D\"),\"\")","v":""},null,null,null,null,null,null,null,null,null,null,null,null,null,null,null,null,null,null,null,null,null,null,null,null,null,null,null,null,null,null,null,null,null,null,null,"الطلاق"]
[null,null,null,null,"المراجعة الصغرى",{"$f":"IFERROR(VLOOKUP($C63,Sheet1!$B$3:$W$247,11,0),\"\")","v":""},{"$f":"IFERROR(VLOOKUP($C63,Sheet1!$B$3:$W$247,12,0),\"\")","v":""},{"$f":"IFERROR(VLOOKUP($C63,Sheet1!$B$3:$W$247,13,0),\"\")","v":""},{"$f":"IFERROR(VLOOKUP($C63,Sheet1!$B$3:$W$247,14,0),\"\")","v":""},{"$f":"IFERROR(VLOOKUP($C63,Sheet1!$B$3:$W$247,15,0),\"\")","v":""},{"$f":"IFERROR(VLOOKUP($C63,Sheet1!$B$3:$W$247,16,0),\"\")","v":""},null,null,null,null,null,null,{"$f":"IF($B64<>\"\",IF($R64=\"\",NOW(),$R64),\"\")","v":""},{"$f":"$R64+240","v":{"$error":"#VALUE!"}},null,null,null,null,null,null,null,null,null,null,null,null,null,null,null,null,null,null,null,null,null,null,null,null,null,null,null,null,null,null,null,null,null,"التحريم"]
[null,{"$f":"IF(B$64=\"\",\"\")","v":""},null,null,"المراجعة الكبرى",{"$f":"IFERROR(VLOOKUP($C63,Sheet1!$B$3:$W$247,17,0),\"\")","v":""},{"$f":"IFERROR(VLOOKUP($C63,Sheet1!$B$3:$W$247,18,0),\"\")","v":""},{"$f":"IFERROR(VLOOKUP($C63,Sheet1!$B$3:$W$247,19,0),\"\")","v":""},{"$f":"IFERROR(VLOOKUP($C63,Sheet1!$B$3:$W$247,20,0),\"\")","v":""},{"$f":"IFERROR(VLOOKUP($C63,Sheet1!$B$3:$W$247,21,0),\"\")","v":""},{"$f":"IFERROR(VLOOKUP($C63,Sheet1!$B$3:$W$247,22,0),\"\")","v":""},null,null,null,null,null,null,null,null,null,null,null,null,null,null,null,null,null,null,null,null,null,null,null,null,null,null,null,null,null,null,null,null,null,null,null,null,null,null,null,null,null,"الملك"]
[21,{"$f":"IF(B$67=\"\",\"\")","v":""},0,{"$f":"IFERROR(VLOOKUP($C66,Sheet1!$B$3:K249,2,0),\"\")","v":""},"الحفظ الجديد",{"$f":"IFERROR(VLOOKUP($C66,Sheet1!$B$3:$W$247,5,0),\"\")","v":""},{"$f":"IFERROR(VLOOKUP($C66,Sheet1!$B$3:$W$247,6,0),\"\")","v":""},{"$f":"IFERROR(VLOOKUP($C66,Sheet1!$B$3:$W$247,7,0),\"\")","v":""},{"$f":"IFERROR(VLOOKUP($C66,Sheet1!$B$3:$W$247,8,0),\"\")","v":""},{"$f":"IFERROR(VLOOKUP($C66,Sheet1!$B$3:$W$247,9,0),\"\")","v":""},{"$f":"IFERROR(VLOOKUP($C66,Sheet1!$B$3:$W$247,10,0),\"\")","v":""},null,null,{"$f":"$M$4-$C66","v":240},{"$f":"$L$3+$N66","v":"2020-03-25"},{"$f":"IFERROR(DATEDIF(O66,S67,\"D\"),\"\")","v":""},{"$f":"IFERROR(DATEDIF(S67,O66,\"D\"),\"\")","v":""},null,null,null,null,null,null,null,null,null,null,null,null,null,null,null,null,null,null,null,null,null,null,null,null,null,null,null,null,null,null,null,null,null,null,null,"القلم"]
[null,null,null,null,"المراجعة الصغرى",{"$f":"IFERROR(VLOOKUP($C66,Sheet1!$B$3:$W$247,11,0),\"\")","v":""},{"$f":"IFERROR(VLOOKUP($C66,Sheet1!$B$3:$W$247,12,0),\"\")","v":""},{"$f":"IFERROR(VLOOKUP($C66,Sheet1!$B$3:$W$247,13,0),\"\")","v":""},{"$f":"IFERROR(VLOOKUP($C66,Sheet1!$B$3:$W$247,14,0),\"\")","v":""},{"$f":"IFERROR(VLOOKUP($C66,Sheet1!$B$3:$W$247,15,0),\"\")","v":""},{"$f":"IFERROR(VLOOKUP($C66,Sheet1!$B$3:$W$247,16,0),\"\")","v":""},null,null,null,null,null,null,{"$f":"IF($B67<>\"\",IF($R67=\"\",NOW(),$R67),\"\")","v":""},{"$f":"$R67+240","v":{"$error":"#VALUE!"}},null,null,null,null,null,null,null,null,null,null,null,null,null,null,null,null,null,null,null,null,null,null,null,null,null,null,null,null,null,null,null,null,null,"الحاقة"]
[null,{"$f":"IF(B$67=\"\",\"\")","v":""},null,null,"المراجعة الكبرى",{"$f":"IFERROR(VLOOKUP($C66,Sheet1!$B$3:$W$247,17,0),\"\")","v":""},{"$f":"IFERROR(VLOOKUP($C66,Sheet1!$B$3:$W$247,18,0),\"\")","v":""},{"$f":"IFERROR(VLOOKUP($C66,Sheet1!$B$3:$W$247,19,0),\"\")","v":""},{"$f":"IFERROR(VLOOKUP($C66,Sheet1!$B$3:$W$247,20,0),\"\")","v":""},{"$f":"IFERROR(VLOOKUP($C66,Sheet1!$B$3:$W$247,21,0),\"\")","v":""},{"$f":"IFERROR(VLOOKUP($C66,Sheet1!$B$3:$W$247,22,0),\"\")","v":""},null,null,null,null,null,null,null,null,null,null,null,null,null,null,null,null,null,null,null,null,null,null,null,null,null,null,null,null,null,null,null,null,null,null,null,null,null,null,null,null,null,"المعارج"]
[22,{"$f":"IF(B$70=\"\",\"\")","v":""},0,{"$f":"IFERROR(VLOOKUP($C69,Sheet1!$B$3:K249,2,0),\"\")","v":""},"الحفظ الجديد",{"$f":"IFERROR(VLOOKUP($C69,Sheet1!$B$3:$W$247,5,0),\"\")","v":""},{"$f":"IFERROR(VLOOKUP($C69,Sheet1!$B$3:$W$247,6,0),\"\")","v":""},{"$f":"IFERROR(VLOOKUP($C69,Sheet1!$B$3:$W$247,7,0),\"\")","v":""},{"$f":"IFERROR(VLOOKUP($C69,Sheet1!$B$3:$W$247,8,0),\"\")","v":""},{"$f":"IFERROR(VLOOKUP($C69,Sheet1!$B$3:$W$247,9,0),\"\")","v":""},{"$f":"IFERROR(VLOOKUP($C69,Sheet1!$B$3:$W$247,10,0),\"\")","v":""},null,null,{"$f":"$M$4-$C69","v":240},{"$f":"$L$3+$N69","v":"2020-03-25"},{"$f":"IFERROR(DATEDIF(O69,S70,\"D\"),\"\")","v":""},{"$f":"IFERROR(DATEDIF(S70,O69,\"D\"),\"\")","v":""},null,null,null,null,null,null,null,null,null,null,null,null,null,null,null,null,null,null,null,null,null,null,null,null,null,null,null,null,null,null,null,null,null,null,null,"الجن"]
[null,null,null,null,"المراجعة الصغرى",{"$f":"IFERROR(VLOOKUP($C69,Sheet1!$B$3:$W$247,11,0),\"\")","v":""},{"$f":"IFERROR(VLOOKUP($C69,Sheet1!$B$3:$W$247,12,0),\"\")","v":""},{"$f":"IFERROR(VLOOKUP($C69,Sheet1!$B$3:$W$247,13,0),\"\")","v":""},{"$f":"IFERROR(VLOOKUP($C69,Sheet1!$B$3:$W$247,14,0),\"\")","v":""},{"$f":"IFERROR(VLOOKUP($C69,Sheet1!$B$3:$W$247,15,0),\"\")","v":""},{"$f":"IFERROR(VLOOKUP($C69,Sheet1!$B$3:$W$247,16,0),\"\")","v":""},null,null,null,null,null,null,{"$f":"IF($B70<>\"\",IF($R70=\"\",NOW(),$R70),\"\")","v":""},{"$f":"$R70+240","v":{"$error":"#VALUE!"}},null,null,null,null,null,null,null,null,null,null,null,null,null,null,null,null,null,null,null,null,null,null,null,null,null,null,null,null,null,null,null,null,null,"المزمل"]
[null,{"$f":"IF(B$70=\"\",\"\")","v":""},null,null,"المراجعة الكبرى",{"$f":"IFERROR(VLOOKUP($C69,Sheet1!$B$3:$W$247,17,0),\"\")","v":""},{"$f":"IFERROR(VLOOKUP($C69,Sheet1!$B$3:$W$247,18,0),\"\")","v":""},{"$f":"IFERROR(VLOOKUP($C69,Sheet1!$B$3:$W$247,19,0),\"\")","v":""},{"$f":"IFERROR(VLOOKUP($C69,Sheet1!$B$3:$W$247,20,0),\"\")","v":""},{"$f":"IFERROR(VLOOKUP($C69,Sheet1!$B$3:$W$247,21,0),\"\")","v":""},{"$f":"IFERROR(VLOOKUP($C69,Sheet1!$B$3:$W$247,22,0),\"\")","v":""},null,null,null,null,null,null,null,null,null,null,null,null,null,null,null,null,null,null,null,null,null,null,null,null,null,null,null,null,null,null,null,null,null,null,null,null,null,null,null,null,null,"القيامة"]
[23,{"$f":"IF(B$73=\"\",\"\")","v":""},0,{"$f":"IFERROR(VLOOKUP($C72,Sheet1!$B$3:K249,2,0),\"\")","v":""},"الحفظ الجديد",{"$f":"IFERROR(VLOOKUP($C72,Sheet1!$B$3:$W$247,5,0),\"\")","v":""},{"$f":"IFERROR(VLOOKUP($C72,Sheet1!$B$3:$W$247,6,0),\"\")","v":""},{"$f":"IFERROR(VLOOKUP($C72,Sheet1!$B$3:$W$247,7,0),\"\")","v":""},{"$f":"IFERROR(VLOOKUP($C72,Sheet1!$B$3:$W$247,8,0),\"\")","v":""},{"$f":"IFERROR(VLOOKUP($C72,Sheet1!$B$3:$W$247,9,0),\"\")","v":""},{"$f":"IFERROR(VLOOKUP($C72,Sheet1!$B$3:$W$247,10,0),\"\")","v":""},null,null,{"$f":"$M$4-$C72","v":240},{"$f":"$L$3+$N72","v":"2020-03-25"},{"$f":"IFERROR(DATEDIF(O72,S73,\"D\"),\"\")","v":""},{"$f":"IFERROR(DATEDIF(S73,O72,\"D\"),\"\")","v":""},null,null,null,null,null,null,null,null,null,null,null,null,null,null,null,null,null,null,null,null,null,null,null,null,null,null,null,null,null,null,null,null,null,null,null,"الإنسان"]
[null,null,null,null,"المراجعة الصغرى",{"$f":"IFERROR(VLOOKUP($C72,Sheet1!$B$3:$W$247,11,0),\"\")","v":""},{"$f":"IFERROR(VLOOKUP($C72,Sheet1!$B$3:$W$247,12,0),\"\")","v":""},{"$f":"IFERROR(VLOOKUP($C72,Sheet1!$B$3:$W$247,13,0),\"\")","v":""},{"$f":"IFERROR(VLOOKUP($C72,Sheet1!$B$3:$W$247,14,0),\"\")","v":""},{"$f":"IFERROR(VLOOKUP($C72,Sheet1!$B$3:$W$247,15,0),\"\")","v":""},{"$f":"IFERROR(VLOOKUP($C72,Sheet1!$B$3:$W$247,16,0),\"\")","v":""},null,null,null,null,null,null,{"$f":"IF($B73<>\"\",IF($R73=\"\",NOW(),$R73),\"\")","v":""},{"$f":"$R73+240","v":{"$error":"#VALUE!"}},null,null,null,null,null,null,null,null,null,null,null,null,null,null,null,null,null,null,null,null,null,null,null,null,null,null,null,null,null,null,null,null,null,"النبأ"]
[null,{"$f":"IF(B$73=\"\",\"\")","v":""},null,null,"المراجعة الكبرى",{"$f":"IFERROR(VLOOKUP($C72,Sheet1!$B$3:$W$247,17,0),\"\")","v":""},{"$f":"IFERROR(VLOOKUP($C72,Sheet1!$B$3:$W$247,18,0),\"\")","v":""},{"$f":"IFERROR(VLOOKUP($C72,Sheet1!$B$3:$W$247,19,0),\"\")","v":""},{"$f":"IFERROR(VLOOKUP($C72,Sheet1!$B$3:$W$247,20,0),\"\")","v":""},{"$f":"IFERROR(VLOOKUP($C72,Sheet1!$B$3:$W$247,21,0),\"\")","v":""},{"$f":"IFERROR(VLOOKUP($C72,Sheet1!$B$3:$W$247,22,0),\"\")","v":""},null,null,null,null,null,null,null,null,null,null,null,null,null,null,null,null,null,null,null,null,null,null,null,null,null,null,null,null,null,null,null,null,null,null,null,null,null,null,null,null,null,"عبس"]
[24,{"$f":"IF(B$76=\"\",\"\")","v":""},0,{"$f":"IFERROR(VLOOKUP($C75,Sheet1!$B$3:K249,2,0),\"\")","v":""},"الحفظ الجديد",{"$f":"IFERROR(VLOOKUP($C75,Sheet1!$B$3:$W$247,5,0),\"\")","v":""},{"$f":"IFERROR(VLOOKUP($C75,Sheet1!$B$3:$W$247,6,0),\"\")","v":""},{"$f":"IFERROR(VLOOKUP($C75,Sheet1!$B$3:$W$247,7,0),\"\")","v":""},{"$f":"IFERROR(VLOOKUP($C75,Sheet1!$B$3:$W$247,8,0),\"\")","v":""},{"$f":"IFERROR(VLOOKUP($C75,Sheet1!$B$3:$W$247,9,0),\"\")","v":""},{"$f":"IFERROR(VLOOKUP($C75,Sheet1!$B$3:$W$247,10,0),\"\")","v":""},null,null,{"$f":"$M$4-$C75","v":240},{"$f":"$L$3+$N75","v":"2020-03-25"},{"$f":"IFERROR(DATEDIF(O75,S76,\"D\"),\"\")","v":""},{"$f":"IFERROR(DATEDIF(S76,O75,\"D\"),\"\")","v":""},null,null,null,null,null,null,null,null,null,null,null,null,null,null,null,null,null,null,null,null,null,null,null,null,null,null,null,null,null,null,null,null,null,null,null,"الإنفطار"]
[null,null,null,null,"المراجعة الصغرى",{"$f":"IFERROR(VLOOKUP($C75,Sheet1!$B$3:$W$247,11,0),\"\")","v":""},{"$f":"IFERROR(VLOOKUP($C75,Sheet1!$B$3:$W$247,12,0),\"\")","v":""},{"$f":"IFERROR(VLOOKUP($C75,Sheet1!$B$3:$W$247,13,0),\"\")","v":""},{"$f":"IFERROR(VLOOKUP($C75,Sheet1!$B$3:$W$247,14,0),\"\")","v":""},{"$f":"IFERROR(VLOOKUP($C75,Sheet1!$B$3:$W$247,15,0),\"\")","v":""},{"$f":"IFERROR(VLOOKUP($C75,Sheet1!$B$3:$W$247,16,0),\"\")","v":""},null,null,null,null,null,null,{"$f":"IF($B76<>\"\",IF($R76=\"\",NOW(),$R76),\"\")","v":""},{"$f":"$R76+240","v":{"$error":"#VALUE!"}},null,null,null,null,null,null,null,null,null,null,null,null,null,null,null,null,null,null,null,null,null,null,null,null,null,null,null,null,null,null,null,null,null,"الإنشقاق"]
[null,{"$f":"IF(B$76=\"\",\"\")","v":""},null,null,"المراجعة الكبرى",{"$f":"IFERROR(VLOOKUP($C75,Sheet1!$B$3:$W$247,17,0),\"\")","v":""},{"$f":"IFERROR(VLOOKUP($C75,Sheet1!$B$3:$W$247,18,0),\"\")","v":""},{"$f":"IFERROR(VLOOKUP($C75,Sheet1!$B$3:$W$247,19,0),\"\")","v":""},{"$f":"IFERROR(VLOOKUP($C75,Sheet1!$B$3:$W$247,20,0),\"\")","v":""},{"$f":"IFERROR(VLOOKUP($C75,Sheet1!$B$3:$W$247,21,0),\"\")","v":""},{"$f":"IFERROR(VLOOKUP($C75,Sheet1!$B$3:$W$247,22,0),\"\")","v":""},null,null,null,null,null,null,null,null,null,null,null,null,null,null,null,null,null,null,null,null,null,null,null,null,null,null,null,null,null,null,null,null,null,null,null,null,null,null,null,null,null,"الأعلى"]
[25,{"$f":"IF(B$79=\"\",\"\")","v":""},0,{"$f":"IFERROR(VLOOKUP($C78,Sheet1!$B$3:K249,2,0),\"\")","v":""},"الحفظ الجديد",{"$f":"IFERROR(VLOOKUP($C78,Sheet1!$B$3:$W$247,5,0),\"\")","v":""},{"$f":"IFERROR(VLOOKUP($C78,Sheet1!$B$3:$W$247,6,0),\"\")","v":""},{"$f":"IFERROR(VLOOKUP($C78,Sheet1!$B$3:$W$247,7,0),\"\")","v":""},{"$f":"IFERROR(VLOOKUP($C78,Sheet1!$B$3:$W$247,8,0),\"\")","v":""},{"$f":"IFERROR(VLOOKUP($C78,Sheet1!$B$3:$W$247,9,0),\"\")","v":""},{"$f":"IFERROR(VLOOKUP($C78,Sheet1!$B$3:$W$247,10,0),\"\")","v":""},null,null,{"$f":"$M$4-$C78","v":240},{"$f":"$L$3+$N78","v":"2020-03-25"},{"$f":"IFERROR(DATEDIF(O78,S79,\"D\"),\"\")","v":""},{"$f":"IFERROR(DATEDIF(S79,O78,\"D\"),\"\")","v":""},null,null,null,null,null,null,null,null,null,null,null,null,null,null,null,null,null,null,null,null,null,null,null,null,null,null,null,null,null,null,null,null,null,null,null,"البلد"]
[null,null,null,null,"المراجعة الصغرى",{"$f":"IFERROR(VLOOKUP($C78,Sheet1!$B$3:$W$247,11,0),\"\")","v":""},{"$f":"IFERROR(VLOOKUP($C78,Sheet1!$B$3:$W$247,12,0),\"\")","v":""},{"$f":"IFERROR(VLOOKUP($C78,Sheet1!$B$3:$W$247,13,0),\"\")","v":""},{"$f":"IFERROR(VLOOKUP($C78,Sheet1!$B$3:$W$247,14,0),\"\")","v":""},{"$f":"IFERROR(VLOOKUP($C78,Sheet1!$B$3:$W$247,15,0),\"\")","v":""},{"$f":"IFERROR(VLOOKUP($C78,Sheet1!$B$3:$W$247,16,0),\"\")","v":""},null,null,null,null,null,null,{"$f":"IF($B79<>\"\",IF($R79=\"\",NOW(),$R79),\"\")","v":""},{"$f":"$R79+240","v":{"$error":"#VALUE!"}},null,null,null,null,null,null,null,null,null,null,null,null,null,null,null,null,null,null,null,null,null,null,null,null,null,null,null,null,null,null,null,null,null,"الشرح"]
[null,{"$f":"IF(B$79=\"\",\"\")","v":""},null,null,"المراجعة الكبرى",{"$f":"IFERROR(VLOOKUP($C78,Sheet1!$B$3:$W$247,17,0),\"\")","v":""},{"$f":"IFERROR(VLOOKUP($C78,Sheet1!$B$3:$W$247,18,0),\"\")","v":""},{"$f":"IFERROR(VLOOKUP($C78,Sheet1!$B$3:$W$247,19,0),\"\")","v":""},{"$f":"IFERROR(VLOOKUP($C78,Sheet1!$B$3:$W$247,20,0),\"\")","v":""},{"$f":"IFERROR(VLOOKUP($C78,Sheet1!$B$3:$W$247,21,0),\"\")","v":""},{"$f":"IFERROR(VLOOKUP($C78,Sheet1!$B$3:$W$247,22,0),\"\")","v":""},null,null,null,null,null,null,null,null,null,null,null,null,null,null,null,null,null,null,null,null,null,null,null,null,null,null,null,null,null,null,null,null,null,null,null,null,null,null,null,null,null,"العاديات"]

{"sheet":"Sheet1","index":1,"n_rows":247,"n_cols":23,"rows_kept":247,"cut":false,"hidden":false,"merged":[]}
[null,null,"جدول الأجزاء ، والأحزاب ، والأرباع",null,null,"الحفظ الجديد",null,null,null,null,null,"المراجعة الصغرى",null,null,null,null,null,"المراجعة الكبرى"]
[null,"رقم الدرس","الجزء","الحزب","الربع ","السورة","الآية","نص الآية","السورة","الآية","نص الآية","السورة","الآية","نص الآية","السورة","الآية","نص الآية","السورة","الآية","نص الآية","السورة","الآية","نص الآية"]
["الفاتحة",1,"الأول",1,1,"الفاتحة",1,"بسم الله الرحمن الرحيم","البقرة",25,"وَبَشِّرِ ٱلَّذِينَ ءَامَنُوا۟ وَعَمِلُوا۟ ٱلصَّٰلِحَٰتِ أَنَّ لَهُمْ جَنَّٰتٍۢ تَجْرِى مِن تَحْتِهَا ٱلْأَنْهَٰرُ ۖ كُلَّمَا رُزِقُوا۟ مِنْهَا مِن ثَمَرَةٍۢ رِّزْقًۭا ۙ قَالُوا۟ هَٰذَا ٱلَّذِى رُزِقْنَا مِن قَبْلُ ۖ وَأُتُوا۟ بِهِۦ مُتَشَٰبِهًۭا ۖ وَلَهُمْ فِيهَآ أَزْوَٰجٌۭ مُّطَهَّرَةٌۭ ۖ وَهُمْ فِيهَا خَٰلِدُونَ."]
["البقرة",2,"الأول",null,2,"البقرة",26,"إن الله لا يستحى","البقرة",43,"وَأَقِيمُواْ الصَّلاَةَ وَآتُواْ الزَّكَاةَ وَارْكَعُواْ مَعَ الرَّاكِعِينَ","الفاتحة",1,"بسم الله الرحمن الرحيم","البقرة",25,{"$f":"K3","v":"وَبَشِّرِ ٱلَّذِينَ ءَامَنُوا۟ وَعَمِلُوا۟ ٱلصَّٰلِحَٰتِ أَنَّ لَهُمْ جَنَّٰتٍۢ تَجْرِى مِن تَحْتِهَا ٱلْأَنْهَٰرُ ۖ كُلَّمَا رُزِقُوا۟ مِنْهَا مِن ثَمَرَةٍۢ رِّزْقًۭا ۙ قَالُوا۟ هَٰذَا ٱلَّذِى رُزِقْنَا مِن قَبْلُ ۖ وَأُتُوا۟ بِهِۦ مُتَشَٰبِهًۭا ۖ وَلَهُمْ فِيهَآ أَزْوَٰجٌۭ مُّطَهَّرَةٌۭ ۖ وَهُمْ فِيهَا خَٰلِدُونَ."}]
[null,3,"الأول",null,3,"البقرة",44,"أتأمرون الناس بالبر","البقرة",59,"فَبَدَّلَ الَّذِينَ ظَلَمُواْ قَوْلاً غَيْرَ الَّذِي قِيلَ لَهُمْ فَأَنزَلْنَا عَلَى الَّذِينَ ظَلَمُواْ رِجْزاً مِّنَ السَّمَاء بِمَا كَانُواْ يَفْسُقُونَ",{"$f":"F3","v":"الفاتحة"},{"$f":"G3","v":1},{"$f":"H3","v":"بسم الله الرحمن الرحيم"},{"$f":"I4","v":"البقرة"},{"$f":"J4","v":43},{"$f":"K4","v":"وَأَقِيمُواْ الصَّلاَةَ وَآتُواْ الزَّكَاةَ وَارْكَعُواْ مَعَ الرَّاكِعِينَ"}]
[null,4,"الأول",null,4,"البقرة",60,"وإذ استسقى موسى","البقرة",74,"ثُمَّ قَسَتْ قُلُوبُكُم مِّن بَعْدِ ذَلِكَ فَهِيَ كَالْحِجَارَةِ أَوْ أَشَدُّ قَسْوَةً وَإِنَّ مِنَ الْحِجَارَةِ لَمَا يَتَفَجَّرُ مِنْهُ الأَنْهَارُ وَإِنَّ مِنْهَا لَمَا يَشَّقَّقُ فَيَخْرُجُ مِنْهُ الْمَاء وَإِنَّ مِنْهَا لَمَا يَهْبِطُ مِنْ خَشْيَةِ اللّهِ وَمَا اللّهُ بِغَافِلٍ عَمَّا تَعْمَلُونَ","البقرة",26,"إن الله لا يستحى",{"$f":"I5","v":"البقرة"},{"$f":"J5","v":59},{"$f":"K5","v":"فَبَدَّلَ الَّذِينَ ظَلَمُواْ قَوْلاً غَيْرَ الَّذِي قِيلَ لَهُمْ فَأَنزَلْنَا عَلَى الَّذِينَ ظَلَمُواْ رِجْزاً مِّنَ السَّمَاء بِمَا كَانُواْ يَفْسُقُونَ"}]
[null,5,"الأول",5,5,"البقرة",75,"أفتطمعون أن يؤمنوا","البقرة",91,"وَإِذَا قِيلَ لَهُمْ آمِنُواْ بِمَا أَنزَلَ اللّهُ قَالُواْ نُؤْمِنُ بِمَآ أُنزِلَ عَلَيْنَا وَيَكْفُرونَ بِمَا وَرَاءهُ وَهُوَ الْحَقُّ مُصَدِّقاً لِّمَا مَعَهُمْ قُلْ فَلِمَ تَقْتُلُونَ أَنبِيَاء اللّهِ مِن قَبْلُ إِن كُنتُم مُّؤْمِنِينَ","البقرة",44,"أتأمرون الناس بالبر","البقرة",74,"ثُمَّ قَسَتْ قُلُوبُكُم مِّن بَعْدِ ذَلِكَ فَهِيَ كَالْحِجَارَةِ أَوْ أَشَدُّ قَسْوَةً وَإِنَّ مِنَ الْحِجَارَةِ لَمَا يَتَفَجَّرُ مِنْهُ الأَنْهَارُ وَإِنَّ مِنْهَا لَمَا يَشَّقَّقُ فَيَخْرُجُ مِنْهُ الْمَاء وَإِنَّ مِنْهَا لَمَا يَهْبِطُ مِنْ خَشْيَةِ اللّهِ وَمَا اللّهُ بِغَافِلٍ عَمَّا تَعْمَلُونَ"]
[null,6,"الأول",null,6,"البقرة",92,"ولقد جاءكم موسى","البقرة",105,"مَّا يَوَدُّ الَّذِينَ كَفَرُواْ مِنْ أَهْلِ الْكِتَابِ وَلاَ الْمُشْرِكِينَ أَن يُنَزَّلَ عَلَيْكُم مِّنْ خَيْرٍ مِّن رَّبِّكُمْ وَاللّهُ يَخْتَصُّ بِرَحْمَتِهِ مَن يَشَاء وَاللّهُ ذُو الْفَضْلِ الْعَظِيمِ","البقرة",60,"وإذ استسقى موسى","البقرة",91,"وَإِذَا قِيلَ لَهُمْ آمِنُواْ بِمَا أَنزَلَ اللّهُ قَالُواْ نُؤْمِنُ بِمَآ أُنزِلَ عَلَيْنَا وَيَكْفُرونَ بِمَا وَرَاءهُ وَهُوَ الْحَقُّ مُصَدِّقاً لِّمَا مَعَهُمْ قُلْ فَلِمَ تَقْتُلُونَ أَنبِيَاء اللّهِ مِن قَبْلُ إِن كُنتُم مُّؤْمِنِينَ",{"$f":"F3","v":"الفاتحة"},1,"بسم الله الرحمن الرحيم",{"$f":"I7","v":"البقرة"},{"$f":"J7","v":91},{"$f":"K7","v":"وَإِذَا قِيلَ لَهُمْ آمِنُواْ بِمَا أَنزَلَ اللّهُ قَالُواْ نُؤْمِنُ بِمَآ أُنزِلَ عَلَيْنَا وَيَكْفُرونَ بِمَا وَرَاءهُ وَهُوَ الْحَقُّ مُصَدِّقاً لِّمَا مَعَهُمْ قُلْ فَلِمَ تَقْتُلُونَ أَنبِيَاء اللّهِ مِن قَبْلُ إِن كُنتُم مُّؤْمِنِينَ"}]
[null,7,"الأول",null,7,"البقرة",106,"ما ننسخ من آية","البقرة",123,"وَاتَّقُواْ يَوْماً لاَّ تَجْزِي نَفْسٌ عَن نَّفْسٍ شَيْئاً وَلاَ يُقْبَلُ مِنْهَا عَدْلٌ وَلاَ تَنفَعُهَا شَفَاعَةٌ وَلاَ هُمْ يُنصَرُونَ","البقرة",75,"أفتطمعون أن يؤمنوا","البقرة",105,"مَّا يَوَدُّ الَّذِينَ كَفَرُواْ مِنْ أَهْلِ الْكِتَابِ وَلاَ الْمُشْرِكِينَ أَن يُنَزَّلَ عَلَيْكُم مِّنْ خَيْرٍ مِّن رَّبِّكُمْ وَاللّهُ يَخْتَصُّ بِرَحْمَتِهِ مَن يَشَاء وَاللّهُ ذُو الْفَضْلِ الْعَظِيمِ","البقرة",26,"إن الله لا يستحى",{"$f":"I8","v":"البقرة"},{"$f":"J8","v":105},{"$f":"K8","v":"مَّا يَوَدُّ الَّذِينَ كَفَرُواْ مِنْ أَهْلِ الْكِتَابِ وَلاَ الْمُشْرِكِينَ أَن يُنَزَّلَ عَلَيْكُم مِّنْ خَيْرٍ مِّن رَّبِّكُمْ وَاللّهُ يَخْتَصُّ بِرَحْمَتِهِ مَن يَشَاء وَاللّهُ ذُو الْفَضْلِ الْعَظِيمِ"}]
[null,8,"الأول",null,8,"البقرة",124,"وإذ ابتلى ابراهيم ربه","البقرة",141,"تِلْكَ أُمَّةٌ قَدْ خَلَتْ لَهَا مَا كَسَبَتْ وَلَكُم مَّا كَسَبْتُمْ وَلاَ تُسْأَلُونَ عَمَّا كَانُواْ يَعْمَلُونَ","البقرة",92,"ولقد جاءكم موسى","البقرة",123,"وَاتَّقُواْ يَوْماً لاَّ تَجْزِي نَفْسٌ عَن نَّفْسٍ شَيْئاً وَلاَ يُقْبَلُ مِنْهَا عَدْلٌ وَلاَ تَنفَعُهَا شَفَاعَةٌ وَلاَ هُمْ يُنصَرُونَ","البقرة",44,"أتأمرون الناس بالبر","البقرة",123,"وَاتَّقُواْ يَوْماً لاَّ تَجْزِي نَفْسٌ عَن نَّفْسٍ شَيْئاً وَلاَ يُقْبَلُ مِنْهَا عَدْلٌ وَلاَ تَنفَعُهَا شَفَاعَةٌ وَلاَ هُمْ يُنصَرُونَ"]
[null,9,"الثانى",3,1,"البقرة",142,"سيقول السفهاء","البقرة",157,"أُولَـئِكَ عَلَيْهِمْ صَلَوَاتٌ مِّن رَّبِّهِمْ وَرَحْمَةٌ وَأُولَـئِكَ هُمُ الْمُهْتَدُونَ","البقرة",106,"ما ننسخ من آية","البقرة",141,"تِلْكَ أُمَّةٌ قَدْ خَلَتْ لَهَا مَا كَسَبَتْ وَلَكُم مَّا كَسَبْتُمْ وَلاَ تُسْأَلُونَ عَمَّا كَانُواْ يَعْمَلُونَ","البقرة",60,"وإذ استسقى موسى","البقرة",141,"تِلْكَ أُمَّةٌ قَدْ خَلَتْ لَهَا مَا كَسَبَتْ وَلَكُم مَّا كَسَبْتُمْ وَلاَ تُسْأَلُونَ عَمَّا كَانُواْ يَعْمَلُونَ"]
[null,10,"الثانى",null,2,"البقرة",158,"إن الصفا والمروة","البقرة",176,"ذَلِكَ بِأَنَّ اللّهَ نَزَّلَ الْكِتَابَ بِالْحَقِّ وَإِنَّ الَّذِينَ اخْتَلَفُواْ فِي الْكِتَابِ لَفِي شِقَاقٍ بَعِيدٍ","البقرة",124,"وإذ ابتلى ابراهيم ربه","البقرة",157,"أُولَـئِكَ عَلَيْهِمْ صَلَوَاتٌ مِّن رَّبِّهِمْ وَرَحْمَةٌ وَأُولَـئِكَ هُمُ الْمُهْتَدُونَ","البقرة",75,"أفتطمعون أن يؤمنوا","البقرة",157,"أُولَـئِكَ عَلَيْهِمْ صَلَوَاتٌ مِّن رَّبِّهِمْ وَرَحْمَةٌ وَأُولَـئِكَ هُمُ الْمُهْتَدُونَ"]
[null,11,"الثانى",null,3,"البقرة",177,"ليس البر أن تولوا","البقرة",188,"وَلاَ تَأْكُلُواْ أَمْوَالَكُم بَيْنَكُم بِالْبَاطِلِ وَتُدْلُواْ بِهَا إِلَى الْحُكَّامِ لِتَأْكُلُواْ فَرِيقًا مِّنْ أَمْوَالِ النَّاسِ بِالإِثْمِ وَأَنتُمْ تَعْلَمُونَ","البقرة",142,"سيقول السفهاء","البقرة",176,"ذَلِكَ بِأَنَّ اللّهَ نَزَّلَ الْكِتَابَ بِالْحَقِّ وَإِنَّ الَّذِينَ اخْتَلَفُواْ فِي الْكِتَابِ لَفِي شِقَاقٍ بَعِيدٍ",{"$f":"R8","v":"الفاتحة"},1,"بسم الله الرحمن الرحيم","البقرة",91,"وَإِذَا قِيلَ لَهُمْ آمِنُواْ بِمَا أَنزَلَ اللّهُ قَالُواْ نُؤْمِنُ بِمَآ أُنزِلَ عَلَيْنَا وَيَكْفُرونَ بِمَا وَرَاءهُ وَهُوَ الْحَقُّ مُصَدِّقاً لِّمَا مَعَهُمْ قُلْ فَلِمَ تَقْتُلُونَ أَنبِيَاء اللّهِ مِن قَبْلُ إِن كُنتُم مُّؤْمِنِينَ"]
[null,12,"الثانى",null,4,"البقرة",189,"يسألونك عن الأهلة","البقرة",202,"أُولَـئِكَ لَهُمْ نَصِيبٌ مِّمَّا كَسَبُواْ وَاللّهُ سَرِيعُ الْحِسَابِ","البقرة",158,"إن الصفا والمروة","البقرة",188,"وَلاَ تَأْكُلُواْ أَمْوَالَكُم بَيْنَكُم بِالْبَاطِلِ وَتُدْلُواْ بِهَا إِلَى الْحُكَّامِ لِتَأْكُلُواْ فَرِيقًا مِّنْ أَمْوَالِ النَّاسِ بِالإِثْمِ وَأَنتُمْ تَعْلَمُونَ",{"$f":"F8","v":"البقرة"},92,"ولقد جاءكم موسى",{"$f":"I12","v":"البقرة"},{"$f":"J12","v":176},{"$f":"K12","v":"ذَلِكَ بِأَنَّ اللّهَ نَزَّلَ الْكِتَابَ بِالْحَقِّ وَإِنَّ الَّذِينَ اخْتَلَفُواْ فِي الْكِتَابِ لَفِي شِقَاقٍ بَعِيدٍ"}]
[null,13,"الثانى",4,5,"البقرة",203,"واذكروا الله فى أيام","البقرة",218,"إِنَّ الَّذِينَ آمَنُواْ وَالَّذِينَ هَاجَرُواْ وَجَاهَدُواْ فِي سَبِيلِ اللّهِ أُوْلَـئِكَ يَرْجُونَ رَحْمَتَ اللّهِ وَاللّهُ غَفُورٌ رَّحِيمٌ","البقرة",177,"ليس البر أن تولوا","البقرة",202,"أُولَـئِكَ لَهُمْ نَصِيبٌ مِّمَّا كَسَبُواْ وَاللّهُ سَرِيعُ الْحِسَابِ","البقرة",106,"ما ننسخ من آية",{"$f":"I13","v":"البقرة"},188,"وَلاَ تَأْكُلُواْ أَمْوَالَكُم بَيْنَكُم بِالْبَاطِلِ وَتُدْلُواْ بِهَا إِلَى الْحُكَّامِ لِتَأْكُلُواْ فَرِيقًا مِّنْ أَمْوَالِ النَّاسِ بِالإِثْمِ وَأَنتُمْ تَعْلَمُونَ"]
[null,14,"الثانى",null,6,"البقرة",219,"يسألونك عن الخمر","البقرة",232,"وَإِذَا طَلَّقْتُمُ النِّسَاء فَبَلَغْنَ أَجَلَهُنَّ فَلاَ تَعْضُلُوهُنَّ أَن يَنكِحْنَ أَزْوَاجَهُنَّ إِذَا تَرَاضَوْاْ بَيْنَهُم بِالْمَعْرُوفِ ذَلِكَ يُوعَظُ بِهِ مَن كَانَ مِنكُمْ يُؤْمِنُ بِاللّهِ وَالْيَوْمِ الآخِرِ ذَلِكُمْ أَزْكَى لَكُمْ وَأَطْهَرُ وَاللّهُ يَعْلَمُ وَأَنتُمْ لاَ تَعْلَمُونَ","البقرة",189,"يسألونك عن الأهلة","البقرة",218,"إِنَّ الَّذِينَ آمَنُواْ وَالَّذِينَ هَاجَرُواْ وَجَاهَدُواْ فِي سَبِيلِ اللّهِ أُوْلَـئِكَ يَرْجُونَ رَحْمَتَ اللّهِ وَاللّهُ غَفُورٌ رَّحِيمٌ","البقرة",124,"وإذ ابتلى ابراهيم ربه",{"$f":"I14","v":"البقرة"},202,"أُولَـئِكَ لَهُمْ نَصِيبٌ مِّمَّا كَسَبُواْ وَاللّهُ سَرِيعُ الْحِسَابِ"]
[null,15,"الثانى",null,7,"البقرة",233,"والوالدات يرضعن","البقرة",242,"كَذَلِكَ يُبَيِّنُ اللّهُ لَكُمْ آيَاتِهِ لَعَلَّكُمْ تَعْقِلُونَ","البقرة",203,"واذكروا الله فى أيام","البقرة",232,"وَإِذَا طَلَّقْتُمُ النِّسَاء فَبَلَغْنَ أَجَلَهُنَّ فَلاَ تَعْضُلُوهُنَّ أَن يَنكِحْنَ أَزْوَاجَهُنَّ إِذَا تَرَاضَوْاْ بَيْنَهُم بِالْمَعْرُوفِ ذَلِكَ يُوعَظُ بِهِ مَن كَانَ مِنكُمْ يُؤْمِنُ بِاللّهِ وَالْيَوْمِ الآخِرِ ذَلِكُمْ أَزْكَى لَكُمْ وَأَطْهَرُ وَاللّهُ يَعْلَمُ وَأَنتُمْ لاَ تَعْلَمُونَ","البقرة",142,"سيقول السفهاء",{"$f":"I15","v":"البقرة"},{"$f":"J15","v":218},{"$f":"K15","v":"إِنَّ الَّذِينَ آمَنُواْ وَالَّذِينَ هَاجَرُواْ وَجَاهَدُواْ فِي سَبِيلِ اللّهِ أُوْلَـئِكَ يَرْجُونَ رَحْمَتَ اللّهِ وَاللّهُ غَفُورٌ رَّحِيمٌ"}]
[null,16,"الثانى",null,8,"البقرة",243,"الم تر إلى الذين خرجوا","البقرة",252,"تِلْكَ آيَاتُ اللّهِ نَتْلُوهَا عَلَيْكَ بِالْحَقِّ وَإِنَّكَ لَمِنَ الْمُرْسَلِينَ","البقرة",219,"يسألونك عن الخمر","البقرة",242,"كَذَلِكَ يُبَيِّنُ اللّهُ لَكُمْ آيَاتِهِ لَعَلَّكُمْ تَعْقِلُونَ","البقرة",158,"إن الصفا والمروة",{"$f":"I16","v":"البقرة"},{"$f":"J16","v":232},{"$f":"K16","v":"وَإِذَا طَلَّقْتُمُ النِّسَاء فَبَلَغْنَ أَجَلَهُنَّ فَلاَ تَعْضُلُوهُنَّ أَن يَنكِحْنَ أَزْوَاجَهُنَّ إِذَا تَرَاضَوْاْ بَيْنَهُم بِالْمَعْرُوفِ ذَلِكَ يُوعَظُ بِهِ مَن كَانَ مِنكُمْ يُؤْمِنُ بِاللّهِ وَالْيَوْمِ الآخِرِ ذَلِكُمْ أَزْكَى لَكُمْ وَأَطْهَرُ وَاللّهُ يَعْلَمُ وَأَنتُمْ لاَ تَعْلَمُونَ"}]
[null,17,"الثالث",5,1,"البقرة",253,"تلك الرسل فضلنا","البقرة",262,"الَّذِينَ يُنفِقُونَ أَمْوَالَهُمْ فِي سَبِيلِ اللّهِ ثُمَّ لاَ يُتْبِعُونَ مَا أَنفَقُواُ مَنًّا وَلاَ أَذًى لَّهُمْ أَجْرُهُمْ عِندَ رَبِّهِمْ وَلاَ خَوْفٌ عَلَيْهِمْ وَلاَ هُمْ يَحْزَنُونَ","البقرة",233,"والوالدات يرضعن","البقرة",252,"تِلْكَ آيَاتُ اللّهِ نَتْلُوهَا عَلَيْكَ بِالْحَقِّ وَإِنَّكَ لَمِنَ الْمُرْسَلِينَ","البقرة",177,"ليس البر أن تولوا",{"$f":"I17","v":"البقرة"},{"$f":"J17","v":242},{"$f":"K17","v":"كَذَلِكَ يُبَيِّنُ اللّهُ لَكُمْ آيَاتِهِ لَعَلَّكُمْ تَعْقِلُونَ"}]
[null,18,"الثالث",null,2,"البقرة",263,"قول معروف ومغفرة","البقرة",271,"إِن تُبْدُواْ الصَّدَقَاتِ فَنِعِمَّا هِيَ وَإِن تُخْفُوهَا وَتُؤْتُوهَا الْفُقَرَاء فَهُوَ خَيْرٌ لُّكُمْ وَيُكَفِّرُ عَنكُم مِّن سَيِّئَاتِكُمْ وَاللّهُ بِمَا تَعْمَلُونَ خَبِيرٌ","البقرة",243,"الم تر إلى الذين خرجوا","البقرة",262,"الَّذِينَ يُنفِقُونَ أَمْوَالَهُمْ فِي سَبِيلِ اللّهِ ثُمَّ لاَ يُتْبِعُونَ مَا أَنفَقُواُ مَنًّا وَلاَ أَذًى لَّهُمْ أَجْرُهُمْ عِندَ رَبِّهِمْ وَلاَ خَوْفٌ عَلَيْهِمْ وَلاَ هُمْ يَحْزَنُونَ",{"$f":"R8","v":"الفاتحة"},1,"بسم الله الرحمن الرحيم","البقرة",91,"وَإِذَا قِيلَ لَهُمْ آمِنُواْ بِمَا أَنزَلَ اللّهُ قَالُواْ نُؤْمِنُ بِمَآ أُنزِلَ عَلَيْنَا وَيَكْفُرونَ بِمَا وَرَاءهُ وَهُوَ الْحَقُّ مُصَدِّقاً لِّمَا مَعَهُمْ قُلْ فَلِمَ تَقْتُلُونَ أَنبِيَاء اللّهِ مِن قَبْلُ إِن كُنتُم مُّؤْمِنِينَ"]
[null,19,"الثالث",null,3,"البقرة",272,"ليس  عليك هداهم","البقرة",282,"يَا أَيُّهَا الَّذِينَ آمَنُواْ إِذَا تَدَايَنتُم بِدَيْنٍ إِلَى أَجَلٍ مُّسَمًّى فَاكْتُبُوهُ وَلْيَكْتُب بَّيْنَكُمْ كَاتِبٌ بِالْعَدْلِ وَلاَ يَأْبَ كَاتِبٌ أَنْ يَكْتُبَ كَمَا عَلَّمَهُ اللّهُ فَلْيَكْتُبْ وَلْيُمْلِلِ الَّذِي عَلَيْهِ الْحَقُّ وَلْيَتَّقِ اللّهَ رَبَّهُ وَلاَ يَبْخَسْ مِنْهُ شَيْئًا فَإن كَانَ الَّذِي عَلَيْهِ الْحَقُّ سَفِيهًا أَوْ ضَعِيفًا أَوْ لاَ يَسْتَطِيعُ أَن يُمِلَّ هُوَ فَلْيُمْلِلْ وَلِيُّهُ بِالْعَدْلِ وَاسْتَشْهِدُواْ شَهِيدَيْنِ من رِّجَالِكُمْ فَإِن لَّمْ يَكُونَا رَجُلَيْنِ فَرَجُلٌ وَامْرَأَتَانِ مِمَّن تَرْضَوْنَ مِنَ الشُّهَدَاء أَن تَضِلَّ إْحْدَاهُمَا فَتُذَكِّرَ إِحْدَاهُمَا الأُخْرَى وَلاَ يَأْبَ الشُّهَدَاء إِذَا مَا دُعُواْ وَلاَ تَسْأَمُوْاْ أَن تَكْتُبُوْهُ صَغِيرًا أَو كَبِيرًا إِلَى أَجَلِهِ ذَلِكُمْ أَقْسَطُ عِندَ اللّهِ وَأَقْومُ لِلشَّهَادَةِ وَأَدْنَى أَلاَّ تَرْتَابُواْ إِلاَّ أَن تَكُونَ تِجَارَةً حَاضِرَةً تُدِيرُونَهَا بَيْنَكُمْ فَلَيْسَ عَلَيْكُمْ جُنَاحٌ أَلاَّ تَكْتُبُوهَا وَأَشْهِدُوْاْ إِذَا تَبَايَعْتُمْ وَلاَ يُضَآرَّ كَاتِبٌ وَلاَ شَهِيدٌ وَإِن تَفْعَلُواْ فَإِنَّهُ فُسُوقٌ بِكُمْ وَاتَّقُواْ اللّهَ وَيُعَلِّمُكُمُ اللّهُ وَاللّهُ بِكُلِّ شَيْءٍ عَلِيمٌ","البقرة",253,"تلك الرسل فضلنا","البقرة",271,"إِن تُبْدُواْ الصَّدَقَاتِ فَنِعِمَّا هِيَ وَإِن تُخْفُوهَا وَتُؤْتُوهَا الْفُقَرَاء فَهُوَ خَيْرٌ لُّكُمْ وَيُكَفِّرُ عَنكُم مِّن سَيِّئَاتِكُمْ وَاللّهُ بِمَا تَعْمَلُونَ خَبِيرٌ",{"$f":"R14","v":"البقرة"},92,"ولقد جاءكم موسى","البقرة",176,"ذَلِكَ بِأَنَّ اللّهَ نَزَّلَ الْكِتَابَ بِالْحَقِّ وَإِنَّ الَّذِينَ اخْتَلَفُواْ فِي الْكِتَابِ لَفِي شِقَاقٍ بَعِيدٍ"]
[null,20,"الثالث",null,4,"البقرة",283,"وإن كنتم على سفر","آل عمران",14,"زُيِّنَ لِلنَّاسِ حُبُّ الشَّهَوَاتِ مِنَ النِّسَاء وَالْبَنِينَ وَالْقَنَاطِيرِ الْمُقَنطَرَةِ مِنَ الذَّهَبِ وَالْفِضَّةِ وَالْخَيْلِ الْمُسَوَّمَةِ وَالأَنْعَامِ وَالْحَرْثِ ذَلِكَ مَتَاعُ الْحَيَاةِ الدُّنْيَا وَاللّهُ عِندَهُ حُسْنُ الْمَآبِ ","البقرة",263,"قول معروف ومغفرة","البقرة",282,"يَا أَيُّهَا الَّذِينَ آمَنُواْ إِذَا تَدَايَنتُم بِدَيْنٍ إِلَى أَجَلٍ مُّسَمًّى فَاكْتُبُوهُ وَلْيَكْتُب بَّيْنَكُمْ كَاتِبٌ بِالْعَدْلِ وَلاَ يَأْبَ كَاتِبٌ أَنْ يَكْتُبَ كَمَا عَلَّمَهُ اللّهُ فَلْيَكْتُبْ وَلْيُمْلِلِ الَّذِي عَلَيْهِ الْحَقُّ وَلْيَتَّقِ اللّهَ رَبَّهُ وَلاَ يَبْخَسْ مِنْهُ شَيْئًا فَإن كَانَ الَّذِي عَلَيْهِ الْحَقُّ سَفِيهًا أَوْ ضَعِيفًا أَوْ لاَ يَسْتَطِيعُ أَن يُمِلَّ هُوَ فَلْيُمْلِلْ وَلِيُّهُ بِالْعَدْلِ وَاسْتَشْهِدُواْ شَهِيدَيْنِ من رِّجَالِكُمْ فَإِن لَّمْ يَكُونَا رَجُلَيْنِ فَرَجُلٌ وَامْرَأَتَانِ مِمَّن تَرْضَوْنَ مِنَ الشُّهَدَاء أَن تَضِلَّ إْحْدَاهُمَا فَتُذَكِّرَ إِحْدَاهُمَا الأُخْرَى وَلاَ يَأْبَ الشُّهَدَاء إِذَا مَا دُعُواْ وَلاَ تَسْأَمُوْاْ أَن تَكْتُبُوْهُ صَغِيرًا أَو كَبِيرًا إِلَى أَجَلِهِ ذَلِكُمْ أَقْسَطُ عِندَ اللّهِ وَأَقْومُ لِلشَّهَادَةِ وَأَدْنَى أَلاَّ تَرْتَابُواْ إِلاَّ أَن تَكُونَ تِجَارَةً حَاضِرَةً تُدِيرُونَهَا بَيْنَكُمْ فَلَيْسَ عَلَيْكُمْ جُنَاحٌ أَلاَّ تَكْتُبُوهَا وَأَشْهِدُوْاْ إِذَا تَبَايَعْتُمْ وَلاَ يُضَآرَّ كَاتِبٌ وَلاَ شَهِيدٌ وَإِن تَفْعَلُواْ فَإِنَّهُ فُسُوقٌ بِكُمْ وَاتَّقُواْ اللّهَ وَيُعَلِّمُكُمُ اللّهُ وَاللّهُ بِكُلِّ شَيْءٍ عَلِيمٌ",{"$f":"R19","v":"البقرة"},177,"ليس البر أن تولوا","البقرة",242,"كَذَلِكَ يُبَيِّنُ اللّهُ لَكُمْ آيَاتِهِ لَعَلَّكُمْ تَعْقِلُونَ"]
["آل عمران",21,"الثالث",6,5,"آل عمران",15,"قل أؤنبئكم بخير","آل عمران",32,"قُلْ أَطِيعُواْ اللّهَ وَالرَّسُولَ فإِن تَوَلَّوْاْ فَإِنَّ اللّهَ لاَ يُحِبُّ الْكَافِرِينَ ","البقرة",272,"ليس  عليك هداهم","آل عمران",14,"زُيِّنَ لِلنَّاسِ حُبُّ الشَّهَوَاتِ مِنَ النِّسَاء وَالْبَنِينَ وَالْقَنَاطِيرِ الْمُقَنطَرَةِ مِنَ الذَّهَبِ وَالْفِضَّةِ وَالْخَيْلِ الْمُسَوَّمَةِ وَالأَنْعَامِ وَالْحَرْثِ ذَلِكَ مَتَاعُ الْحَيَاةِ الدُّنْيَا وَاللّهُ عِندَهُ حُسْنُ الْمَآبِ ",{"$f":"F18","v":"البقرة"},243,"الم تر إلى الذين خرجوا",{"$f":"I22","v":"آل عمران"},{"$f":"J22","v":14},{"$f":"K22","v":"زُيِّنَ لِلنَّاسِ حُبُّ الشَّهَوَاتِ مِنَ النِّسَاء وَالْبَنِينَ وَالْقَنَاطِيرِ الْمُقَنطَرَةِ مِنَ الذَّهَبِ وَالْفِضَّةِ وَالْخَيْلِ الْمُسَوَّمَةِ وَالأَنْعَامِ وَالْحَرْثِ ذَلِكَ مَتَاعُ الْحَيَاةِ الدُّنْيَا وَاللّهُ عِندَهُ حُسْنُ الْمَآبِ "}]
[null,22,"الثالث",null,6,"آل عمران",33,"إن الله اصطفى","آل عمران",51,"إِنَّ اللّهَ رَبِّي وَرَبُّكُمْ فَاعْبُدُوهُ هَـذَا صِرَاطٌ مُّسْتَقِيمٌ ","البقرة",283,"وإن كنتم على سفر","آل عمران",32,"قُلْ أَطِيعُواْ اللّهَ وَالرَّسُولَ فإِن تَوَلَّوْاْ فَإِنَّ اللّهَ لاَ يُحِبُّ الْكَافِرِينَ ","البقرة",253,"تلك الرسل فضلنا",{"$f":"I23","v":"آل عمران"},{"$f":"J23","v":32},{"$f":"K23","v":"قُلْ أَطِيعُواْ اللّهَ وَالرَّسُولَ فإِن تَوَلَّوْاْ فَإِنَّ اللّهَ لاَ يُحِبُّ الْكَافِرِينَ "}]
[null,23,"الثالث",null,7,"آل عمران",52,"فلما أحس عيسى","آل عمران",74,"يَخْتَصُّ بِرَحْمَتِهِ مَن يَشَاء وَاللّهُ ذُو الْفَضْلِ الْعَظِيمِ ","آل عمران",15,"قل أؤنبئكم بخير","آل عمران",51,"إِنَّ اللّهَ رَبِّي وَرَبُّكُمْ فَاعْبُدُوهُ هَـذَا صِرَاطٌ مُّسْتَقِيمٌ ","البقرة",263,"قول معروف ومغفرة","آل عمران",51,"إِنَّ اللّهَ رَبِّي وَرَبُّكُمْ فَاعْبُدُوهُ هَـذَا صِرَاطٌ مُّسْتَقِيمٌ "]
[null,24,"الثالث",null,8,"آل عمران",75,"ومن أهل الكتاب","آل عمران",92,"لَن تَنَالُواْ الْبِرَّ حَتَّى تُنفِقُواْ مِمَّا تُحِبُّونَ وَمَا تُنفِقُواْ مِن شَيْءٍ فَإِنَّ اللّهَ بِهِ عَلِيمٌ ","آل عمران",33,"إن الله اصطفى","آل عمران",74,"يَخْتَصُّ بِرَحْمَتِهِ مَن يَشَاء وَاللّهُ ذُو الْفَضْلِ الْعَظِيمِ ","البقرة",272,"ليس  عليك هداهم","آل عمران",74,"يَخْتَصُّ بِرَحْمَتِهِ مَن يَشَاء وَاللّهُ ذُو الْفَضْلِ الْعَظِيمِ "]
[null,25,"الرابع",7,1,"آل عمران",93,"كل الطعام كان حلا","آل عمران",112,"ضُرِبَتْ عَلَيْهِمُ الذِّلَّةُ أَيْنَ مَا ثُقِفُواْ إِلاَّ بِحَبْلٍ مِّنْ اللّهِ وَحَبْلٍ مِّنَ النَّاسِ وَبَآؤُوا بِغَضَبٍ مِّنَ اللّهِ وَضُرِبَتْ عَلَيْهِمُ الْمَسْكَنَةُ ذَلِكَ بِأَنَّهُمْ كَانُواْ يَكْفُرُونَ بِآيَاتِ اللّهِ وَيَقْتُلُونَ الأَنبِيَاء بِغَيْرِ حَقٍّ ذَلِكَ بِمَا عَصَوا وَّكَانُواْ يَعْتَدُونَ ","آل عمران",52,"فلما أحس عيسى","آل عمران",92,"لَن تَنَالُواْ الْبِرَّ حَتَّى تُنفِقُواْ مِمَّا تُحِبُّونَ وَمَا تُنفِقُواْ مِن شَيْءٍ فَإِنَّ اللّهَ بِهِ عَلِيمٌ ","البقرة",283,"وإن كنتم على سفر","آل عمران",92,"لَن تَنَالُواْ الْبِرَّ حَتَّى تُنفِقُواْ مِمَّا تُحِبُّونَ وَمَا تُنفِقُواْ مِن شَيْءٍ فَإِنَّ اللّهَ بِهِ عَلِيمٌ "]
[null,26,"الرابع",null,2,"آل عمران",113,"ليسوا سواء","آل عمران",132,"وَأَطِيعُواْ اللّهَ وَالرَّسُولَ لَعَلَّكُمْ تُرْحَمُونَ ","آل عمران",75,"ومن أهل الكتاب","آل عمران",112,"ضُرِبَتْ عَلَيْهِمُ الذِّلَّةُ أَيْنَ مَا ثُقِفُواْ إِلاَّ بِحَبْلٍ مِّنْ اللّهِ وَحَبْلٍ مِّنَ النَّاسِ وَبَآؤُوا بِغَضَبٍ مِّنَ اللّهِ وَضُرِبَتْ عَلَيْهِمُ الْمَسْكَنَةُ ذَلِكَ بِأَنَّهُمْ كَانُواْ يَكْفُرُونَ بِآيَاتِ اللّهِ وَيَقْتُلُونَ الأَنبِيَاء بِغَيْرِ حَقٍّ ذَلِكَ بِمَا عَصَوا وَّكَانُواْ يَعْتَدُونَ ",{"$f":"F3","v":"الفاتحة"},{"$f":"G3","v":1},{"$f":"H3","v":"بسم الله الرحمن الرحيم"},{"$f":"I7","v":"البقرة"},{"$f":"J7","v":91},{"$f":"K7","v":"وَإِذَا قِيلَ لَهُمْ آمِنُواْ بِمَا أَنزَلَ اللّهُ قَالُواْ نُؤْمِنُ بِمَآ أُنزِلَ عَلَيْنَا وَيَكْفُرونَ بِمَا وَرَاءهُ وَهُوَ الْحَقُّ مُصَدِّقاً لِّمَا مَعَهُمْ قُلْ فَلِمَ تَقْتُلُونَ أَنبِيَاء اللّهِ مِن قَبْلُ إِن كُنتُم مُّؤْمِنِينَ"}]
[null,27,"الرابع",null,3,"آل عمران",133,"وسارعوا إلى مغفرة","آل عمران",152,"وَلَقَدْ صَدَقَكُمُ اللّهُ وَعْدَهُ إِذْ تَحُسُّونَهُم بِإِذْنِهِ حَتَّى إِذَا فَشِلْتُمْ وَتَنَازَعْتُمْ فِي الأَمْرِ وَعَصَيْتُم مِّن بَعْدِ مَا أَرَاكُم مَّا تُحِبُّونَ مِنكُم مَّن يُرِيدُ الدُّنْيَا وَمِنكُم مَّن يُرِيدُ الآخِرَةَ ثُمَّ صَرَفَكُمْ عَنْهُمْ لِيَبْتَلِيَكُمْ وَلَقَدْ عَفَا عَنكُمْ وَاللّهُ ذُو فَضْلٍ عَلَى الْمُؤْمِنِينَ ","آل عمران",93,"كل الطعام كان حلا","آل عمران",132,"وَأَطِيعُواْ اللّهَ وَالرَّسُولَ لَعَلَّكُمْ تُرْحَمُونَ ",{"$f":"F8","v":"البقرة"},{"$f":"G8","v":92},{"$f":"H8","v":"ولقد جاءكم موسى"},{"$f":"I12","v":"البقرة"},{"$f":"J12","v":176},{"$f":"K12","v":"ذَلِكَ بِأَنَّ اللّهَ نَزَّلَ الْكِتَابَ بِالْحَقِّ وَإِنَّ الَّذِينَ اخْتَلَفُواْ فِي الْكِتَابِ لَفِي شِقَاقٍ بَعِيدٍ"}]
[null,28,"الرابع",null,4,"آل عمران",153,"إذ تصعدون ولا تلون","آل عمران",170,"فَرِحِينَ بِمَا آتَاهُمُ اللّهُ مِن فَضْلِهِ وَيَسْتَبْشِرُونَ بِالَّذِينَ لَمْ يَلْحَقُواْ بِهِم مِّنْ خَلْفِهِمْ أَلاَّ خَوْفٌ عَلَيْهِمْ وَلاَ هُمْ يَحْزَنُونَ ","آل عمران",113,"ليسوا سواء","آل عمران",152,"وَلَقَدْ صَدَقَكُمُ اللّهُ وَعْدَهُ إِذْ تَحُسُّونَهُم بِإِذْنِهِ حَتَّى إِذَا فَشِلْتُمْ وَتَنَازَعْتُمْ فِي الأَمْرِ وَعَصَيْتُم مِّن بَعْدِ مَا أَرَاكُم مَّا تُحِبُّونَ مِنكُم مَّن يُرِيدُ الدُّنْيَا وَمِنكُم مَّن يُرِيدُ الآخِرَةَ ثُمَّ صَرَفَكُمْ عَنْهُمْ لِيَبْتَلِيَكُمْ وَلَقَدْ عَفَا عَنكُمْ وَاللّهُ ذُو فَضْلٍ عَلَى الْمُؤْمِنِينَ ",{"$f":"F13","v":"البقرة"},{"$f":"G13","v":177},{"$f":"H13","v":"ليس البر أن تولوا"},{"$f":"I17","v":"البقرة"},{"$f":"J17","v":242},{"$f":"K17","v":"كَذَلِكَ يُبَيِّنُ اللّهُ لَكُمْ آيَاتِهِ لَعَلَّكُمْ تَعْقِلُونَ"}]
[null,29,"الرابع",8,5,"آل عمران",171,"يستبشرون بنعمة من الله","آل عمران",185,"كُلُّ نَفْسٍ ذَآئِقَةُ الْمَوْتِ وَإِنَّمَا تُوَفَّوْنَ أُجُورَكُمْ يَوْمَ الْقِيَامَةِ فَمَن زُحْزِحَ عَنِ النَّارِ وَأُدْخِلَ الْجَنَّةَ فَقَدْ فَازَ وَما الْحَيَاةُ الدُّنْيَا إِلاَّ مَتَاعُ الْغُرُورِ ","آل عمران",133,"وسارعوا إلى مغفرة","آل عمران",170,"فَرِحِينَ بِمَا آتَاهُمُ اللّهُ مِن فَضْلِهِ وَيَسْتَبْشِرُونَ بِالَّذِينَ لَمْ يَلْحَقُواْ بِهِم مِّنْ خَلْفِهِمْ أَلاَّ خَوْفٌ عَلَيْهِمْ وَلاَ هُمْ يَحْزَنُونَ ",{"$f":"F18","v":"البقرة"},{"$f":"G18","v":243},{"$f":"H18","v":"الم تر إلى الذين خرجوا"},{"$f":"I22","v":"آل عمران"},{"$f":"J22","v":14},{"$f":"K22","v":"زُيِّنَ لِلنَّاسِ حُبُّ الشَّهَوَاتِ مِنَ النِّسَاء وَالْبَنِينَ وَالْقَنَاطِيرِ الْمُقَنطَرَةِ مِنَ الذَّهَبِ وَالْفِضَّةِ وَالْخَيْلِ الْمُسَوَّمَةِ وَالأَنْعَامِ وَالْحَرْثِ ذَلِكَ مَتَاعُ الْحَيَاةِ الدُّنْيَا وَاللّهُ عِندَهُ حُسْنُ الْمَآبِ "}]
[null,30,"الرابع",null,6,"آل عمران",186,"لتبلون فى أموالكم","آل عمران",200,"يَا أَيُّهَا الَّذِينَ آمَنُواْ اصْبِرُواْ وَصَابِرُواْ وَرَابِطُواْ وَاتَّقُواْ اللّهَ لَعَلَّكُمْ تُفْلِحُونَ ","آل عمران",153,"إذ تصعدون ولا تلون","آل عمران",185,"كُلُّ نَفْسٍ ذَآئِقَةُ الْمَوْتِ وَإِنَّمَا تُوَفَّوْنَ أُجُورَكُمْ يَوْمَ الْقِيَامَةِ فَمَن زُحْزِحَ عَنِ النَّارِ وَأُدْخِلَ الْجَنَّةَ فَقَدْ فَازَ وَما الْحَيَاةُ الدُّنْيَا إِلاَّ مَتَاعُ الْغُرُورِ ",{"$f":"R28","v":"الفاتحة"},1,"بسم الله الرحمن الرحيم","البقرة",91,"وَإِذَا قِيلَ لَهُمْ آمِنُواْ بِمَا أَنزَلَ اللّهُ قَالُواْ نُؤْمِنُ بِمَآ أُنزِلَ عَلَيْنَا وَيَكْفُرونَ بِمَا وَرَاءهُ وَهُوَ الْحَقُّ مُصَدِّقاً لِّمَا مَعَهُمْ قُلْ فَلِمَ تَقْتُلُونَ أَنبِيَاء اللّهِ مِن قَبْلُ إِن كُنتُم مُّؤْمِنِينَ"]
["النساء",31,"الرابع",null,7,"النساء",1,"ياأيها الناس اتقوا ربكم","النساء",20,"وَإِنْ أَرَدتُّمُ اسْتِبْدَالَ زَوْجٍ مَّكَانَ زَوْجٍ وَآتَيْتُمْ إِحْدَاهُنَّ قِنطَارًا فَلاَ تَأْخُذُواْ مِنْهُ شَيْئًا أَتَأْخُذُونَهُ بُهْتَاناً وَإِثْماً مُّبِيناً ","آل عمران",171,"يستبشرون بنعمة من الله","آل عمران",200,"يَا أَيُّهَا الَّذِينَ آمَنُواْ اصْبِرُواْ وَصَابِرُواْ وَرَابِطُواْ وَاتَّقُواْ اللّهَ لَعَلَّكُمْ تُفْلِحُونَ ","البقرة",92,"ولقد جاءكم موسى","البقرة",176,"ذَلِكَ بِأَنَّ اللّهَ نَزَّلَ الْكِتَابَ بِالْحَقِّ وَإِنَّ الَّذِينَ اخْتَلَفُواْ فِي الْكِتَابِ لَفِي شِقَاقٍ بَعِيدٍ"]
[null,32,"الرابع",null,8,"النساء",20,"ولكم نصف ما ترك","النساء",23,"حُرِّمَتْ عَلَيْكُمْ أُمَّهَاتُكُمْ وَبَنَاتُكُمْ وَأَخَوَاتُكُمْ وَعَمَّاتُكُمْ وَخَالاَتُكُمْ وَبَنَاتُ الأَخِ وَبَنَاتُ الأُخْتِ وَأُمَّهَاتُكُمُ اللاَّتِي أَرْضَعْنَكُمْ وَأَخَوَاتُكُم مِّنَ الرَّضَاعَةِ وَأُمَّهَاتُ نِسَآئِكُمْ وَرَبَائِبُكُمُ اللاَّتِي فِي حُجُورِكُم مِّن نِّسَآئِكُمُ اللاَّتِي دَخَلْتُم بِهِنَّ فَإِن لَّمْ تَكُونُواْ دَخَلْتُم بِهِنَّ فَلاَ جُنَاحَ عَلَيْكُمْ وَحَلاَئِلُ أَبْنَائِكُمُ الَّذِينَ مِنْ أَصْلاَبِكُمْ وَأَن تَجْمَعُواْ بَيْنَ الأُخْتَيْنِ إَلاَّ مَا قَدْ سَلَفَ إِنَّ اللّهَ كَانَ غَفُورًا رَّحِيمًا ","آل عمران",186,"لتبلون فى أموالكم","النساء",20,"وَإِنْ أَرَدتُّمُ اسْتِبْدَالَ زَوْجٍ مَّكَانَ زَوْجٍ وَآتَيْتُمْ إِحْدَاهُنَّ قِنطَارًا فَلاَ تَأْخُذُواْ مِنْهُ شَيْئًا أَتَأْخُذُونَهُ بُهْتَاناً وَإِثْماً مُّبِيناً ","البقرة",177,"ليس البر أن تولوا","البقرة",242,"كَذَلِكَ يُبَيِّنُ اللّهُ لَكُمْ آيَاتِهِ لَعَلَّكُمْ تَعْقِلُونَ"]
[null,33,"الخامس",9,1,"النساء",24,"والمحصنات من النساء","النساء",35,"وَإِنْ خِفْتُمْ شِقَاقَ بَيْنِهِمَا فَابْعَثُواْ حَكَمًا مِّنْ أَهْلِهِ وَحَكَمًا مِّنْ أَهْلِهَا إِن يُرِيدَا إِصْلاَحًا يُوَفِّقِ اللّهُ بَيْنَهُمَا إِنَّ اللّهَ كَانَ عَلِيمًا خَبِيرًا ","النساء",1,"ياأيها الناس اتقوا ربكم","النساء",23,"حُرِّمَتْ عَلَيْكُمْ أُمَّهَاتُكُمْ وَبَنَاتُكُمْ وَأَخَوَاتُكُمْ وَعَمَّاتُكُمْ وَخَالاَتُكُمْ وَبَنَاتُ الأَخِ وَبَنَاتُ الأُخْتِ وَأُمَّهَاتُكُمُ اللاَّتِي أَرْضَعْنَكُمْ وَأَخَوَاتُكُم مِّنَ الرَّضَاعَةِ وَأُمَّهَاتُ نِسَآئِكُمْ وَرَبَائِبُكُمُ اللاَّتِي فِي حُجُورِكُم مِّن نِّسَآئِكُمُ اللاَّتِي دَخَلْتُم بِهِنَّ فَإِن لَّمْ تَكُونُواْ دَخَلْتُم بِهِنَّ فَلاَ جُنَاحَ عَلَيْكُمْ وَحَلاَئِلُ أَبْنَائِكُمُ الَّذِينَ مِنْ أَصْلاَبِكُمْ وَأَن تَجْمَعُواْ بَيْنَ الأُخْتَيْنِ إَلاَّ مَا قَدْ سَلَفَ إِنَّ اللّهَ كَانَ غَفُورًا رَّحِيمًا ","البقرة",243,"الم تر إلى الذين خرجوا","آل عمران",14,"زُيِّنَ لِلنَّاسِ حُبُّ الشَّهَوَاتِ مِنَ النِّسَاء وَالْبَنِينَ وَالْقَنَاطِيرِ الْمُقَنطَرَةِ مِنَ الذَّهَبِ وَالْفِضَّةِ وَالْخَيْلِ الْمُسَوَّمَةِ وَالأَنْعَامِ وَالْحَرْثِ ذَلِكَ مَتَاعُ الْحَيَاةِ الدُّنْيَا وَاللّهُ عِندَهُ حُسْنُ الْمَآبِ "]
[null,34,"الخامس",null,2,"النساء",36,"واعبدوا الله ولا تشركوا","النساء",57,"وَالَّذِينَ آمَنُواْ وَعَمِلُواْ الصَّالِحَاتِ سَنُدْخِلُهُمْ جَنَّاتٍ تَجْرِي مِن تَحْتِهَا الأَنْهَارُ خَالِدِينَ فِيهَا أَبَدًا لَّهُمْ فِيهَا أَزْوَاجٌ مُّطَهَّرَةٌ وَنُدْخِلُهُمْ ظِـلاًّ ظَلِيلاً ","النساء",20,"ولكم نصف ما ترك","النساء",35,"وَإِنْ خِفْتُمْ شِقَاقَ بَيْنِهِمَا فَابْعَثُواْ حَكَمًا مِّنْ أَهْلِهِ وَحَكَمًا مِّنْ أَهْلِهَا إِن يُرِيدَا إِصْلاَحًا يُوَفِّقِ اللّهُ بَيْنَهُمَا إِنَّ اللّهَ كَانَ عَلِيمًا خَبِيرًا ",{"$f":"F23","v":"آل عمران"},{"$f":"G23","v":15},{"$f":"H23","v":"قل أؤنبئكم بخير"},{"$f":"I27","v":"آل عمران"},{"$f":"J27","v":112},{"$f":"K27","v":"ضُرِبَتْ عَلَيْهِمُ الذِّلَّةُ أَيْنَ مَا ثُقِفُواْ إِلاَّ بِحَبْلٍ مِّنْ اللّهِ وَحَبْلٍ مِّنَ النَّاسِ وَبَآؤُوا بِغَضَبٍ مِّنَ اللّهِ وَضُرِبَتْ عَلَيْهِمُ الْمَسْكَنَةُ ذَلِكَ بِأَنَّهُمْ كَانُواْ يَكْفُرُونَ بِآيَاتِ اللّهِ وَيَقْتُلُونَ الأَنبِيَاء بِغَيْرِ حَقٍّ ذَلِكَ بِمَا عَصَوا وَّكَانُواْ يَعْتَدُونَ "}]
[null,35,"الخامس",null,3,"النساء",58,"إن الله يأمركم أن تؤدوا","النساء",73,"وَلَئِنْ أَصَابَكُمْ فَضْلٌ مِّنَ الله لَيَقُولَنَّ كَأَن لَّمْ تَكُن بَيْنَكُمْ وَبَيْنَهُ مَوَدَّةٌ يَا لَيتَنِي كُنتُ مَعَهُمْ فَأَفُوزَ فَوْزًا عَظِيمًا ","النساء",24,"والمحصنات من النساء","النساء",57,"وَالَّذِينَ آمَنُواْ وَعَمِلُواْ الصَّالِحَاتِ سَنُدْخِلُهُمْ جَنَّاتٍ تَجْرِي مِن تَحْتِهَا الأَنْهَارُ خَالِدِينَ فِيهَا أَبَدًا لَّهُمْ فِيهَا أَزْوَاجٌ مُّطَهَّرَةٌ وَنُدْخِلُهُمْ ظِـلاًّ ظَلِيلاً ",{"$f":"F28","v":"آل عمران"},{"$f":"G28","v":113},{"$f":"H28","v":"ليسوا سواء"},{"$f":"I32","v":"آل عمران"},{"$f":"J32","v":200},{"$f":"K32","v":"يَا أَيُّهَا الَّذِينَ آمَنُواْ اصْبِرُواْ وَصَابِرُواْ وَرَابِطُواْ وَاتَّقُواْ اللّهَ لَعَلَّكُمْ تُفْلِحُونَ "}]
[null,36,"الخامس",null,4,"النساء",74,"فليقاتل فى سبيل الله","النساء",87,"اللّهُ لا إِلَـهَ إِلاَّ هُوَ لَيَجْمَعَنَّكُمْ إِلَى يَوْمِ الْقِيَامَةِ لاَ رَيْبَ فِيهِ وَمَنْ أَصْدَقُ مِنَ اللّهِ حَدِيثًا ","النساء",36,"واعبدوا الله ولا تشركوا","النساء",73,"وَلَئِنْ أَصَابَكُمْ فَضْلٌ مِّنَ الله لَيَقُولَنَّ كَأَن لَّمْ تَكُن بَيْنَكُمْ وَبَيْنَهُ مَوَدَّةٌ يَا لَيتَنِي كُنتُ مَعَهُمْ فَأَفُوزَ فَوْزًا عَظِيمًا ",{"$f":"F3","v":"الفاتحة"},{"$f":"G3","v":1},{"$f":"H3","v":"بسم الله الرحمن الرحيم"},{"$f":"I7","v":"البقرة"},{"$f":"J7","v":91},{"$f":"K7","v":"وَإِذَا قِيلَ لَهُمْ آمِنُواْ بِمَا أَنزَلَ اللّهُ قَالُواْ نُؤْمِنُ بِمَآ أُنزِلَ عَلَيْنَا وَيَكْفُرونَ بِمَا وَرَاءهُ وَهُوَ الْحَقُّ مُصَدِّقاً لِّمَا مَعَهُمْ قُلْ فَلِمَ تَقْتُلُونَ أَنبِيَاء اللّهِ مِن قَبْلُ إِن كُنتُم مُّؤْمِنِينَ"}]
[null,37,"الخامس",10,5,"النساء",88,"فما لكم فى المنافقين","النساء",99,"فَأُوْلَـئِكَ عَسَى اللّهُ أَن يَعْفُوَ عَنْهُمْ وَكَانَ اللّهُ عَفُوًّا غَفُورًا ","النساء",58,"إن الله يأمركم أن تؤدوا","النساء",87,"اللّهُ لا إِلَـهَ إِلاَّ هُوَ لَيَجْمَعَنَّكُمْ إِلَى يَوْمِ الْقِيَامَةِ لاَ رَيْبَ فِيهِ وَمَنْ أَصْدَقُ مِنَ اللّهِ حَدِيثًا ",{"$f":"F8","v":"البقرة"},{"$f":"G8","v":92},{"$f":"H8","v":"ولقد جاءكم موسى"},{"$f":"I12","v":"البقرة"},{"$f":"J12","v":176},{"$f":"K12","v":"ذَلِكَ بِأَنَّ اللّهَ نَزَّلَ الْكِتَابَ بِالْحَقِّ وَإِنَّ الَّذِينَ اخْتَلَفُواْ فِي الْكِتَابِ لَفِي شِقَاقٍ بَعِيدٍ"}]
[null,38,"الخامس",null,6,"النساء",100,"ومن يهاجر فى سبيل الله","النساء",113,"وَلَوْلاَ فَضْلُ اللّهِ عَلَيْكَ وَرَحْمَتُهُ لَهَمَّت طَّآئِفَةٌ مُّنْهُمْ أَن يُضِلُّوكَ وَمَا يُضِلُّونَ إِلاُّ أَنفُسَهُمْ وَمَا يَضُرُّونَكَ مِن شَيْءٍ وَأَنزَلَ اللّهُ عَلَيْكَ الْكِتَابَ وَالْحِكْمَةَ وَعَلَّمَكَ مَا لَمْ تَكُنْ تَعْلَمُ وَكَانَ فَضْلُ اللّهِ عَلَيْكَ عَظِيمًا ","النساء",74,"فليقاتل فى سبيل الله","النساء",99,"فَأُوْلَـئِكَ عَسَى اللّهُ أَن يَعْفُوَ عَنْهُمْ وَكَانَ اللّهُ عَفُوًّا غَفُورًا ",{"$f":"F13","v":"البقرة"},{"$f":"G13","v":177},{"$f":"H13","v":"ليس البر أن تولوا"},{"$f":"I17","v":"البقرة"},{"$f":"J17","v":242},{"$f":"K17","v":"كَذَلِكَ يُبَيِّنُ اللّهُ لَكُمْ آيَاتِهِ لَعَلَّكُمْ تَعْقِلُونَ"}]
[null,39,"الخامس",null,7,"النساء",114,"لا خير فى كثير من نجواهم","النساء",134,"مَّن كَانَ يُرِيدُ ثَوَابَ الدُّنْيَا فَعِندَ اللّهِ ثَوَابُ الدُّنْيَا وَالآخِرَةِ وَكَانَ اللّهُ سَمِيعًا بَصِيرًا ","النساء",88,"فما لكم فى المنافقين","النساء",113,"وَلَوْلاَ فَضْلُ اللّهِ عَلَيْكَ وَرَحْمَتُهُ لَهَمَّت طَّآئِفَةٌ مُّنْهُمْ أَن يُضِلُّوكَ وَمَا يُضِلُّونَ إِلاُّ أَنفُسَهُمْ وَمَا يَضُرُّونَكَ مِن شَيْءٍ وَأَنزَلَ اللّهُ عَلَيْكَ الْكِتَابَ وَالْحِكْمَةَ وَعَلَّمَكَ مَا لَمْ تَكُنْ تَعْلَمُ وَكَانَ فَضْلُ اللّهِ عَلَيْكَ عَظِيمًا ",{"$f":"F18","v":"البقرة"},{"$f":"G18","v":243},{"$f":"H18","v":"الم تر إلى الذين خرجوا"},{"$f":"I22","v":"آل عمران"},{"$f":"J22","v":14},{"$f":"K22","v":"زُيِّنَ لِلنَّاسِ حُبُّ الشَّهَوَاتِ مِنَ النِّسَاء وَالْبَنِينَ وَالْقَنَاطِيرِ الْمُقَنطَرَةِ مِنَ الذَّهَبِ وَالْفِضَّةِ وَالْخَيْلِ الْمُسَوَّمَةِ وَالأَنْعَامِ وَالْحَرْثِ ذَلِكَ مَتَاعُ الْحَيَاةِ الدُّنْيَا وَاللّهُ عِندَهُ حُسْنُ الْمَآبِ "}]
[null,40,"الخامس",null,8,"النساء",135,"ياأيها الذين آمنوا","النساء",147,"مَّا يَفْعَلُ اللّهُ بِعَذَابِكُمْ إِن شَكَرْتُمْ وَآمَنتُمْ وَكَانَ اللّهُ شَاكِرًا عَلِيمًا ","النساء",100,"ومن يهاجر فى سبيل الله","النساء",134,"مَّن كَانَ يُرِيدُ ثَوَابَ الدُّنْيَا فَعِندَ اللّهِ ثَوَابُ الدُّنْيَا وَالآخِرَةِ وَكَانَ اللّهُ سَمِيعًا بَصِيرًا ",{"$f":"F23","v":"آل عمران"},{"$f":"G23","v":15},{"$f":"H23","v":"قل أؤنبئكم بخير"},{"$f":"I27","v":"آل عمران"},{"$f":"J27","v":112},{"$f":"K27","v":"ضُرِبَتْ عَلَيْهِمُ الذِّلَّةُ أَيْنَ مَا ثُقِفُواْ إِلاَّ بِحَبْلٍ مِّنْ اللّهِ وَحَبْلٍ مِّنَ النَّاسِ وَبَآؤُوا بِغَضَبٍ مِّنَ اللّهِ وَضُرِبَتْ عَلَيْهِمُ الْمَسْكَنَةُ ذَلِكَ بِأَنَّهُمْ كَانُواْ يَكْفُرُونَ بِآيَاتِ اللّهِ وَيَقْتُلُونَ الأَنبِيَاء بِغَيْرِ حَقٍّ ذَلِكَ بِمَا عَصَوا وَّكَانُواْ يَعْتَدُونَ "}]
[null,41,"السادس",11,1,"النساء",148,"لايحب الله الجهر بالسوء","النساء",162,"لَّـكِنِ الرَّاسِخُونَ فِي الْعِلْمِ مِنْهُمْ وَالْمُؤْمِنُونَ يُؤْمِنُونَ بِمَا أُنزِلَ إِلَيكَ وَمَا أُنزِلَ مِن قَبْلِكَ وَالْمُقِيمِينَ الصَّلاَةَ وَالْمُؤْتُونَ الزَّكَاةَ وَالْمُؤْمِنُونَ بِاللّهِ وَالْيَوْمِ الآخِرِ أُوْلَـئِكَ سَنُؤْتِيهِمْ أَجْرًا عَظِيمًا ","النساء",114,"لا خير فى كثير من نجواهم","النساء",147,"مَّا يَفْعَلُ اللّهُ بِعَذَابِكُمْ إِن شَكَرْتُمْ وَآمَنتُمْ وَكَانَ اللّهُ شَاكِرًا عَلِيمًا ",{"$f":"F28","v":"آل عمران"},{"$f":"G28","v":113},{"$f":"H28","v":"ليسوا سواء"},{"$f":"I32","v":"آل عمران"},{"$f":"J32","v":200},{"$f":"K32","v":"يَا أَيُّهَا الَّذِينَ آمَنُواْ اصْبِرُواْ وَصَابِرُواْ وَرَابِطُواْ وَاتَّقُواْ اللّهَ لَعَلَّكُمْ تُفْلِحُونَ "}]
[null,42,"السادس",null,2,"النساء",163,"إنا أوحينا إليك","النساء",176,"يَسْتَفْتُونَكَ قُلِ اللّهُ يُفْتِيكُمْ فِي الْكَلاَلَةِ إِنِ امْرُؤٌ هَلَكَ لَيْسَ لَهُ وَلَدٌ وَلَهُ أُخْتٌ فَلَهَا نِصْفُ مَا تَرَكَ وَهُوَ يَرِثُهَآ إِن لَّمْ يَكُن لَّهَا وَلَدٌ فَإِن كَانَتَا اثْنَتَيْنِ فَلَهُمَا الثُّلُثَانِ مِمَّا تَرَكَ وَإِن كَانُواْ إِخْوَةً رِّجَالاً وَنِسَاء فَلِلذَّكَرِ مِثْلُ حَظِّ الأُنثَيَيْنِ يُبَيِّنُ اللّهُ لَكُمْ أَن تَضِلُّواْ وَاللّهُ بِكُلِّ شَيْءٍ عَلِيمٌ ","النساء",135,"ياأيها الذين آمنوا","النساء",162,"لَّـكِنِ الرَّاسِخُونَ فِي الْعِلْمِ مِنْهُمْ وَالْمُؤْمِنُونَ يُؤْمِنُونَ بِمَا أُنزِلَ إِلَيكَ وَمَا أُنزِلَ مِن قَبْلِكَ وَالْمُقِيمِينَ الصَّلاَةَ وَالْمُؤْتُونَ الزَّكَاةَ وَالْمُؤْمِنُونَ بِاللّهِ وَالْيَوْمِ الآخِرِ أُوْلَـئِكَ سَنُؤْتِيهِمْ أَجْرًا عَظِيمًا ",{"$f":"F33","v":"النساء"},{"$f":"G33","v":1},{"$f":"H33","v":"ياأيها الناس اتقوا ربكم"},{"$f":"I37","v":"النساء"},{"$f":"J37","v":73},{"$f":"K37","v":"وَلَئِنْ أَصَابَكُمْ فَضْلٌ مِّنَ الله لَيَقُولَنَّ كَأَن لَّمْ تَكُن بَيْنَكُمْ وَبَيْنَهُ مَوَدَّةٌ يَا لَيتَنِي كُنتُ مَعَهُمْ فَأَفُوزَ فَوْزًا عَظِيمًا "}]
["المائدة",43,"السادس",null,3,"المائدة",1,"ياأيها الذين آمنوا","المائدة",11,"يَا أَيُّهَا الَّذِينَ آمَنُواْ اذْكُرُواْ نِعْمَتَ اللّهِ عَلَيْكُمْ إِذْ هَمَّ قَوْمٌ أَن يَبْسُطُواْ إِلَيْكُمْ أَيْدِيَهُمْ فَكَفَّ أَيْدِيَهُمْ عَنكُمْ وَاتَّقُواْ اللّهَ وَعَلَى اللّهِ فَلْيَتَوَكَّلِ الْمُؤْمِنُونَ ","النساء",148,"لايحب الله الجهر بالسوء","النساء",176,"يَسْتَفْتُونَكَ قُلِ اللّهُ يُفْتِيكُمْ فِي الْكَلاَلَةِ إِنِ امْرُؤٌ هَلَكَ لَيْسَ لَهُ وَلَدٌ وَلَهُ أُخْتٌ فَلَهَا نِصْفُ مَا تَرَكَ وَهُوَ يَرِثُهَآ إِن لَّمْ يَكُن لَّهَا وَلَدٌ فَإِن كَانَتَا اثْنَتَيْنِ فَلَهُمَا الثُّلُثَانِ مِمَّا تَرَكَ وَإِن كَانُواْ إِخْوَةً رِّجَالاً وَنِسَاء فَلِلذَّكَرِ مِثْلُ حَظِّ الأُنثَيَيْنِ يُبَيِّنُ اللّهُ لَكُمْ أَن تَضِلُّواْ وَاللّهُ بِكُلِّ شَيْءٍ عَلِيمٌ ",{"$f":"F38","v":"النساء"},{"$f":"G38","v":74},{"$f":"H38","v":"فليقاتل فى سبيل الله"},{"$f":"I42","v":"النساء"},{"$f":"J42","v":147},{"$f":"K42","v":"مَّا يَفْعَلُ اللّهُ بِعَذَابِكُمْ إِن شَكَرْتُمْ وَآمَنتُمْ وَكَانَ اللّهُ شَاكِرًا عَلِيمًا "}]
[null,44,"السادس",null,4,"المائدة",12,"ولقد أخذ الله ميثاق ","المائدة",26,"قَالَ فَإِنَّهَا مُحَرَّمَةٌ عَلَيْهِمْ أَرْبَعِينَ سَنَةً يَتِيهُونَ فِي الأَرْضِ فَلاَ تَأْسَ عَلَى الْقَوْمِ الْفَاسِقِينَ ","النساء",163,"إنا أوحينا إليك","المائدة",11,"يَا أَيُّهَا الَّذِينَ آمَنُواْ اذْكُرُواْ نِعْمَتَ اللّهِ عَلَيْكُمْ إِذْ هَمَّ قَوْمٌ أَن يَبْسُطُواْ إِلَيْكُمْ أَيْدِيَهُمْ فَكَفَّ أَيْدِيَهُمْ عَنكُمْ وَاتَّقُواْ اللّهَ وَعَلَى اللّهِ فَلْيَتَوَكَّلِ الْمُؤْمِنُونَ ",{"$f":"R38","v":"الفاتحة"},1,"بسم الله الرحمن الرحيم","البقرة",91,"وَإِذَا قِيلَ لَهُمْ آمِنُواْ بِمَا أَنزَلَ اللّهُ قَالُواْ نُؤْمِنُ بِمَآ أُنزِلَ عَلَيْنَا وَيَكْفُرونَ بِمَا وَرَاءهُ وَهُوَ الْحَقُّ مُصَدِّقاً لِّمَا مَعَهُمْ قُلْ فَلِمَ تَقْتُلُونَ أَنبِيَاء اللّهِ مِن قَبْلُ إِن كُنتُم مُّؤْمِنِينَ"]
[null,45,"السادس",12,5,"المائدة",27,"واتل عليهم نبأ إبنى آدم","المائدة",40,"أَلَمْ تَعْلَمْ أَنَّ اللّهَ لَهُ مُلْكُ السَّمَاوَاتِ وَالأَرْضِ يُعَذِّبُ مَن يَشَاء وَيَغْفِرُ لِمَن يَشَاء وَاللّهُ عَلَى كُلِّ شَيْءٍ قَدِيرٌ ","المائدة",1,"ياأيها الذين آمنوا","المائدة",26,"قَالَ فَإِنَّهَا مُحَرَّمَةٌ عَلَيْهِمْ أَرْبَعِينَ سَنَةً يَتِيهُونَ فِي الأَرْضِ فَلاَ تَأْسَ عَلَى الْقَوْمِ الْفَاسِقِينَ ",{"$f":"R39","v":"البقرة"},92,"ولقد جاءكم موسى","البقرة",176,"ذَلِكَ بِأَنَّ اللّهَ نَزَّلَ الْكِتَابَ بِالْحَقِّ وَإِنَّ الَّذِينَ اخْتَلَفُواْ فِي الْكِتَابِ لَفِي شِقَاقٍ بَعِيدٍ"]
[null,46,"السادس",null,6,"المائدة",41,"ياأيها الرسول لا يحزنك","المائدة",50,"أَفَحُكْمَ الْجَاهِلِيَّةِ يَبْغُونَ وَمَنْ أَحْسَنُ مِنَ اللّهِ حُكْمًا لِّقَوْمٍ يُوقِنُونَ ","المائدة",12,"ولقد أخذ الله ميثاق ","المائدة",40,"أَلَمْ تَعْلَمْ أَنَّ اللّهَ لَهُ مُلْكُ السَّمَاوَاتِ وَالأَرْضِ يُعَذِّبُ مَن يَشَاء وَيَغْفِرُ لِمَن يَشَاء وَاللّهُ عَلَى كُلِّ شَيْءٍ قَدِيرٌ ",{"$f":"R40","v":"البقرة"},177,"ليس البر أن تولوا","البقرة",242,"كَذَلِكَ يُبَيِّنُ اللّهُ لَكُمْ آيَاتِهِ لَعَلَّكُمْ تَعْقِلُونَ"]
[null,47,"السادس",null,7,"المائدة",51,"ياأيها الذين آمنوا","المائدة",66,"وَلَوْ أَنَّهُمْ أَقَامُواْ التَّوْرَاةَ وَالإِنجِيلَ وَمَا أُنزِلَ إِلَيهِم مِّن رَّبِّهِمْ لأكَلُواْ مِن فَوْقِهِمْ وَمِن تَحْتِ أَرْجُلِهِم مِّنْهُمْ أُمَّةٌ مُّقْتَصِدَةٌ وَكَثِيرٌ مِّنْهُمْ سَاء مَا يَعْمَلُونَ ","المائدة",27,"واتل عليهم نبأ إبنى آدم","المائدة",50,"أَفَحُكْمَ الْجَاهِلِيَّةِ يَبْغُونَ وَمَنْ أَحْسَنُ مِنَ اللّهِ حُكْمًا لِّقَوْمٍ يُوقِنُونَ ",{"$f":"R41","v":"البقرة"},243,"الم تر إلى الذين خرجوا","آل عمران",14,"زُيِّنَ لِلنَّاسِ حُبُّ الشَّهَوَاتِ مِنَ النِّسَاء وَالْبَنِينَ وَالْقَنَاطِيرِ الْمُقَنطَرَةِ مِنَ الذَّهَبِ وَالْفِضَّةِ وَالْخَيْلِ الْمُسَوَّمَةِ وَالأَنْعَامِ وَالْحَرْثِ ذَلِكَ مَتَاعُ الْحَيَاةِ الدُّنْيَا وَاللّهُ عِندَهُ حُسْنُ الْمَآبِ "]
[null,48,"السادس",null,8,"المائدة",67,"ياأيها الرسول بلغ","المائدة",81,"وَلَوْ كَانُوا يُؤْمِنُونَ بِالله والنَّبِيِّ وَمَا أُنزِلَ إِلَيْهِ مَا اتَّخَذُوهُمْ أَوْلِيَاء وَلَـكِنَّ كَثِيرًا مِّنْهُمْ فَاسِقُونَ ","المائدة",41,"ياأيها الرسول لا يحزنك","المائدة",66,"وَلَوْ أَنَّهُمْ أَقَامُواْ التَّوْرَاةَ وَالإِنجِيلَ وَمَا أُنزِلَ إِلَيهِم مِّن رَّبِّهِمْ لأكَلُواْ مِن فَوْقِهِمْ وَمِن تَحْتِ أَرْجُلِهِم مِّنْهُمْ أُمَّةٌ مُّقْتَصِدَةٌ وَكَثِيرٌ مِّنْهُمْ سَاء مَا يَعْمَلُونَ ",{"$f":"R42","v":"آل عمران"},15,"قل أؤنبئكم بخير","آل عمران",112,"ضُرِبَتْ عَلَيْهِمُ الذِّلَّةُ أَيْنَ مَا ثُقِفُواْ إِلاَّ بِحَبْلٍ مِّنْ اللّهِ وَحَبْلٍ مِّنَ النَّاسِ وَبَآؤُوا بِغَضَبٍ مِّنَ اللّهِ وَضُرِبَتْ عَلَيْهِمُ الْمَسْكَنَةُ ذَلِكَ بِأَنَّهُمْ كَانُواْ يَكْفُرُونَ بِآيَاتِ اللّهِ وَيَقْتُلُونَ الأَنبِيَاء بِغَيْرِ حَقٍّ ذَلِكَ بِمَا عَصَوا وَّكَانُواْ يَعْتَدُونَ "]
[null,49,"السابع",13,1,"المائدة",82,"لتجدن أشد الناس عداوة","المائدة",96,"أُحِلَّ لَكُمْ صَيْدُ الْبَحْرِ وَطَعَامُهُ مَتَاعًا لَّكُمْ وَلِلسَّيَّارَةِ وَحُرِّمَ عَلَيْكُمْ صَيْدُ الْبَرِّ مَا دُمْتُمْ حُرُمًا وَاتَّقُواْ اللّهَ الَّذِيَ إِلَيْهِ تُحْشَرُونَ ","المائدة",51,"ياأيها الذين آمنوا","المائدة",81,"وَلَوْ كَانُوا يُؤْمِنُونَ بِالله والنَّبِيِّ وَمَا أُنزِلَ إِلَيْهِ مَا اتَّخَذُوهُمْ أَوْلِيَاء وَلَـكِنَّ كَثِيرًا مِّنْهُمْ فَاسِقُونَ ",{"$f":"R43","v":"آل عمران"},113,"ليسوا سواء","آل عمران",200,"يَا أَيُّهَا الَّذِينَ آمَنُواْ اصْبِرُواْ وَصَابِرُواْ وَرَابِطُواْ وَاتَّقُواْ اللّهَ لَعَلَّكُمْ تُفْلِحُونَ "]
[null,50,"السابع",null,2,"المائدة",97,"جعل الله الكعبة ","المائدة",108,"ذَلِكَ أَدْنَى أَن يَأْتُواْ بِالشَّهَادَةِ عَلَى وَجْهِهَا أَوْ يَخَافُواْ أَن تُرَدَّ أَيْمَانٌ بَعْدَ أَيْمَانِهِمْ وَاتَّقُوا اللّهَ وَاسْمَعُواْ وَاللّهُ لاَ يَهْدِي الْقَوْمَ الْفَاسِقِينَ ","المائدة",67,"ياأيها الرسول بلغ","المائدة",96,"أُحِلَّ لَكُمْ صَيْدُ الْبَحْرِ وَطَعَامُهُ مَتَاعًا لَّكُمْ وَلِلسَّيَّارَةِ وَحُرِّمَ عَلَيْكُمْ صَيْدُ الْبَرِّ مَا دُمْتُمْ حُرُمًا وَاتَّقُواْ اللّهَ الَّذِيَ إِلَيْهِ تُحْشَرُونَ ","النساء",1,"ياأيها الناس اتقوا ربكم","النساء",73,"وَلَئِنْ أَصَابَكُمْ فَضْلٌ مِّنَ الله لَيَقُولَنَّ كَأَن لَّمْ تَكُن بَيْنَكُمْ وَبَيْنَهُ مَوَدَّةٌ يَا لَيتَنِي كُنتُ مَعَهُمْ فَأَفُوزَ فَوْزًا عَظِيمًا "]
[null,51,"السابع",null,3,"المائدة",109,"يوم يجمع الله الرسل","الأنعام",12,"قُل لِّمَن مَّا فِي السَّمَاوَاتِ وَالأَرْضِ قُل لِلّهِ كَتَبَ عَلَى نَفْسِهِ الرَّحْمَةَ لَيَجْمَعَنَّكُمْ إِلَى يَوْمِ الْقِيَامَةِ لاَ رَيْبَ فِيهِ الَّذِينَ خَسِرُواْ أَنفُسَهُمْ فَهُمْ لاَ يُؤْمِنُونَ ","المائدة",82,"لتجدن أشد الناس عداوة","المائدة",108,"ذَلِكَ أَدْنَى أَن يَأْتُواْ بِالشَّهَادَةِ عَلَى وَجْهِهَا أَوْ يَخَافُواْ أَن تُرَدَّ أَيْمَانٌ بَعْدَ أَيْمَانِهِمْ وَاتَّقُوا اللّهَ وَاسْمَعُواْ وَاللّهُ لاَ يَهْدِي الْقَوْمَ الْفَاسِقِينَ ",{"$f":"R45","v":"النساء"},74,"فليقاتل فى سبيل الله","النساء",147,"مَّا يَفْعَلُ اللّهُ بِعَذَابِكُمْ إِن شَكَرْتُمْ وَآمَنتُمْ وَكَانَ اللّهُ شَاكِرًا عَلِيمًا "]
["الأنعام",52,"السابع",null,4,"الأنعام",13,"وله ما سكن فى الليل","الأنعام",35,"وَإِن كَانَ كَبُرَ عَلَيْكَ إِعْرَاضُهُمْ فَإِنِ اسْتَطَعْتَ أَن تَبْتَغِيَ نَفَقًا فِي الأَرْضِ أَوْ سُلَّمًا فِي السَّمَاء فَتَأْتِيَهُم بِآيَةٍ وَلَوْ شَاء اللّهُ لَجَمَعَهُمْ عَلَى الْهُدَى فَلاَ تَكُونَنَّ مِنَ الْجَاهِلِينَ ","المائدة",97,"جعل الله الكعبة ","الأنعام",12,"قُل لِّمَن مَّا فِي السَّمَاوَاتِ وَالأَرْضِ قُل لِلّهِ كَتَبَ عَلَى نَفْسِهِ الرَّحْمَةَ لَيَجْمَعَنَّكُمْ إِلَى يَوْمِ الْقِيَامَةِ لاَ رَيْبَ فِيهِ الَّذِينَ خَسِرُواْ أَنفُسَهُمْ فَهُمْ لاَ يُؤْمِنُونَ ",{"$f":"F43","v":"النساء"},{"$f":"G43","v":148},{"$f":"H43","v":"لايحب الله الجهر بالسوء"},{"$f":"I47","v":"المائدة"},{"$f":"J47","v":40},{"$f":"K47","v":"أَلَمْ تَعْلَمْ أَنَّ اللّهَ لَهُ مُلْكُ السَّمَاوَاتِ وَالأَرْضِ يُعَذِّبُ مَن يَشَاء وَيَغْفِرُ لِمَن يَشَاء وَاللّهُ عَلَى كُلِّ شَيْءٍ قَدِيرٌ "}]
[null,53,"السابع",14,5,"الأنعام",36,"إنما يستجيب الذين","الأنعام",58,"قُل لَّوْ أَنَّ عِندِي مَا تَسْتَعْجِلُونَ بِهِ لَقُضِيَ الأَمْرُ بَيْنِي وَبَيْنَكُمْ وَاللّهُ أَعْلَمُ بِالظَّالِمِينَ ","المائدة",109,"يوم يجمع الله الرسل","الأنعام",35,"وَإِن كَانَ كَبُرَ عَلَيْكَ إِعْرَاضُهُمْ فَإِنِ اسْتَطَعْتَ أَن تَبْتَغِيَ نَفَقًا فِي الأَرْضِ أَوْ سُلَّمًا فِي السَّمَاء فَتَأْتِيَهُم بِآيَةٍ وَلَوْ شَاء اللّهُ لَجَمَعَهُمْ عَلَى الْهُدَى فَلاَ تَكُونَنَّ مِنَ الْجَاهِلِينَ ",{"$f":"F48","v":"المائدة"},{"$f":"G48","v":41},{"$f":"H48","v":"ياأيها الرسول لا يحزنك"},{"$f":"I52","v":"المائدة"},{"$f":"J52","v":108},{"$f":"K52","v":"ذَلِكَ أَدْنَى أَن يَأْتُواْ بِالشَّهَادَةِ عَلَى وَجْهِهَا أَوْ يَخَافُواْ أَن تُرَدَّ أَيْمَانٌ بَعْدَ أَيْمَانِهِمْ وَاتَّقُوا اللّهَ وَاسْمَعُواْ وَاللّهُ لاَ يَهْدِي الْقَوْمَ الْفَاسِقِينَ "}]
[null,54,"السابع",null,6,"الأنعام",59,"وعنده مفاتح الغيب","الأنعام",73,"وَهُوَ الَّذِي خَلَقَ السَّمَاوَاتِ وَالأَرْضَ بِالْحَقِّ وَيَوْمَ يَقُولُ كُن فَيَكُونُ قَوْلُهُ الْحَقُّ وَلَهُ الْمُلْكُ يَوْمَ يُنفَخُ فِي الصُّوَرِ عَالِمُ الْغَيْبِ وَالشَّهَادَةِ وَهُوَ الْحَكِيمُ الْخَبِيرُ ","الأنعام",13,"وله ما سكن فى الليل","الأنعام",58,"قُل لَّوْ أَنَّ عِندِي مَا تَسْتَعْجِلُونَ بِهِ لَقُضِيَ الأَمْرُ بَيْنِي وَبَيْنَكُمْ وَاللّهُ أَعْلَمُ بِالظَّالِمِينَ ",{"$f":"R46","v":"الفاتحة"},1,"بسم الله الرحمن الرحيم","البقرة",91,"وَإِذَا قِيلَ لَهُمْ آمِنُواْ بِمَا أَنزَلَ اللّهُ قَالُواْ نُؤْمِنُ بِمَآ أُنزِلَ عَلَيْنَا وَيَكْفُرونَ بِمَا وَرَاءهُ وَهُوَ الْحَقُّ مُصَدِّقاً لِّمَا مَعَهُمْ قُلْ فَلِمَ تَقْتُلُونَ أَنبِيَاء اللّهِ مِن قَبْلُ إِن كُنتُم مُّؤْمِنِينَ"]
[null,55,"السابع",null,7,"الأنعام",74,"وإذ قال إبراهيم لأبيه","الأنعام",94,"وَلَقَدْ جِئْتُمُونَا فُرَادَى كَمَا خَلَقْنَاكُمْ أَوَّلَ مَرَّةٍ وَتَرَكْتُم مَّا خَوَّلْنَاكُمْ وَرَاء ظُهُورِكُمْ وَمَا نَرَى مَعَكُمْ شُفَعَاءكُمُ الَّذِينَ زَعَمْتُمْ أَنَّهُمْ فِيكُمْ شُرَكَاء لَقَد تَّقَطَّعَ بَيْنَكُمْ وَضَلَّ عَنكُم مَّا كُنتُمْ تَزْعُمُونَ ","الأنعام",36,"إنما يستجيب الذين","الأنعام",73,"وَهُوَ الَّذِي خَلَقَ السَّمَاوَاتِ وَالأَرْضَ بِالْحَقِّ وَيَوْمَ يَقُولُ كُن فَيَكُونُ قَوْلُهُ الْحَقُّ وَلَهُ الْمُلْكُ يَوْمَ يُنفَخُ فِي الصُّوَرِ عَالِمُ الْغَيْبِ وَالشَّهَادَةِ وَهُوَ الْحَكِيمُ الْخَبِيرُ ",{"$f":"R47","v":"البقرة"},92,"ولقد جاءكم موسى","البقرة",176,"ذَلِكَ بِأَنَّ اللّهَ نَزَّلَ الْكِتَابَ بِالْحَقِّ وَإِنَّ الَّذِينَ اخْتَلَفُواْ فِي الْكِتَابِ لَفِي شِقَاقٍ بَعِيدٍ"]
[null,56,"السابع",null,8,"الأنعام",95,"إن الله فالق الحب والنوى","الأنعام",110,"وَنُقَلِّبُ أَفْئِدَتَهُمْ وَأَبْصَارَهُمْ كَمَا لَمْ يُؤْمِنُواْ بِهِ أَوَّلَ مَرَّةٍ وَنَذَرُهُمْ فِي طُغْيَانِهِمْ يَعْمَهُونَ ","الأنعام",59,"وعنده مفاتح الغيب","الأنعام",94,"وَلَقَدْ جِئْتُمُونَا فُرَادَى كَمَا خَلَقْنَاكُمْ أَوَّلَ مَرَّةٍ وَتَرَكْتُم مَّا خَوَّلْنَاكُمْ وَرَاء ظُهُورِكُمْ وَمَا نَرَى مَعَكُمْ شُفَعَاءكُمُ الَّذِينَ زَعَمْتُمْ أَنَّهُمْ فِيكُمْ شُرَكَاء لَقَد تَّقَطَّعَ بَيْنَكُمْ وَضَلَّ عَنكُم مَّا كُنتُمْ تَزْعُمُونَ ",{"$f":"R48","v":"البقرة"},177,"ليس البر أن تولوا","البقرة",242,"كَذَلِكَ يُبَيِّنُ اللّهُ لَكُمْ آيَاتِهِ لَعَلَّكُمْ تَعْقِلُونَ"]
[null,57,"الثامن",15,1,"الأنعام",111,"ولو أننا نزلنا إليهم الملائكة","الأنعام",126,"وَهَـذَا صِرَاطُ رَبِّكَ مُسْتَقِيمًا قَدْ فَصَّلْنَا الآيَاتِ لِقَوْمٍ يَذَّكَّرُونَ ","الأنعام",74,"وإذ قال إبراهيم لأبيه","الأنعام",110,"وَنُقَلِّبُ أَفْئِدَتَهُمْ وَأَبْصَارَهُمْ كَمَا لَمْ يُؤْمِنُواْ بِهِ أَوَّلَ مَرَّةٍ وَنَذَرُهُمْ فِي طُغْيَانِهِمْ يَعْمَهُونَ ",{"$f":"R49","v":"البقرة"},243,"الم تر إلى الذين خرجوا","آل عمران",14,"زُيِّنَ لِلنَّاسِ حُبُّ الشَّهَوَاتِ مِنَ النِّسَاء وَالْبَنِينَ وَالْقَنَاطِيرِ الْمُقَنطَرَةِ مِنَ الذَّهَبِ وَالْفِضَّةِ وَالْخَيْلِ الْمُسَوَّمَةِ وَالأَنْعَامِ وَالْحَرْثِ ذَلِكَ مَتَاعُ الْحَيَاةِ الدُّنْيَا وَاللّهُ عِندَهُ حُسْنُ الْمَآبِ "]
[null,58,"الثامن",null,2,"الأنعام",127,"لهم دار السلام عند ربهم","الأنعام",140,"قَدْ خَسِرَ الَّذِينَ قَتَلُواْ أَوْلاَدَهُمْ سَفَهًا بِغَيْرِ عِلْمٍ وَحَرَّمُواْ مَا رَزَقَهُمُ اللّهُ افْتِرَاء عَلَى اللّهِ قَدْ ضَلُّواْ وَمَا كَانُواْ مُهْتَدِينَ ","الأنعام",95,"إن الله فالق الحب والنوى","الأنعام",126,"وَهَـذَا صِرَاطُ رَبِّكَ مُسْتَقِيمًا قَدْ فَصَّلْنَا الآيَاتِ لِقَوْمٍ يَذَّكَّرُونَ ",{"$f":"R50","v":"آل عمران"},15,"قل أؤنبئكم بخير","آل عمران",112,"ضُرِبَتْ عَلَيْهِمُ الذِّلَّةُ أَيْنَ مَا ثُقِفُواْ إِلاَّ بِحَبْلٍ مِّنْ اللّهِ وَحَبْلٍ مِّنَ النَّاسِ وَبَآؤُوا بِغَضَبٍ مِّنَ اللّهِ وَضُرِبَتْ عَلَيْهِمُ الْمَسْكَنَةُ ذَلِكَ بِأَنَّهُمْ كَانُواْ يَكْفُرُونَ بِآيَاتِ اللّهِ وَيَقْتُلُونَ الأَنبِيَاء بِغَيْرِ حَقٍّ ذَلِكَ بِمَا عَصَوا وَّكَانُواْ يَعْتَدُونَ "]
[null,59,"الثامن",null,3,"الأنعام",141,"وهوالذى أنشأ جنات","الأنعام",150,"قُلْ هَلُمَّ شُهَدَاءكُمُ الَّذِينَ يَشْهَدُونَ أَنَّ اللّهَ حَرَّمَ هَـذَا فَإِن شَهِدُواْ فَلاَ تَشْهَدْ مَعَهُمْ وَلاَ تَتَّبِعْ أَهْوَاء الَّذِينَ كَذَّبُواْ بِآيَاتِنَا وَالَّذِينَ لاَ يُؤْمِنُونَ بِالآخِرَةِ وَهُم بِرَبِّهِمْ يَعْدِلُونَ ","الأنعام",111,"ولو أننا نزلنا إليهم الملائكة","الأنعام",140,"قَدْ خَسِرَ الَّذِينَ قَتَلُواْ أَوْلاَدَهُمْ سَفَهًا بِغَيْرِ عِلْمٍ وَحَرَّمُواْ مَا رَزَقَهُمُ اللّهُ افْتِرَاء عَلَى اللّهِ قَدْ ضَلُّواْ وَمَا كَانُواْ مُهْتَدِينَ ",{"$f":"R51","v":"آل عمران"},113,"ليسوا سواء","آل عمران",200,"يَا أَيُّهَا الَّذِينَ آمَنُواْ اصْبِرُواْ وَصَابِرُواْ وَرَابِطُواْ وَاتَّقُواْ اللّهَ لَعَلَّكُمْ تُفْلِحُونَ "]
[null,60,"الثامن",null,4,"الأنعام",151,"قل تعالوا أتل ما حرم","الأنعام",165,"وَهُوَ الَّذِي جَعَلَكُمْ خَلاَئِفَ الأَرْضِ وَرَفَعَ بَعْضَكُمْ فَوْقَ بَعْضٍ دَرَجَاتٍ لِّيَبْلُوَكُمْ فِي مَا آتَاكُمْ إِنَّ رَبَّكَ سَرِيعُ الْعِقَابِ وَإِنَّهُ لَغَفُورٌ رَّحِيمٌ ","الأنعام",127,"لهم دار السلام عند ربهم","الأنعام",150,"قُلْ هَلُمَّ شُهَدَاءكُمُ الَّذِينَ يَشْهَدُونَ أَنَّ اللّهَ حَرَّمَ هَـذَا فَإِن شَهِدُواْ فَلاَ تَشْهَدْ مَعَهُمْ وَلاَ تَتَّبِعْ أَهْوَاء الَّذِينَ كَذَّبُواْ بِآيَاتِنَا وَالَّذِينَ لاَ يُؤْمِنُونَ بِالآخِرَةِ وَهُم بِرَبِّهِمْ يَعْدِلُونَ ",{"$f":"R52","v":"النساء"},1,"ياأيها الناس اتقوا ربكم","النساء",73,"وَلَئِنْ أَصَابَكُمْ فَضْلٌ مِّنَ الله لَيَقُولَنَّ كَأَن لَّمْ تَكُن بَيْنَكُمْ وَبَيْنَهُ مَوَدَّةٌ يَا لَيتَنِي كُنتُ مَعَهُمْ فَأَفُوزَ فَوْزًا عَظِيمًا "]
["الأعراف",61,"الثامن",16,5,"الأعراف",1,"الــمــص","الأعراف",30,"فَرِيقًا هَدَى وَفَرِيقًا حَقَّ عَلَيْهِمُ الضَّلاَلَةُ إِنَّهُمُ اتَّخَذُوا الشَّيَاطِينَ أَوْلِيَاء مِن دُونِ اللّهِ وَيَحْسَبُونَ أَنَّهُم مُّهْتَدُونَ ","الأنعام",141,"وهوالذى أنشأ جنات","الأنعام",165,"وَهُوَ الَّذِي جَعَلَكُمْ خَلاَئِفَ الأَرْضِ وَرَفَعَ بَعْضَكُمْ فَوْقَ بَعْضٍ دَرَجَاتٍ لِّيَبْلُوَكُمْ فِي مَا آتَاكُمْ إِنَّ رَبَّكَ سَرِيعُ الْعِقَابِ وَإِنَّهُ لَغَفُورٌ رَّحِيمٌ ",{"$f":"R53","v":"النساء"},74,"فليقاتل فى سبيل الله","النساء",147,"مَّا يَفْعَلُ اللّهُ بِعَذَابِكُمْ إِن شَكَرْتُمْ وَآمَنتُمْ وَكَانَ اللّهُ شَاكِرًا عَلِيمًا "]
[null,62,"الثامن",null,6,"الأعراف",31,"يابنى آدم خذوا زينتكم","الأعراف",46,"وَبَيْنَهُمَا حِجَابٌ وَعَلَى الأَعْرَافِ رِجَالٌ يَعْرِفُونَ كُلاًّ بِسِيمَاهُمْ وَنَادَوْاْ أَصْحَابَ الْجَنَّةِ أَن سَلاَمٌ عَلَيْكُمْ لَمْ يَدْخُلُوهَا وَهُمْ يَطْمَعُونَ ","الأنعام",151,"قل تعالوا أتل ما حرم","الأعراف",30,"فَرِيقًا هَدَى وَفَرِيقًا حَقَّ عَلَيْهِمُ الضَّلاَلَةُ إِنَّهُمُ اتَّخَذُوا الشَّيَاطِينَ أَوْلِيَاء مِن دُونِ اللّهِ وَيَحْسَبُونَ أَنَّهُم مُّهْتَدُونَ ",{"$f":"R54","v":"النساء"},148,"لايحب الله الجهر بالسوء","المائدة",40,"أَلَمْ تَعْلَمْ أَنَّ اللّهَ لَهُ مُلْكُ السَّمَاوَاتِ وَالأَرْضِ يُعَذِّبُ مَن يَشَاء وَيَغْفِرُ لِمَن يَشَاء وَاللّهُ عَلَى كُلِّ شَيْءٍ قَدِيرٌ "]
[null,63,"الثامن",null,7,"الأعراف",47,"وإذا صرفت أبصارهم","الأعراف",64,"فَكَذَّبُوهُ فَأَنجَيْنَاهُ وَالَّذِينَ مَعَهُ فِي الْفُلْكِ وَأَغْرَقْنَا الَّذِينَ كَذَّبُواْ بِآيَاتِنَا إِنَّهُمْ كَانُواْ قَوْماً عَمِينَ ","الأعراف",1,"الــمــص","الأعراف",46,"وَبَيْنَهُمَا حِجَابٌ وَعَلَى الأَعْرَافِ رِجَالٌ يَعْرِفُونَ كُلاًّ بِسِيمَاهُمْ وَنَادَوْاْ أَصْحَابَ الْجَنَّةِ أَن سَلاَمٌ عَلَيْكُمْ لَمْ يَدْخُلُوهَا وَهُمْ يَطْمَعُونَ ",{"$f":"R55","v":"المائدة"},41,"ياأيها الرسول لا يحزنك","المائدة",108,"ذَلِكَ أَدْنَى أَن يَأْتُواْ بِالشَّهَادَةِ عَلَى وَجْهِهَا أَوْ يَخَافُواْ أَن تُرَدَّ أَيْمَانٌ بَعْدَ أَيْمَانِهِمْ وَاتَّقُوا اللّهَ وَاسْمَعُواْ وَاللّهُ لاَ يَهْدِي الْقَوْمَ الْفَاسِقِينَ "]
[null,64,"الثامن",null,8,"الأعراف",65,"وإلى عاد أخاهم هودا","الأعراف",87,"وَإِن كَانَ طَآئِفَةٌ مِّنكُمْ آمَنُواْ بِالَّذِي أُرْسِلْتُ بِهِ وَطَآئِفَةٌ لَّمْ يْؤْمِنُواْ فَاصْبِرُواْ حَتَّى يَحْكُمَ اللّهُ بَيْنَنَا وَهُوَ خَيْرُ الْحَاكِمِينَ ","الأعراف",31,"يابنى آدم خذوا زينتكم","الأعراف",64,"فَكَذَّبُوهُ فَأَنجَيْنَاهُ وَالَّذِينَ مَعَهُ فِي الْفُلْكِ وَأَغْرَقْنَا الَّذِينَ كَذَّبُواْ بِآيَاتِنَا إِنَّهُمْ كَانُواْ قَوْماً عَمِينَ ",{"$f":"F53","v":"المائدة"},{"$f":"G53","v":109},{"$f":"H53","v":"يوم يجمع الله الرسل"},{"$f":"I57","v":"الأنعام"},{"$f":"J57","v":94},{"$f":"K57","v":"وَلَقَدْ جِئْتُمُونَا فُرَادَى كَمَا خَلَقْنَاكُمْ أَوَّلَ مَرَّةٍ وَتَرَكْتُم مَّا خَوَّلْنَاكُمْ وَرَاء ظُهُورِكُمْ وَمَا نَرَى مَعَكُمْ شُفَعَاءكُمُ الَّذِينَ زَعَمْتُمْ أَنَّهُمْ فِيكُمْ شُرَكَاء لَقَد تَّقَطَّعَ بَيْنَكُمْ وَضَلَّ عَنكُم مَّا كُنتُمْ تَزْعُمُونَ "}]
[null,65,"التاسع",17,1,"الأعراف",88,"قال الملأ الذين استكبروا","الأعراف",116,"قَالَ أَلْقُوْاْ فَلَمَّا أَلْقَوْاْ سَحَرُواْ أَعْيُنَ النَّاسِ وَاسْتَرْهَبُوهُمْ وَجَاءوا بِسِحْرٍ عَظِيمٍ ","الأعراف",47,"وإذا صرفت أبصارهم","الأعراف",87,"وَإِن كَانَ طَآئِفَةٌ مِّنكُمْ آمَنُواْ بِالَّذِي أُرْسِلْتُ بِهِ وَطَآئِفَةٌ لَّمْ يْؤْمِنُواْ فَاصْبِرُواْ حَتَّى يَحْكُمَ اللّهُ بَيْنَنَا وَهُوَ خَيْرُ الْحَاكِمِينَ ",{"$f":"F58","v":"الأنعام"},{"$f":"G58","v":95},{"$f":"H58","v":"إن الله فالق الحب والنوى"},{"$f":"I62","v":"الأنعام"},{"$f":"J62","v":165},{"$f":"K62","v":"وَهُوَ الَّذِي جَعَلَكُمْ خَلاَئِفَ الأَرْضِ وَرَفَعَ بَعْضَكُمْ فَوْقَ بَعْضٍ دَرَجَاتٍ لِّيَبْلُوَكُمْ فِي مَا آتَاكُمْ إِنَّ رَبَّكَ سَرِيعُ الْعِقَابِ وَإِنَّهُ لَغَفُورٌ رَّحِيمٌ "}]
[null,66,"التاسع",null,2,"الأعراف",117,"وأوحينا إلى موسى","الأعراف",141,"وَإِذْ أَنجَيْنَاكُم مِّنْ آلِ فِرْعَونَ يَسُومُونَكُمْ سُوَءَ الْعَذَابِ يُقَتِّلُونَ أَبْنَاءكُمْ وَيَسْتَحْيُونَ نِسَاءكُمْ وَفِي ذَلِكُم بَلاء مِّن رَّبِّكُمْ عَظِيمٌ ","الأعراف",65,"وإلى عاد أخاهم هودا","الأعراف",116,"قَالَ أَلْقُوْاْ فَلَمَّا أَلْقَوْاْ سَحَرُواْ أَعْيُنَ النَّاسِ وَاسْتَرْهَبُوهُمْ وَجَاءوا بِسِحْرٍ عَظِيمٍ ",{"$f":"F63","v":"الأعراف"},{"$f":"G63","v":1},{"$f":"H63","v":"الــمــص"},{"$f":"I67","v":"الأعراف"},{"$f":"J67","v":116},{"$f":"K67","v":"قَالَ أَلْقُوْاْ فَلَمَّا أَلْقَوْاْ سَحَرُواْ أَعْيُنَ النَّاسِ وَاسْتَرْهَبُوهُمْ وَجَاءوا بِسِحْرٍ عَظِيمٍ "}]
[null,67,"التاسع",null,3,"الأعراف",142,"وواعدنا موسى ثلاثين ليلة","الأعراف",155,"وَاخْتَارَ مُوسَى قَوْمَهُ سَبْعِينَ رَجُلاً لِّمِيقَاتِنَا فَلَمَّا أَخَذَتْهُمُ الرَّجْفَةُ قَالَ رَبِّ لَوْ شِئْتَ أَهْلَكْتَهُم مِّن قَبْلُ وَإِيَّايَ أَتُهْلِكُنَا بِمَا فَعَلَ السُّفَهَاء مِنَّا إِنْ هِيَ إِلاَّ فِتْنَتُكَ تُضِلُّ بِهَا مَن تَشَاء وَتَهْدِي مَن تَشَاء أَنتَ وَلِيُّنَا فَاغْفِرْ لَنَا وَارْحَمْنَا وَأَنتَ خَيْرُ الْغَافِرِينَ ",{"$f":"F67","v":"الأعراف"},{"$f":"G67","v":88},{"$f":"H67","v":"قال الملأ الذين استكبروا"},"الأعراف",141,"وَإِذْ أَنجَيْنَاكُم مِّنْ آلِ فِرْعَونَ يَسُومُونَكُمْ سُوَءَ الْعَذَابِ يُقَتِّلُونَ أَبْنَاءكُمْ وَيَسْتَحْيُونَ نِسَاءكُمْ وَفِي ذَلِكُم بَلاء مِّن رَّبِّكُمْ عَظِيمٌ ",{"$f":"R56","v":"الفاتحة"},1,"بسم الله الرحمن الرحيم","البقرة",91,"وَإِذَا قِيلَ لَهُمْ آمِنُواْ بِمَا أَنزَلَ اللّهُ قَالُواْ نُؤْمِنُ بِمَآ أُنزِلَ عَلَيْنَا وَيَكْفُرونَ بِمَا وَرَاءهُ وَهُوَ الْحَقُّ مُصَدِّقاً لِّمَا مَعَهُمْ قُلْ فَلِمَ تَقْتُلُونَ أَنبِيَاء اللّهِ مِن قَبْلُ إِن كُنتُم مُّؤْمِنِينَ"]
[null,68,"التاسع",null,4,"الأعراف",156,"واكتب لنا فى هذه الدنيا","الأعراف",170,"وَالَّذِينَ يُمَسَّكُونَ بِالْكِتَابِ وَأَقَامُواْ الصَّلاَةَ إِنَّا لاَ نُضِيعُ أَجْرَ الْمُصْلِحِينَ ","الأعراف",117,"وأوحينا إلى موسى",{"$f":"I69","v":"الأعراف"},{"$f":"J69","v":155},{"$f":"K69","v":"وَاخْتَارَ مُوسَى قَوْمَهُ سَبْعِينَ رَجُلاً لِّمِيقَاتِنَا فَلَمَّا أَخَذَتْهُمُ الرَّجْفَةُ قَالَ رَبِّ لَوْ شِئْتَ أَهْلَكْتَهُم مِّن قَبْلُ وَإِيَّايَ أَتُهْلِكُنَا بِمَا فَعَلَ السُّفَهَاء مِنَّا إِنْ هِيَ إِلاَّ فِتْنَتُكَ تُضِلُّ بِهَا مَن تَشَاء وَتَهْدِي مَن تَشَاء أَنتَ وَلِيُّنَا فَاغْفِرْ لَنَا وَارْحَمْنَا وَأَنتَ خَيْرُ الْغَافِرِينَ "},{"$f":"R57","v":"البقرة"},92,"ولقد جاءكم موسى","البقرة",176,"ذَلِكَ بِأَنَّ اللّهَ نَزَّلَ الْكِتَابَ بِالْحَقِّ وَإِنَّ الَّذِينَ اخْتَلَفُواْ فِي الْكِتَابِ لَفِي شِقَاقٍ بَعِيدٍ"]
[null,69,"التاسع",18,5,"الأعراف",171,"وإذ نتقنا الجبل فوقهم","الأعراف",188,"قُل لاَّ أَمْلِكُ لِنَفْسِي نَفْعًا وَلاَ ضَرًّا إِلاَّ مَا شَاء اللّهُ وَلَوْ كُنتُ أَعْلَمُ الْغَيْبَ لاَسْتَكْثَرْتُ مِنَ الْخَيْرِ وَمَا مَسَّنِيَ السُّوءُ إِنْ أَنَاْ إِلاَّ نَذِيرٌ وَبَشِيرٌ لِّقَوْمٍ يُؤْمِنُونَ ","الأعراف",142,"وواعدنا موسى ثلاثين ليلة","الأعراف",170,"وَالَّذِينَ يُمَسَّكُونَ بِالْكِتَابِ وَأَقَامُواْ الصَّلاَةَ إِنَّا لاَ نُضِيعُ أَجْرَ الْمُصْلِحِينَ ",{"$f":"R58","v":"البقرة"},177,"ليس البر أن تولوا","البقرة",242,"كَذَلِكَ يُبَيِّنُ اللّهُ لَكُمْ آيَاتِهِ لَعَلَّكُمْ تَعْقِلُونَ"]
[null,70,"التاسع",null,6,"الأعراف",189,"هو الذى خلقكم من نفس","الأعراف",206,"إِنَّ الَّذِينَ عِندَ رَبِّكَ لاَ يَسْتَكْبِرُونَ عَنْ عِبَادَتِهِ وَيُسَبِّحُونَهُ وَلَهُ يَسْجُدُونَ ","الأعراف",156,"واكتب لنا فى هذه الدنيا","الأعراف",188,"قُل لاَّ أَمْلِكُ لِنَفْسِي نَفْعًا وَلاَ ضَرًّا إِلاَّ مَا شَاء اللّهُ وَلَوْ كُنتُ أَعْلَمُ الْغَيْبَ لاَسْتَكْثَرْتُ مِنَ الْخَيْرِ وَمَا مَسَّنِيَ السُّوءُ إِنْ أَنَاْ إِلاَّ نَذِيرٌ وَبَشِيرٌ لِّقَوْمٍ يُؤْمِنُونَ ",{"$f":"R59","v":"البقرة"},243,"الم تر إلى الذين خرجوا","آل عمران",14,"زُيِّنَ لِلنَّاسِ حُبُّ الشَّهَوَاتِ مِنَ النِّسَاء وَالْبَنِينَ وَالْقَنَاطِيرِ الْمُقَنطَرَةِ مِنَ الذَّهَبِ وَالْفِضَّةِ وَالْخَيْلِ الْمُسَوَّمَةِ وَالأَنْعَامِ وَالْحَرْثِ ذَلِكَ مَتَاعُ الْحَيَاةِ الدُّنْيَا وَاللّهُ عِندَهُ حُسْنُ الْمَآبِ "]
["الأنفال",71,"التاسع",null,7,"الأنفال",1,"يسألونك عن الأنفال","الأنفال",21,"وَلاَ تَكُونُواْ كَالَّذِينَ قَالُوا سَمِعْنَا وَهُمْ لاَ يَسْمَعُونَ ","الأعراف",171,"وإذ نتقنا الجبل فوقهم","الأعراف",206,"إِنَّ الَّذِينَ عِندَ رَبِّكَ لاَ يَسْتَكْبِرُونَ عَنْ عِبَادَتِهِ وَيُسَبِّحُونَهُ وَلَهُ يَسْجُدُونَ ",{"$f":"R60","v":"آل عمران"},15,"قل أؤنبئكم بخير","آل عمران",112,"ضُرِبَتْ عَلَيْهِمُ الذِّلَّةُ أَيْنَ مَا ثُقِفُواْ إِلاَّ بِحَبْلٍ مِّنْ اللّهِ وَحَبْلٍ مِّنَ النَّاسِ وَبَآؤُوا بِغَضَبٍ مِّنَ اللّهِ وَضُرِبَتْ عَلَيْهِمُ الْمَسْكَنَةُ ذَلِكَ بِأَنَّهُمْ كَانُواْ يَكْفُرُونَ بِآيَاتِ اللّهِ وَيَقْتُلُونَ الأَنبِيَاء بِغَيْرِ حَقٍّ ذَلِكَ بِمَا عَصَوا وَّكَانُواْ يَعْتَدُونَ "]
[null,72,"التاسع",null,8,"الأنفال",22,"إن شر الدواب عند الله","الأنفال",40,"وَإِن تَوَلَّوْاْ فَاعْلَمُواْ أَنَّ اللّهَ مَوْلاَكُمْ نِعْمَ الْمَوْلَى وَنِعْمَ النَّصِيرُ ","الأعراف",189,"هو الذى خلقكم من نفس","الأنفال",21,"وَلاَ تَكُونُواْ كَالَّذِينَ قَالُوا سَمِعْنَا وَهُمْ لاَ يَسْمَعُونَ ",{"$f":"R61","v":"آل عمران"},113,"ليسوا سواء","آل عمران",200,"يَا أَيُّهَا الَّذِينَ آمَنُواْ اصْبِرُواْ وَصَابِرُواْ وَرَابِطُواْ وَاتَّقُواْ اللّهَ لَعَلَّكُمْ تُفْلِحُونَ "]
[null,73,"العاشر",19,1,"الأنفال",41,"واعلموا إنما غنمتم من شئ","الأنفال",60,"وَأَعِدُّواْ لَهُم مَّا اسْتَطَعْتُم مِّن قُوَّةٍ وَمِن رِّبَاطِ الْخَيْلِ تُرْهِبُونَ بِهِ عَدْوَّ اللّهِ وَعَدُوَّكُمْ وَآخَرِينَ مِن دُونِهِمْ لاَ تَعْلَمُونَهُمُ اللّهُ يَعْلَمُهُمْ وَمَا تُنفِقُواْ مِن شَيْءٍ فِي سَبِيلِ اللّهِ يُوَفَّ إِلَيْكُمْ وَأَنتُمْ لاَ تُظْلَمُونَ ","الأنفال",1,"يسألونك عن الأنفال","الأنفال",40,"وَإِن تَوَلَّوْاْ فَاعْلَمُواْ أَنَّ اللّهَ مَوْلاَكُمْ نِعْمَ الْمَوْلَى وَنِعْمَ النَّصِيرُ ",{"$f":"R62","v":"النساء"},1,"ياأيها الناس اتقوا ربكم","النساء",73,"وَلَئِنْ أَصَابَكُمْ فَضْلٌ مِّنَ الله لَيَقُولَنَّ كَأَن لَّمْ تَكُن بَيْنَكُمْ وَبَيْنَهُ مَوَدَّةٌ يَا لَيتَنِي كُنتُ مَعَهُمْ فَأَفُوزَ فَوْزًا عَظِيمًا "]
[null,74,"العاشر",null,2,"الأنفال",61,"وإن جنحوا للسلم","الأنفال",75,"وَالَّذِينَ آمَنُواْ مِن بَعْدُ وَهَاجَرُواْ وَجَاهَدُواْ مَعَكُمْ فَأُوْلَـئِكَ مِنكُمْ وَأُوْلُواْ الأَرْحَامِ بَعْضُهُمْ أَوْلَى بِبَعْضٍ فِي كِتَابِ اللّهِ إِنَّ اللّهَ بِكُلِّ شَيْءٍ عَلِيمٌ ","الأنفال",22,"إن شر الدواب عند الله","الأنفال",60,"وَأَعِدُّواْ لَهُم مَّا اسْتَطَعْتُم مِّن قُوَّةٍ وَمِن رِّبَاطِ الْخَيْلِ تُرْهِبُونَ بِهِ عَدْوَّ اللّهِ وَعَدُوَّكُمْ وَآخَرِينَ مِن دُونِهِمْ لاَ تَعْلَمُونَهُمُ اللّهُ يَعْلَمُهُمْ وَمَا تُنفِقُواْ مِن شَيْءٍ فِي سَبِيلِ اللّهِ يُوَفَّ إِلَيْكُمْ وَأَنتُمْ لاَ تُظْلَمُونَ ",{"$f":"R63","v":"النساء"},74,"فليقاتل فى سبيل الله","النساء",147,"مَّا يَفْعَلُ اللّهُ بِعَذَابِكُمْ إِن شَكَرْتُمْ وَآمَنتُمْ وَكَانَ اللّهُ شَاكِرًا عَلِيمًا "]
["التوبة",75,"العاشر",null,3,"التوبة",1,"براءة من الله ورسوله","التوبة",18,"إِنَّمَا يَعْمُرُ مَسَاجِدَ اللّهِ مَنْ آمَنَ بِاللّهِ وَالْيَوْمِ الآخِرِ وَأَقَامَ الصَّلاَةَ وَآتَى الزَّكَاةَ وَلَمْ يَخْشَ إِلاَّ اللّهَ فَعَسَى أُوْلَـئِكَ أَن يَكُونُواْ مِنَ الْمُهْتَدِينَ ","الأنفال",41,"واعلموا إنما غنمتم من شئ","الأنفال",75,"وَالَّذِينَ آمَنُواْ مِن بَعْدُ وَهَاجَرُواْ وَجَاهَدُواْ مَعَكُمْ فَأُوْلَـئِكَ مِنكُمْ وَأُوْلُواْ الأَرْحَامِ بَعْضُهُمْ أَوْلَى بِبَعْضٍ فِي كِتَابِ اللّهِ إِنَّ اللّهَ بِكُلِّ شَيْءٍ عَلِيمٌ ",{"$f":"R64","v":"النساء"},148,"لايحب الله الجهر بالسوء","المائدة",40,"أَلَمْ تَعْلَمْ أَنَّ اللّهَ لَهُ مُلْكُ السَّمَاوَاتِ وَالأَرْضِ يُعَذِّبُ مَن يَشَاء وَيَغْفِرُ لِمَن يَشَاء وَاللّهُ عَلَى كُلِّ شَيْءٍ قَدِيرٌ "]
[null,76,"العاشر",null,4,"التوبة",19,"أجعلتم سقاية الحاج","التوبة",33,"هُوَ الَّذِي أَرْسَلَ رَسُولَهُ بِالْهُدَى وَدِينِ الْحَقِّ لِيُظْهِرَهُ عَلَى الدِّينِ كُلِّهِ وَلَوْ كَرِهَ الْمُشْرِكُونَ ","الأنفال",61,"وإن جنحوا للسلم","التوبة",18,"إِنَّمَا يَعْمُرُ مَسَاجِدَ اللّهِ مَنْ آمَنَ بِاللّهِ وَالْيَوْمِ الآخِرِ وَأَقَامَ الصَّلاَةَ وَآتَى الزَّكَاةَ وَلَمْ يَخْشَ إِلاَّ اللّهَ فَعَسَى أُوْلَـئِكَ أَن يَكُونُواْ مِنَ الْمُهْتَدِينَ ",{"$f":"R65","v":"المائدة"},41,"ياأيها الرسول لا يحزنك","المائدة",108,"ذَلِكَ أَدْنَى أَن يَأْتُواْ بِالشَّهَادَةِ عَلَى وَجْهِهَا أَوْ يَخَافُواْ أَن تُرَدَّ أَيْمَانٌ بَعْدَ أَيْمَانِهِمْ وَاتَّقُوا اللّهَ وَاسْمَعُواْ وَاللّهُ لاَ يَهْدِي الْقَوْمَ الْفَاسِقِينَ "]
[null,77,"العاشر",20,5,"التوبة",34,"ياأيها الذين آمنوا","التوبة",45,"إِنَّمَا يَسْتَأْذِنُكَ الَّذِينَ لاَ يُؤْمِنُونَ بِاللّهِ وَالْيَوْمِ الآخِرِ وَارْتَابَتْ قُلُوبُهُمْ فَهُمْ فِي رَيْبِهِمْ يَتَرَدَّدُونَ ","التوبة",1,"براءة من الله ورسوله","التوبة",33,"هُوَ الَّذِي أَرْسَلَ رَسُولَهُ بِالْهُدَى وَدِينِ الْحَقِّ لِيُظْهِرَهُ عَلَى الدِّينِ كُلِّهِ وَلَوْ كَرِهَ الْمُشْرِكُونَ ",{"$f":"R66","v":"المائدة"},109,"يوم يجمع الله الرسل","الأنعام",94,"وَلَقَدْ جِئْتُمُونَا فُرَادَى كَمَا خَلَقْنَاكُمْ أَوَّلَ مَرَّةٍ وَتَرَكْتُم مَّا خَوَّلْنَاكُمْ وَرَاء ظُهُورِكُمْ وَمَا نَرَى مَعَكُمْ شُفَعَاءكُمُ الَّذِينَ زَعَمْتُمْ أَنَّهُمْ فِيكُمْ شُرَكَاء لَقَد تَّقَطَّعَ بَيْنَكُمْ وَضَلَّ عَنكُم مَّا كُنتُمْ تَزْعُمُونَ "]
[null,78,"العاشر",null,6,"التوبة",46,"ولو أرادوا الخروج لأعدوا","التوبة",59,"وَلَوْ أَنَّهُمْ رَضُوْاْ مَا آتَاهُمُ اللّهُ وَرَسُولُهُ وَقَالُواْ حَسْبُنَا اللّهُ سَيُؤْتِينَا اللّهُ مِن فَضْلِهِ وَرَسُولُهُ إِنَّا إِلَى اللّهِ رَاغِبُونَ ","التوبة",19,"أجعلتم سقاية الحاج","التوبة",45,"إِنَّمَا يَسْتَأْذِنُكَ الَّذِينَ لاَ يُؤْمِنُونَ بِاللّهِ وَالْيَوْمِ الآخِرِ وَارْتَابَتْ قُلُوبُهُمْ فَهُمْ فِي رَيْبِهِمْ يَتَرَدَّدُونَ ",{"$f":"R67","v":"الأنعام"},95,"إن الله فالق الحب والنوى","الأنعام",165,"وَهُوَ الَّذِي جَعَلَكُمْ خَلاَئِفَ الأَرْضِ وَرَفَعَ بَعْضَكُمْ فَوْقَ بَعْضٍ دَرَجَاتٍ لِّيَبْلُوَكُمْ فِي مَا آتَاكُمْ إِنَّ رَبَّكَ سَرِيعُ الْعِقَابِ وَإِنَّهُ لَغَفُورٌ رَّحِيمٌ "]
[null,79,"العاشر",null,7,"التوبة",60,"إنما الصدقات للفقراء","التوبة",74,"يَحْلِفُونَ بِاللّهِ مَا قَالُواْ وَلَقَدْ قَالُواْ كَلِمَةَ الْكُفْرِ وَكَفَرُواْ بَعْدَ إِسْلاَمِهِمْ وَهَمُّواْ بِمَا لَمْ يَنَالُواْ وَمَا نَقَمُواْ إِلاَّ أَنْ أَغْنَاهُمُ اللّهُ وَرَسُولُهُ مِن فَضْلِهِ فَإِن يَتُوبُواْ يَكُ خَيْرًا لَّهُمْ وَإِن يَتَوَلَّوْا يُعَذِّبْهُمُ اللّهُ عَذَابًا أَلِيمًا فِي الدُّنْيَا وَالآخِرَةِ وَمَا لَهُمْ فِي الأَرْضِ مِن وَلِيٍّ وَلاَ نَصِيرٍ ","التوبة",34,"ياأيها الذين آمنوا","التوبة",59,"وَلَوْ أَنَّهُمْ رَضُوْاْ مَا آتَاهُمُ اللّهُ وَرَسُولُهُ وَقَالُواْ حَسْبُنَا اللّهُ سَيُؤْتِينَا اللّهُ مِن فَضْلِهِ وَرَسُولُهُ إِنَّا إِلَى اللّهِ رَاغِبُونَ ",{"$f":"R68","v":"الأعراف"},1,"الــمــص","الأعراف",116,"قَالَ أَلْقُوْاْ فَلَمَّا أَلْقَوْاْ سَحَرُواْ أَعْيُنَ النَّاسِ وَاسْتَرْهَبُوهُمْ وَجَاءوا بِسِحْرٍ عَظِيمٍ "]
[null,80,"العاشر",null,8,"التوبة",75,"ومنهم من عاهد الله","التوبة",92,"وَلاَ عَلَى الَّذِينَ إِذَا مَا أَتَوْكَ لِتَحْمِلَهُمْ قُلْتَ لاَ أَجِدُ مَا أَحْمِلُكُمْ عَلَيْهِ تَوَلَّواْ وَّأَعْيُنُهُمْ تَفِيضُ مِنَ الدَّمْعِ حَزَنًا أَلاَّ يَجِدُواْ مَا يُنفِقُونَ ","التوبة",46,"ولو أرادوا الخروج لأعدوا","التوبة",74,"يَحْلِفُونَ بِاللّهِ مَا قَالُواْ وَلَقَدْ قَالُواْ كَلِمَةَ الْكُفْرِ وَكَفَرُواْ بَعْدَ إِسْلاَمِهِمْ وَهَمُّواْ بِمَا لَمْ يَنَالُواْ وَمَا نَقَمُواْ إِلاَّ أَنْ أَغْنَاهُمُ اللّهُ وَرَسُولُهُ مِن فَضْلِهِ فَإِن يَتُوبُواْ يَكُ خَيْرًا لَّهُمْ وَإِن يَتَوَلَّوْا يُعَذِّبْهُمُ اللّهُ عَذَابًا أَلِيمًا فِي الدُّنْيَا وَالآخِرَةِ وَمَا لَهُمْ فِي الأَرْضِ مِن وَلِيٍّ وَلاَ نَصِيرٍ ",{"$f":"F68","v":"الأعراف"},{"$f":"G68","v":117},{"$f":"H68","v":"وأوحينا إلى موسى"},{"$f":"I72","v":"الأعراف"},{"$f":"J72","v":206},{"$f":"K72","v":"إِنَّ الَّذِينَ عِندَ رَبِّكَ لاَ يَسْتَكْبِرُونَ عَنْ عِبَادَتِهِ وَيُسَبِّحُونَهُ وَلَهُ يَسْجُدُونَ "}]
[null,81,"الحادى عشر",21,1,"التوبة",93,"إنما السبيل على الذين","التوبة",110,"لاَ يَزَالُ بُنْيَانُهُمُ الَّذِي بَنَوْاْ رِيبَةً فِي قُلُوبِهِمْ إِلاَّ أَن تَقَطَّعَ قُلُوبُهُمْ وَاللّهُ عَلِيمٌ حَكِيمٌ ","التوبة",60,"إنما الصدقات للفقراء","التوبة",92,"وَلاَ عَلَى الَّذِينَ إِذَا مَا أَتَوْكَ لِتَحْمِلَهُمْ قُلْتَ لاَ أَجِدُ مَا أَحْمِلُكُمْ عَلَيْهِ تَوَلَّواْ وَّأَعْيُنُهُمْ تَفِيضُ مِنَ الدَّمْعِ حَزَنًا أَلاَّ يَجِدُواْ مَا يُنفِقُونَ ",{"$f":"F73","v":"الأنفال"},{"$f":"G73","v":1},{"$f":"H73","v":"يسألونك عن الأنفال"},{"$f":"I77","v":"التوبة"},{"$f":"J77","v":18},{"$f":"K77","v":"إِنَّمَا يَعْمُرُ مَسَاجِدَ اللّهِ مَنْ آمَنَ بِاللّهِ وَالْيَوْمِ الآخِرِ وَأَقَامَ الصَّلاَةَ وَآتَى الزَّكَاةَ وَلَمْ يَخْشَ إِلاَّ اللّهَ فَعَسَى أُوْلَـئِكَ أَن يَكُونُواْ مِنَ الْمُهْتَدِينَ "}]
[null,82,"الحادى عشر",null,2,"التوبة",111,"إن الله اشترى من المؤمنين","التوبة",121,"وَلاَ يُنفِقُونَ نَفَقَةً صَغِيرَةً وَلاَ كَبِيرَةً وَلاَ يَقْطَعُونَ وَادِيًا إِلاَّ كُتِبَ لَهُمْ لِيَجْزِيَهُمُ اللّهُ أَحْسَنَ مَا كَانُواْ يَعْمَلُونَ ","التوبة",75,"ومنهم من عاهد الله","التوبة",110,"لاَ يَزَالُ بُنْيَانُهُمُ الَّذِي بَنَوْاْ رِيبَةً فِي قُلُوبِهِمْ إِلاَّ أَن تَقَطَّعَ قُلُوبُهُمْ وَاللّهُ عَلِيمٌ حَكِيمٌ ",{"$f":"F78","v":"التوبة"},{"$f":"G78","v":19},{"$f":"H78","v":"أجعلتم سقاية الحاج"},{"$f":"I82","v":"التوبة"},{"$f":"J82","v":92},{"$f":"K82","v":"وَلاَ عَلَى الَّذِينَ إِذَا مَا أَتَوْكَ لِتَحْمِلَهُمْ قُلْتَ لاَ أَجِدُ مَا أَحْمِلُكُمْ عَلَيْهِ تَوَلَّواْ وَّأَعْيُنُهُمْ تَفِيضُ مِنَ الدَّمْعِ حَزَنًا أَلاَّ يَجِدُواْ مَا يُنفِقُونَ "}]
[null,83,"الحادى عشر",null,3,"التوبة",122,"وما كان المؤمنون لينفروا","يونس",10,"دَعْوَاهُمْ فِيهَا سُبْحَانَكَ اللَّهُمَّ وَتَحِيَّتُهُمْ فِيهَا سَلاَمٌ وَآخِرُ دَعْوَاهُمْ أَنِ الْحَمْدُ لِلّهِ رَبِّ الْعَالَمِينَ ","التوبة",93,"إنما السبيل على الذين","التوبة",121,"وَلاَ يُنفِقُونَ نَفَقَةً صَغِيرَةً وَلاَ كَبِيرَةً وَلاَ يَقْطَعُونَ وَادِيًا إِلاَّ كُتِبَ لَهُمْ لِيَجْزِيَهُمُ اللّهُ أَحْسَنَ مَا كَانُواْ يَعْمَلُونَ ",{"$f":"R69","v":"الفاتحة"},1,"بسم الله الرحمن الرحيم","البقرة",91,"وَإِذَا قِيلَ لَهُمْ آمِنُواْ بِمَا أَنزَلَ اللّهُ قَالُواْ نُؤْمِنُ بِمَآ أُنزِلَ عَلَيْنَا وَيَكْفُرونَ بِمَا وَرَاءهُ وَهُوَ الْحَقُّ مُصَدِّقاً لِّمَا مَعَهُمْ قُلْ فَلِمَ تَقْتُلُونَ أَنبِيَاء اللّهِ مِن قَبْلُ إِن كُنتُم مُّؤْمِنِينَ"]
["يونس",84,"الحادى عشر",null,4,"يونس",11,"ولو يعجل الله للناس","يونس",25,"وَاللّهُ يَدْعُو إِلَى دَارِ السَّلاَمِ وَيَهْدِي مَن يَشَاء إِلَى صِرَاطٍ مُّسْتَقِيمٍ ","التوبة",111,"إن الله اشترى من المؤمنين","يونس",10,"دَعْوَاهُمْ فِيهَا سُبْحَانَكَ اللَّهُمَّ وَتَحِيَّتُهُمْ فِيهَا سَلاَمٌ وَآخِرُ دَعْوَاهُمْ أَنِ الْحَمْدُ لِلّهِ رَبِّ الْعَالَمِينَ ",{"$f":"R70","v":"البقرة"},92,"ولقد جاءكم موسى","البقرة",176,"ذَلِكَ بِأَنَّ اللّهَ نَزَّلَ الْكِتَابَ بِالْحَقِّ وَإِنَّ الَّذِينَ اخْتَلَفُواْ فِي الْكِتَابِ لَفِي شِقَاقٍ بَعِيدٍ"]
[null,85,"الحادى عشر",22,5,"يونس",26,"للذين أحسنوا الحسنى وزيادة","يونس",52,"ثُمَّ قِيلَ لِلَّذِينَ ظَلَمُواْ ذُوقُواْ عَذَابَ الْخُلْدِ هَلْ تُجْزَوْنَ إِلاَّ بِمَا كُنتُمْ تَكْسِبُونَ ","التوبة",122,"وما كان المؤمنون لينفروا","يونس",25,"وَاللّهُ يَدْعُو إِلَى دَارِ السَّلاَمِ وَيَهْدِي مَن يَشَاء إِلَى صِرَاطٍ مُّسْتَقِيمٍ ",{"$f":"R71","v":"البقرة"},177,"ليس البر أن تولوا","البقرة",242,"كَذَلِكَ يُبَيِّنُ اللّهُ لَكُمْ آيَاتِهِ لَعَلَّكُمْ تَعْقِلُونَ"]
[null,86,"الحادى عشر",null,6,"يونس",53,"ويستنبئونك أحق هو","يونس",70,"مَتَاعٌ فِي الدُّنْيَا ثُمَّ إِلَيْنَا مَرْجِعُهُمْ ثُمَّ نُذِيقُهُمُ الْعَذَابَ الشَّدِيدَ بِمَا كَانُواْ يَكْفُرُونَ ","يونس",11,"ولو يعجل الله للناس","يونس",52,"ثُمَّ قِيلَ لِلَّذِينَ ظَلَمُواْ ذُوقُواْ عَذَابَ الْخُلْدِ هَلْ تُجْزَوْنَ إِلاَّ بِمَا كُنتُمْ تَكْسِبُونَ ",{"$f":"R72","v":"البقرة"},243,"الم تر إلى الذين خرجوا","آل عمران",14,"زُيِّنَ لِلنَّاسِ حُبُّ الشَّهَوَاتِ مِنَ النِّسَاء وَالْبَنِينَ وَالْقَنَاطِيرِ الْمُقَنطَرَةِ مِنَ الذَّهَبِ وَالْفِضَّةِ وَالْخَيْلِ الْمُسَوَّمَةِ وَالأَنْعَامِ وَالْحَرْثِ ذَلِكَ مَتَاعُ الْحَيَاةِ الدُّنْيَا وَاللّهُ عِندَهُ حُسْنُ الْمَآبِ "]
[null,87,"الحادى عشر",null,7,"يونس",71,"واتل عليهم نبأ نوح","يونس",89,"قَالَ قَدْ أُجِيبَت دَّعْوَتُكُمَا فَاسْتَقِيمَا وَلاَ تَتَّبِعَآنِّ سَبِيلَ الَّذِينَ لاَ يَعْلَمُونَ ","يونس",26,"للذين أحسنوا الحسنى وزيادة","يونس",70,"مَتَاعٌ فِي الدُّنْيَا ثُمَّ إِلَيْنَا مَرْجِعُهُمْ ثُمَّ نُذِيقُهُمُ الْعَذَابَ الشَّدِيدَ بِمَا كَانُواْ يَكْفُرُونَ ",{"$f":"R73","v":"آل عمران"},15,"قل أؤنبئكم بخير","آل عمران",112,"ضُرِبَتْ عَلَيْهِمُ الذِّلَّةُ أَيْنَ مَا ثُقِفُواْ إِلاَّ بِحَبْلٍ مِّنْ اللّهِ وَحَبْلٍ مِّنَ النَّاسِ وَبَآؤُوا بِغَضَبٍ مِّنَ اللّهِ وَضُرِبَتْ عَلَيْهِمُ الْمَسْكَنَةُ ذَلِكَ بِأَنَّهُمْ كَانُواْ يَكْفُرُونَ بِآيَاتِ اللّهِ وَيَقْتُلُونَ الأَنبِيَاء بِغَيْرِ حَقٍّ ذَلِكَ بِمَا عَصَوا وَّكَانُواْ يَعْتَدُونَ "]
[null,88,"الحادى عشر",null,8,"يونس",90,"وجاوزنا ببنى إسرائيل","هود",5,"أَلا إِنَّهُمْ يَثْنُونَ صُدُورَهُمْ لِيَسْتَخْفُواْ مِنْهُ أَلا حِينَ يَسْتَغْشُونَ ثِيَابَهُمْ يَعْلَمُ مَا يُسِرُّونَ وَمَا يُعْلِنُونَ إِنَّهُ عَلِيمٌ بِذَاتِ الصُّدُورِ ","يونس",53,"ويستنبئونك أحق هو","يونس",89,"قَالَ قَدْ أُجِيبَت دَّعْوَتُكُمَا فَاسْتَقِيمَا وَلاَ تَتَّبِعَآنِّ سَبِيلَ الَّذِينَ لاَ يَعْلَمُونَ ",{"$f":"R74","v":"آل عمران"},113,"ليسوا سواء","آل عمران",200,"يَا أَيُّهَا الَّذِينَ آمَنُواْ اصْبِرُواْ وَصَابِرُواْ وَرَابِطُواْ وَاتَّقُواْ اللّهَ لَعَلَّكُمْ تُفْلِحُونَ "]
["هود",89,"الثانى عشر",23,1,"هود",6,"وما من دابة فى الأرض","هود",23,"إِنَّ الَّذِينَ آمَنُواْ وَعَمِلُواْ الصَّالِحَاتِ وَأَخْبَتُواْ إِلَى رَبِّهِمْ أُوْلَـئِكَ أَصْحَابُ الجَنَّةِ هُمْ فِيهَا خَالِدُونَ ","يونس",71,"واتل عليهم نبأ نوح","هود",5,"أَلا إِنَّهُمْ يَثْنُونَ صُدُورَهُمْ لِيَسْتَخْفُواْ مِنْهُ أَلا حِينَ يَسْتَغْشُونَ ثِيَابَهُمْ يَعْلَمُ مَا يُسِرُّونَ وَمَا يُعْلِنُونَ إِنَّهُ عَلِيمٌ بِذَاتِ الصُّدُورِ ",{"$f":"R75","v":"النساء"},1,"ياأيها الناس اتقوا ربكم","النساء",73,"وَلَئِنْ أَصَابَكُمْ فَضْلٌ مِّنَ الله لَيَقُولَنَّ كَأَن لَّمْ تَكُن بَيْنَكُمْ وَبَيْنَهُ مَوَدَّةٌ يَا لَيتَنِي كُنتُ مَعَهُمْ فَأَفُوزَ فَوْزًا عَظِيمًا "]
[null,90,"الثانى عشر",null,2,"هود",24,"مثل الفريقين كالأعمى والأصم","هود",40,"حَتَّى إِذَا جَاء أَمْرُنَا وَفَارَ التَّنُّورُ قُلْنَا احْمِلْ فِيهَا مِن كُلٍّ زَوْجَيْنِ اثْنَيْنِ وَأَهْلَكَ إِلاَّ مَن سَبَقَ عَلَيْهِ الْقَوْلُ وَمَنْ آمَنَ وَمَا آمَنَ مَعَهُ إِلاَّ قَلِيلٌ ","يونس",90,"وجاوزنا ببنى إسرائيل","هود",23,"إِنَّ الَّذِينَ آمَنُواْ وَعَمِلُواْ الصَّالِحَاتِ وَأَخْبَتُواْ إِلَى رَبِّهِمْ أُوْلَـئِكَ أَصْحَابُ الجَنَّةِ هُمْ فِيهَا خَالِدُونَ ",{"$f":"R76","v":"النساء"},74,"فليقاتل فى سبيل الله","النساء",147,"مَّا يَفْعَلُ اللّهُ بِعَذَابِكُمْ إِن شَكَرْتُمْ وَآمَنتُمْ وَكَانَ اللّهُ شَاكِرًا عَلِيمًا "]
[null,91,"الثانى عشر",null,3,"هود",41,"وقال اركبوا فيها بسم الله","هود",60,"وَأُتْبِعُواْ فِي هَـذِهِ الدُّنْيَا لَعْنَةً وَيَوْمَ الْقِيَامَةِ أَلا إِنَّ عَادًا كَفَرُواْ رَبَّهُمْ أَلاَ بُعْدًا لِّعَادٍ قَوْمِ هُودٍ ","هود",6,"وما من دابة فى الأرض","هود",40,"حَتَّى إِذَا جَاء أَمْرُنَا وَفَارَ التَّنُّورُ قُلْنَا احْمِلْ فِيهَا مِن كُلٍّ زَوْجَيْنِ اثْنَيْنِ وَأَهْلَكَ إِلاَّ مَن سَبَقَ عَلَيْهِ الْقَوْلُ وَمَنْ آمَنَ وَمَا آمَنَ مَعَهُ إِلاَّ قَلِيلٌ ",{"$f":"R77","v":"النساء"},148,"لايحب الله الجهر بالسوء","المائدة",40,"أَلَمْ تَعْلَمْ أَنَّ اللّهَ لَهُ مُلْكُ السَّمَاوَاتِ وَالأَرْضِ يُعَذِّبُ مَن يَشَاء وَيَغْفِرُ لِمَن يَشَاء وَاللّهُ عَلَى كُلِّ شَيْءٍ قَدِيرٌ "]
[null,92,"الثانى عشر",null,4,"هود",61,"وإلى  ثمود أخاهم صالحا","هود",83,"مُّسَوَّمَةً عِندَ رَبِّكَ وَمَا هِيَ مِنَ الظَّالِمِينَ بِبَعِيدٍ ","هود",24,"مثل الفريقين كالأعمى والأصم","هود",60,"وَأُتْبِعُواْ فِي هَـذِهِ الدُّنْيَا لَعْنَةً وَيَوْمَ الْقِيَامَةِ أَلا إِنَّ عَادًا كَفَرُواْ رَبَّهُمْ أَلاَ بُعْدًا لِّعَادٍ قَوْمِ هُودٍ ",{"$f":"R78","v":"المائدة"},41,"ياأيها الرسول لا يحزنك","المائدة",108,"ذَلِكَ أَدْنَى أَن يَأْتُواْ بِالشَّهَادَةِ عَلَى وَجْهِهَا أَوْ يَخَافُواْ أَن تُرَدَّ أَيْمَانٌ بَعْدَ أَيْمَانِهِمْ وَاتَّقُوا اللّهَ وَاسْمَعُواْ وَاللّهُ لاَ يَهْدِي الْقَوْمَ الْفَاسِقِينَ "]
[null,93,"الثانى عشر",24,5,"هود",84,"وإلى مدين أخاهم شعيبا","هود",107,"خَالِدِينَ فِيهَا مَا دَامَتِ السَّمَاوَاتُ وَالأَرْضُ إِلاَّ مَا شَاء رَبُّكَ إِنَّ رَبَّكَ فَعَّالٌ لِّمَا يُرِيدُ ","هود",41,"وقال اركبوا فيها بسم الله","هود",83,"مُّسَوَّمَةً عِندَ رَبِّكَ وَمَا هِيَ مِنَ الظَّالِمِينَ بِبَعِيدٍ ",{"$f":"R79","v":"المائدة"},109,"يوم يجمع الله الرسل","الأنعام",94,"وَلَقَدْ جِئْتُمُونَا فُرَادَى كَمَا خَلَقْنَاكُمْ أَوَّلَ مَرَّةٍ وَتَرَكْتُم مَّا خَوَّلْنَاكُمْ وَرَاء ظُهُورِكُمْ وَمَا نَرَى مَعَكُمْ شُفَعَاءكُمُ الَّذِينَ زَعَمْتُمْ أَنَّهُمْ فِيكُمْ شُرَكَاء لَقَد تَّقَطَّعَ بَيْنَكُمْ وَضَلَّ عَنكُم مَّا كُنتُمْ تَزْعُمُونَ "]
[null,94,"الثانى عشر",null,6,"هود",108,"وأما الذين سعدوا","يوسف",6,"وَكَذَلِكَ يَجْتَبِيكَ رَبُّكَ وَيُعَلِّمُكَ مِن تَأْوِيلِ الأَحَادِيثِ وَيُتِمُّ نِعْمَتَهُ عَلَيْكَ وَعَلَى آلِ يَعْقُوبَ كَمَا أَتَمَّهَا عَلَى أَبَوَيْكَ مِن قَبْلُ إِبْرَاهِيمَ وَإِسْحَقَ إِنَّ رَبَّكَ عَلِيمٌ حَكِيمٌ ","هود",61,"وإلى  ثمود أخاهم صالحا","هود",107,"خَالِدِينَ فِيهَا مَا دَامَتِ السَّمَاوَاتُ وَالأَرْضُ إِلاَّ مَا شَاء رَبُّكَ إِنَّ رَبَّكَ فَعَّالٌ لِّمَا يُرِيدُ ",{"$f":"R80","v":"الأنعام"},95,"إن الله فالق الحب والنوى","الأنعام",165,"وَهُوَ الَّذِي جَعَلَكُمْ خَلاَئِفَ الأَرْضِ وَرَفَعَ بَعْضَكُمْ فَوْقَ بَعْضٍ دَرَجَاتٍ لِّيَبْلُوَكُمْ فِي مَا آتَاكُمْ إِنَّ رَبَّكَ سَرِيعُ الْعِقَابِ وَإِنَّهُ لَغَفُورٌ رَّحِيمٌ "]
["يوسف",95,"الثانى عشر",null,7,"يوسف",7,"لقد كان فى يوسف","يوسف",29,"يُوسُفُ أَعْرِضْ عَنْ هَـذَا وَاسْتَغْفِرِي لِذَنبِكِ إِنَّكِ كُنتِ مِنَ الْخَاطِئِينَ ","هود",84,"وإلى مدين أخاهم شعيبا","يوسف",6,"وَكَذَلِكَ يَجْتَبِيكَ رَبُّكَ وَيُعَلِّمُكَ مِن تَأْوِيلِ الأَحَادِيثِ وَيُتِمُّ نِعْمَتَهُ عَلَيْكَ وَعَلَى آلِ يَعْقُوبَ كَمَا أَتَمَّهَا عَلَى أَبَوَيْكَ مِن قَبْلُ إِبْرَاهِيمَ وَإِسْحَقَ إِنَّ رَبَّكَ عَلِيمٌ حَكِيمٌ ",{"$f":"R81","v":"الأعراف"},1,"الــمــص","الأعراف",116,"قَالَ أَلْقُوْاْ فَلَمَّا أَلْقَوْاْ سَحَرُواْ أَعْيُنَ النَّاسِ وَاسْتَرْهَبُوهُمْ وَجَاءوا بِسِحْرٍ عَظِيمٍ "]
[null,96,"الثانى عشر",null,8,"يوسف",30,"وقال نسوة فى المدينة","يوسف",52,"ذَلِكَ لِيَعْلَمَ أَنِّي لَمْ أَخُنْهُ بِالْغَيْبِ وَأَنَّ اللّهَ لاَ يَهْدِي كَيْدَ الْخَائِنِينَ ","هود",108,"وأما الذين سعدوا","يوسف",29,"يُوسُفُ أَعْرِضْ عَنْ هَـذَا وَاسْتَغْفِرِي لِذَنبِكِ إِنَّكِ كُنتِ مِنَ الْخَاطِئِينَ ",{"$f":"R82","v":"الأعراف"},117,"وأوحينا إلى موسى","الأعراف",206,"إِنَّ الَّذِينَ عِندَ رَبِّكَ لاَ يَسْتَكْبِرُونَ عَنْ عِبَادَتِهِ وَيُسَبِّحُونَهُ وَلَهُ يَسْجُدُونَ "]
[null,97,"الثالث عشر",25,1,"يوسف",53,"وما أبرىء نفسى","يوسف",76,"فَبَدَأَ بِأَوْعِيَتِهِمْ قَبْلَ وِعَاء أَخِيهِ ثُمَّ اسْتَخْرَجَهَا مِن وِعَاء أَخِيهِ كَذَلِكَ كِدْنَا لِيُوسُفَ مَا كَانَ لِيَأْخُذَ أَخَاهُ فِي دِينِ الْمَلِكِ إِلاَّ أَن يَشَاء اللّهُ نَرْفَعُ دَرَجَاتٍ مِّن نَّشَاء وَفَوْقَ كُلِّ ذِي عِلْمٍ عَلِيمٌ ","يوسف",7,"لقد كان فى يوسف","يوسف",52,"ذَلِكَ لِيَعْلَمَ أَنِّي لَمْ أَخُنْهُ بِالْغَيْبِ وَأَنَّ اللّهَ لاَ يَهْدِي كَيْدَ الْخَائِنِينَ ",{"$f":"R83","v":"الأنفال"},1,"يسألونك عن الأنفال","التوبة",18,"إِنَّمَا يَعْمُرُ مَسَاجِدَ اللّهِ مَنْ آمَنَ بِاللّهِ وَالْيَوْمِ الآخِرِ وَأَقَامَ الصَّلاَةَ وَآتَى الزَّكَاةَ وَلَمْ يَخْشَ إِلاَّ اللّهَ فَعَسَى أُوْلَـئِكَ أَن يَكُونُواْ مِنَ الْمُهْتَدِينَ "]
[null,98,"الثالث عشر",null,2,"يوسف",77,"قالوا إن يسرق","يوسف",100,"وَرَفَعَ أَبَوَيْهِ عَلَى الْعَرْشِ وَخَرُّواْ لَهُ سُجَّدًا وَقَالَ يَا أَبَتِ هَـذَا تَأْوِيلُ رُؤْيَايَ مِن قَبْلُ قَدْ جَعَلَهَا رَبِّي حَقًّا وَقَدْ أَحْسَنَ بَي إِذْ أَخْرَجَنِي مِنَ السِّجْنِ وَجَاء بِكُم مِّنَ الْبَدْوِ مِن بَعْدِ أَن نَّزغَ الشَّيْطَانُ بَيْنِي وَبَيْنَ إِخْوَتِي إِنَّ رَبِّي لَطِيفٌ لِّمَا يَشَاء إِنَّهُ هُوَ الْعَلِيمُ الْحَكِيمُ ","يوسف",30,"وقال نسوة فى المدينة","يوسف",76,"فَبَدَأَ بِأَوْعِيَتِهِمْ قَبْلَ وِعَاء أَخِيهِ ثُمَّ اسْتَخْرَجَهَا مِن وِعَاء أَخِيهِ كَذَلِكَ كِدْنَا لِيُوسُفَ مَا كَانَ لِيَأْخُذَ أَخَاهُ فِي دِينِ الْمَلِكِ إِلاَّ أَن يَشَاء اللّهُ نَرْفَعُ دَرَجَاتٍ مِّن نَّشَاء وَفَوْقَ كُلِّ ذِي عِلْمٍ عَلِيمٌ ",{"$f":"R84","v":"التوبة"},19,"أجعلتم سقاية الحاج","التوبة",92,"وَلاَ عَلَى الَّذِينَ إِذَا مَا أَتَوْكَ لِتَحْمِلَهُمْ قُلْتَ لاَ أَجِدُ مَا أَحْمِلُكُمْ عَلَيْهِ تَوَلَّواْ وَّأَعْيُنُهُمْ تَفِيضُ مِنَ الدَّمْعِ حَزَنًا أَلاَّ يَجِدُواْ مَا يُنفِقُونَ "]
[null,99,"الثالث عشر",null,3,"يوسف",101,"رب قد آتيتنى من الملك","الرعد",4,"وَفِي الأَرْضِ قِطَعٌ مُّتَجَاوِرَاتٌ وَجَنَّاتٌ مِّنْ أَعْنَابٍ وَزَرْعٌ وَنَخِيلٌ صِنْوَانٌ وَغَيْرُ صِنْوَانٍ يُسْقَى بِمَاء وَاحِدٍ وَنُفَضِّلُ بَعْضَهَا عَلَى بَعْضٍ فِي الأُكُلِ إِنَّ فِي ذَلِكَ لَآيَاتٍ لِّقَوْمٍ يَعْقِلُونَ ","يوسف",53,"وما أبرىء نفسى","يوسف",100,"وَرَفَعَ أَبَوَيْهِ عَلَى الْعَرْشِ وَخَرُّواْ لَهُ سُجَّدًا وَقَالَ يَا أَبَتِ هَـذَا تَأْوِيلُ رُؤْيَايَ مِن قَبْلُ قَدْ جَعَلَهَا رَبِّي حَقًّا وَقَدْ أَحْسَنَ بَي إِذْ أَخْرَجَنِي مِنَ السِّجْنِ وَجَاء بِكُم مِّنَ الْبَدْوِ مِن بَعْدِ أَن نَّزغَ الشَّيْطَانُ بَيْنِي وَبَيْنَ إِخْوَتِي إِنَّ رَبِّي لَطِيفٌ لِّمَا يَشَاء إِنَّهُ هُوَ الْعَلِيمُ الْحَكِيمُ ",{"$f":"F83","v":"التوبة"},{"$f":"G83","v":93},{"$f":"H83","v":"إنما السبيل على الذين"},{"$f":"I87","v":"يونس"},{"$f":"J87","v":52},{"$f":"K87","v":"ثُمَّ قِيلَ لِلَّذِينَ ظَلَمُواْ ذُوقُواْ عَذَابَ الْخُلْدِ هَلْ تُجْزَوْنَ إِلاَّ بِمَا كُنتُمْ تَكْسِبُونَ "}]
["الرعد",100,"الثالث عشر",null,4,"الرعد",5,"وإن تعجب فعجب قولهم","الرعد",18,"لِلَّذِينَ اسْتَجَابُواْ لِرَبِّهِمُ الْحُسْنَى وَالَّذِينَ لَمْ يَسْتَجِيبُواْ لَهُ لَوْ أَنَّ لَهُم مَّا فِي الأَرْضِ جَمِيعًا وَمِثْلَهُ مَعَهُ لاَفْتَدَوْاْ بِهِ أُوْلَـئِكَ لَهُمْ سُوءُ الْحِسَابِ وَمَأْوَاهُمْ جَهَنَّمُ وَبِئْسَ الْمِهَادُ ","يوسف",77,"قالوا إن يسرق","الرعد",4,"وَفِي الأَرْضِ قِطَعٌ مُّتَجَاوِرَاتٌ وَجَنَّاتٌ مِّنْ أَعْنَابٍ وَزَرْعٌ وَنَخِيلٌ صِنْوَانٌ وَغَيْرُ صِنْوَانٍ يُسْقَى بِمَاء وَاحِدٍ وَنُفَضِّلُ بَعْضَهَا عَلَى بَعْضٍ فِي الأُكُلِ إِنَّ فِي ذَلِكَ لَآيَاتٍ لِّقَوْمٍ يَعْقِلُونَ ",{"$f":"F88","v":"يونس"},{"$f":"G88","v":53},{"$f":"H88","v":"ويستنبئونك أحق هو"},{"$f":"I92","v":"هود"},{"$f":"J92","v":40},{"$f":"K92","v":"حَتَّى إِذَا جَاء أَمْرُنَا وَفَارَ التَّنُّورُ قُلْنَا احْمِلْ فِيهَا مِن كُلٍّ زَوْجَيْنِ اثْنَيْنِ وَأَهْلَكَ إِلاَّ مَن سَبَقَ عَلَيْهِ الْقَوْلُ وَمَنْ آمَنَ وَمَا آمَنَ مَعَهُ إِلاَّ قَلِيلٌ "}]
[null,101,"الثالث عشر",26,5,"الرعد",19,"أفمن يعلم أنما أنزل","الرعد",34,"لَّهُمْ عَذَابٌ فِي الْحَيَاةِ الدُّنْيَا وَلَعَذَابُ الآخِرَةِ أَشَقُّ وَمَا لَهُم مِّنَ اللّهِ مِن وَاقٍ ","يوسف",101,"رب قد آتيتنى من الملك","الرعد",18,"لِلَّذِينَ اسْتَجَابُواْ لِرَبِّهِمُ الْحُسْنَى وَالَّذِينَ لَمْ يَسْتَجِيبُواْ لَهُ لَوْ أَنَّ لَهُم مَّا فِي الأَرْضِ جَمِيعًا وَمِثْلَهُ مَعَهُ لاَفْتَدَوْاْ بِهِ أُوْلَـئِكَ لَهُمْ سُوءُ الْحِسَابِ وَمَأْوَاهُمْ جَهَنَّمُ وَبِئْسَ الْمِهَادُ ",{"$f":"F93","v":"هود"},{"$f":"G93","v":41},{"$f":"H93","v":"وقال اركبوا فيها بسم الله"},{"$f":"I97","v":"يوسف"},{"$f":"J97","v":29},{"$f":"K97","v":"يُوسُفُ أَعْرِضْ عَنْ هَـذَا وَاسْتَغْفِرِي لِذَنبِكِ إِنَّكِ كُنتِ مِنَ الْخَاطِئِينَ "}]
[null,102,"الثالث عشر",null,6,"الرعد",35,"مثل الجنة التى وعد المتقون","إبراهيم",9,"أَلَمْ يَأْتِكُمْ نَبَأُ الَّذِينَ مِن قَبْلِكُمْ قَوْمِ نُوحٍ وَعَادٍ وَثَمُودَ وَالَّذِينَ مِن بَعْدِهِمْ لاَ يَعْلَمُهُمْ إِلاَّ اللّهُ جَاءتْهُمْ رُسُلُهُم بِالْبَيِّنَاتِ فَرَدُّواْ أَيْدِيَهُمْ فِي أَفْوَاهِهِمْ وَقَالُواْ إِنَّا كَفَرْنَا بِمَا أُرْسِلْتُم بِهِ وَإِنَّا لَفِي شَكٍّ مِّمَّا تَدْعُونَنَا إِلَيْهِ مُرِيبٍ ","الرعد",5,"وإن تعجب فعجب قولهم","الرعد",34,"لَّهُمْ عَذَابٌ فِي الْحَيَاةِ الدُّنْيَا وَلَعَذَابُ الآخِرَةِ أَشَقُّ وَمَا لَهُم مِّنَ اللّهِ مِن وَاقٍ ",{"$f":"F98","v":"يوسف"},{"$f":"G98","v":30},{"$f":"H98","v":"وقال نسوة فى المدينة"},{"$f":"I102","v":"الرعد"},{"$f":"J102","v":18},{"$f":"K102","v":"لِلَّذِينَ اسْتَجَابُواْ لِرَبِّهِمُ الْحُسْنَى وَالَّذِينَ لَمْ يَسْتَجِيبُواْ لَهُ لَوْ أَنَّ لَهُم مَّا فِي الأَرْضِ جَمِيعًا وَمِثْلَهُ مَعَهُ لاَفْتَدَوْاْ بِهِ أُوْلَـئِكَ لَهُمْ سُوءُ الْحِسَابِ وَمَأْوَاهُمْ جَهَنَّمُ وَبِئْسَ الْمِهَادُ "}]
["إبراهيم",103,"الثالث عشر",null,7,"إبراهيم",10,"قالت رسلهم أفى الله شك","إبراهيم",27,"يُثَبِّتُ اللّهُ الَّذِينَ آمَنُواْ بِالْقَوْلِ الثَّابِتِ فِي الْحَيَاةِ الدُّنْيَا وَفِي الآخِرَةِ وَيُضِلُّ اللّهُ الظَّالِمِينَ وَيَفْعَلُ اللّهُ مَا يَشَاء ","الرعد",19,"أفمن يعلم أنما أنزل","إبراهيم",9,"أَلَمْ يَأْتِكُمْ نَبَأُ الَّذِينَ مِن قَبْلِكُمْ قَوْمِ نُوحٍ وَعَادٍ وَثَمُودَ وَالَّذِينَ مِن بَعْدِهِمْ لاَ يَعْلَمُهُمْ إِلاَّ اللّهُ جَاءتْهُمْ رُسُلُهُم بِالْبَيِّنَاتِ فَرَدُّواْ أَيْدِيَهُمْ فِي أَفْوَاهِهِمْ وَقَالُواْ إِنَّا كَفَرْنَا بِمَا أُرْسِلْتُم بِهِ وَإِنَّا لَفِي شَكٍّ مِّمَّا تَدْعُونَنَا إِلَيْهِ مُرِيبٍ ",{"$f":"R85","v":"الفاتحة"},1,"بسم الله الرحمن الرحيم","البقرة",91,"وَإِذَا قِيلَ لَهُمْ آمِنُواْ بِمَا أَنزَلَ اللّهُ قَالُواْ نُؤْمِنُ بِمَآ أُنزِلَ عَلَيْنَا وَيَكْفُرونَ بِمَا وَرَاءهُ وَهُوَ الْحَقُّ مُصَدِّقاً لِّمَا مَعَهُمْ قُلْ فَلِمَ تَقْتُلُونَ أَنبِيَاء اللّهِ مِن قَبْلُ إِن كُنتُم مُّؤْمِنِينَ"]
[null,104,"الثالث عشر",null,8,"إبراهيم",28,"ألم تر إلى الذين بدلوا","إبراهيم",52,"هَـذَا بَلاَغٌ لِّلنَّاسِ وَلِيُنذَرُواْ بِهِ وَلِيَعْلَمُواْ أَنَّمَا هُوَ إِلَـهٌ وَاحِدٌ وَلِيَذَّكَّرَ أُوْلُواْ الأَلْبَابِ ","الرعد",35,"مثل الجنة التى وعد المتقون","إبراهيم",27,"يُثَبِّتُ اللّهُ الَّذِينَ آمَنُواْ بِالْقَوْلِ الثَّابِتِ فِي الْحَيَاةِ الدُّنْيَا وَفِي الآخِرَةِ وَيُضِلُّ اللّهُ الظَّالِمِينَ وَيَفْعَلُ اللّهُ مَا يَشَاء ",{"$f":"R86","v":"البقرة"},92,"ولقد جاءكم موسى","البقرة",176,"ذَلِكَ بِأَنَّ اللّهَ نَزَّلَ الْكِتَابَ بِالْحَقِّ وَإِنَّ الَّذِينَ اخْتَلَفُواْ فِي الْكِتَابِ لَفِي شِقَاقٍ بَعِيدٍ"]
["الحجر",105,"الرابع عشر",27,1,"الحجر",1,"الــرتلك آيات الكتاب","الحجر",48,"لاَ يَمَسُّهُمْ فِيهَا نَصَبٌ وَمَا هُم مِّنْهَا بِمُخْرَجِينَ ","إبراهيم",10,"قالت رسلهم أفى الله شك","إبراهيم",52,"هَـذَا بَلاَغٌ لِّلنَّاسِ وَلِيُنذَرُواْ بِهِ وَلِيَعْلَمُواْ أَنَّمَا هُوَ إِلَـهٌ وَاحِدٌ وَلِيَذَّكَّرَ أُوْلُواْ الأَلْبَابِ ",{"$f":"R87","v":"البقرة"},177,"ليس البر أن تولوا","البقرة",242,"كَذَلِكَ يُبَيِّنُ اللّهُ لَكُمْ آيَاتِهِ لَعَلَّكُمْ تَعْقِلُونَ"]
[null,106,"الرابع عشر",null,2,"الحجر",49,"نبىء عبادى أنى أنا الغفور","الحجر",99,"وَاعْبُدْ رَبَّكَ حَتَّى يَأْتِيَكَ الْيَقِينُ ","إبراهيم",28,"ألم تر إلى الذين بدلوا","الحجر",48,"لاَ يَمَسُّهُمْ فِيهَا نَصَبٌ وَمَا هُم مِّنْهَا بِمُخْرَجِينَ ",{"$f":"R88","v":"البقرة"},243,"الم تر إلى الذين خرجوا","آل عمران",14,"زُيِّنَ لِلنَّاسِ حُبُّ الشَّهَوَاتِ مِنَ النِّسَاء وَالْبَنِينَ وَالْقَنَاطِيرِ الْمُقَنطَرَةِ مِنَ الذَّهَبِ وَالْفِضَّةِ وَالْخَيْلِ الْمُسَوَّمَةِ وَالأَنْعَامِ وَالْحَرْثِ ذَلِكَ مَتَاعُ الْحَيَاةِ الدُّنْيَا وَاللّهُ عِندَهُ حُسْنُ الْمَآبِ "]
["النحل",107,"الرابع عشر",null,3,"النحل",1,"أتى أمر الله فلا تستعجلوه","النحل",29,"فَادْخُلُواْ أَبْوَابَ جَهَنَّمَ خَالِدِينَ فِيهَا فَلَبِئْسَ مَثْوَى الْمُتَكَبِّرِينَ ","الحجر",1,"الــرتلك آيات الكتاب","الحجر",99,"وَاعْبُدْ رَبَّكَ حَتَّى يَأْتِيَكَ الْيَقِينُ ",{"$f":"R89","v":"آل عمران"},15,"قل أؤنبئكم بخير","آل عمران",112,"ضُرِبَتْ عَلَيْهِمُ الذِّلَّةُ أَيْنَ مَا ثُقِفُواْ إِلاَّ بِحَبْلٍ مِّنْ اللّهِ وَحَبْلٍ مِّنَ النَّاسِ وَبَآؤُوا بِغَضَبٍ مِّنَ اللّهِ وَضُرِبَتْ عَلَيْهِمُ الْمَسْكَنَةُ ذَلِكَ بِأَنَّهُمْ كَانُواْ يَكْفُرُونَ بِآيَاتِ اللّهِ وَيَقْتُلُونَ الأَنبِيَاء بِغَيْرِ حَقٍّ ذَلِكَ بِمَا عَصَوا وَّكَانُواْ يَعْتَدُونَ "]
[null,108,"الرابع عشر",null,4,"النحل",30,"وقيل للذين اتقوا","النحل",50,"يَخَافُونَ رَبَّهُم مِّن فَوْقِهِمْ وَيَفْعَلُونَ مَا يُؤْمَرُونَ ","الحجر",49,"نبىء عبادى أنى أنا الغفور","النحل",29,"فَادْخُلُواْ أَبْوَابَ جَهَنَّمَ خَالِدِينَ فِيهَا فَلَبِئْسَ مَثْوَى الْمُتَكَبِّرِينَ ",{"$f":"R90","v":"آل عمران"},113,"ليسوا سواء","آل عمران",200,"يَا أَيُّهَا الَّذِينَ آمَنُواْ اصْبِرُواْ وَصَابِرُواْ وَرَابِطُواْ وَاتَّقُواْ اللّهَ لَعَلَّكُمْ تُفْلِحُونَ "]
[null,109,"الرابع عشر",28,5,"النحل",51,"وقال الله لا تتخذوا إلهين","النحل",74,"فَلاَ تَضْرِبُواْ لِلّهِ الأَمْثَالَ إِنَّ اللّهَ يَعْلَمُ وَأَنتُمْ لاَ تَعْلَمُونَ ","النحل",1,"أتى أمر الله فلا تستعجلوه","النحل",50,"يَخَافُونَ رَبَّهُم مِّن فَوْقِهِمْ وَيَفْعَلُونَ مَا يُؤْمَرُونَ ",{"$f":"R91","v":"النساء"},1,"ياأيها الناس اتقوا ربكم","النساء",73,"وَلَئِنْ أَصَابَكُمْ فَضْلٌ مِّنَ الله لَيَقُولَنَّ كَأَن لَّمْ تَكُن بَيْنَكُمْ وَبَيْنَهُ مَوَدَّةٌ يَا لَيتَنِي كُنتُ مَعَهُمْ فَأَفُوزَ فَوْزًا عَظِيمًا "]
[null,110,"الرابع عشر",null,6,"النحل",75,"ضرب الله مثلا عبدا","النحل",89,"وَيَوْمَ نَبْعَثُ فِي كُلِّ أُمَّةٍ شَهِيدًا عَلَيْهِم مِّنْ أَنفُسِهِمْ وَجِئْنَا بِكَ شَهِيدًا عَلَى هَـؤُلاء وَنَزَّلْنَا عَلَيْكَ الْكِتَابَ تِبْيَانًا لِّكُلِّ شَيْءٍ وَهُدًى وَرَحْمَةً وَبُشْرَى لِلْمُسْلِمِينَ ","النحل",30,"وقيل للذين اتقوا","النحل",74,"فَلاَ تَضْرِبُواْ لِلّهِ الأَمْثَالَ إِنَّ اللّهَ يَعْلَمُ وَأَنتُمْ لاَ تَعْلَمُونَ ",{"$f":"R92","v":"النساء"},74,"فليقاتل فى سبيل الله","النساء",147,"مَّا يَفْعَلُ اللّهُ بِعَذَابِكُمْ إِن شَكَرْتُمْ وَآمَنتُمْ وَكَانَ اللّهُ شَاكِرًا عَلِيمًا "]
[null,111,"الرابع عشر",null,7,"النحل",90,"إن الله يأمر بالعدل","النحل",110,"ثُمَّ إِنَّ رَبَّكَ لِلَّذِينَ هَاجَرُواْ مِن بَعْدِ مَا فُتِنُواْ ثُمَّ جَاهَدُواْ وَصَبَرُواْ إِنَّ رَبَّكَ مِن بَعْدِهَا لَغَفُورٌ رَّحِيمٌ ","النحل",51,"وقال الله لا تتخذوا إلهين","النحل",89,"وَيَوْمَ نَبْعَثُ فِي كُلِّ أُمَّةٍ شَهِيدًا عَلَيْهِم مِّنْ أَنفُسِهِمْ وَجِئْنَا بِكَ شَهِيدًا عَلَى هَـؤُلاء وَنَزَّلْنَا عَلَيْكَ الْكِتَابَ تِبْيَانًا لِّكُلِّ شَيْءٍ وَهُدًى وَرَحْمَةً وَبُشْرَى لِلْمُسْلِمِينَ ",{"$f":"R93","v":"النساء"},148,"لايحب الله الجهر بالسوء","المائدة",40,"أَلَمْ تَعْلَمْ أَنَّ اللّهَ لَهُ مُلْكُ السَّمَاوَاتِ وَالأَرْضِ يُعَذِّبُ مَن يَشَاء وَيَغْفِرُ لِمَن يَشَاء وَاللّهُ عَلَى كُلِّ شَيْءٍ قَدِيرٌ "]
[null,112,"الرابع عشر",null,8,"النحل",111,"ويوم تأتى كل نفس تجادل","النحل",128,"إِنَّ اللّهَ مَعَ الَّذِينَ اتَّقَواْ وَّالَّذِينَ هُم مُّحْسِنُونَ ","النحل",75,"ضرب الله مثلا عبدا","النحل",110,"ثُمَّ إِنَّ رَبَّكَ لِلَّذِينَ هَاجَرُواْ مِن بَعْدِ مَا فُتِنُواْ ثُمَّ جَاهَدُواْ وَصَبَرُواْ إِنَّ رَبَّكَ مِن بَعْدِهَا لَغَفُورٌ رَّحِيمٌ ",{"$f":"R94","v":"المائدة"},41,"ياأيها الرسول لا يحزنك","المائدة",108,"ذَلِكَ أَدْنَى أَن يَأْتُواْ بِالشَّهَادَةِ عَلَى وَجْهِهَا أَوْ يَخَافُواْ أَن تُرَدَّ أَيْمَانٌ بَعْدَ أَيْمَانِهِمْ وَاتَّقُوا اللّهَ وَاسْمَعُواْ وَاللّهُ لاَ يَهْدِي الْقَوْمَ الْفَاسِقِينَ "]
["الإسراء",113,"الخامس عشر",29,1,"الإسراء",1,"سبحان الذى أسرى","الإسراء",22,"لاَّ تَجْعَل مَعَ اللّهِ إِلَـهًا آخَرَ فَتَقْعُدَ مَذْمُومًا مَّخْذُولاً ","النحل",90,"إن الله يأمر بالعدل","النحل",128,"إِنَّ اللّهَ مَعَ الَّذِينَ اتَّقَواْ وَّالَّذِينَ هُم مُّحْسِنُونَ ",{"$f":"R95","v":"المائدة"},109,"يوم يجمع الله الرسل","الأنعام",94,"وَلَقَدْ جِئْتُمُونَا فُرَادَى كَمَا خَلَقْنَاكُمْ أَوَّلَ مَرَّةٍ وَتَرَكْتُم مَّا خَوَّلْنَاكُمْ وَرَاء ظُهُورِكُمْ وَمَا نَرَى مَعَكُمْ شُفَعَاءكُمُ الَّذِينَ زَعَمْتُمْ أَنَّهُمْ فِيكُمْ شُرَكَاء لَقَد تَّقَطَّعَ بَيْنَكُمْ وَضَلَّ عَنكُم مَّا كُنتُمْ تَزْعُمُونَ "]
[null,114,"الخامس عشر",null,2,"الإسراء",23,"وقضى ربك ألا تعبدوا إلا","الإسراء",49,"وَقَالُواْ أَئِذَا كُنَّا عِظَامًا وَرُفَاتًا أَإِنَّا لَمَبْعُوثُونَ خَلْقًا جَدِيدًا ","النحل",111,"ويوم تأتى كل نفس تجادل","الإسراء",22,"لاَّ تَجْعَل مَعَ اللّهِ إِلَـهًا آخَرَ فَتَقْعُدَ مَذْمُومًا مَّخْذُولاً ",{"$f":"R96","v":"الأنعام"},95,"إن الله فالق الحب والنوى","الأنعام",165,"وَهُوَ الَّذِي جَعَلَكُمْ خَلاَئِفَ الأَرْضِ وَرَفَعَ بَعْضَكُمْ فَوْقَ بَعْضٍ دَرَجَاتٍ لِّيَبْلُوَكُمْ فِي مَا آتَاكُمْ إِنَّ رَبَّكَ سَرِيعُ الْعِقَابِ وَإِنَّهُ لَغَفُورٌ رَّحِيمٌ "]
[null,115,"الخامس عشر",null,3,"الإسراء",50,"قل كونوا حجارة أو حديدا","الإسراء",69,"أَمْ أَمِنتُمْ أَن يُعِيدَكُمْ فِيهِ تَارَةً أُخْرَى فَيُرْسِلَ عَلَيْكُمْ قَاصِفا مِّنَ الرِّيحِ فَيُغْرِقَكُم بِمَا كَفَرْتُمْ ثُمَّ لاَ تَجِدُواْ لَكُمْ عَلَيْنَا بِهِ تَبِيعًا ","الإسراء",1,"سبحان الذى أسرى","الإسراء",49,"وَقَالُواْ أَئِذَا كُنَّا عِظَامًا وَرُفَاتًا أَإِنَّا لَمَبْعُوثُونَ خَلْقًا جَدِيدًا ",{"$f":"R97","v":"الأعراف"},1,"الــمــص","الأعراف",116,"قَالَ أَلْقُوْاْ فَلَمَّا أَلْقَوْاْ سَحَرُواْ أَعْيُنَ النَّاسِ وَاسْتَرْهَبُوهُمْ وَجَاءوا بِسِحْرٍ عَظِيمٍ "]
[null,116,"الخامس عشر",null,4,"الإسراء",70,"ولقد كرمنا بنى آدم","الإسراء",98,"ذَلِكَ جَزَآؤُهُم بِأَنَّهُمْ كَفَرُواْ بِآيَاتِنَا وَقَالُواْ أَئِذَا كُنَّا عِظَامًا وَرُفَاتًا أَإِنَّا لَمَبْعُوثُونَ خَلْقًا جَدِيدًا ","الإسراء",23,"وقضى ربك ألا تعبدوا إلا","الإسراء",69,"أَمْ أَمِنتُمْ أَن يُعِيدَكُمْ فِيهِ تَارَةً أُخْرَى فَيُرْسِلَ عَلَيْكُمْ قَاصِفا مِّنَ الرِّيحِ فَيُغْرِقَكُم بِمَا كَفَرْتُمْ ثُمَّ لاَ تَجِدُواْ لَكُمْ عَلَيْنَا بِهِ تَبِيعًا ",{"$f":"R98","v":"الأعراف"},117,"وأوحينا إلى موسى","الأعراف",206,"إِنَّ الَّذِينَ عِندَ رَبِّكَ لاَ يَسْتَكْبِرُونَ عَنْ عِبَادَتِهِ وَيُسَبِّحُونَهُ وَلَهُ يَسْجُدُونَ "]
[null,117,"الخامس عشر",30,5,"الإسراء",99,"أولم يروا أن الله الذى","الكهف",16,"وَإِذِ اعْتَزَلْتُمُوهُمْ وَمَا يَعْبُدُونَ إِلَّا اللَّهَ فَأْوُوا إِلَى الْكَهْفِ يَنشُرْ لَكُمْ رَبُّكُم مِّن رَّحمته ويُهَيِّئْ لَكُم مِّنْ أَمْرِكُم مِّرْفَقًا ","الإسراء",50,"قل كونوا حجارة أو حديدا","الإسراء",98,"ذَلِكَ جَزَآؤُهُم بِأَنَّهُمْ كَفَرُواْ بِآيَاتِنَا وَقَالُواْ أَئِذَا كُنَّا عِظَامًا وَرُفَاتًا أَإِنَّا لَمَبْعُوثُونَ خَلْقًا جَدِيدًا ",{"$f":"R99","v":"الأنفال"},1,"يسألونك عن الأنفال","التوبة",18,"إِنَّمَا يَعْمُرُ مَسَاجِدَ اللّهِ مَنْ آمَنَ بِاللّهِ وَالْيَوْمِ الآخِرِ وَأَقَامَ الصَّلاَةَ وَآتَى الزَّكَاةَ وَلَمْ يَخْشَ إِلاَّ اللّهَ فَعَسَى أُوْلَـئِكَ أَن يَكُونُواْ مِنَ الْمُهْتَدِينَ "]
["الكهف",118,"الخامس عشر",null,6,"الكهف",17,"وترى الشمس إذا طلعت","الكهف",31,"أُوْلَئِكَ لَهُمْ جَنَّاتُ عَدْنٍ تَجْرِي مِن تَحْتِهِمُ الْأَنْهَارُ يُحَلَّوْنَ فِيهَا مِنْ أَسَاوِرَ مِن ذَهَبٍ وَيَلْبَسُونَ ثِيَابًا خُضْرًا مِّن سُندُسٍ وَإِسْتَبْرَقٍ مُّتَّكِئِينَ فِيهَا عَلَى الْأَرَائِكِ نِعْمَ الثَّوَابُ وَحَسُنَتْ مُرْتَفَقًا ","الإسراء",70,"ولقد كرمنا بنى آدم","الكهف",16,"وَإِذِ اعْتَزَلْتُمُوهُمْ وَمَا يَعْبُدُونَ إِلَّا اللَّهَ فَأْوُوا إِلَى الْكَهْفِ يَنشُرْ لَكُمْ رَبُّكُم مِّن رَّحمته ويُهَيِّئْ لَكُم مِّنْ أَمْرِكُم مِّرْفَقًا ",{"$f":"R100","v":"التوبة"},19,"أجعلتم سقاية الحاج","التوبة",92,"وَلاَ عَلَى الَّذِينَ إِذَا مَا أَتَوْكَ لِتَحْمِلَهُمْ قُلْتَ لاَ أَجِدُ مَا أَحْمِلُكُمْ عَلَيْهِ تَوَلَّواْ وَّأَعْيُنُهُمْ تَفِيضُ مِنَ الدَّمْعِ حَزَنًا أَلاَّ يَجِدُواْ مَا يُنفِقُونَ "]
[null,119,"الخامس عشر",null,7,"الكهف",32,"واضرب لهم مثلا رجلين","الكهف",50,"وَإِذْ قُلْنَا لِلْمَلَائِكَةِ اسْجُدُوا لِآدَمَ فَسَجَدُوا إِلَّا إِبْلِيسَ كَانَ مِنَ الْجِنِّ فَفَسَقَ عَنْ أَمْرِ رَبِّهِ أَفَتَتَّخِذُونَهُ وَذُرِّيَّتَهُ أَوْلِيَاء مِن دُونِي وَهُمْ لَكُمْ عَدُوٌّ بِئْسَ لِلظَّالِمِينَ بَدَلًا ","الإسراء",99,"أولم يروا أن الله الذى","الكهف",31,"أُوْلَئِكَ لَهُمْ جَنَّاتُ عَدْنٍ تَجْرِي مِن تَحْتِهِمُ الْأَنْهَارُ يُحَلَّوْنَ فِيهَا مِنْ أَسَاوِرَ مِن ذَهَبٍ وَيَلْبَسُونَ ثِيَابًا خُضْرًا مِّن سُندُسٍ وَإِسْتَبْرَقٍ مُّتَّكِئِينَ فِيهَا عَلَى الْأَرَائِكِ نِعْمَ الثَّوَابُ وَحَسُنَتْ مُرْتَفَقًا ",{"$f":"R101","v":"التوبة"},93,"إنما السبيل على الذين","يونس",52,"ثُمَّ قِيلَ لِلَّذِينَ ظَلَمُواْ ذُوقُواْ عَذَابَ الْخُلْدِ هَلْ تُجْزَوْنَ إِلاَّ بِمَا كُنتُمْ تَكْسِبُونَ "]
[null,120,"الخامس عشر",null,8,"الكهف",51,"مآ أشهدتهم خلق السموات","الكهف",74,"فَانطَلَقَا حَتَّى إِذَا لَقِيَا غُلَامًا فَقَتَلَهُ قَالَ أَقَتَلْتَ نَفْسًا زَكِيَّةً بِغَيْرِ نَفْسٍ لَّقَدْ جِئْتَ شَيْئًا نُّكْرًا ","الكهف",17,"وترى الشمس إذا طلعت","الكهف",50,"وَإِذْ قُلْنَا لِلْمَلَائِكَةِ اسْجُدُوا لِآدَمَ فَسَجَدُوا إِلَّا إِبْلِيسَ كَانَ مِنَ الْجِنِّ فَفَسَقَ عَنْ أَمْرِ رَبِّهِ أَفَتَتَّخِذُونَهُ وَذُرِّيَّتَهُ أَوْلِيَاء مِن دُونِي وَهُمْ لَكُمْ عَدُوٌّ بِئْسَ لِلظَّالِمِينَ بَدَلًا ",{"$f":"R102","v":"يونس"},53,"ويستنبئونك أحق هو","هود",40,"حَتَّى إِذَا جَاء أَمْرُنَا وَفَارَ التَّنُّورُ قُلْنَا احْمِلْ فِيهَا مِن كُلٍّ زَوْجَيْنِ اثْنَيْنِ وَأَهْلَكَ إِلاَّ مَن سَبَقَ عَلَيْهِ الْقَوْلُ وَمَنْ آمَنَ وَمَا آمَنَ مَعَهُ إِلاَّ قَلِيلٌ "]
[null,121,"السادس عشر",31,1,"الكهف",75,"قال ألم أقل لك إنك لن","الكهف",98,"قَالَ هَذَا رَحْمَةٌ مِّن رَّبِّي فَإِذَا جَاء وَعْدُ رَبِّي جَعَلَهُ دَكَّاء وَكَانَ وَعْدُ رَبِّي حَقًّا ","الكهف",32,"واضرب لهم مثلا رجلين","الكهف",74,"فَانطَلَقَا حَتَّى إِذَا لَقِيَا غُلَامًا فَقَتَلَهُ قَالَ أَقَتَلْتَ نَفْسًا زَكِيَّةً بِغَيْرِ نَفْسٍ لَّقَدْ جِئْتَ شَيْئًا نُّكْرًا ",{"$f":"R103","v":"هود"},41,"وقال اركبوا فيها بسم الله","يوسف",29,"يُوسُفُ أَعْرِضْ عَنْ هَـذَا وَاسْتَغْفِرِي لِذَنبِكِ إِنَّكِ كُنتِ مِنَ الْخَاطِئِينَ "]
[null,122,"السادس عشر",null,2,"الكهف",99,"وتركنا بعضهم يومئذ يموج","مريم",22,"فَحَمَلَتْهُ فَانتَبَذَتْ بِهِ مَكَانًا قَصِيًّا ","الكهف",51,"مآ أشهدتهم خلق السموات","الكهف",98,"قَالَ هَذَا رَحْمَةٌ مِّن رَّبِّي فَإِذَا جَاء وَعْدُ رَبِّي جَعَلَهُ دَكَّاء وَكَانَ وَعْدُ رَبِّي حَقًّا ",{"$f":"R104","v":"يوسف"},30,"وقال نسوة فى المدينة","الرعد",18,"لِلَّذِينَ اسْتَجَابُواْ لِرَبِّهِمُ الْحُسْنَى وَالَّذِينَ لَمْ يَسْتَجِيبُواْ لَهُ لَوْ أَنَّ لَهُم مَّا فِي الأَرْضِ جَمِيعًا وَمِثْلَهُ مَعَهُ لاَفْتَدَوْاْ بِهِ أُوْلَـئِكَ لَهُمْ سُوءُ الْحِسَابِ وَمَأْوَاهُمْ جَهَنَّمُ وَبِئْسَ الْمِهَادُ "]
["مريم",123,"السادس عشر",null,3,"مريم",22,"فحملته فانتبذت به مكانا","مريم",58,"أُوْلَئِكَ الَّذِينَ أَنْعَمَ اللَّهُ عَلَيْهِم مِّنَ النَّبِيِّينَ مِن ذُرِّيَّةِ آدَمَ وَمِمَّنْ حَمَلْنَا مَعَ نُوحٍ وَمِن ذُرِّيَّةِ إِبْرَاهِيمَ وَإِسْرَائِيلَ وَمِمَّنْ هَدَيْنَا وَاجْتَبَيْنَا إِذَا تُتْلَى عَلَيْهِمْ آيَاتُ الرَّحْمَن خَرُّوا سُجَّدًا وَبُكِيًّا ","الكهف",75,"قال ألم أقل لك إنك لن","مريم",22,"فَحَمَلَتْهُ فَانتَبَذَتْ بِهِ مَكَانًا قَصِيًّا ",{"$f":"F103","v":"الرعد"},{"$f":"G103","v":19},{"$f":"H103","v":"أفمن يعلم أنما أنزل"},{"$f":"I107","v":"الحجر"},{"$f":"J107","v":48},{"$f":"K107","v":"لاَ يَمَسُّهُمْ فِيهَا نَصَبٌ وَمَا هُم مِّنْهَا بِمُخْرَجِينَ "}]
[null,124,"السادس عشر",null,4,"مريم",59,"فخلف من بعدهم خلف","مريم",98,"وَكَمْ أَهْلَكْنَا قَبْلَهُم مِّن قَرْنٍ هَلْ تُحِسُّ مِنْهُم مِّنْ أَحَدٍ أَوْ تَسْمَعُ لَهُمْ رِكْزًا ","الكهف",99,"وتركنا بعضهم يومئذ يموج","مريم",58,"أُوْلَئِكَ الَّذِينَ أَنْعَمَ اللَّهُ عَلَيْهِم مِّنَ النَّبِيِّينَ مِن ذُرِّيَّةِ آدَمَ وَمِمَّنْ حَمَلْنَا مَعَ نُوحٍ وَمِن ذُرِّيَّةِ إِبْرَاهِيمَ وَإِسْرَائِيلَ وَمِمَّنْ هَدَيْنَا وَاجْتَبَيْنَا إِذَا تُتْلَى عَلَيْهِمْ آيَاتُ الرَّحْمَن خَرُّوا سُجَّدًا وَبُكِيًّا ",{"$f":"F108","v":"الحجر"},{"$f":"G108","v":49},{"$f":"H108","v":"نبىء عبادى أنى أنا الغفور"},{"$f":"I112","v":"النحل"},{"$f":"J112","v":89},{"$f":"K112","v":"وَيَوْمَ نَبْعَثُ فِي كُلِّ أُمَّةٍ شَهِيدًا عَلَيْهِم مِّنْ أَنفُسِهِمْ وَجِئْنَا بِكَ شَهِيدًا عَلَى هَـؤُلاء وَنَزَّلْنَا عَلَيْكَ الْكِتَابَ تِبْيَانًا لِّكُلِّ شَيْءٍ وَهُدًى وَرَحْمَةً وَبُشْرَى لِلْمُسْلِمِينَ "}]
["طه",125,"السادس عشر",32,5,"طه","2-1","طه 0 ما أنزلنا عليك القرآن لتشقى","طه",54,"كُلُوا وَارْعَوْا أَنْعَامَكُمْ إِنَّ فِي ذَلِكَ لَآيَاتٍ لِّأُوْلِي النُّهَى ","مريم",22,"فحملته فانتبذت به مكانا","مريم",98,"وَكَمْ أَهْلَكْنَا قَبْلَهُم مِّن قَرْنٍ هَلْ تُحِسُّ مِنْهُم مِّنْ أَحَدٍ أَوْ تَسْمَعُ لَهُمْ رِكْزًا ",{"$f":"F113","v":"النحل"},{"$f":"G113","v":90},{"$f":"H113","v":"إن الله يأمر بالعدل"},{"$f":"I117","v":"الإسراء"},{"$f":"J117","v":69},{"$f":"K117","v":"أَمْ أَمِنتُمْ أَن يُعِيدَكُمْ فِيهِ تَارَةً أُخْرَى فَيُرْسِلَ عَلَيْكُمْ قَاصِفا مِّنَ الرِّيحِ فَيُغْرِقَكُم بِمَا كَفَرْتُمْ ثُمَّ لاَ تَجِدُواْ لَكُمْ عَلَيْنَا بِهِ تَبِيعًا "}]
[null,126,"السادس عشر",null,6,"طه",55,"منها خلقناكم وفيها نعيدكم","طه",82,"وَإِنِّي لَغَفَّارٌ لِّمَن تَابَ وَآمَنَ وَعَمِلَ صَالِحًا ثُمَّ اهْتَدَى ","مريم",59,"فخلف من بعدهم خلف","طه",54,"كُلُوا وَارْعَوْا أَنْعَامَكُمْ إِنَّ فِي ذَلِكَ لَآيَاتٍ لِّأُوْلِي النُّهَى ",{"$f":"F118","v":"الإسراء"},{"$f":"G118","v":70},{"$f":"H118","v":"ولقد كرمنا بنى آدم"},{"$f":"I122","v":"الكهف"},{"$f":"J122","v":74},{"$f":"K122","v":"فَانطَلَقَا حَتَّى إِذَا لَقِيَا غُلَامًا فَقَتَلَهُ قَالَ أَقَتَلْتَ نَفْسًا زَكِيَّةً بِغَيْرِ نَفْسٍ لَّقَدْ جِئْتَ شَيْئًا نُّكْرًا "}]
[null,127,"السادس عشر",null,7,"طه",83,"ومآ أعجلك عن قومك","طه",110,"يَعْلَمُ مَا بَيْنَ أَيْدِيهِمْ وَمَا خَلْفَهُمْ وَلَا يُحِيطُونَ بِهِ عِلْمًا ","طه","2-1","طه 0 ما أنزلنا عليك القرآن لتشقى","طه",82,"وَإِنِّي لَغَفَّارٌ لِّمَن تَابَ وَآمَنَ وَعَمِلَ صَالِحًا ثُمَّ اهْتَدَى ",{"$f":"F123","v":"الكهف"},{"$f":"G123","v":75},{"$f":"H123","v":"قال ألم أقل لك إنك لن"},{"$f":"I127","v":"طه"},{"$f":"J127","v":54},{"$f":"K127","v":"كُلُوا وَارْعَوْا أَنْعَامَكُمْ إِنَّ فِي ذَلِكَ لَآيَاتٍ لِّأُوْلِي النُّهَى "}]
[null,128,"السادس عشر",null,8,"طه",111,"وعنت الوجوه للحى القيوم","طه",135,"قُلْ كُلٌّ مُّتَرَبِّصٌ فَتَرَبَّصُوا فَسَتَعْلَمُونَ مَنْ أَصْحَابُ الصِّرَاطِ السَّوِيِّ وَمَنِ اهْتَدَى ","طه",55,"منها خلقناكم وفيها نعيدكم","طه",110,"يَعْلَمُ مَا بَيْنَ أَيْدِيهِمْ وَمَا خَلْفَهُمْ وَلَا يُحِيطُونَ بِهِ عِلْمًا ",{"$f":"R105","v":"الفاتحة"},1,"بسم الله الرحمن الرحيم","البقرة",91,"وَإِذَا قِيلَ لَهُمْ آمِنُواْ بِمَا أَنزَلَ اللّهُ قَالُواْ نُؤْمِنُ بِمَآ أُنزِلَ عَلَيْنَا وَيَكْفُرونَ بِمَا وَرَاءهُ وَهُوَ الْحَقُّ مُصَدِّقاً لِّمَا مَعَهُمْ قُلْ فَلِمَ تَقْتُلُونَ أَنبِيَاء اللّهِ مِن قَبْلُ إِن كُنتُم مُّؤْمِنِينَ"]
["الأنبياء",129,"السابع عشر",33,1,"الأنبياء",1,"اقترب للناس حسابهم","الأنبياء",28,"يَعْلَمُ مَا بَيْنَ أَيْدِيهِمْ وَمَا خَلْفَهُمْ وَلَا يَشْفَعُونَ إِلَّا لِمَنِ ارْتَضَى وَهُم مِّنْ خَشْيَتِهِ مُشْفِقُونَ ","طه",83,"ومآ أعجلك عن قومك","طه",135,"قُلْ كُلٌّ مُّتَرَبِّصٌ فَتَرَبَّصُوا فَسَتَعْلَمُونَ مَنْ أَصْحَابُ الصِّرَاطِ السَّوِيِّ وَمَنِ اهْتَدَى ",{"$f":"R106","v":"البقرة"},92,"ولقد جاءكم موسى","البقرة",176,"ذَلِكَ بِأَنَّ اللّهَ نَزَّلَ الْكِتَابَ بِالْحَقِّ وَإِنَّ الَّذِينَ اخْتَلَفُواْ فِي الْكِتَابِ لَفِي شِقَاقٍ بَعِيدٍ"]
[null,130,"السابع عشر",null,2,"الأنبياء",29,"ومن يقل منهم إنى إله","الأنبياء",50,"وَهَذَا ذِكْرٌ مُّبَارَكٌ أَنزَلْنَاهُ أَفَأَنتُمْ لَهُ مُنكِرُونَ ","طه",111,"وعنت الوجوه للحى القيوم","الأنبياء",28,"يَعْلَمُ مَا بَيْنَ أَيْدِيهِمْ وَمَا خَلْفَهُمْ وَلَا يَشْفَعُونَ إِلَّا لِمَنِ ارْتَضَى وَهُم مِّنْ خَشْيَتِهِ مُشْفِقُونَ ",{"$f":"R107","v":"البقرة"},177,"ليس البر أن تولوا","البقرة",242,"كَذَلِكَ يُبَيِّنُ اللّهُ لَكُمْ آيَاتِهِ لَعَلَّكُمْ تَعْقِلُونَ"]
[null,131,"السابع عشر",null,3,"الأنبياء",51,"ولقد آتينا إبراهيم رشده","الأنبياء",82,"وَمِنَ الشَّيَاطِينِ مَن يَغُوصُونَ لَهُ وَيَعْمَلُونَ عَمَلًا دُونَ ذَلِكَ وَكُنَّا لَهُمْ حَافِظِينَ ",{"$f":"F131","v":"الأنبياء"},{"$f":"G131","v":1},{"$f":"H131","v":"اقترب للناس حسابهم"},"الأنبياء",50,"وَهَذَا ذِكْرٌ مُّبَارَكٌ أَنزَلْنَاهُ أَفَأَنتُمْ لَهُ مُنكِرُونَ ",{"$f":"R108","v":"البقرة"},243,"الم تر إلى الذين خرجوا","آل عمران",14,"زُيِّنَ لِلنَّاسِ حُبُّ الشَّهَوَاتِ مِنَ النِّسَاء وَالْبَنِينَ وَالْقَنَاطِيرِ الْمُقَنطَرَةِ مِنَ الذَّهَبِ وَالْفِضَّةِ وَالْخَيْلِ الْمُسَوَّمَةِ وَالأَنْعَامِ وَالْحَرْثِ ذَلِكَ مَتَاعُ الْحَيَاةِ الدُّنْيَا وَاللّهُ عِندَهُ حُسْنُ الْمَآبِ "]
[null,132,"السابع عشر",null,4,"الأنبياء",83,"وأيوب إذ نادى ربه","الأنبياء",112,"قَالَ رَبِّ احْكُم بِالْحَقِّ وَرَبُّنَا الرَّحْمَنُ الْمُسْتَعَانُ عَلَى مَا تَصِفُونَ ","الأنبياء",29,"ومن يقل منهم إنى إله",{"$f":"I133","v":"الأنبياء"},{"$f":"J133","v":82},{"$f":"K133","v":"وَمِنَ الشَّيَاطِينِ مَن يَغُوصُونَ لَهُ وَيَعْمَلُونَ عَمَلًا دُونَ ذَلِكَ وَكُنَّا لَهُمْ حَافِظِينَ "},{"$f":"R109","v":"آل عمران"},15,"قل أؤنبئكم بخير","آل عمران",112,"ضُرِبَتْ عَلَيْهِمُ الذِّلَّةُ أَيْنَ مَا ثُقِفُواْ إِلاَّ بِحَبْلٍ مِّنْ اللّهِ وَحَبْلٍ مِّنَ النَّاسِ وَبَآؤُوا بِغَضَبٍ مِّنَ اللّهِ وَضُرِبَتْ عَلَيْهِمُ الْمَسْكَنَةُ ذَلِكَ بِأَنَّهُمْ كَانُواْ يَكْفُرُونَ بِآيَاتِ اللّهِ وَيَقْتُلُونَ الأَنبِيَاء بِغَيْرِ حَقٍّ ذَلِكَ بِمَا عَصَوا وَّكَانُواْ يَعْتَدُونَ "]
["الحج",133,"السابع عشر",34,5,"الحج",1,"ياأيها الناس اتقوا ربكم","الحج",18,"أَلَمْ تَرَ أَنَّ اللَّهَ يَسْجُدُ لَهُ مَن فِي السَّمَاوَاتِ وَمَن فِي الْأَرْضِ وَالشَّمْسُ وَالْقَمَرُ وَالنُّجُومُ وَالْجِبَالُ وَالشَّجَرُ وَالدَّوَابُّ وَكَثِيرٌ مِّنَ النَّاسِ وَكَثِيرٌ حَقَّ عَلَيْهِ الْعَذَابُ وَمَن يُهِنِ اللَّهُ فَمَا لَهُ مِن مُّكْرِمٍ إِنَّ اللَّهَ يَفْعَلُ مَا يَشَاء ","الأنبياء",51,"ولقد آتينا إبراهيم رشده","الأنبياء",112,"قَالَ رَبِّ احْكُم بِالْحَقِّ وَرَبُّنَا الرَّحْمَنُ الْمُسْتَعَانُ عَلَى مَا تَصِفُونَ ",{"$f":"R110","v":"آل عمران"},113,"ليسوا سواء","آل عمران",200,"يَا أَيُّهَا الَّذِينَ آمَنُواْ اصْبِرُواْ وَصَابِرُواْ وَرَابِطُواْ وَاتَّقُواْ اللّهَ لَعَلَّكُمْ تُفْلِحُونَ "]
[null,134,"السابع عشر",null,6,"الحج",19,"هذان خصمان اختصموا","الحج",37,"لَن يَنَالَ اللَّهَ لُحُومُهَا وَلَا دِمَاؤُهَا وَلَكِن يَنَالُهُ التَّقْوَى مِنكُمْ كَذَلِكَ سَخَّرَهَا لَكُمْ لِتُكَبِّرُوا اللَّهَ عَلَى مَا هَدَاكُمْ وَبَشِّرِ الْمُحْسِنِينَ ","الأنبياء",83,"وأيوب إذ نادى ربه","الحج",18,"أَلَمْ تَرَ أَنَّ اللَّهَ يَسْجُدُ لَهُ مَن فِي السَّمَاوَاتِ وَمَن فِي الْأَرْضِ وَالشَّمْسُ وَالْقَمَرُ وَالنُّجُومُ وَالْجِبَالُ وَالشَّجَرُ وَالدَّوَابُّ وَكَثِيرٌ مِّنَ النَّاسِ وَكَثِيرٌ حَقَّ عَلَيْهِ الْعَذَابُ وَمَن يُهِنِ اللَّهُ فَمَا لَهُ مِن مُّكْرِمٍ إِنَّ اللَّهَ يَفْعَلُ مَا يَشَاء ",{"$f":"R111","v":"النساء"},1,"ياأيها الناس اتقوا ربكم","النساء",73,"وَلَئِنْ أَصَابَكُمْ فَضْلٌ مِّنَ الله لَيَقُولَنَّ كَأَن لَّمْ تَكُن بَيْنَكُمْ وَبَيْنَهُ مَوَدَّةٌ يَا لَيتَنِي كُنتُ مَعَهُمْ فَأَفُوزَ فَوْزًا عَظِيمًا "]
[null,135,"السابع عشر",null,7,"الحج",38,"إن الله يدافع عن الذين آمنوا","الحج",59,"لَيُدْخِلَنَّهُم مُّدْخَلًا يَرْضَوْنَهُ وَإِنَّ اللَّهَ لَعَلِيمٌ حَلِيمٌ ","الحج",1,"ياأيها الناس اتقوا ربكم","الحج",37,"لَن يَنَالَ اللَّهَ لُحُومُهَا وَلَا دِمَاؤُهَا وَلَكِن يَنَالُهُ التَّقْوَى مِنكُمْ كَذَلِكَ سَخَّرَهَا لَكُمْ لِتُكَبِّرُوا اللَّهَ عَلَى مَا هَدَاكُمْ وَبَشِّرِ الْمُحْسِنِينَ ",{"$f":"R112","v":"النساء"},74,"فليقاتل فى سبيل الله","النساء",147,"مَّا يَفْعَلُ اللّهُ بِعَذَابِكُمْ إِن شَكَرْتُمْ وَآمَنتُمْ وَكَانَ اللّهُ شَاكِرًا عَلِيمًا "]
[null,136,"السابع عشر",null,8,"الحج",60,"ذلك ومن عاقب بمثل","الحج",78,"وَجَاهِدُوا فِي اللَّهِ حَقَّ جِهَادِهِ هُوَ اجْتَبَاكُمْ وَمَا جَعَلَ عَلَيْكُمْ فِي الدِّينِ مِنْ حَرَجٍ مِّلَّةَ أَبِيكُمْ إِبْرَاهِيمَ هُوَ سَمَّاكُمُ الْمُسْلِمينَ مِن قَبْلُ وَفِي هَذَا لِيَكُونَ الرَّسُولُ شَهِيدًا عَلَيْكُمْ وَتَكُونُوا شُهَدَاء عَلَى النَّاسِ فَأَقِيمُوا الصَّلَاةَ وَآتُوا الزَّكَاةَ وَاعْتَصِمُوا بِاللَّهِ هُوَ مَوْلَاكُمْ فَنِعْمَ الْمَوْلَى وَنِعْمَ النَّصِيرُ ","الحج",19,"هذان خصمان اختصموا","الحج",59,"لَيُدْخِلَنَّهُم مُّدْخَلًا يَرْضَوْنَهُ وَإِنَّ اللَّهَ لَعَلِيمٌ حَلِيمٌ ",{"$f":"R113","v":"النساء"},148,"لايحب الله الجهر بالسوء","المائدة",40,"أَلَمْ تَعْلَمْ أَنَّ اللّهَ لَهُ مُلْكُ السَّمَاوَاتِ وَالأَرْضِ يُعَذِّبُ مَن يَشَاء وَيَغْفِرُ لِمَن يَشَاء وَاللّهُ عَلَى كُلِّ شَيْءٍ قَدِيرٌ "]
["المؤمنون",137,"الثامن عشر",35,1,"المؤمنون",1,"قد أفلح المؤمنون","المؤمنون",35,"أَيَعِدُكُمْ أَنَّكُمْ إِذَا مِتُّمْ وَكُنتُمْ تُرَابًا وَعِظَامًا أَنَّكُم مُّخْرَجُونَ ","الحج",38,"إن الله يدافع عن الذين آمنوا","الحج",78,"وَجَاهِدُوا فِي اللَّهِ حَقَّ جِهَادِهِ هُوَ اجْتَبَاكُمْ وَمَا جَعَلَ عَلَيْكُمْ فِي الدِّينِ مِنْ حَرَجٍ مِّلَّةَ أَبِيكُمْ إِبْرَاهِيمَ هُوَ سَمَّاكُمُ الْمُسْلِمينَ مِن قَبْلُ وَفِي هَذَا لِيَكُونَ الرَّسُولُ شَهِيدًا عَلَيْكُمْ وَتَكُونُوا شُهَدَاء عَلَى النَّاسِ فَأَقِيمُوا الصَّلَاةَ وَآتُوا الزَّكَاةَ وَاعْتَصِمُوا بِاللَّهِ هُوَ مَوْلَاكُمْ فَنِعْمَ الْمَوْلَى وَنِعْمَ النَّصِيرُ ",{"$f":"R114","v":"المائدة"},41,"ياأيها الرسول لا يحزنك","المائدة",108,"ذَلِكَ أَدْنَى أَن يَأْتُواْ بِالشَّهَادَةِ عَلَى وَجْهِهَا أَوْ يَخَافُواْ أَن تُرَدَّ أَيْمَانٌ بَعْدَ أَيْمَانِهِمْ وَاتَّقُوا اللّهَ وَاسْمَعُواْ وَاللّهُ لاَ يَهْدِي الْقَوْمَ الْفَاسِقِينَ "]
[null,138,"الثامن عشر",null,2,"المؤمنون",36,"هيهات هيهات لما توعدون","المؤمنون",74,"وَإِنَّ الَّذِينَ لَا يُؤْمِنُونَ بِالْآخِرَةِ عَنِ الصِّرَاطِ لَنَاكِبُونَ ","الحج",60,"ذلك ومن عاقب بمثل","المؤمنون",35,"أَيَعِدُكُمْ أَنَّكُمْ إِذَا مِتُّمْ وَكُنتُمْ تُرَابًا وَعِظَامًا أَنَّكُم مُّخْرَجُونَ ",{"$f":"R115","v":"المائدة"},109,"يوم يجمع الله الرسل","الأنعام",94,"وَلَقَدْ جِئْتُمُونَا فُرَادَى كَمَا خَلَقْنَاكُمْ أَوَّلَ مَرَّةٍ وَتَرَكْتُم مَّا خَوَّلْنَاكُمْ وَرَاء ظُهُورِكُمْ وَمَا نَرَى مَعَكُمْ شُفَعَاءكُمُ الَّذِينَ زَعَمْتُمْ أَنَّهُمْ فِيكُمْ شُرَكَاء لَقَد تَّقَطَّعَ بَيْنَكُمْ وَضَلَّ عَنكُم مَّا كُنتُمْ تَزْعُمُونَ "]
[null,139,"الثامن عشر",null,3,"المؤمنون",75,"ولو رحمناهم وكشفنا ","المؤمنون",118,"وَقُل رَّبِّ اغْفِرْ وَارْحَمْ وَأَنتَ خَيْرُ الرَّاحِمِينَ ","المؤمنون",1,"قد أفلح المؤمنون","المؤمنون",74,"وَإِنَّ الَّذِينَ لَا يُؤْمِنُونَ بِالْآخِرَةِ عَنِ الصِّرَاطِ لَنَاكِبُونَ ",{"$f":"R116","v":"الأنعام"},95,"إن الله فالق الحب والنوى","الأنعام",165,"وَهُوَ الَّذِي جَعَلَكُمْ خَلاَئِفَ الأَرْضِ وَرَفَعَ بَعْضَكُمْ فَوْقَ بَعْضٍ دَرَجَاتٍ لِّيَبْلُوَكُمْ فِي مَا آتَاكُمْ إِنَّ رَبَّكَ سَرِيعُ الْعِقَابِ وَإِنَّهُ لَغَفُورٌ رَّحِيمٌ "]
["النور",140,"الثامن عشر",null,4,"النور",1,"سورة أنزلناها وفرضناها","النور",20,"وَلَوْلَا فَضْلُ اللَّهِ عَلَيْكُمْ وَرَحْمَتُهُ وَأَنَّ اللَّه رَؤُوفٌ رَحِيمٌ ","المؤمنون",36,"هيهات هيهات لما توعدون","المؤمنون",118,"وَقُل رَّبِّ اغْفِرْ وَارْحَمْ وَأَنتَ خَيْرُ الرَّاحِمِينَ ",{"$f":"R117","v":"الأعراف"},1,"الــمــص","الأعراف",116,"قَالَ أَلْقُوْاْ فَلَمَّا أَلْقَوْاْ سَحَرُواْ أَعْيُنَ النَّاسِ وَاسْتَرْهَبُوهُمْ وَجَاءوا بِسِحْرٍ عَظِيمٍ "]
[null,141,"الثامن عشر",36,5,"النور",21,"ياأيها الذين آمنوا","النور",34,"وَلَقَدْ أَنزَلْنَا إِلَيْكُمْ آيَاتٍ مُّبَيِّنَاتٍ وَمَثَلًا مِّنَ الَّذِينَ خَلَوْا مِن قَبْلِكُمْ وَمَوْعِظَةً لِّلْمُتَّقِينَ ","المؤمنون",75,"ولو رحمناهم وكشفنا ","النور",20,"وَلَوْلَا فَضْلُ اللَّهِ عَلَيْكُمْ وَرَحْمَتُهُ وَأَنَّ اللَّه رَؤُوفٌ رَحِيمٌ ",{"$f":"R118","v":"الأعراف"},117,"وأوحينا إلى موسى","الأعراف",206,"إِنَّ الَّذِينَ عِندَ رَبِّكَ لاَ يَسْتَكْبِرُونَ عَنْ عِبَادَتِهِ وَيُسَبِّحُونَهُ وَلَهُ يَسْجُدُونَ "]
[null,142,"الثامن عشر",null,6,"النور",35,"الله نور السموات والأرض","النور",52,"وَمَن يُطِعِ اللَّهَ وَرَسُولَهُ وَيَخْشَ اللَّهَ وَيَتَّقْهِ فَأُوْلَئِكَ هُمُ الْفَائِزُونَ ","النور",1,"سورة أنزلناها وفرضناها","النور",34,"وَلَقَدْ أَنزَلْنَا إِلَيْكُمْ آيَاتٍ مُّبَيِّنَاتٍ وَمَثَلًا مِّنَ الَّذِينَ خَلَوْا مِن قَبْلِكُمْ وَمَوْعِظَةً لِّلْمُتَّقِينَ ",{"$f":"R119","v":"الأنفال"},1,"يسألونك عن الأنفال","التوبة",18,"إِنَّمَا يَعْمُرُ مَسَاجِدَ اللّهِ مَنْ آمَنَ بِاللّهِ وَالْيَوْمِ الآخِرِ وَأَقَامَ الصَّلاَةَ وَآتَى الزَّكَاةَ وَلَمْ يَخْشَ إِلاَّ اللّهَ فَعَسَى أُوْلَـئِكَ أَن يَكُونُواْ مِنَ الْمُهْتَدِينَ "]
[null,143,"الثامن عشر",null,7,"النور",53,"وأقسموا بالله جهد أيمانهم","النور",64,"أَلَا إِنَّ لِلَّهِ مَا فِي السَّمَاوَاتِ وَالْأَرْضِ قَدْ يَعْلَمُ مَا أَنتُمْ عَلَيْهِ وَيَوْمَ يُرْجَعُونَ إِلَيْهِ فَيُنَبِّئُهُم بِمَا عَمِلُوا وَاللَّهُ بِكُلِّ شَيْءٍ عَلِيمٌ ","النور",21,"ياأيها الذين آمنوا","النور",52,"وَمَن يُطِعِ اللَّهَ وَرَسُولَهُ وَيَخْشَ اللَّهَ وَيَتَّقْهِ فَأُوْلَئِكَ هُمُ الْفَائِزُونَ ",{"$f":"R120","v":"التوبة"},19,"أجعلتم سقاية الحاج","التوبة",92,"وَلاَ عَلَى الَّذِينَ إِذَا مَا أَتَوْكَ لِتَحْمِلَهُمْ قُلْتَ لاَ أَجِدُ مَا أَحْمِلُكُمْ عَلَيْهِ تَوَلَّواْ وَّأَعْيُنُهُمْ تَفِيضُ مِنَ الدَّمْعِ حَزَنًا أَلاَّ يَجِدُواْ مَا يُنفِقُونَ "]
["الفرقان",144,"الثامن عشر",null,8,"الفرقان",1,"تبارك الذى نزل الفرقان","الفرقان",20,"وَما أَرْسَلْنَا قَبْلَكَ مِنَ الْمُرْسَلِينَ إِلَّا إِنَّهُمْ لَيَأْكُلُونَ الطَّعَامَ وَيَمْشُونَ فِي الْأَسْوَاقِ وَجَعَلْنَا بَعْضَكُمْ لِبَعْضٍ فِتْنَةً أَتَصْبِرُونَ وَكَانَ رَبُّكَ بَصِيرًا ","النور",35,"الله نور السموات والأرض","النور",64,"أَلَا إِنَّ لِلَّهِ مَا فِي السَّمَاوَاتِ وَالْأَرْضِ قَدْ يَعْلَمُ مَا أَنتُمْ عَلَيْهِ وَيَوْمَ يُرْجَعُونَ إِلَيْهِ فَيُنَبِّئُهُم بِمَا عَمِلُوا وَاللَّهُ بِكُلِّ شَيْءٍ عَلِيمٌ ",{"$f":"R121","v":"التوبة"},93,"إنما السبيل على الذين","يونس",52,"ثُمَّ قِيلَ لِلَّذِينَ ظَلَمُواْ ذُوقُواْ عَذَابَ الْخُلْدِ هَلْ تُجْزَوْنَ إِلاَّ بِمَا كُنتُمْ تَكْسِبُونَ "]
[null,145,"التاسع عشر",37,1,"الفرقان",21,"وقال الذين لا يرجون لقاءنا","الفرقان",52,"فَلَا تُطِعِ الْكَافِرِينَ وَجَاهِدْهُم بِهِ جِهَادًا كَبِيرًا ","النور",53,"وأقسموا بالله جهد أيمانهم","الفرقان",20,"وَما أَرْسَلْنَا قَبْلَكَ مِنَ الْمُرْسَلِينَ إِلَّا إِنَّهُمْ لَيَأْكُلُونَ الطَّعَامَ وَيَمْشُونَ فِي الْأَسْوَاقِ وَجَعَلْنَا بَعْضَكُمْ لِبَعْضٍ فِتْنَةً أَتَصْبِرُونَ وَكَانَ رَبُّكَ بَصِيرًا ",{"$f":"R122","v":"يونس"},53,"ويستنبئونك أحق هو","هود",40,"حَتَّى إِذَا جَاء أَمْرُنَا وَفَارَ التَّنُّورُ قُلْنَا احْمِلْ فِيهَا مِن كُلٍّ زَوْجَيْنِ اثْنَيْنِ وَأَهْلَكَ إِلاَّ مَن سَبَقَ عَلَيْهِ الْقَوْلُ وَمَنْ آمَنَ وَمَا آمَنَ مَعَهُ إِلاَّ قَلِيلٌ "]
[null,146,"التاسع عشر",null,2,"الفرقان",53,"وهو الذى مرج البحرين","الفرقان",77,"قُلْ مَا يَعْبَأُ بِكُمْ رَبِّي لَوْلَا دُعَاؤُكُمْ فَقَدْ كَذَّبْتُمْ فَسَوْفَ يَكُونُ لِزَامًا ","الفرقان",1,"تبارك الذى نزل الفرقان","الفرقان",52,"فَلَا تُطِعِ الْكَافِرِينَ وَجَاهِدْهُم بِهِ جِهَادًا كَبِيرًا ",{"$f":"R123","v":"هود"},41,"وقال اركبوا فيها بسم الله","يوسف",29,"يُوسُفُ أَعْرِضْ عَنْ هَـذَا وَاسْتَغْفِرِي لِذَنبِكِ إِنَّكِ كُنتِ مِنَ الْخَاطِئِينَ "]
["الشعراء",147,"التاسع عشر",null,3,"الشعراء","2-1","طسم 0 تلك آيات الكتاب","الشعراء",51,"إِنَّا نَطْمَعُ أَن يَغْفِرَ لَنَا رَبُّنَا خَطَايَانَا أَن كُنَّا أَوَّلَ الْمُؤْمِنِينَ ","الفرقان",21,"وقال الذين لا يرجون لقاءنا","الفرقان",77,"قُلْ مَا يَعْبَأُ بِكُمْ رَبِّي لَوْلَا دُعَاؤُكُمْ فَقَدْ كَذَّبْتُمْ فَسَوْفَ يَكُونُ لِزَامًا ","يوسف",30,"وقال نسوة فى المدينة","الرعد",18,"لِلَّذِينَ اسْتَجَابُواْ لِرَبِّهِمُ الْحُسْنَى وَالَّذِينَ لَمْ يَسْتَجِيبُواْ لَهُ لَوْ أَنَّ لَهُم مَّا فِي الأَرْضِ جَمِيعًا وَمِثْلَهُ مَعَهُ لاَفْتَدَوْاْ بِهِ أُوْلَـئِكَ لَهُمْ سُوءُ الْحِسَابِ وَمَأْوَاهُمْ جَهَنَّمُ وَبِئْسَ الْمِهَادُ "]
[null,148,"التاسع عشر",null,4,"الشعراء",52,"وأوحينا إلى موسى أن أسرى","الشعراء",110,"فَاتَّقُوا اللَّهَ وَأَطِيعُونِ ","الفرقان",53,"وهو الذى مرج البحرين","الشعراء",51,"إِنَّا نَطْمَعُ أَن يَغْفِرَ لَنَا رَبُّنَا خَطَايَانَا أَن كُنَّا أَوَّلَ الْمُؤْمِنِينَ ",{"$f":"R125","v":"الرعد"},19,"أفمن يعلم أنما أنزل","الحجر",48,"لاَ يَمَسُّهُمْ فِيهَا نَصَبٌ وَمَا هُم مِّنْهَا بِمُخْرَجِينَ "]
[null,149,"التاسع عشر",38,5,"الشعراء",111,"قالوا أنؤمن لك واتبعك","الشعراء",180,"وَمَا أَسْأَلُكُمْ عَلَيْهِ مِنْ أَجْرٍ إِنْ أَجْرِيَ إِلَّا عَلَى رَبِّ الْعَالَمِينَ ","الشعراء","2-1","طسم 0 تلك آيات الكتاب","الشعراء",110,"فَاتَّقُوا اللَّهَ وَأَطِيعُونِ ",{"$f":"R126","v":"الحجر"},49,"نبىء عبادى أنى أنا الغفور","النحل",89,"وَيَوْمَ نَبْعَثُ فِي كُلِّ أُمَّةٍ شَهِيدًا عَلَيْهِم مِّنْ أَنفُسِهِمْ وَجِئْنَا بِكَ شَهِيدًا عَلَى هَـؤُلاء وَنَزَّلْنَا عَلَيْكَ الْكِتَابَ تِبْيَانًا لِّكُلِّ شَيْءٍ وَهُدًى وَرَحْمَةً وَبُشْرَى لِلْمُسْلِمِينَ "]
[null,150,"التاسع عشر",null,6,"الشعراء",181,"أوفوا الكيل ولا تكونوا","الشعراء",227,"إِلَّا الَّذِينَ آمَنُوا وَعَمِلُوا الصَّالِحَاتِ وَذَكَرُوا اللَّهَ كَثِيرًا وَانتَصَرُوا مِن بَعْدِ مَا ظُلِمُوا وَسَيَعْلَمُ الَّذِينَ ظَلَمُوا أَيَّ مُنقَلَبٍ يَنقَلِبُونَ ","الشعراء",52,"وأوحينا إلى موسى أن أسرى","الشعراء",180,"وَمَا أَسْأَلُكُمْ عَلَيْهِ مِنْ أَجْرٍ إِنْ أَجْرِيَ إِلَّا عَلَى رَبِّ الْعَالَمِينَ ",{"$f":"R127","v":"النحل"},90,"إن الله يأمر بالعدل","الإسراء",69,"أَمْ أَمِنتُمْ أَن يُعِيدَكُمْ فِيهِ تَارَةً أُخْرَى فَيُرْسِلَ عَلَيْكُمْ قَاصِفا مِّنَ الرِّيحِ فَيُغْرِقَكُم بِمَا كَفَرْتُمْ ثُمَّ لاَ تَجِدُواْ لَكُمْ عَلَيْنَا بِهِ تَبِيعًا "]
["النمل",151,"التاسع عشر",null,7,"النمل",1,"طسم 0 تلك آيات القرآن","النمل",26,"اللَّهُ لَا إِلَهَ إِلَّا هُوَ رَبُّ الْعَرْشِ الْعَظِيمِ ","الشعراء",111,"قالوا أنؤمن لك واتبعك","الشعراء",227,"إِلَّا الَّذِينَ آمَنُوا وَعَمِلُوا الصَّالِحَاتِ وَذَكَرُوا اللَّهَ كَثِيرًا وَانتَصَرُوا مِن بَعْدِ مَا ظُلِمُوا وَسَيَعْلَمُ الَّذِينَ ظَلَمُوا أَيَّ مُنقَلَبٍ يَنقَلِبُونَ ",{"$f":"R128","v":"الإسراء"},70,"ولقد كرمنا بنى آدم","الكهف",74,"فَانطَلَقَا حَتَّى إِذَا لَقِيَا غُلَامًا فَقَتَلَهُ قَالَ أَقَتَلْتَ نَفْسًا زَكِيَّةً بِغَيْرِ نَفْسٍ لَّقَدْ جِئْتَ شَيْئًا نُّكْرًا "]
[null,152,"التاسع عشر",null,8,"النمل",27,"قال سننظر أصدقت أم كنت","النمل",55,"أَئِنَّكُمْ لَتَأْتُونَ الرِّجَالَ شَهْوَةً مِّن دُونِ النِّسَاء بَلْ أَنتُمْ قَوْمٌ تَجْهَلُونَ ","الشعراء",181,"أوفوا الكيل ولا تكونوا","النمل",26,"اللَّهُ لَا إِلَهَ إِلَّا هُوَ رَبُّ الْعَرْشِ الْعَظِيمِ ",{"$f":"R129","v":"الكهف"},75,"قال ألم أقل لك إنك لن","طه",54,"كُلُوا وَارْعَوْا أَنْعَامَكُمْ إِنَّ فِي ذَلِكَ لَآيَاتٍ لِّأُوْلِي النُّهَى "]
[null,153,"العشرون",39,1,"النمل",56,"فما كان جواب قومه","النمل",81,"وَمَا أَنتَ بِهَادِي الْعُمْيِ عَن ضَلَالَتِهِمْ إِن تُسْمِعُ إِلَّا مَن يُؤْمِنُ بِآيَاتِنَا فَهُم مُّسْلِمُونَ ","النمل",1,"طسم 0 تلك آيات القرآن","النمل",55,"أَئِنَّكُمْ لَتَأْتُونَ الرِّجَالَ شَهْوَةً مِّن دُونِ النِّسَاء بَلْ أَنتُمْ قَوْمٌ تَجْهَلُونَ ",{"$f":"F128","v":"طه"},{"$f":"G128","v":55},{"$f":"H128","v":"منها خلقناكم وفيها نعيدكم"},{"$f":"I132","v":"الأنبياء"},{"$f":"J132","v":50},{"$f":"K132","v":"وَهَذَا ذِكْرٌ مُّبَارَكٌ أَنزَلْنَاهُ أَفَأَنتُمْ لَهُ مُنكِرُونَ "}]
[null,154,"العشرون",null,2,"النمل",82,"وإذا وقع القول عليهم","القصص",11,"وَقَالَتْ لِأُخْتِهِ قُصِّيهِ فَبَصُرَتْ بِهِ عَن جُنُبٍ وَهُمْ لَا يَشْعُرُونَ ","النمل",27,"قال سننظر أصدقت أم كنت","النمل",81,"وَمَا أَنتَ بِهَادِي الْعُمْيِ عَن ضَلَالَتِهِمْ إِن تُسْمِعُ إِلَّا مَن يُؤْمِنُ بِآيَاتِنَا فَهُم مُّسْلِمُونَ ",{"$f":"F133","v":"الأنبياء"},{"$f":"G133","v":51},{"$f":"H133","v":"ولقد آتينا إبراهيم رشده"},{"$f":"I137","v":"الحج"},{"$f":"J137","v":59},{"$f":"K137","v":"لَيُدْخِلَنَّهُم مُّدْخَلًا يَرْضَوْنَهُ وَإِنَّ اللَّهَ لَعَلِيمٌ حَلِيمٌ "}]
["القصص",155,"العشرون",null,3,"القصص",12,"وحرمنا عليه المراضع","القصص",28,"قَالَ ذَلِكَ بَيْنِي وَبَيْنَكَ أَيَّمَا الْأَجَلَيْنِ قَضَيْتُ فَلَا عُدْوَانَ عَلَيَّ وَاللَّهُ عَلَى مَا نَقُولُ وَكِيلٌ ","النمل",56,"فما كان جواب قومه","القصص",11,"وَقَالَتْ لِأُخْتِهِ قُصِّيهِ فَبَصُرَتْ بِهِ عَن جُنُبٍ وَهُمْ لَا يَشْعُرُونَ ",{"$f":"F138","v":"الحج"},{"$f":"G138","v":60},{"$f":"H138","v":"ذلك ومن عاقب بمثل"},{"$f":"I142","v":"النور"},{"$f":"J142","v":20},{"$f":"K142","v":"وَلَوْلَا فَضْلُ اللَّهِ عَلَيْكُمْ وَرَحْمَتُهُ وَأَنَّ اللَّه رَؤُوفٌ رَحِيمٌ "}]
[null,156,"العشرون",null,4,"القصص",29,"فلما قضى موسى الأجل","القصص",51,"وَلَقَدْ وَصَّلْنَا لَهُمُ الْقَوْلَ لَعَلَّهُمْ يَتَذَكَّرُونَ ","النمل",82,"وإذا وقع القول عليهم","القصص",28,"قَالَ ذَلِكَ بَيْنِي وَبَيْنَكَ أَيَّمَا الْأَجَلَيْنِ قَضَيْتُ فَلَا عُدْوَانَ عَلَيَّ وَاللَّهُ عَلَى مَا نَقُولُ وَكِيلٌ ",{"$f":"F143","v":"النور"},{"$f":"G143","v":21},{"$f":"H143","v":"ياأيها الذين آمنوا"},{"$f":"I147","v":"الفرقان"},{"$f":"J147","v":52},{"$f":"K147","v":"فَلَا تُطِعِ الْكَافِرِينَ وَجَاهِدْهُم بِهِ جِهَادًا كَبِيرًا "}]
[null,157,"العشرون",40,5,"القصص",52,"ولقد وصلنا لهم القول","القصص",75,"وَنَزَعْنَا مِن كُلِّ أُمَّةٍ شَهِيدًا فَقُلْنَا هَاتُوا بُرْهَانَكُمْ فَعَلِمُوا أَنَّ الْحَقَّ لِلَّهِ وَضَلَّ عَنْهُم مَّا كَانُوا يَفْتَرُونَ ","القصص",12,"وحرمنا عليه المراضع","القصص",51,"وَلَقَدْ وَصَّلْنَا لَهُمُ الْقَوْلَ لَعَلَّهُمْ يَتَذَكَّرُونَ ",{"$f":"F148","v":"الفرقان"},{"$f":"G148","v":53},{"$f":"H148","v":"وهو الذى مرج البحرين"},{"$f":"I152","v":"الشعراء"},{"$f":"J152","v":227},{"$f":"K152","v":"إِلَّا الَّذِينَ آمَنُوا وَعَمِلُوا الصَّالِحَاتِ وَذَكَرُوا اللَّهَ كَثِيرًا وَانتَصَرُوا مِن بَعْدِ مَا ظُلِمُوا وَسَيَعْلَمُ الَّذِينَ ظَلَمُوا أَيَّ مُنقَلَبٍ يَنقَلِبُونَ "}]
[null,158,"العشرون",null,6,"القصص",76,"إن قارون كان من قوم","القصص",88,"وَلَا تَدْعُ مَعَ اللَّهِ إِلَهًا آخَرَ لَا إِلَهَ إِلَّا هُوَ كُلُّ شَيْءٍ هَالِكٌ إِلَّا وَجْهَهُ لَهُ الْحُكْمُ وَإِلَيْهِ تُرْجَعُونَ ","القصص",29,"فلما قضى موسى الأجل","القصص",75,"وَنَزَعْنَا مِن كُلِّ أُمَّةٍ شَهِيدًا فَقُلْنَا هَاتُوا بُرْهَانَكُمْ فَعَلِمُوا أَنَّ الْحَقَّ لِلَّهِ وَضَلَّ عَنْهُم مَّا كَانُوا يَفْتَرُونَ ",{"$f":"F153","v":"النمل"},{"$f":"G153","v":1},{"$f":"H153","v":"طسم 0 تلك آيات القرآن"},{"$f":"I157","v":"القصص"},{"$f":"J157","v":28},{"$f":"K157","v":"قَالَ ذَلِكَ بَيْنِي وَبَيْنَكَ أَيَّمَا الْأَجَلَيْنِ قَضَيْتُ فَلَا عُدْوَانَ عَلَيَّ وَاللَّهُ عَلَى مَا نَقُولُ وَكِيلٌ "}]
["العنكبوت",159,"العشرون",null,7,"العنكبوت","2-1","الم 0 أحسب الناس أن يتركوا","العنكبوت",25,"وَقَالَ إِنَّمَا اتَّخَذْتُم مِّن دُونِ اللَّهِ أَوْثَانًا مَّوَدَّةَ بَيْنِكُمْ فِي الْحَيَاةِ الدُّنْيَا ثُمَّ يَوْمَ الْقِيَامَةِ يَكْفُرُ بَعْضُكُم بِبَعْضٍ وَيَلْعَنُ بَعْضُكُم بَعْضًا وَمَأْوَاكُمُ النَّارُ وَمَا لَكُم مِّن نَّاصِرِينَ ","القصص",52,"ولقد وصلنا لهم القول","القصص",88,"وَلَا تَدْعُ مَعَ اللَّهِ إِلَهًا آخَرَ لَا إِلَهَ إِلَّا هُوَ كُلُّ شَيْءٍ هَالِكٌ إِلَّا وَجْهَهُ لَهُ الْحُكْمُ وَإِلَيْهِ تُرْجَعُونَ ",{"$f":"R130","v":"الفاتحة"},1,"بسم الله الرحمن الرحيم","البقرة",91,"وَإِذَا قِيلَ لَهُمْ آمِنُواْ بِمَا أَنزَلَ اللّهُ قَالُواْ نُؤْمِنُ بِمَآ أُنزِلَ عَلَيْنَا وَيَكْفُرونَ بِمَا وَرَاءهُ وَهُوَ الْحَقُّ مُصَدِّقاً لِّمَا مَعَهُمْ قُلْ فَلِمَ تَقْتُلُونَ أَنبِيَاء اللّهِ مِن قَبْلُ إِن كُنتُم مُّؤْمِنِينَ"]
[null,160,"العشرون",null,8,"العنكبوت",26,"فأمن له لوط","العنكبوت",45,"اتْلُ مَا أُوحِيَ إِلَيْكَ مِنَ الْكِتَابِ وَأَقِمِ الصَّلَاةَ إِنَّ الصَّلَاةَ تَنْهَى عَنِ الْفَحْشَاء وَالْمُنكَرِ وَلَذِكْرُ اللَّهِ أَكْبَرُ وَاللَّهُ يَعْلَمُ مَا تَصْنَعُونَ ","القصص",76,"إن قارون كان من قوم","العنكبوت",25,"وَقَالَ إِنَّمَا اتَّخَذْتُم مِّن دُونِ اللَّهِ أَوْثَانًا مَّوَدَّةَ بَيْنِكُمْ فِي الْحَيَاةِ الدُّنْيَا ثُمَّ يَوْمَ الْقِيَامَةِ يَكْفُرُ بَعْضُكُم بِبَعْضٍ وَيَلْعَنُ بَعْضُكُم بَعْضًا وَمَأْوَاكُمُ النَّارُ وَمَا لَكُم مِّن نَّاصِرِينَ ",{"$f":"R131","v":"البقرة"},92,"ولقد جاءكم موسى","البقرة",176,"ذَلِكَ بِأَنَّ اللّهَ نَزَّلَ الْكِتَابَ بِالْحَقِّ وَإِنَّ الَّذِينَ اخْتَلَفُواْ فِي الْكِتَابِ لَفِي شِقَاقٍ بَعِيدٍ"]
[null,161,"الحادى  والعشرون",41,1,"العنكبوت",46,"ولا تجادل أهل الكتاب إلا","العنكبوت",69,"وَالَّذِينَ جَاهَدُوا فِينَا لَنَهْدِيَنَّهُمْ سُبُلَنَا وَإِنَّ اللَّهَ لَمَعَ الْمُحْسِنِينَ ","العنكبوت","2-1","الم 0 أحسب الناس أن يتركوا","العنكبوت",45,"اتْلُ مَا أُوحِيَ إِلَيْكَ مِنَ الْكِتَابِ وَأَقِمِ الصَّلَاةَ إِنَّ الصَّلَاةَ تَنْهَى عَنِ الْفَحْشَاء وَالْمُنكَرِ وَلَذِكْرُ اللَّهِ أَكْبَرُ وَاللَّهُ يَعْلَمُ مَا تَصْنَعُونَ ",{"$f":"R132","v":"البقرة"},177,"ليس البر أن تولوا","البقرة",242,"كَذَلِكَ يُبَيِّنُ اللّهُ لَكُمْ آيَاتِهِ لَعَلَّكُمْ تَعْقِلُونَ"]
["الروم",162,"الحادى  والعشرون",null,2,"الروم","2-1","ألم 0 غلبت الروم","الروم",30,"فَأَقِمْ وَجْهَكَ لِلدِّينِ حَنِيفًا فِطْرَةَ اللَّهِ الَّتِي فَطَرَ النَّاسَ عَلَيْهَا لَا تَبْدِيلَ لِخَلْقِ اللَّهِ ذَلِكَ الدِّينُ الْقَيِّمُ وَلَكِنَّ أَكْثَرَ النَّاسِ لَا يَعْلَمُونَ ","العنكبوت",26,"فأمن له لوط","العنكبوت",69,"وَالَّذِينَ جَاهَدُوا فِينَا لَنَهْدِيَنَّهُمْ سُبُلَنَا وَإِنَّ اللَّهَ لَمَعَ الْمُحْسِنِينَ ",{"$f":"R133","v":"البقرة"},243,"الم تر إلى الذين خرجوا","آل عمران",14,"زُيِّنَ لِلنَّاسِ حُبُّ الشَّهَوَاتِ مِنَ النِّسَاء وَالْبَنِينَ وَالْقَنَاطِيرِ الْمُقَنطَرَةِ مِنَ الذَّهَبِ وَالْفِضَّةِ وَالْخَيْلِ الْمُسَوَّمَةِ وَالأَنْعَامِ وَالْحَرْثِ ذَلِكَ مَتَاعُ الْحَيَاةِ الدُّنْيَا وَاللّهُ عِندَهُ حُسْنُ الْمَآبِ "]
[null,163,"الحادى  والعشرون",null,3,"الروم",31,"منيبين إليه واتقوه وأقيموا","الروم",53,"وَمَا أَنتَ بِهَادِي الْعُمْيِ عَن ضَلَالَتِهِمْ إِن تُسْمِعُ إِلَّا مَن يُؤْمِنُ بِآيَاتِنَا فَهُم مُّسْلِمُونَ ","العنكبوت",46,"ولا تجادل أهل الكتاب إلا","الروم",30,"فَأَقِمْ وَجْهَكَ لِلدِّينِ حَنِيفًا فِطْرَةَ اللَّهِ الَّتِي فَطَرَ النَّاسَ عَلَيْهَا لَا تَبْدِيلَ لِخَلْقِ اللَّهِ ذَلِكَ الدِّينُ الْقَيِّمُ وَلَكِنَّ أَكْثَرَ النَّاسِ لَا يَعْلَمُونَ ",{"$f":"R134","v":"آل عمران"},15,"قل أؤنبئكم بخير","آل عمران",112,"ضُرِبَتْ عَلَيْهِمُ الذِّلَّةُ أَيْنَ مَا ثُقِفُواْ إِلاَّ بِحَبْلٍ مِّنْ اللّهِ وَحَبْلٍ مِّنَ النَّاسِ وَبَآؤُوا بِغَضَبٍ مِّنَ اللّهِ وَضُرِبَتْ عَلَيْهِمُ الْمَسْكَنَةُ ذَلِكَ بِأَنَّهُمْ كَانُواْ يَكْفُرُونَ بِآيَاتِ اللّهِ وَيَقْتُلُونَ الأَنبِيَاء بِغَيْرِ حَقٍّ ذَلِكَ بِمَا عَصَوا وَّكَانُواْ يَعْتَدُونَ "]
[null,164,"الحادى  والعشرون",null,4,"الروم",54,"الله الذى خلقكم من ضعف","لقمان ",21,"وَإِذَا قِيلَ لَهُمُ اتَّبِعُوا مَا أَنزَلَ اللَّهُ قَالُوا بَلْ نَتَّبِعُ مَا وَجَدْنَا عَلَيْهِ آبَاءنَا أَوَلَوْ كَانَ الشَّيْطَانُ يَدْعُوهُمْ إِلَى عَذَابِ السَّعِيرِ ","الروم","2-1","ألم 0 غلبت الروم","الروم",53,"وَمَا أَنتَ بِهَادِي الْعُمْيِ عَن ضَلَالَتِهِمْ إِن تُسْمِعُ إِلَّا مَن يُؤْمِنُ بِآيَاتِنَا فَهُم مُّسْلِمُونَ ",{"$f":"R135","v":"آل عمران"},113,"ليسوا سواء","آل عمران",200,"يَا أَيُّهَا الَّذِينَ آمَنُواْ اصْبِرُواْ وَصَابِرُواْ وَرَابِطُواْ وَاتَّقُواْ اللّهَ لَعَلَّكُمْ تُفْلِحُونَ "]
["لقمان ",165,"الحادى  والعشرون",42,5,"لقمان ",22,"ومن يسلم وجهه إلى الله","السجدة",10,"وَقَالُوا أَئِذَا ضَلَلْنَا فِي الْأَرْضِ أَئِنَّا لَفِي خَلْقٍ جَدِيدٍ بَلْ هُم بِلِقَاء رَبِّهِمْ كَافِرُونَ ","الروم",31,"منيبين إليه واتقوه وأقيموا","لقمان ",21,"وَإِذَا قِيلَ لَهُمُ اتَّبِعُوا مَا أَنزَلَ اللَّهُ قَالُوا بَلْ نَتَّبِعُ مَا وَجَدْنَا عَلَيْهِ آبَاءنَا أَوَلَوْ كَانَ الشَّيْطَانُ يَدْعُوهُمْ إِلَى عَذَابِ السَّعِيرِ ",{"$f":"R136","v":"النساء"},1,"ياأيها الناس اتقوا ربكم","النساء",73,"وَلَئِنْ أَصَابَكُمْ فَضْلٌ مِّنَ الله لَيَقُولَنَّ كَأَن لَّمْ تَكُن بَيْنَكُمْ وَبَيْنَهُ مَوَدَّةٌ يَا لَيتَنِي كُنتُ مَعَهُمْ فَأَفُوزَ فَوْزًا عَظِيمًا "]
["السجدة",166,"الحادى  والعشرون",null,6,"السجدة",11,"قل يتوفاكم ملك الموت","السجدة",30,"فَأَعْرِضْ عَنْهُمْ وَانتَظِرْ إِنَّهُم مُّنتَظِرُونَ ","الروم",54,"الله الذى خلقكم من ضعف","السجدة",10,"وَقَالُوا أَئِذَا ضَلَلْنَا فِي الْأَرْضِ أَئِنَّا لَفِي خَلْقٍ جَدِيدٍ بَلْ هُم بِلِقَاء رَبِّهِمْ كَافِرُونَ ",{"$f":"R137","v":"النساء"},74,"فليقاتل فى سبيل الله","النساء",147,"مَّا يَفْعَلُ اللّهُ بِعَذَابِكُمْ إِن شَكَرْتُمْ وَآمَنتُمْ وَكَانَ اللّهُ شَاكِرًا عَلِيمًا "]
["الأحزاب",167,"الحادى  والعشرون",null,7,"الأحزاب",1,"ياأيها النبى اتق الله","الأحزاب",17,"قُلْ مَن ذَا الَّذِي يَعْصِمُكُم مِّنَ اللَّهِ إِنْ أَرَادَ بِكُمْ سُوءًا أَوْ أَرَادَ بِكُمْ رَحْمَةً وَلَا يَجِدُونَ لَهُم مِّن دُونِ اللَّهِ وَلِيًّا وَلَا نَصِيرًا ","لقمان ",22,"ومن يسلم وجهه إلى الله","السجدة",30,"فَأَعْرِضْ عَنْهُمْ وَانتَظِرْ إِنَّهُم مُّنتَظِرُونَ ",{"$f":"R138","v":"النساء"},148,"لايحب الله الجهر بالسوء","المائدة",40,"أَلَمْ تَعْلَمْ أَنَّ اللّهَ لَهُ مُلْكُ السَّمَاوَاتِ وَالأَرْضِ يُعَذِّبُ مَن يَشَاء وَيَغْفِرُ لِمَن يَشَاء وَاللّهُ عَلَى كُلِّ شَيْءٍ قَدِيرٌ "]
[null,168,"الحادى  والعشرون",null,8,"الأحزاب",18,"قد يعلم الله المعوقين منكم","الأحزاب",30,"يَا نِسَاء النَّبِيِّ مَن يَأْتِ مِنكُنَّ بِفَاحِشَةٍ مُّبَيِّنَةٍ يُضَاعَفْ لَهَا الْعَذَابُ ضِعْفَيْنِ وَكَانَ ذَلِكَ عَلَى اللَّهِ يَسِيرًا ","السجدة",11,"قل يتوفاكم ملك الموت","الأحزاب",17,"قُلْ مَن ذَا الَّذِي يَعْصِمُكُم مِّنَ اللَّهِ إِنْ أَرَادَ بِكُمْ سُوءًا أَوْ أَرَادَ بِكُمْ رَحْمَةً وَلَا يَجِدُونَ لَهُم مِّن دُونِ اللَّهِ وَلِيًّا وَلَا نَصِيرًا ",{"$f":"R139","v":"المائدة"},41,"ياأيها الرسول لا يحزنك","المائدة",108,"ذَلِكَ أَدْنَى أَن يَأْتُواْ بِالشَّهَادَةِ عَلَى وَجْهِهَا أَوْ يَخَافُواْ أَن تُرَدَّ أَيْمَانٌ بَعْدَ أَيْمَانِهِمْ وَاتَّقُوا اللّهَ وَاسْمَعُواْ وَاللّهُ لاَ يَهْدِي الْقَوْمَ الْفَاسِقِينَ "]
[null,169,"الثانى والعشرون",43,1,"الأحزاب",31,"ومن يقنت منكن لله","الأحزاب",50,"يَا أَيُّهَا النَّبِيُّ إِنَّا أَحْلَلْنَا لَكَ أَزْوَاجَكَ اللَّاتِي آتَيْتَ أُجُورَهُنَّ وَمَا مَلَكَتْ يَمِينُكَ مِمَّا أَفَاء اللَّهُ عَلَيْكَ وَبَنَاتِ عَمِّكَ وَبَنَاتِ عَمَّاتِكَ وَبَنَاتِ خَالِكَ وَبَنَاتِ خَالَاتِكَ اللَّاتِي هَاجَرْنَ مَعَكَ وَامْرَأَةً مُّؤْمِنَةً إِن وَهَبَتْ نَفْسَهَا لِلنَّبِيِّ إِنْ أَرَادَ النَّبِيُّ أَن يَسْتَنكِحَهَا خَالِصَةً لَّكَ مِن دُونِ الْمُؤْمِنِينَ قَدْ عَلِمْنَا مَا فَرَضْنَا عَلَيْهِمْ فِي أَزْوَاجِهِمْ وَمَا مَلَكَتْ أَيْمَانُهُمْ لِكَيْلَا يَكُونَ عَلَيْكَ حَرَجٌ وَكَانَ اللَّهُ غَفُورًا رَّحِيمًا ","الأحزاب",1,"ياأيها النبى اتق الله","الأحزاب",30,"يَا نِسَاء النَّبِيِّ مَن يَأْتِ مِنكُنَّ بِفَاحِشَةٍ مُّبَيِّنَةٍ يُضَاعَفْ لَهَا الْعَذَابُ ضِعْفَيْنِ وَكَانَ ذَلِكَ عَلَى اللَّهِ يَسِيرًا ",{"$f":"R140","v":"المائدة"},109,"يوم يجمع الله الرسل","الأنعام",94,"وَلَقَدْ جِئْتُمُونَا فُرَادَى كَمَا خَلَقْنَاكُمْ أَوَّلَ مَرَّةٍ وَتَرَكْتُم مَّا خَوَّلْنَاكُمْ وَرَاء ظُهُورِكُمْ وَمَا نَرَى مَعَكُمْ شُفَعَاءكُمُ الَّذِينَ زَعَمْتُمْ أَنَّهُمْ فِيكُمْ شُرَكَاء لَقَد تَّقَطَّعَ بَيْنَكُمْ وَضَلَّ عَنكُم مَّا كُنتُمْ تَزْعُمُونَ "]
[null,170,"الثانى والعشرون",null,2,"الأحزاب",51,"تُرجى من تشآء منهن","الأحزاب",59,"يَا أَيُّهَا النَّبِيُّ قُل لِّأَزْوَاجِكَ وَبَنَاتِكَ وَنِسَاء الْمُؤْمِنِينَ يُدْنِينَ عَلَيْهِنَّ مِن جَلَابِيبِهِنَّ ذَلِكَ أَدْنَى أَن يُعْرَفْنَ فَلَا يُؤْذَيْنَ وَكَانَ اللَّهُ غَفُورًا رَّحِيمًا ","الأحزاب",18,"قد يعلم الله المعوقين منكم","الأحزاب",50,"يَا أَيُّهَا النَّبِيُّ إِنَّا أَحْلَلْنَا لَكَ أَزْوَاجَكَ اللَّاتِي آتَيْتَ أُجُورَهُنَّ وَمَا مَلَكَتْ يَمِينُكَ مِمَّا أَفَاء اللَّهُ عَلَيْكَ وَبَنَاتِ عَمِّكَ وَبَنَاتِ عَمَّاتِكَ وَبَنَاتِ خَالِكَ وَبَنَاتِ خَالَاتِكَ اللَّاتِي هَاجَرْنَ مَعَكَ وَامْرَأَةً مُّؤْمِنَةً إِن وَهَبَتْ نَفْسَهَا لِلنَّبِيِّ إِنْ أَرَادَ النَّبِيُّ أَن يَسْتَنكِحَهَا خَالِصَةً لَّكَ مِن دُونِ الْمُؤْمِنِينَ قَدْ عَلِمْنَا مَا فَرَضْنَا عَلَيْهِمْ فِي أَزْوَاجِهِمْ وَمَا مَلَكَتْ أَيْمَانُهُمْ لِكَيْلَا يَكُونَ عَلَيْكَ حَرَجٌ وَكَانَ اللَّهُ غَفُورًا رَّحِيمًا ",{"$f":"R141","v":"الأنعام"},95,"إن الله فالق الحب والنوى","الأنعام",165,"وَهُوَ الَّذِي جَعَلَكُمْ خَلاَئِفَ الأَرْضِ وَرَفَعَ بَعْضَكُمْ فَوْقَ بَعْضٍ دَرَجَاتٍ لِّيَبْلُوَكُمْ فِي مَا آتَاكُمْ إِنَّ رَبَّكَ سَرِيعُ الْعِقَابِ وَإِنَّهُ لَغَفُورٌ رَّحِيمٌ "]
[null,171,"الثانى والعشرون",null,3,"الأحزاب",60,"لئن لم نته المنافقون","سبأ",9,"أَفَلَمْ يَرَوْا إِلَى مَا بَيْنَ أَيْدِيهِمْ وَمَا خَلْفَهُم مِّنَ السَّمَاء وَالْأَرْضِ إِن نَّشَأْ نَخْسِفْ بِهِمُ الْأَرْضَ أَوْ نُسْقِطْ عَلَيْهِمْ كِسَفًا مِّنَ السَّمَاء إِنَّ فِي ذَلِكَ لَآيَةً لِّكُلِّ عَبْدٍ مُّنِيبٍ ","الأحزاب",31,"ومن يقنت منكن لله","الأحزاب",59,"يَا أَيُّهَا النَّبِيُّ قُل لِّأَزْوَاجِكَ وَبَنَاتِكَ وَنِسَاء الْمُؤْمِنِينَ يُدْنِينَ عَلَيْهِنَّ مِن جَلَابِيبِهِنَّ ذَلِكَ أَدْنَى أَن يُعْرَفْنَ فَلَا يُؤْذَيْنَ وَكَانَ اللَّهُ غَفُورًا رَّحِيمًا ",{"$f":"R142","v":"الأعراف"},1,"الــمــص","الأعراف",116,"قَالَ أَلْقُوْاْ فَلَمَّا أَلْقَوْاْ سَحَرُواْ أَعْيُنَ النَّاسِ وَاسْتَرْهَبُوهُمْ وَجَاءوا بِسِحْرٍ عَظِيمٍ "]
["سبأ",172,"الثانى والعشرون",null,4,"سبأ",10,"ولقد آتينا داو ود منا فضلا","سبأ",23,"وَلَا تَنفَعُ الشَّفَاعَةُ عِندَهُ إِلَّا لِمَنْ أَذِنَ لَهُ حَتَّى إِذَا فُزِّعَ عَن قُلُوبِهِمْ قَالُوا مَاذَا قَالَ رَبُّكُمْ قَالُوا الْحَقَّ وَهُوَ الْعَلِيُّ الْكَبِيرُ ","الأحزاب",51,"تُرجى من تشآء منهن","سبأ",9,"أَفَلَمْ يَرَوْا إِلَى مَا بَيْنَ أَيْدِيهِمْ وَمَا خَلْفَهُم مِّنَ السَّمَاء وَالْأَرْضِ إِن نَّشَأْ نَخْسِفْ بِهِمُ الْأَرْضَ أَوْ نُسْقِطْ عَلَيْهِمْ كِسَفًا مِّنَ السَّمَاء إِنَّ فِي ذَلِكَ لَآيَةً لِّكُلِّ عَبْدٍ مُّنِيبٍ ",{"$f":"R143","v":"الأعراف"},117,"وأوحينا إلى موسى","الأعراف",206,"إِنَّ الَّذِينَ عِندَ رَبِّكَ لاَ يَسْتَكْبِرُونَ عَنْ عِبَادَتِهِ وَيُسَبِّحُونَهُ وَلَهُ يَسْجُدُونَ "]
[null,173,"الثانى والعشرون",44,5,"سبأ",24,"قل من يرزقكم من السماء","سبأ",45,"وَكَذَّبَ الَّذِينَ مِن قَبْلِهِمْ وَمَا بَلَغُوا مِعْشَارَ مَا آتَيْنَاهُمْ فَكَذَّبُوا رُسُلِي فَكَيْفَ كَانَ نَكِيرِ ","الأحزاب",60,"لئن لم نته المنافقون","سبأ",23,"وَلَا تَنفَعُ الشَّفَاعَةُ عِندَهُ إِلَّا لِمَنْ أَذِنَ لَهُ حَتَّى إِذَا فُزِّعَ عَن قُلُوبِهِمْ قَالُوا مَاذَا قَالَ رَبُّكُمْ قَالُوا الْحَقَّ وَهُوَ الْعَلِيُّ الْكَبِيرُ ",{"$f":"R144","v":"الأنفال"},1,"يسألونك عن الأنفال","التوبة",18,"إِنَّمَا يَعْمُرُ مَسَاجِدَ اللّهِ مَنْ آمَنَ بِاللّهِ وَالْيَوْمِ الآخِرِ وَأَقَامَ الصَّلاَةَ وَآتَى الزَّكَاةَ وَلَمْ يَخْشَ إِلاَّ اللّهَ فَعَسَى أُوْلَـئِكَ أَن يَكُونُواْ مِنَ الْمُهْتَدِينَ "]
[null,174,"الثانى والعشرون",null,6,"سبأ",46,"قل إنما أعظكم بواحدة","فاطر",14,"إِن تَدْعُوهُمْ لَا يَسْمَعُوا دُعَاءكُمْ وَلَوْ سَمِعُوا مَا اسْتَجَابُوا لَكُمْ وَيَوْمَ الْقِيَامَةِ يَكْفُرُونَ بِشِرْكِكُمْ وَلَا يُنَبِّئُكَ مِثْلُ خَبِيرٍ ","سبأ",10,"ولقد آتينا داو ود منا فضلا","سبأ",45,"وَكَذَّبَ الَّذِينَ مِن قَبْلِهِمْ وَمَا بَلَغُوا مِعْشَارَ مَا آتَيْنَاهُمْ فَكَذَّبُوا رُسُلِي فَكَيْفَ كَانَ نَكِيرِ ",{"$f":"R145","v":"التوبة"},19,"أجعلتم سقاية الحاج","التوبة",92,"وَلاَ عَلَى الَّذِينَ إِذَا مَا أَتَوْكَ لِتَحْمِلَهُمْ قُلْتَ لاَ أَجِدُ مَا أَحْمِلُكُمْ عَلَيْهِ تَوَلَّواْ وَّأَعْيُنُهُمْ تَفِيضُ مِنَ الدَّمْعِ حَزَنًا أَلاَّ يَجِدُواْ مَا يُنفِقُونَ "]
["فاطر",175,"الثانى والعشرون",null,7,"فاطر",15,"ياأيها الناس أنتم الفقراء","فاطر",40,"قُلْ أَرَأَيْتُمْ شُرَكَاءكُمُ الَّذِينَ تَدْعُونَ مِن دُونِ اللَّهِ أَرُونِي مَاذَا خَلَقُوا مِنَ الْأَرْضِ أَمْ لَهُمْ شِرْكٌ فِي السَّمَاوَاتِ أَمْ آتَيْنَاهُمْ كِتَابًا فَهُمْ عَلَى بَيِّنَةٍ مِّنْهُ بَلْ إِن يَعِدُ الظَّالِمُونَ بَعْضُهُم بَعْضًا إِلَّا غُرُورًا ","سبأ",24,"قل من يرزقكم من السماء","فاطر",14,"إِن تَدْعُوهُمْ لَا يَسْمَعُوا دُعَاءكُمْ وَلَوْ سَمِعُوا مَا اسْتَجَابُوا لَكُمْ وَيَوْمَ الْقِيَامَةِ يَكْفُرُونَ بِشِرْكِكُمْ وَلَا يُنَبِّئُكَ مِثْلُ خَبِيرٍ ",{"$f":"R146","v":"التوبة"},93,"إنما السبيل على الذين","يونس",52,"ثُمَّ قِيلَ لِلَّذِينَ ظَلَمُواْ ذُوقُواْ عَذَابَ الْخُلْدِ هَلْ تُجْزَوْنَ إِلاَّ بِمَا كُنتُمْ تَكْسِبُونَ "]
[null,176,"الثانى والعشرون",null,8,"فاطر",41,"إن الله يمسك السموات والأرض","يس",27,"بِمَا غَفَرَ لِي رَبِّي وَجَعَلَنِي مِنَ الْمُكْرَمِينَ ","سبأ",46,"قل إنما أعظكم بواحدة","فاطر",40,"قُلْ أَرَأَيْتُمْ شُرَكَاءكُمُ الَّذِينَ تَدْعُونَ مِن دُونِ اللَّهِ أَرُونِي مَاذَا خَلَقُوا مِنَ الْأَرْضِ أَمْ لَهُمْ شِرْكٌ فِي السَّمَاوَاتِ أَمْ آتَيْنَاهُمْ كِتَابًا فَهُمْ عَلَى بَيِّنَةٍ مِّنْهُ بَلْ إِن يَعِدُ الظَّالِمُونَ بَعْضُهُم بَعْضًا إِلَّا غُرُورًا ",{"$f":"R147","v":"يونس"},53,"ويستنبئونك أحق هو","هود",40,"حَتَّى إِذَا جَاء أَمْرُنَا وَفَارَ التَّنُّورُ قُلْنَا احْمِلْ فِيهَا مِن كُلٍّ زَوْجَيْنِ اثْنَيْنِ وَأَهْلَكَ إِلاَّ مَن سَبَقَ عَلَيْهِ الْقَوْلُ وَمَنْ آمَنَ وَمَا آمَنَ مَعَهُ إِلاَّ قَلِيلٌ "]
["يس",177,"الثالث والعشرون",45,1,"يس",28,"وما أنزلنا على قومه","يس",59,"وَامْتَازُوا الْيَوْمَ أَيُّهَا الْمُجْرِمُونَ ","فاطر",15,"ياأيها الناس أنتم الفقراء","يس",27,"بِمَا غَفَرَ لِي رَبِّي وَجَعَلَنِي مِنَ الْمُكْرَمِينَ ",{"$f":"R148","v":"هود"},41,"وقال اركبوا فيها بسم الله","يوسف",29,"يُوسُفُ أَعْرِضْ عَنْ هَـذَا وَاسْتَغْفِرِي لِذَنبِكِ إِنَّكِ كُنتِ مِنَ الْخَاطِئِينَ "]
[null,178,"الثالث والعشرون",null,2,"يس",60,"ألم أعهد إليكم يا بنى آدم","الصافات",21,"هَذَا يَوْمُ الْفَصْلِ الَّذِي كُنتُمْ بِهِ تُكَذِّبُونَ ","فاطر",41,"إن الله يمسك السموات والأرض","يس",59,"وَامْتَازُوا الْيَوْمَ أَيُّهَا الْمُجْرِمُونَ ",{"$f":"R149","v":"يوسف"},30,"وقال نسوة فى المدينة","الرعد",18,"لِلَّذِينَ اسْتَجَابُواْ لِرَبِّهِمُ الْحُسْنَى وَالَّذِينَ لَمْ يَسْتَجِيبُواْ لَهُ لَوْ أَنَّ لَهُم مَّا فِي الأَرْضِ جَمِيعًا وَمِثْلَهُ مَعَهُ لاَفْتَدَوْاْ بِهِ أُوْلَـئِكَ لَهُمْ سُوءُ الْحِسَابِ وَمَأْوَاهُمْ جَهَنَّمُ وَبِئْسَ الْمِهَادُ "]
["الصافات",179,"الثالث والعشرون",null,3,"الصافات",22,"احشروا الذين ظلموا وأزواجهم","الصافات",82,"ثُمَّ أَغْرَقْنَا الْآخَرِينَ ","يس",28,"وما أنزلنا على قومه","الصافات",21,"هَذَا يَوْمُ الْفَصْلِ الَّذِي كُنتُمْ بِهِ تُكَذِّبُونَ ",{"$f":"R150","v":"الرعد"},19,"أفمن يعلم أنما أنزل","الحجر",48,"لاَ يَمَسُّهُمْ فِيهَا نَصَبٌ وَمَا هُم مِّنْهَا بِمُخْرَجِينَ "]
[null,180,"الثالث والعشرون",null,4,"الصافات",83,"وإن من شيعته لأبراهيم","الصافات",144,"لَلَبِثَ فِي بَطْنِهِ إِلَى يَوْمِ يُبْعَثُونَ ","يس",60,"ألم أعهد إليكم يا بنى آدم","الصافات",82,"ثُمَّ أَغْرَقْنَا الْآخَرِينَ ",{"$f":"R151","v":"الحجر"},49,"نبىء عبادى أنى أنا الغفور","النحل",89,"وَيَوْمَ نَبْعَثُ فِي كُلِّ أُمَّةٍ شَهِيدًا عَلَيْهِم مِّنْ أَنفُسِهِمْ وَجِئْنَا بِكَ شَهِيدًا عَلَى هَـؤُلاء وَنَزَّلْنَا عَلَيْكَ الْكِتَابَ تِبْيَانًا لِّكُلِّ شَيْءٍ وَهُدًى وَرَحْمَةً وَبُشْرَى لِلْمُسْلِمِينَ "]
[null,181,"الثالث والعشرون",56,5,"الصافات",145,"فنبذناه بالعراء وهو سقيم","ص",20,"وَشَدَدْنَا مُلْكَهُ وَآتَيْنَاهُ الْحِكْمَةَ وَفَصْلَ الْخِطَابِ ","الصافات",22,"احشروا الذين ظلموا وأزواجهم","الصافات",144,"لَلَبِثَ فِي بَطْنِهِ إِلَى يَوْمِ يُبْعَثُونَ ",{"$f":"R152","v":"النحل"},90,"إن الله يأمر بالعدل","الإسراء",69,"أَمْ أَمِنتُمْ أَن يُعِيدَكُمْ فِيهِ تَارَةً أُخْرَى فَيُرْسِلَ عَلَيْكُمْ قَاصِفا مِّنَ الرِّيحِ فَيُغْرِقَكُم بِمَا كَفَرْتُمْ ثُمَّ لاَ تَجِدُواْ لَكُمْ عَلَيْنَا بِهِ تَبِيعًا "]
["ص",182,"الثالث والعشرون",null,6,"ص",21,"وهل أتاك نبؤا الخصم","ص",51,"مُتَّكِئِينَ فِيهَا يَدْعُونَ فِيهَا بِفَاكِهَةٍ كَثِيرَةٍ وَشَرَابٍ ","الصافات",83,"وإن من شيعته لأبراهيم","ص",20,"وَشَدَدْنَا مُلْكَهُ وَآتَيْنَاهُ الْحِكْمَةَ وَفَصْلَ الْخِطَابِ ",{"$f":"R153","v":"الإسراء"},70,"ولقد كرمنا بنى آدم","الكهف",74,"فَانطَلَقَا حَتَّى إِذَا لَقِيَا غُلَامًا فَقَتَلَهُ قَالَ أَقَتَلْتَ نَفْسًا زَكِيَّةً بِغَيْرِ نَفْسٍ لَّقَدْ جِئْتَ شَيْئًا نُّكْرًا "]
[null,183,"الثالث والعشرون",null,7,"ص",52,"وعندهم قاصرات الطرف أتراب","الزمر",7,"إِن تَكْفُرُوا فَإِنَّ اللَّهَ غَنِيٌّ عَنكُمْ وَلَا يَرْضَى لِعِبَادِهِ الْكُفْرَ وَإِن تَشْكُرُوا يَرْضَهُ لَكُمْ وَلَا تَزِرُ وَازِرَةٌ وِزْرَ أُخْرَى ثُمَّ إِلَى رَبِّكُم مَّرْجِعُكُمْ فَيُنَبِّئُكُم بِمَا كُنتُمْ تَعْمَلُونَ إِنَّهُ عَلِيمٌ بِذَاتِ الصُّدُورِ ","الصافات",145,"فنبذناه بالعراء وهو سقيم","ص",51,"مُتَّكِئِينَ فِيهَا يَدْعُونَ فِيهَا بِفَاكِهَةٍ كَثِيرَةٍ وَشَرَابٍ ",{"$f":"R154","v":"الكهف"},75,"قال ألم أقل لك إنك لن","طه",54,"كُلُوا وَارْعَوْا أَنْعَامَكُمْ إِنَّ فِي ذَلِكَ لَآيَاتٍ لِّأُوْلِي النُّهَى "]
["الزمر",184,"الثالث والعشرون",null,8,"الزمر",8,"وإذا مس الإنسان ضر","الزمر",31,"ثُمَّ إِنَّكُمْ يَوْمَ الْقِيَامَةِ عِندَ رَبِّكُمْ تَخْتَصِمُونَ ","ص",21,"وهل أتاك نبؤا الخصم","الزمر",7,"إِن تَكْفُرُوا فَإِنَّ اللَّهَ غَنِيٌّ عَنكُمْ وَلَا يَرْضَى لِعِبَادِهِ الْكُفْرَ وَإِن تَشْكُرُوا يَرْضَهُ لَكُمْ وَلَا تَزِرُ وَازِرَةٌ وِزْرَ أُخْرَى ثُمَّ إِلَى رَبِّكُم مَّرْجِعُكُمْ فَيُنَبِّئُكُم بِمَا كُنتُمْ تَعْمَلُونَ إِنَّهُ عَلِيمٌ بِذَاتِ الصُّدُورِ ",{"$f":"R155","v":"طه"},55,"منها خلقناكم وفيها نعيدكم","الأنبياء",50,"وَهَذَا ذِكْرٌ مُّبَارَكٌ أَنزَلْنَاهُ أَفَأَنتُمْ لَهُ مُنكِرُونَ "]
[null,185,"الرابع والعشرون",47,1,"الزمر",32,"فمن أظلم ممن كذب على الله","الزمر",52,"أَوَلَمْ يَعْلَمُوا أَنَّ اللَّهَ يَبْسُطُ الرِّزْقَ لِمَن يَشَاء وَيَقْدِرُ إِنَّ فِي ذَلِكَ لَآيَاتٍ لِّقَوْمٍ يُؤْمِنُونَ ","ص",52,"وعندهم قاصرات الطرف أتراب","الزمر",31,"ثُمَّ إِنَّكُمْ يَوْمَ الْقِيَامَةِ عِندَ رَبِّكُمْ تَخْتَصِمُونَ ",{"$f":"R156","v":"الأنبياء"},51,"ولقد آتينا إبراهيم رشده","الحج",59,"لَيُدْخِلَنَّهُم مُّدْخَلًا يَرْضَوْنَهُ وَإِنَّ اللَّهَ لَعَلِيمٌ حَلِيمٌ "]
[null,186,"الرابع والعشرون",null,2,"الزمر",53,"قل يا عبادى الذين أسرفوا","الزمر",75,"وَتَرَى الْمَلَائِكَةَ حَافِّينَ مِنْ حَوْلِ الْعَرْشِ يُسَبِّحُونَ بِحَمْدِ رَبِّهِمْ وَقُضِيَ بَيْنَهُم بِالْحَقِّ وَقِيلَ الْحَمْدُ لِلَّهِ رَبِّ الْعَالَمِينَ ","الزمر",8,"وإذا مس الإنسان ضر","الزمر",52,"أَوَلَمْ يَعْلَمُوا أَنَّ اللَّهَ يَبْسُطُ الرِّزْقَ لِمَن يَشَاء وَيَقْدِرُ إِنَّ فِي ذَلِكَ لَآيَاتٍ لِّقَوْمٍ يُؤْمِنُونَ ",{"$f":"R157","v":"الحج"},60,"ذلك ومن عاقب بمثل","النور",20,"وَلَوْلَا فَضْلُ اللَّهِ عَلَيْكُمْ وَرَحْمَتُهُ وَأَنَّ اللَّه رَؤُوفٌ رَحِيمٌ "]
["غافر",187,"الرابع والعشرون",null,3,"غافر","2-1","حم 0 تنزيل الكتاب","غافر",20,"وَاللَّهُ يَقْضِي بِالْحَقِّ وَالَّذِينَ يَدْعُونَ مِن دُونِهِ لَا يَقْضُونَ بِشَيْءٍ إِنَّ اللَّهَ هُوَ السَّمِيعُ الْبَصِيرُ ","الزمر",32,"فمن أظلم ممن كذب على الله","الزمر",75,"وَتَرَى الْمَلَائِكَةَ حَافِّينَ مِنْ حَوْلِ الْعَرْشِ يُسَبِّحُونَ بِحَمْدِ رَبِّهِمْ وَقُضِيَ بَيْنَهُم بِالْحَقِّ وَقِيلَ الْحَمْدُ لِلَّهِ رَبِّ الْعَالَمِينَ ",{"$f":"R158","v":"النور"},21,"ياأيها الذين آمنوا","الفرقان",52,"فَلَا تُطِعِ الْكَافِرِينَ وَجَاهِدْهُم بِهِ جِهَادًا كَبِيرًا "]
[null,188,"الرابع والعشرون",null,4,"غافر",21,"أولم يسيروا فى الأرض","غافر",40,"مَنْ عَمِلَ سَيِّئَةً فَلَا يُجْزَى إِلَّا مِثْلَهَا وَمَنْ عَمِلَ صَالِحًا مِّن ذَكَرٍ أَوْ أُنثَى وَهُوَ مُؤْمِنٌ فَأُوْلَئِكَ يَدْخُلُونَ الْجَنَّةَ يُرْزَقُونَ فِيهَا بِغَيْرِ حِسَابٍ ","الزمر",53,"قل يا عبادى الذين أسرفوا","غافر",20,"وَاللَّهُ يَقْضِي بِالْحَقِّ وَالَّذِينَ يَدْعُونَ مِن دُونِهِ لَا يَقْضُونَ بِشَيْءٍ إِنَّ اللَّهَ هُوَ السَّمِيعُ الْبَصِيرُ ",{"$f":"R159","v":"الفرقان"},53,"وهو الذى مرج البحرين","الشعراء",227,"إِلَّا الَّذِينَ آمَنُوا وَعَمِلُوا الصَّالِحَاتِ وَذَكَرُوا اللَّهَ كَثِيرًا وَانتَصَرُوا مِن بَعْدِ مَا ظُلِمُوا وَسَيَعْلَمُ الَّذِينَ ظَلَمُوا أَيَّ مُنقَلَبٍ يَنقَلِبُونَ "]
[null,189,"الرابع والعشرون",48,5,"غافر",41,"ويا قوم ما لى أدعوكم ","غافر",65,"هُوَ الْحَيُّ لَا إِلَهَ إِلَّا هُوَ فَادْعُوهُ مُخْلِصِينَ لَهُ الدِّينَ الْحَمْدُ لِلَّهِ رَبِّ الْعَالَمِينَ ","غافر","2-1","حم 0 تنزيل الكتاب","غافر",40,"مَنْ عَمِلَ سَيِّئَةً فَلَا يُجْزَى إِلَّا مِثْلَهَا وَمَنْ عَمِلَ صَالِحًا مِّن ذَكَرٍ أَوْ أُنثَى وَهُوَ مُؤْمِنٌ فَأُوْلَئِكَ يَدْخُلُونَ الْجَنَّةَ يُرْزَقُونَ فِيهَا بِغَيْرِ حِسَابٍ ",{"$f":"R160","v":"النمل"},1,"طسم 0 تلك آيات القرآن","القصص",28,"قَالَ ذَلِكَ بَيْنِي وَبَيْنَكَ أَيَّمَا الْأَجَلَيْنِ قَضَيْتُ فَلَا عُدْوَانَ عَلَيَّ وَاللَّهُ عَلَى مَا نَقُولُ وَكِيلٌ "]
[null,190,"الرابع والعشرون",null,6,"غافر",66,"قل إنى نهيت أن أعبد الذين تدعون","فصلت",8,"إِنَّ الَّذِينَ آمَنُوا وَعَمِلُوا الصَّالِحَاتِ لَهُمْ أَجْرٌ غَيْرُ مَمْنُونٍ ","غافر",21,"أولم يسيروا فى الأرض","غافر",65,"هُوَ الْحَيُّ لَا إِلَهَ إِلَّا هُوَ فَادْعُوهُ مُخْلِصِينَ لَهُ الدِّينَ الْحَمْدُ لِلَّهِ رَبِّ الْعَالَمِينَ ",{"$f":"F158","v":"القصص"},{"$f":"G158","v":29},{"$f":"H158","v":"فلما قضى موسى الأجل"},{"$f":"I162","v":"العنكبوت"},{"$f":"J162","v":45},{"$f":"K162","v":"اتْلُ مَا أُوحِيَ إِلَيْكَ مِنَ الْكِتَابِ وَأَقِمِ الصَّلَاةَ إِنَّ الصَّلَاةَ تَنْهَى عَنِ الْفَحْشَاء وَالْمُنكَرِ وَلَذِكْرُ اللَّهِ أَكْبَرُ وَاللَّهُ يَعْلَمُ مَا تَصْنَعُونَ "}]
["فصلت",191,"الرابع والعشرون",null,7,"فصلت",9,"قل ءإنكم لتكفرون بالذى خلق","فصلت",24,"فَإِن يَصْبِرُوا فَالنَّارُ مَثْوًى لَّهُمْ وَإِن يَسْتَعْتِبُوا فَمَا هُم مِّنَ الْمُعْتَبِينَ ","غافر",41,"ويا قوم ما لى أدعوكم ","فصلت",8,"إِنَّ الَّذِينَ آمَنُوا وَعَمِلُوا الصَّالِحَاتِ لَهُمْ أَجْرٌ غَيْرُ مَمْنُونٍ ",{"$f":"F163","v":"العنكبوت"},{"$f":"G163","v":46},{"$f":"H163","v":"ولا تجادل أهل الكتاب إلا"},{"$f":"I167","v":"السجدة"},{"$f":"J167","v":10},{"$f":"K167","v":"وَقَالُوا أَئِذَا ضَلَلْنَا فِي الْأَرْضِ أَئِنَّا لَفِي خَلْقٍ جَدِيدٍ بَلْ هُم بِلِقَاء رَبِّهِمْ كَافِرُونَ "}]
[null,192,"الرابع والعشرون",null,8,"فصلت",25,"وقيضنا لهم قرناء فزينوا لهم","فصلت",46,"مَنْ عَمِلَ صَالِحًا فَلِنَفْسِهِ وَمَنْ أَسَاء فَعَلَيْهَا وَمَا رَبُّكَ بِظَلَّامٍ لِّلْعَبِيدِ ","غافر",66,"قل إنى نهيت أن أعبد الذين تدعون","فصلت",24,"فَإِن يَصْبِرُوا فَالنَّارُ مَثْوًى لَّهُمْ وَإِن يَسْتَعْتِبُوا فَمَا هُم مِّنَ الْمُعْتَبِينَ ",{"$f":"F168","v":"السجدة"},{"$f":"G168","v":11},{"$f":"H168","v":"قل يتوفاكم ملك الموت"},{"$f":"I172","v":"الأحزاب"},{"$f":"J172","v":59},{"$f":"K172","v":"يَا أَيُّهَا النَّبِيُّ قُل لِّأَزْوَاجِكَ وَبَنَاتِكَ وَنِسَاء الْمُؤْمِنِينَ يُدْنِينَ عَلَيْهِنَّ مِن جَلَابِيبِهِنَّ ذَلِكَ أَدْنَى أَن يُعْرَفْنَ فَلَا يُؤْذَيْنَ وَكَانَ اللَّهُ غَفُورًا رَّحِيمًا "}]
[null,193,"الخامس والعشرون",49,1,"فصلت",47,"إليه يرد علم الساعة","الشورى",12,"لَهُ مَقَالِيدُ السَّمَاوَاتِ وَالْأَرْضِ يَبْسُطُ الرِّزْقَ لِمَن يَشَاء وَيَقْدِرُ إِنَّهُ بِكُلِّ شَيْءٍ عَلِيمٌ ","فصلت",9,"قل ءإنكم لتكفرون بالذى خلق","فصلت",46,"مَنْ عَمِلَ صَالِحًا فَلِنَفْسِهِ وَمَنْ أَسَاء فَعَلَيْهَا وَمَا رَبُّكَ بِظَلَّامٍ لِّلْعَبِيدِ ",{"$f":"F173","v":"الأحزاب"},{"$f":"G173","v":60},{"$f":"H173","v":"لئن لم نته المنافقون"},{"$f":"I177","v":"فاطر"},{"$f":"J177","v":40},{"$f":"K177","v":"قُلْ أَرَأَيْتُمْ شُرَكَاءكُمُ الَّذِينَ تَدْعُونَ مِن دُونِ اللَّهِ أَرُونِي مَاذَا خَلَقُوا مِنَ الْأَرْضِ أَمْ لَهُمْ شِرْكٌ فِي السَّمَاوَاتِ أَمْ آتَيْنَاهُمْ كِتَابًا فَهُمْ عَلَى بَيِّنَةٍ مِّنْهُ بَلْ إِن يَعِدُ الظَّالِمُونَ بَعْضُهُم بَعْضًا إِلَّا غُرُورًا "}]
["الشورى",194,"الخامس والعشرون",null,2,"الشورى",13,"شرع لكم من الدين ما وصى","الشورى",26,"وَيَسْتَجِيبُ الَّذِينَ آمَنُوا وَعَمِلُوا الصَّالِحَاتِ وَيَزِيدُهُم مِّن فَضْلِهِ وَالْكَافِرُونَ لَهُمْ عَذَابٌ شَدِيدٌ ","فصلت",25,"وقيضنا لهم قرناء فزينوا لهم","الشورى",12,"لَهُ مَقَالِيدُ السَّمَاوَاتِ وَالْأَرْضِ يَبْسُطُ الرِّزْقَ لِمَن يَشَاء وَيَقْدِرُ إِنَّهُ بِكُلِّ شَيْءٍ عَلِيمٌ ",{"$f":"F178","v":"فاطر"},{"$f":"G178","v":41},{"$f":"H178","v":"إن الله يمسك السموات والأرض"},{"$f":"I182","v":"الصافات"},{"$f":"J182","v":144},{"$f":"K182","v":"لَلَبِثَ فِي بَطْنِهِ إِلَى يَوْمِ يُبْعَثُونَ "}]
[null,195,"الخامس والعشرون",null,3,"الشورى",27,"ولو بسط الله الرزق لعباده","الشورى",50,"أَوْ يُزَوِّجُهُمْ ذُكْرَانًا وَإِنَاثًا وَيَجْعَلُ مَن يَشَاء عَقِيمًا إِنَّهُ عَلِيمٌ قَدِيرٌ ",{"$f":"F195","v":"فصلت"},{"$f":"G195","v":47},{"$f":"H195","v":"إليه يرد علم الساعة"},"الشورى",26,"وَيَسْتَجِيبُ الَّذِينَ آمَنُوا وَعَمِلُوا الصَّالِحَاتِ وَيَزِيدُهُم مِّن فَضْلِهِ وَالْكَافِرُونَ لَهُمْ عَذَابٌ شَدِيدٌ ",{"$f":"F183","v":"الصافات"},{"$f":"G183","v":145},{"$f":"H183","v":"فنبذناه بالعراء وهو سقيم"},{"$f":"I187","v":"الزمر"},{"$f":"J187","v":52},{"$f":"K187","v":"أَوَلَمْ يَعْلَمُوا أَنَّ اللَّهَ يَبْسُطُ الرِّزْقَ لِمَن يَشَاء وَيَقْدِرُ إِنَّ فِي ذَلِكَ لَآيَاتٍ لِّقَوْمٍ يُؤْمِنُونَ "}]
[null,196,"الخامس والعشرون",null,4,"الشورى",51,"وما كان لبشر أن كلمه الله إلا","الزخرف",23,"وَكَذَلِكَ مَا أَرْسَلْنَا مِن قَبْلِكَ فِي قَرْيَةٍ مِّن نَّذِيرٍ إِلَّا قَالَ مُتْرَفُوهَا إِنَّا وَجَدْنَا آبَاءنَا عَلَى أُمَّةٍ وَإِنَّا عَلَى آثَارِهِم مُّقْتَدُونَ ","الشورى",13,"شرع لكم من الدين ما وصى",{"$f":"I197","v":"الشورى"},{"$f":"J197","v":50},{"$f":"K197","v":"أَوْ يُزَوِّجُهُمْ ذُكْرَانًا وَإِنَاثًا وَيَجْعَلُ مَن يَشَاء عَقِيمًا إِنَّهُ عَلِيمٌ قَدِيرٌ "},{"$f":"F188","v":"الزمر"},{"$f":"G188","v":53},{"$f":"H188","v":"قل يا عبادى الذين أسرفوا"},{"$f":"I192","v":"فصلت"},{"$f":"J192","v":8},{"$f":"K192","v":"إِنَّ الَّذِينَ آمَنُوا وَعَمِلُوا الصَّالِحَاتِ لَهُمْ أَجْرٌ غَيْرُ مَمْنُونٍ "}]
["الزخرف",197,"الخامس والعشرون",50,5,"الزخرف",24,"قل أولو جئتكم بأهدى","الزخرف",56,"فَجَعَلْنَاهُمْ سَلَفًا وَمَثَلًا لِلْآخِرِينَ ","الشورى",27,"ولو بسط الله الرزق لعباده","الزخرف",23,"وَكَذَلِكَ مَا أَرْسَلْنَا مِن قَبْلِكَ فِي قَرْيَةٍ مِّن نَّذِيرٍ إِلَّا قَالَ مُتْرَفُوهَا إِنَّا وَجَدْنَا آبَاءنَا عَلَى أُمَّةٍ وَإِنَّا عَلَى آثَارِهِم مُّقْتَدُونَ ",{"$f":"F193","v":"فصلت"},{"$f":"G193","v":9},{"$f":"H193","v":"قل ءإنكم لتكفرون بالذى خلق"},{"$f":"I197","v":"الشورى"},{"$f":"J197","v":50},{"$f":"K197","v":"أَوْ يُزَوِّجُهُمْ ذُكْرَانًا وَإِنَاثًا وَيَجْعَلُ مَن يَشَاء عَقِيمًا إِنَّهُ عَلِيمٌ قَدِيرٌ "}]
[null,198,"الخامس والعشرون",null,6,"الزخرف",57,"ولما ضُرب ابن مريم مثلا","الدخان",16,"يَوْمَ نَبْطِشُ الْبَطْشَةَ الْكُبْرَى إِنَّا مُنتَقِمُونَ ","الشورى",51,"وما كان لبشر أن كلمه الله إلا","الزخرف",56,"فَجَعَلْنَاهُمْ سَلَفًا وَمَثَلًا لِلْآخِرِينَ ",{"$f":"R161","v":"الفاتحة"},1,"بسم الله الرحمن الرحيم","البقرة",91,"وَإِذَا قِيلَ لَهُمْ آمِنُواْ بِمَا أَنزَلَ اللّهُ قَالُواْ نُؤْمِنُ بِمَآ أُنزِلَ عَلَيْنَا وَيَكْفُرونَ بِمَا وَرَاءهُ وَهُوَ الْحَقُّ مُصَدِّقاً لِّمَا مَعَهُمْ قُلْ فَلِمَ تَقْتُلُونَ أَنبِيَاء اللّهِ مِن قَبْلُ إِن كُنتُم مُّؤْمِنِينَ"]
["الدخان",199,"الخامس والعشرون",null,7,"الدخان",17,"ولقد فتنا قبلهم قوم فرعون","الجاثية",11,"هَذَا هُدًى وَالَّذِينَ كَفَرُوا بِآيَاتِ رَبِّهِمْ لَهُمْ عَذَابٌ مَّن رِّجْزٍ أَلِيمٌ ","الزخرف",24,"قل أولو جئتكم بأهدى","الدخان",16,"يَوْمَ نَبْطِشُ الْبَطْشَةَ الْكُبْرَى إِنَّا مُنتَقِمُونَ ",{"$f":"R162","v":"البقرة"},92,"ولقد جاءكم موسى","البقرة",176,"ذَلِكَ بِأَنَّ اللّهَ نَزَّلَ الْكِتَابَ بِالْحَقِّ وَإِنَّ الَّذِينَ اخْتَلَفُواْ فِي الْكِتَابِ لَفِي شِقَاقٍ بَعِيدٍ"]
["الجاثية",200,"الخامس والعشرون",null,8,"الجاثية",12,"الله الذى سخر لكم البحر","الجاثية",37,"وَلَهُ الْكِبْرِيَاء فِي السَّمَاوَاتِ وَالْأَرْضِ وَهُوَ الْعَزِيزُ الْحَكِيمُ ","الزخرف",57,"ولما ضُرب ابن مريم مثلا","الجاثية",11,"هَذَا هُدًى وَالَّذِينَ كَفَرُوا بِآيَاتِ رَبِّهِمْ لَهُمْ عَذَابٌ مَّن رِّجْزٍ أَلِيمٌ ",{"$f":"R163","v":"البقرة"},177,"ليس البر أن تولوا","البقرة",242,"كَذَلِكَ يُبَيِّنُ اللّهُ لَكُمْ آيَاتِهِ لَعَلَّكُمْ تَعْقِلُونَ"]
["الأحقاف",201,"السادس والعشرون",51,1,"الأحقاف","2-1","حم0 تنزل الكتاب من الله ","الأحقاف",20,"وَيَوْمَ يُعْرَضُ الَّذِينَ كَفَرُوا عَلَى النَّارِ أَذْهَبْتُمْ طَيِّبَاتِكُمْ فِي حَيَاتِكُمُ الدُّنْيَا وَاسْتَمْتَعْتُم بِهَا فَالْيَوْمَ تُجْزَوْنَ عَذَابَ الْهُونِ بِمَا كُنتُمْ تَسْتَكْبِرُونَ فِي الْأَرْضِ بِغَيْرِ الْحَقِّ وَبِمَا كُنتُمْ تَفْسُقُونَ ","الدخان",17,"ولقد فتنا قبلهم قوم فرعون","الجاثية",37,"وَلَهُ الْكِبْرِيَاء فِي السَّمَاوَاتِ وَالْأَرْضِ وَهُوَ الْعَزِيزُ الْحَكِيمُ ",{"$f":"R164","v":"البقرة"},243,"الم تر إلى الذين خرجوا","آل عمران",14,"زُيِّنَ لِلنَّاسِ حُبُّ الشَّهَوَاتِ مِنَ النِّسَاء وَالْبَنِينَ وَالْقَنَاطِيرِ الْمُقَنطَرَةِ مِنَ الذَّهَبِ وَالْفِضَّةِ وَالْخَيْلِ الْمُسَوَّمَةِ وَالأَنْعَامِ وَالْحَرْثِ ذَلِكَ مَتَاعُ الْحَيَاةِ الدُّنْيَا وَاللّهُ عِندَهُ حُسْنُ الْمَآبِ "]
[null,202,"السادس والعشرون",null,2,"الأحقاف",21,"واذكر أخا عاد إذ أنذر قومه","محمد",9,"ذَلِكَ بِأَنَّهُمْ كَرِهُوا مَا أَنزَلَ اللَّهُ فَأَحْبَطَ أَعْمَالَهُمْ ","الجاثية",12,"الله الذى سخر لكم البحر","الأحقاف",20,"وَيَوْمَ يُعْرَضُ الَّذِينَ كَفَرُوا عَلَى النَّارِ أَذْهَبْتُمْ طَيِّبَاتِكُمْ فِي حَيَاتِكُمُ الدُّنْيَا وَاسْتَمْتَعْتُم بِهَا فَالْيَوْمَ تُجْزَوْنَ عَذَابَ الْهُونِ بِمَا كُنتُمْ تَسْتَكْبِرُونَ فِي الْأَرْضِ بِغَيْرِ الْحَقِّ وَبِمَا كُنتُمْ تَفْسُقُونَ ",{"$f":"R165","v":"آل عمران"},15,"قل أؤنبئكم بخير","آل عمران",112,"ضُرِبَتْ عَلَيْهِمُ الذِّلَّةُ أَيْنَ مَا ثُقِفُواْ إِلاَّ بِحَبْلٍ مِّنْ اللّهِ وَحَبْلٍ مِّنَ النَّاسِ وَبَآؤُوا بِغَضَبٍ مِّنَ اللّهِ وَضُرِبَتْ عَلَيْهِمُ الْمَسْكَنَةُ ذَلِكَ بِأَنَّهُمْ كَانُواْ يَكْفُرُونَ بِآيَاتِ اللّهِ وَيَقْتُلُونَ الأَنبِيَاء بِغَيْرِ حَقٍّ ذَلِكَ بِمَا عَصَوا وَّكَانُواْ يَعْتَدُونَ "]
["محمد",203,"السادس والعشرون",null,3,"محمد",10,"أفلم يسيروا فى الأرض","محمد",32,"إِنَّ الَّذِينَ كَفَرُوا وَصَدُّوا عَن سَبِيلِ اللَّهِ وَشَاقُّوا الرَّسُولَ مِن بَعْدِ مَا تَبَيَّنَ لَهُمُ الهُدَى لَن يَضُرُّوا اللَّهَ شَيْئًا وَسَيُحْبِطُ أَعْمَالَهُمْ ","الأحقاف","2-1","حم0 تنزل الكتاب من الله ","محمد",9,"ذَلِكَ بِأَنَّهُمْ كَرِهُوا مَا أَنزَلَ اللَّهُ فَأَحْبَطَ أَعْمَالَهُمْ ",{"$f":"R166","v":"آل عمران"},113,"ليسوا سواء","آل عمران",200,"يَا أَيُّهَا الَّذِينَ آمَنُواْ اصْبِرُواْ وَصَابِرُواْ وَرَابِطُواْ وَاتَّقُواْ اللّهَ لَعَلَّكُمْ تُفْلِحُونَ "]
[null,204,"السادس والعشرون",null,4,"محمد",33,"يا أيها الذين آمنوا أطيعوا","الفتح",17,"لَيْسَ عَلَى الْأَعْمَى حَرَجٌ وَلَا عَلَى الْأَعْرَجِ حَرَجٌ وَلَا عَلَى الْمَرِيضِ حَرَجٌ وَمَن يُطِعِ اللَّهَ وَرَسُولَهُ يُدْخِلْهُ جَنَّاتٍ تَجْرِي مِن تَحْتِهَا الْأَنْهَارُ وَمَن يَتَوَلَّ يُعَذِّبْهُ عَذَابًا أَلِيمًا ","الأحقاف",21,"واذكر أخا عاد إذ أنذر قومه","محمد",32,"إِنَّ الَّذِينَ كَفَرُوا وَصَدُّوا عَن سَبِيلِ اللَّهِ وَشَاقُّوا الرَّسُولَ مِن بَعْدِ مَا تَبَيَّنَ لَهُمُ الهُدَى لَن يَضُرُّوا اللَّهَ شَيْئًا وَسَيُحْبِطُ أَعْمَالَهُمْ ",{"$f":"R167","v":"النساء"},1,"ياأيها الناس اتقوا ربكم","النساء",73,"وَلَئِنْ أَصَابَكُمْ فَضْلٌ مِّنَ الله لَيَقُولَنَّ كَأَن لَّمْ تَكُن بَيْنَكُمْ وَبَيْنَهُ مَوَدَّةٌ يَا لَيتَنِي كُنتُ مَعَهُمْ فَأَفُوزَ فَوْزًا عَظِيمًا "]
["الفتح",205,"السادس والعشرون",52,5,"الفتح",18,"لقد رضى الله عن المؤمنين","الفتح",29,"مُّحَمَّدٌ رَّسُولُ اللَّهِ وَالَّذِينَ مَعَهُ أَشِدَّاء عَلَى الْكُفَّارِ رُحَمَاء بَيْنَهُمْ تَرَاهُمْ رُكَّعًا سُجَّدًا يَبْتَغُونَ فَضْلًا مِّنَ اللَّهِ وَرِضْوَانًا سِيمَاهُمْ فِي وُجُوهِهِم مِّنْ أَثَرِ السُّجُودِ ذَلِكَ مَثَلُهُمْ فِي التَّوْرَاةِ وَمَثَلُهُمْ فِي الْإِنجِيلِ كَزَرْعٍ أَخْرَجَ شَطْأَهُ فَآزَرَهُ فَاسْتَغْلَظَ فَاسْتَوَى عَلَى سُوقِهِ يُعْجِبُ الزُّرَّاعَ لِيَغِيظَ بِهِمُ الْكُفَّارَ وَعَدَ اللَّهُ الَّذِينَ آمَنُوا وَعَمِلُوا الصَّالِحَاتِ مِنْهُم مَّغْفِرَةً وَأَجْرًا عَظِيمًا ","محمد",10,"أفلم يسيروا فى الأرض","الفتح",17,"لَيْسَ عَلَى الْأَعْمَى حَرَجٌ وَلَا عَلَى الْأَعْرَجِ حَرَجٌ وَلَا عَلَى الْمَرِيضِ حَرَجٌ وَمَن يُطِعِ اللَّهَ وَرَسُولَهُ يُدْخِلْهُ جَنَّاتٍ تَجْرِي مِن تَحْتِهَا الْأَنْهَارُ وَمَن يَتَوَلَّ يُعَذِّبْهُ عَذَابًا أَلِيمًا ",{"$f":"R168","v":"النساء"},74,"فليقاتل فى سبيل الله","النساء",147,"مَّا يَفْعَلُ اللّهُ بِعَذَابِكُمْ إِن شَكَرْتُمْ وَآمَنتُمْ وَكَانَ اللّهُ شَاكِرًا عَلِيمًا "]
["الحجرات",206,"السادس والعشرون",null,6,"الحجرات",1,"يا أيها الذين آمنوا لا تقدموا","الحجرات",13,"يَا أَيُّهَا النَّاسُ إِنَّا خَلَقْنَاكُم مِّن ذَكَرٍ وَأُنثَى وَجَعَلْنَاكُمْ شُعُوبًا وَقَبَائِلَ لِتَعَارَفُوا إِنَّ أَكْرَمَكُمْ عِندَ اللَّهِ أَتْقَاكُمْ إِنَّ اللَّهَ عَلِيمٌ خَبِيرٌ ","محمد",33,"يا أيها الذين آمنوا أطيعوا","الفتح",29,"مُّحَمَّدٌ رَّسُولُ اللَّهِ وَالَّذِينَ مَعَهُ أَشِدَّاء عَلَى الْكُفَّارِ رُحَمَاء بَيْنَهُمْ تَرَاهُمْ رُكَّعًا سُجَّدًا يَبْتَغُونَ فَضْلًا مِّنَ اللَّهِ وَرِضْوَانًا سِيمَاهُمْ فِي وُجُوهِهِم مِّنْ أَثَرِ السُّجُودِ ذَلِكَ مَثَلُهُمْ فِي التَّوْرَاةِ وَمَثَلُهُمْ فِي الْإِنجِيلِ كَزَرْعٍ أَخْرَجَ شَطْأَهُ فَآزَرَهُ فَاسْتَغْلَظَ فَاسْتَوَى عَلَى سُوقِهِ يُعْجِبُ الزُّرَّاعَ لِيَغِيظَ بِهِمُ الْكُفَّارَ وَعَدَ اللَّهُ الَّذِينَ آمَنُوا وَعَمِلُوا الصَّالِحَاتِ مِنْهُم مَّغْفِرَةً وَأَجْرًا عَظِيمًا ",{"$f":"R169","v":"النساء"},148,"لايحب الله الجهر بالسوء","المائدة",40,"أَلَمْ تَعْلَمْ أَنَّ اللّهَ لَهُ مُلْكُ السَّمَاوَاتِ وَالأَرْضِ يُعَذِّبُ مَن يَشَاء وَيَغْفِرُ لِمَن يَشَاء وَاللّهُ عَلَى كُلِّ شَيْءٍ قَدِيرٌ "]
[null,207,"السادس والعشرون",null,7,"الحجرات",14,"قالت الأعراب آمنا","ق",26,"الَّذِي جَعَلَ مَعَ اللَّهِ إِلَهًا آخَرَ فَأَلْقِيَاهُ فِي الْعَذَابِ الشَّدِيدِ ","الفتح",18,"لقد رضى الله عن المؤمنين","الحجرات",13,"يَا أَيُّهَا النَّاسُ إِنَّا خَلَقْنَاكُم مِّن ذَكَرٍ وَأُنثَى وَجَعَلْنَاكُمْ شُعُوبًا وَقَبَائِلَ لِتَعَارَفُوا إِنَّ أَكْرَمَكُمْ عِندَ اللَّهِ أَتْقَاكُمْ إِنَّ اللَّهَ عَلِيمٌ خَبِيرٌ ",{"$f":"R170","v":"المائدة"},41,"ياأيها الرسول لا يحزنك","المائدة",108,"ذَلِكَ أَدْنَى أَن يَأْتُواْ بِالشَّهَادَةِ عَلَى وَجْهِهَا أَوْ يَخَافُواْ أَن تُرَدَّ أَيْمَانٌ بَعْدَ أَيْمَانِهِمْ وَاتَّقُوا اللّهَ وَاسْمَعُواْ وَاللّهُ لاَ يَهْدِي الْقَوْمَ الْفَاسِقِينَ "]
["ق",208,"السادس والعشرون",null,8,"ق",27,"قال قرينه ربنا ما أطغيته","الذاريات",30,"قَالُوا كَذَلِكَ قَالَ رَبُّكِ إِنَّهُ هُوَ الْحَكِيمُ الْعَلِيمُ ","الحجرات",1,"يا أيها الذين آمنوا لا تقدموا","ق",26,"الَّذِي جَعَلَ مَعَ اللَّهِ إِلَهًا آخَرَ فَأَلْقِيَاهُ فِي الْعَذَابِ الشَّدِيدِ ",{"$f":"R171","v":"المائدة"},109,"يوم يجمع الله الرسل","الأنعام",94,"وَلَقَدْ جِئْتُمُونَا فُرَادَى كَمَا خَلَقْنَاكُمْ أَوَّلَ مَرَّةٍ وَتَرَكْتُم مَّا خَوَّلْنَاكُمْ وَرَاء ظُهُورِكُمْ وَمَا نَرَى مَعَكُمْ شُفَعَاءكُمُ الَّذِينَ زَعَمْتُمْ أَنَّهُمْ فِيكُمْ شُرَكَاء لَقَد تَّقَطَّعَ بَيْنَكُمْ وَضَلَّ عَنكُم مَّا كُنتُمْ تَزْعُمُونَ "]
["الذاريات",209,"السابع والعشرون",53,1,"الذاريات",31,"قال فما خطبكم أيها المرسلون","الطور ",23,"يَتَنَازَعُونَ فِيهَا كَأْسًا لَّا لَغْوٌ فِيهَا وَلَا تَأْثِيمٌ ","الحجرات",14,"قالت الأعراب آمنا","الذاريات",30,"قَالُوا كَذَلِكَ قَالَ رَبُّكِ إِنَّهُ هُوَ الْحَكِيمُ الْعَلِيمُ ",{"$f":"R172","v":"الأنعام"},95,"إن الله فالق الحب والنوى","الأنعام",165,"وَهُوَ الَّذِي جَعَلَكُمْ خَلاَئِفَ الأَرْضِ وَرَفَعَ بَعْضَكُمْ فَوْقَ بَعْضٍ دَرَجَاتٍ لِّيَبْلُوَكُمْ فِي مَا آتَاكُمْ إِنَّ رَبَّكَ سَرِيعُ الْعِقَابِ وَإِنَّهُ لَغَفُورٌ رَّحِيمٌ "]
["الطور ",210,"السابع والعشرون",null,2,"الطور ",24,"ويطوف عليهم غلمان","النجم",25,"فَلِلَّهِ الْآخِرَةُ وَالْأُولَى ","ق",27,"قال قرينه ربنا ما أطغيته","الطور ",23,"يَتَنَازَعُونَ فِيهَا كَأْسًا لَّا لَغْوٌ فِيهَا وَلَا تَأْثِيمٌ ",{"$f":"R173","v":"الأعراف"},1,"الــمــص","الأعراف",116,"قَالَ أَلْقُوْاْ فَلَمَّا أَلْقَوْاْ سَحَرُواْ أَعْيُنَ النَّاسِ وَاسْتَرْهَبُوهُمْ وَجَاءوا بِسِحْرٍ عَظِيمٍ "]
["النجم",211,"السابع والعشرون",null,3,"النجم",26,"وكم من ملك فى السموات","القمر",8,"مُّهْطِعِينَ إِلَى الدَّاعِ يَقُولُ الْكَافِرُونَ هَذَا يَوْمٌ عَسِرٌ ","الذاريات",31,"قال فما خطبكم أيها المرسلون","النجم",25,"فَلِلَّهِ الْآخِرَةُ وَالْأُولَى ",{"$f":"R174","v":"الأعراف"},117,"وأوحينا إلى موسى","الأعراف",206,"إِنَّ الَّذِينَ عِندَ رَبِّكَ لاَ يَسْتَكْبِرُونَ عَنْ عِبَادَتِهِ وَيُسَبِّحُونَهُ وَلَهُ يَسْجُدُونَ "]
["القمر",212,"السابع والعشرون",null,4,"القمر",9,"كذبت قبلهم قوم نوح","القمر",55,"فِي مَقْعَدِ صِدْقٍ عِندَ مَلِيكٍ مُّقْتَدِرٍ ","الطور ",24,"ويطوف عليهم غلمان","القمر",8,"مُّهْطِعِينَ إِلَى الدَّاعِ يَقُولُ الْكَافِرُونَ هَذَا يَوْمٌ عَسِرٌ ",{"$f":"R175","v":"الأنفال"},1,"يسألونك عن الأنفال","التوبة",18,"إِنَّمَا يَعْمُرُ مَسَاجِدَ اللّهِ مَنْ آمَنَ بِاللّهِ وَالْيَوْمِ الآخِرِ وَأَقَامَ الصَّلاَةَ وَآتَى الزَّكَاةَ وَلَمْ يَخْشَ إِلاَّ اللّهَ فَعَسَى أُوْلَـئِكَ أَن يَكُونُواْ مِنَ الْمُهْتَدِينَ "]
["الرحمن",213,"السابع والعشرون",54,5,"الرحمن","2-1","الرحمن0 علم القرآن","الرحمن",1,"الرَّحْمَنُ ","النجم",26,"وكم من ملك فى السموات","القمر",55,"فِي مَقْعَدِ صِدْقٍ عِندَ مَلِيكٍ مُّقْتَدِرٍ ",{"$f":"R176","v":"التوبة"},19,"أجعلتم سقاية الحاج","التوبة",92,"وَلاَ عَلَى الَّذِينَ إِذَا مَا أَتَوْكَ لِتَحْمِلَهُمْ قُلْتَ لاَ أَجِدُ مَا أَحْمِلُكُمْ عَلَيْهِ تَوَلَّواْ وَّأَعْيُنُهُمْ تَفِيضُ مِنَ الدَّمْعِ حَزَنًا أَلاَّ يَجِدُواْ مَا يُنفِقُونَ "]
["الواقعة",214,"السابع والعشرون",null,6,"الواقعة",1,"إذا وقعت الواقعة","الواقعة",74,"فَسَبِّحْ بِاسْمِ رَبِّكَ الْعَظِيمِ ","القمر",9,"كذبت قبلهم قوم نوح","الرحمن",1,"الرَّحْمَنُ ",{"$f":"R177","v":"التوبة"},93,"إنما السبيل على الذين","يونس",52,"ثُمَّ قِيلَ لِلَّذِينَ ظَلَمُواْ ذُوقُواْ عَذَابَ الْخُلْدِ هَلْ تُجْزَوْنَ إِلاَّ بِمَا كُنتُمْ تَكْسِبُونَ "]
[null,215,"السابع والعشرون",null,7,"الواقعة",75,"فلا أقسم بمواقع النجوم","الحديد",15,"فَالْيَوْمَ لَا يُؤْخَذُ مِنكُمْ فِدْيَةٌ وَلَا مِنَ الَّذِينَ كَفَرُوا مَأْوَاكُمُ النَّارُ هِيَ مَوْلَاكُمْ وَبِئْسَ الْمَصِيرُ ","الرحمن","2-1","الرحمن0 علم القرآن","الواقعة",74,"فَسَبِّحْ بِاسْمِ رَبِّكَ الْعَظِيمِ ",{"$f":"R178","v":"يونس"},53,"ويستنبئونك أحق هو","هود",40,"حَتَّى إِذَا جَاء أَمْرُنَا وَفَارَ التَّنُّورُ قُلْنَا احْمِلْ فِيهَا مِن كُلٍّ زَوْجَيْنِ اثْنَيْنِ وَأَهْلَكَ إِلاَّ مَن سَبَقَ عَلَيْهِ الْقَوْلُ وَمَنْ آمَنَ وَمَا آمَنَ مَعَهُ إِلاَّ قَلِيلٌ "]
["الحديد",216,"السابع والعشرون",null,8,"الحديد",16,"ألم يأن للذين آمنوا أن تخشع","الحديد",29,"لِئَلَّا يَعْلَمَ أَهْلُ الْكِتَابِ أَلَّا يَقْدِرُونَ عَلَى شَيْءٍ مِّن فَضْلِ اللَّهِ وَأَنَّ الْفَضْلَ بِيَدِ اللَّهِ يُؤْتِيهِ مَن يَشَاء وَاللَّهُ ذُو الْفَضْلِ الْعَظِيمِ ","الواقعة",1,"إذا وقعت الواقعة","الحديد",15,"فَالْيَوْمَ لَا يُؤْخَذُ مِنكُمْ فِدْيَةٌ وَلَا مِنَ الَّذِينَ كَفَرُوا مَأْوَاكُمُ النَّارُ هِيَ مَوْلَاكُمْ وَبِئْسَ الْمَصِيرُ ",{"$f":"R179","v":"هود"},41,"وقال اركبوا فيها بسم الله","يوسف",29,"يُوسُفُ أَعْرِضْ عَنْ هَـذَا وَاسْتَغْفِرِي لِذَنبِكِ إِنَّكِ كُنتِ مِنَ الْخَاطِئِينَ "]
["المجادلة",217,"الثامن والعشرون",55,1,"المجادلة",1,"قد سمع الله قول التى تجادلك","المجادلة",13,"أَأَشْفَقْتُمْ أَن تُقَدِّمُوا بَيْنَ يَدَيْ نَجْوَاكُمْ صَدَقَاتٍ فَإِذْ لَمْ تَفْعَلُوا وَتَابَ اللَّهُ عَلَيْكُمْ فَأَقِيمُوا الصَّلَاةَ وَآتُوا الزَّكَاةَ وَأَطِيعُوا اللَّهَ وَرَسُولَهُ وَاللَّهُ خَبِيرٌ بِمَا تَعْمَلُونَ ","الواقعة",75,"فلا أقسم بمواقع النجوم","الحديد",29,"لِئَلَّا يَعْلَمَ أَهْلُ الْكِتَابِ أَلَّا يَقْدِرُونَ عَلَى شَيْءٍ مِّن فَضْلِ اللَّهِ وَأَنَّ الْفَضْلَ بِيَدِ اللَّهِ يُؤْتِيهِ مَن يَشَاء وَاللَّهُ ذُو الْفَضْلِ الْعَظِيمِ ",{"$f":"R180","v":"يوسف"},30,"وقال نسوة فى المدينة","الرعد",18,"لِلَّذِينَ اسْتَجَابُواْ لِرَبِّهِمُ الْحُسْنَى وَالَّذِينَ لَمْ يَسْتَجِيبُواْ لَهُ لَوْ أَنَّ لَهُم مَّا فِي الأَرْضِ جَمِيعًا وَمِثْلَهُ مَعَهُ لاَفْتَدَوْاْ بِهِ أُوْلَـئِكَ لَهُمْ سُوءُ الْحِسَابِ وَمَأْوَاهُمْ جَهَنَّمُ وَبِئْسَ الْمِهَادُ "]
[null,218,"الثامن والعشرون",null,2,"المجادلة",14,"ألم تر إلى الذين تولوا","الحشر",10,"وَالَّذِينَ جَاؤُوا مِن بَعْدِهِمْ يَقُولُونَ رَبَّنَا اغْفِرْ لَنَا وَلِإِخْوَانِنَا الَّذِينَ سَبَقُونَا بِالْإِيمَانِ وَلَا تَجْعَلْ فِي قُلُوبِنَا غِلًّا لِّلَّذِينَ آمَنُوا رَبَّنَا إِنَّكَ رَؤُوفٌ رَّحِيمٌ ","الحديد",16,"ألم يأن للذين آمنوا أن تخشع","المجادلة",13,"أَأَشْفَقْتُمْ أَن تُقَدِّمُوا بَيْنَ يَدَيْ نَجْوَاكُمْ صَدَقَاتٍ فَإِذْ لَمْ تَفْعَلُوا وَتَابَ اللَّهُ عَلَيْكُمْ فَأَقِيمُوا الصَّلَاةَ وَآتُوا الزَّكَاةَ وَأَطِيعُوا اللَّهَ وَرَسُولَهُ وَاللَّهُ خَبِيرٌ بِمَا تَعْمَلُونَ ",{"$f":"R181","v":"الرعد"},19,"أفمن يعلم أنما أنزل","الحجر",48,"لاَ يَمَسُّهُمْ فِيهَا نَصَبٌ وَمَا هُم مِّنْهَا بِمُخْرَجِينَ "]
["الحشر",219,"الثامن والعشرون",null,3,"الحشر",11,"ألم تر إلى الذين نافقوا","الممتحنة",6,"لَقَدْ كَانَ لَكُمْ فِيهِمْ أُسْوَةٌ حَسَنَةٌ لِمَن كَانَ يَرْجُو اللَّهَ وَالْيَوْمَ الْآخِرَ وَمَن يَتَوَلَّ فَإِنَّ اللَّهَ هُوَ الْغَنِيُّ الْحَمِيدُ ","المجادلة",1,"قد سمع الله قول التى تجادلك","الحشر",10,"وَالَّذِينَ جَاؤُوا مِن بَعْدِهِمْ يَقُولُونَ رَبَّنَا اغْفِرْ لَنَا وَلِإِخْوَانِنَا الَّذِينَ سَبَقُونَا بِالْإِيمَانِ وَلَا تَجْعَلْ فِي قُلُوبِنَا غِلًّا لِّلَّذِينَ آمَنُوا رَبَّنَا إِنَّكَ رَؤُوفٌ رَّحِيمٌ ",{"$f":"R182","v":"الحجر"},49,"نبىء عبادى أنى أنا الغفور","النحل",89,"وَيَوْمَ نَبْعَثُ فِي كُلِّ أُمَّةٍ شَهِيدًا عَلَيْهِم مِّنْ أَنفُسِهِمْ وَجِئْنَا بِكَ شَهِيدًا عَلَى هَـؤُلاء وَنَزَّلْنَا عَلَيْكَ الْكِتَابَ تِبْيَانًا لِّكُلِّ شَيْءٍ وَهُدًى وَرَحْمَةً وَبُشْرَى لِلْمُسْلِمِينَ "]
["الممتحنة",220,"الثامن والعشرون",null,4,"الممتحنة",7,"عسى الله أن يجعل بينكم","الممتحنة",14,"يَا أَيُّهَا الَّذِينَ آَمَنُوا كُونوا أَنصَارَ اللَّهِ كَمَا قَالَ عِيسَى ابْنُ مَرْيَمَ لِلْحَوَارِيِّينَ مَنْ أَنصَارِي إِلَى اللَّهِ قَالَ الْحَوَارِيُّونَ نَحْنُ أَنصَارُ اللَّهِ فَآَمَنَت طَّائِفَةٌ مِّن بَنِي إِسْرَائِيلَ وَكَفَرَت طَّائِفَةٌ فَأَيَّدْنَا الَّذِينَ آَمَنُوا عَلَى عَدُوِّهِمْ فَأَصْبَحُوا ظَاهِرِينَ ","المجادلة",14,"ألم تر إلى الذين تولوا","الممتحنة",6,"لَقَدْ كَانَ لَكُمْ فِيهِمْ أُسْوَةٌ حَسَنَةٌ لِمَن كَانَ يَرْجُو اللَّهَ وَالْيَوْمَ الْآخِرَ وَمَن يَتَوَلَّ فَإِنَّ اللَّهَ هُوَ الْغَنِيُّ الْحَمِيدُ ",{"$f":"R183","v":"النحل"},90,"إن الله يأمر بالعدل","الإسراء",69,"أَمْ أَمِنتُمْ أَن يُعِيدَكُمْ فِيهِ تَارَةً أُخْرَى فَيُرْسِلَ عَلَيْكُمْ قَاصِفا مِّنَ الرِّيحِ فَيُغْرِقَكُم بِمَا كَفَرْتُمْ ثُمَّ لاَ تَجِدُواْ لَكُمْ عَلَيْنَا بِهِ تَبِيعًا "]
["الجمعة",221,"الثامن والعشرون",56,5,"الجمعة",1,"يسبح لله ما فى السموات","المنافقون",3,"ذَلِكَ بِأَنَّهُمْ آمَنُوا ثُمَّ كَفَرُوا فَطُبِعَ عَلَى قُلُوبِهِمْ فَهُمْ لَا يَفْقَهُونَ ","الحشر",11,"ألم تر إلى الذين نافقوا","الممتحنة",14,"يَا أَيُّهَا الَّذِينَ آَمَنُوا كُونوا أَنصَارَ اللَّهِ كَمَا قَالَ عِيسَى ابْنُ مَرْيَمَ لِلْحَوَارِيِّينَ مَنْ أَنصَارِي إِلَى اللَّهِ قَالَ الْحَوَارِيُّونَ نَحْنُ أَنصَارُ اللَّهِ فَآَمَنَت طَّائِفَةٌ مِّن بَنِي إِسْرَائِيلَ وَكَفَرَت طَّائِفَةٌ فَأَيَّدْنَا الَّذِينَ آَمَنُوا عَلَى عَدُوِّهِمْ فَأَصْبَحُوا ظَاهِرِينَ ",{"$f":"R184","v":"الإسراء"},70,"ولقد كرمنا بنى آدم","الكهف",74,"فَانطَلَقَا حَتَّى إِذَا لَقِيَا غُلَامًا فَقَتَلَهُ قَالَ أَقَتَلْتَ نَفْسًا زَكِيَّةً بِغَيْرِ نَفْسٍ لَّقَدْ جِئْتَ شَيْئًا نُّكْرًا "]
["المنافقون",222,"الثامن والعشرون",null,6,"المنافقون",4,"وإذا رأيتهم تعجبك أجسامهم","المنافقون",11,"وَلَن يُؤَخِّرَ اللَّهُ نَفْسًا إِذَا جَاء أَجَلُهَا وَاللَّهُ خَبِيرٌ بِمَا تَعْمَلُونَ ","الممتحنة",7,"عسى الله أن يجعل بينكم","المنافقون",3,"ذَلِكَ بِأَنَّهُمْ آمَنُوا ثُمَّ كَفَرُوا فَطُبِعَ عَلَى قُلُوبِهِمْ فَهُمْ لَا يَفْقَهُونَ ",{"$f":"R185","v":"الكهف"},75,"قال ألم أقل لك إنك لن","طه",54,"كُلُوا وَارْعَوْا أَنْعَامَكُمْ إِنَّ فِي ذَلِكَ لَآيَاتٍ لِّأُوْلِي النُّهَى "]
["الطلاق",223,"الثامن والعشرون",null,7,"الطلاق",1,"ياأيها النبى إذا طلقتم","الطلاق",12,"اللَّهُ الَّذِي خَلَقَ سَبْعَ سَمَاوَاتٍ وَمِنَ الْأَرْضِ مِثْلَهُنَّ يَتَنَزَّلُ الْأَمْرُ بَيْنَهُنَّ لِتَعْلَمُوا أَنَّ اللَّهَ عَلَى كُلِّ شَيْءٍ قَدِيرٌ وَأَنَّ اللَّهَ قَدْ أَحَاطَ بِكُلِّ شَيْءٍ عِلْمًا ","الجمعة",1,"يسبح لله ما فى السموات","المنافقون",11,"وَلَن يُؤَخِّرَ اللَّهُ نَفْسًا إِذَا جَاء أَجَلُهَا وَاللَّهُ خَبِيرٌ بِمَا تَعْمَلُونَ ",{"$f":"R186","v":"طه"},55,"منها خلقناكم وفيها نعيدكم","الأنبياء",50,"وَهَذَا ذِكْرٌ مُّبَارَكٌ أَنزَلْنَاهُ أَفَأَنتُمْ لَهُ مُنكِرُونَ "]
["التحريم",224,"الثامن والعشرون",null,8,"التحريم",1,"ياأيها النبى لما تحرم","التحريم",12,"وَمَرْيَمَ ابْنَتَ عِمْرَانَ الَّتِي أَحْصَنَتْ فَرْجَهَا فَنَفَخْنَا فِيهِ مِن رُّوحِنَا وَصَدَّقَتْ بِكَلِمَاتِ رَبِّهَا وَكُتُبِهِ وَكَانَتْ مِنَ الْقَانِتِينَ ","المنافقون",4,"وإذا رأيتهم تعجبك أجسامهم","الطلاق",12,"اللَّهُ الَّذِي خَلَقَ سَبْعَ سَمَاوَاتٍ وَمِنَ الْأَرْضِ مِثْلَهُنَّ يَتَنَزَّلُ الْأَمْرُ بَيْنَهُنَّ لِتَعْلَمُوا أَنَّ اللَّهَ عَلَى كُلِّ شَيْءٍ قَدِيرٌ وَأَنَّ اللَّهَ قَدْ أَحَاطَ بِكُلِّ شَيْءٍ عِلْمًا ",{"$f":"R187","v":"الأنبياء"},51,"ولقد آتينا إبراهيم رشده","الحج",59,"لَيُدْخِلَنَّهُم مُّدْخَلًا يَرْضَوْنَهُ وَإِنَّ اللَّهَ لَعَلِيمٌ حَلِيمٌ "]
["الملك",225,"التاسع والعشرون",57,1,"الملك",1,"تبارك الذى بيده الملك","الملك",30,"قُلْ أَرَأَيْتُمْ إِنْ أَصْبَحَ مَاؤُكُمْ غَوْرًا فَمَن يَأْتِيكُم بِمَاء مَّعِينٍ ","الطلاق",1,"ياأيها النبى إذا طلقتم","التحريم",12,"وَمَرْيَمَ ابْنَتَ عِمْرَانَ الَّتِي أَحْصَنَتْ فَرْجَهَا فَنَفَخْنَا فِيهِ مِن رُّوحِنَا وَصَدَّقَتْ بِكَلِمَاتِ رَبِّهَا وَكُتُبِهِ وَكَانَتْ مِنَ الْقَانِتِينَ ",{"$f":"R188","v":"الحج"},60,"ذلك ومن عاقب بمثل","النور",20,"وَلَوْلَا فَضْلُ اللَّهِ عَلَيْكُمْ وَرَحْمَتُهُ وَأَنَّ اللَّه رَؤُوفٌ رَحِيمٌ "]
["القلم",226,"التاسع والعشرون",null,2,"القلم",1,"ن والقلم وما يسطرون","القلم",52,"وَمَا هُوَ إِلَّا ذِكْرٌ لِّلْعَالَمِينَ ","التحريم",1,"ياأيها النبى لما تحرم","الملك",30,"قُلْ أَرَأَيْتُمْ إِنْ أَصْبَحَ مَاؤُكُمْ غَوْرًا فَمَن يَأْتِيكُم بِمَاء مَّعِينٍ ",{"$f":"R189","v":"النور"},21,"ياأيها الذين آمنوا","الفرقان",52,"فَلَا تُطِعِ الْكَافِرِينَ وَجَاهِدْهُم بِهِ جِهَادًا كَبِيرًا "]
["الحاقة",227,"التاسع والعشرون",null,3,"الحاقة","2-1","الحاقة 0 ما الحاقة","المعارج",18,"وَجَمَعَ فَأَوْعَى ","الملك",1,"تبارك الذى بيده الملك","القلم",52,"وَمَا هُوَ إِلَّا ذِكْرٌ لِّلْعَالَمِينَ ",{"$f":"R190","v":"الفرقان"},53,"وهو الذى مرج البحرين","الشعراء",227,"إِلَّا الَّذِينَ آمَنُوا وَعَمِلُوا الصَّالِحَاتِ وَذَكَرُوا اللَّهَ كَثِيرًا وَانتَصَرُوا مِن بَعْدِ مَا ظُلِمُوا وَسَيَعْلَمُ الَّذِينَ ظَلَمُوا أَيَّ مُنقَلَبٍ يَنقَلِبُونَ "]
["المعارج",228,"التاسع والعشرون",null,4,"المعارج",19,"إن الإنسان خلق هلوعا","نوح",28,"رَبِّ اغْفِرْ لِي وَلِوَالِدَيَّ وَلِمَن دَخَلَ بَيْتِيَ مُؤْمِنًا وَلِلْمُؤْمِنِينَ وَالْمُؤْمِنَاتِ وَلَا تَزِدِ الظَّالِمِينَ إِلَّا تَبَارًا ","القلم",1,"ن والقلم وما يسطرون","المعارج",18,"وَجَمَعَ فَأَوْعَى ",{"$f":"R191","v":"النمل"},1,"طسم 0 تلك آيات القرآن","القصص",28,"قَالَ ذَلِكَ بَيْنِي وَبَيْنَكَ أَيَّمَا الْأَجَلَيْنِ قَضَيْتُ فَلَا عُدْوَانَ عَلَيَّ وَاللَّهُ عَلَى مَا نَقُولُ وَكِيلٌ "]
["الجن",229,"التاسع والعشرون",58,5,"الجن",1,"قل أوحى إلى أنه","المزمل",19,"إِنَّ هَذِهِ تَذْكِرَةٌ فَمَن شَاء اتَّخَذَ إِلَى رَبِّهِ سَبِيلًا ","الحاقة","2-1","الحاقة 0 ما الحاقة","نوح",28,"رَبِّ اغْفِرْ لِي وَلِوَالِدَيَّ وَلِمَن دَخَلَ بَيْتِيَ مُؤْمِنًا وَلِلْمُؤْمِنِينَ وَالْمُؤْمِنَاتِ وَلَا تَزِدِ الظَّالِمِينَ إِلَّا تَبَارًا ",{"$f":"R192","v":"القصص"},29,"فلما قضى موسى الأجل","العنكبوت",45,"اتْلُ مَا أُوحِيَ إِلَيْكَ مِنَ الْكِتَابِ وَأَقِمِ الصَّلَاةَ إِنَّ الصَّلَاةَ تَنْهَى عَنِ الْفَحْشَاء وَالْمُنكَرِ وَلَذِكْرُ اللَّهِ أَكْبَرُ وَاللَّهُ يَعْلَمُ مَا تَصْنَعُونَ "]
["المزمل",230,"التاسع والعشرون",null,6,"المزمل",20,"إن ربك يعلم أنك تقوم","المدثر",56,"وَمَا يَذْكُرُونَ إِلَّا أَن يَشَاء اللَّهُ هُوَ أَهْلُ التَّقْوَى وَأَهْلُ الْمَغْفِرَةِ ","المعارج",19,"إن الإنسان خلق هلوعا","المزمل",19,"إِنَّ هَذِهِ تَذْكِرَةٌ فَمَن شَاء اتَّخَذَ إِلَى رَبِّهِ سَبِيلًا ",{"$f":"R193","v":"العنكبوت"},46,"ولا تجادل أهل الكتاب إلا","السجدة",10,"وَقَالُوا أَئِذَا ضَلَلْنَا فِي الْأَرْضِ أَئِنَّا لَفِي خَلْقٍ جَدِيدٍ بَلْ هُم بِلِقَاء رَبِّهِمْ كَافِرُونَ "]
["القيامة",231,"التاسع والعشرون",null,7,"القيامة",1,"لا أقسم بيوم القيامة","الإنسان",19,"وَيَطُوفُ عَلَيْهِمْ وِلْدَانٌ مُّخَلَّدُونَ إِذَا رَأَيْتَهُمْ حَسِبْتَهُمْ لُؤْلُؤًا مَّنثُورًا ","الجن",1,"قل أوحى إلى أنه","المدثر",56,"وَمَا يَذْكُرُونَ إِلَّا أَن يَشَاء اللَّهُ هُوَ أَهْلُ التَّقْوَى وَأَهْلُ الْمَغْفِرَةِ ",{"$f":"R194","v":"السجدة"},11,"قل يتوفاكم ملك الموت","الأحزاب",59,"يَا أَيُّهَا النَّبِيُّ قُل لِّأَزْوَاجِكَ وَبَنَاتِكَ وَنِسَاء الْمُؤْمِنِينَ يُدْنِينَ عَلَيْهِنَّ مِن جَلَابِيبِهِنَّ ذَلِكَ أَدْنَى أَن يُعْرَفْنَ فَلَا يُؤْذَيْنَ وَكَانَ اللَّهُ غَفُورًا رَّحِيمًا "]
["الإنسان",232,"التاسع والعشرون",null,8,"الإنسان",19,"ويطوف عليهم ولدان","الإنسان",31,"يُدْخِلُ مَن يَشَاء فِي رَحْمَتِهِ وَالظَّالِمِينَ أَعَدَّ لَهُمْ عَذَابًا أَلِيمًا ","المزمل",20,"إن ربك يعلم أنك تقوم","الإنسان",19,"وَيَطُوفُ عَلَيْهِمْ وِلْدَانٌ مُّخَلَّدُونَ إِذَا رَأَيْتَهُمْ حَسِبْتَهُمْ لُؤْلُؤًا مَّنثُورًا ",{"$f":"R195","v":"الأحزاب"},60,"لئن لم نته المنافقون","فاطر",40,"قُلْ أَرَأَيْتُمْ شُرَكَاءكُمُ الَّذِينَ تَدْعُونَ مِن دُونِ اللَّهِ أَرُونِي مَاذَا خَلَقُوا مِنَ الْأَرْضِ أَمْ لَهُمْ شِرْكٌ فِي السَّمَاوَاتِ أَمْ آتَيْنَاهُمْ كِتَابًا فَهُمْ عَلَى بَيِّنَةٍ مِّنْهُ بَلْ إِن يَعِدُ الظَّالِمُونَ بَعْضُهُم بَعْضًا إِلَّا غُرُورًا "]
["النبأ",233,"الثلاثون",59,1,"النبأ",1,"عم يتسائلون","النازعات ",46,"كَأَنَّهُمْ يَوْمَ يَرَوْنَهَا لَمْ يَلْبَثُوا إِلَّا عَشِيَّةً أَوْ ضُحَاهَا ","القيامة",1,"لا أقسم بيوم القيامة","الإنسان",31,"يُدْخِلُ مَن يَشَاء فِي رَحْمَتِهِ وَالظَّالِمِينَ أَعَدَّ لَهُمْ عَذَابًا أَلِيمًا ",{"$f":"R196","v":"فاطر"},41,"إن الله يمسك السموات والأرض","الصافات",144,"لَلَبِثَ فِي بَطْنِهِ إِلَى يَوْمِ يُبْعَثُونَ "]
["عبس",234,"الثلاثون",null,2,"عبس",1,"عبس وتولى","التكوير",29,"وَمَا تَشَاؤُونَ إِلَّا أَن يَشَاء اللَّهُ رَبُّ الْعَالَمِينَ ","الإنسان",19,"ويطوف عليهم ولدان","النازعات ",46,"كَأَنَّهُمْ يَوْمَ يَرَوْنَهَا لَمْ يَلْبَثُوا إِلَّا عَشِيَّةً أَوْ ضُحَاهَا ",{"$f":"R197","v":"الصافات"},145,"فنبذناه بالعراء وهو سقيم","الزمر",52,"أَوَلَمْ يَعْلَمُوا أَنَّ اللَّهَ يَبْسُطُ الرِّزْقَ لِمَن يَشَاء وَيَقْدِرُ إِنَّ فِي ذَلِكَ لَآيَاتٍ لِّقَوْمٍ يُؤْمِنُونَ "]
["الإنفطار",235,"الثلاثون",null,3,"الإنفطار",1,"إذا السماء انفطرت","المطففين",36,"هَلْ ثُوِّبَ الْكُفَّارُ مَا كَانُوا يَفْعَلُونَ ","النبأ",1,"عم يتسائلون","التكوير",29,"وَمَا تَشَاؤُونَ إِلَّا أَن يَشَاء اللَّهُ رَبُّ الْعَالَمِينَ ",{"$f":"R198","v":"الزمر"},53,"قل يا عبادى الذين أسرفوا","فصلت",8,"إِنَّ الَّذِينَ آمَنُوا وَعَمِلُوا الصَّالِحَاتِ لَهُمْ أَجْرٌ غَيْرُ مَمْنُونٍ "]
["الإنشقاق",236,"الثلاثون",null,4,"الإنشقاق",1,"إذا السماء انشقت","الطارق",17,"فَمَهِّلِ الْكَافِرِينَ أَمْهِلْهُمْ رُوَيْدًا ","عبس",1,"عبس وتولى","المطففين",36,"هَلْ ثُوِّبَ الْكُفَّارُ مَا كَانُوا يَفْعَلُونَ ",{"$f":"R199","v":"فصلت"},9,"قل ءإنكم لتكفرون بالذى خلق","الشورى",50,"أَوْ يُزَوِّجُهُمْ ذُكْرَانًا وَإِنَاثًا وَيَجْعَلُ مَن يَشَاء عَقِيمًا إِنَّهُ عَلِيمٌ قَدِيرٌ "]
["الأعلى",237,"الثلاثون",60,5,"الأعلى",1,"سبح اسم ربك الأعلى","الفجر",30,"وَادْخُلِي جَنَّتِي ",{"$f":"F237","v":"الإنفطار"},1,"إذا السماء انفطرت","الطارق",17,"فَمَهِّلِ الْكَافِرِينَ أَمْهِلْهُمْ رُوَيْدًا ",{"$f":"F198","v":"الشورى"},{"$f":"G198","v":51},{"$f":"H198","v":"وما كان لبشر أن كلمه الله إلا"},{"$f":"I202","v":"الجاثية"},{"$f":"J202","v":37},{"$f":"K202","v":"وَلَهُ الْكِبْرِيَاء فِي السَّمَاوَاتِ وَالْأَرْضِ وَهُوَ الْعَزِيزُ الْحَكِيمُ "}]
["البلد",238,"الثلاثون",null,6,"البلد",1,"لا أقسم بهذا البلد","الشمس",15,"وَلَا يَخَافُ عُقْبَاهَا ",{"$f":"F238","v":"الإنشقاق"},1,"إذا السماء انشقت","الفجر",30,"وَادْخُلِي جَنَّتِي ",{"$f":"F203","v":"الأحقاف"},{"$f":"G203","v":"2-1"},{"$f":"H203","v":"حم0 تنزل الكتاب من الله "},{"$f":"I207","v":"الفتح"},{"$f":"J207","v":29},{"$f":"K207","v":"مُّحَمَّدٌ رَّسُولُ اللَّهِ وَالَّذِينَ مَعَهُ أَشِدَّاء عَلَى الْكُفَّارِ رُحَمَاء بَيْنَهُمْ تَرَاهُمْ رُكَّعًا سُجَّدًا يَبْتَغُونَ فَضْلًا مِّنَ اللَّهِ وَرِضْوَانًا سِيمَاهُمْ فِي وُجُوهِهِم مِّنْ أَثَرِ السُّجُودِ ذَلِكَ مَثَلُهُمْ فِي التَّوْرَاةِ وَمَثَلُهُمْ فِي الْإِنجِيلِ كَزَرْعٍ أَخْرَجَ شَطْأَهُ فَآزَرَهُ فَاسْتَغْلَظَ فَاسْتَوَى عَلَى سُوقِهِ يُعْجِبُ الزُّرَّاعَ لِيَغِيظَ بِهِمُ الْكُفَّارَ وَعَدَ اللَّهُ الَّذِينَ آمَنُوا وَعَمِلُوا الصَّالِحَاتِ مِنْهُم مَّغْفِرَةً وَأَجْرًا عَظِيمًا "}]
["الشرح",239,"الثلاثون",null,7,"الشرح",1,"ألم نشرح لك صدرك","الزلزلة",8,"وَمَن يَعْمَلْ مِثْقَالَ ذَرَّةٍ شَرًّا يَرَهُ ",{"$f":"F239","v":"الأعلى"},1,"سبح اسم ربك الأعلى","الشمس",15,"وَلَا يَخَافُ عُقْبَاهَا ",{"$f":"F208","v":"الحجرات"},{"$f":"G208","v":1},{"$f":"H208","v":"يا أيها الذين آمنوا لا تقدموا"},{"$f":"I212","v":"النجم"},{"$f":"J212","v":25},{"$f":"K212","v":"فَلِلَّهِ الْآخِرَةُ وَالْأُولَى "}]
["العاديات",240,"الثلاثون",null,8,"العاديات",9,"أفلا يعلم إذا بعثر ","الناس",6,"مِنَ الْجِنَّةِ وَ النَّاسِ ",{"$f":"F240","v":"البلد"},1,"لا أقسم بهذا البلد","الزلزلة",8,"وَمَن يَعْمَلْ مِثْقَالَ ذَرَّةٍ شَرًّا يَرَهُ ",{"$f":"F213","v":"النجم"},{"$f":"G213","v":26},{"$f":"H213","v":"وكم من ملك فى السموات"},{"$f":"I217","v":"الحديد"},{"$f":"J217","v":15},{"$f":"K217","v":"فَالْيَوْمَ لَا يُؤْخَذُ مِنكُمْ فِدْيَةٌ وَلَا مِنَ الَّذِينَ كَفَرُوا مَأْوَاكُمُ النَّارُ هِيَ مَوْلَاكُمْ وَبِئْسَ الْمَصِيرُ "}]
[null,null,null,null,null,null,null,null,null,null,null,null,null,null,null,null,null,{"$f":"F218","v":"الحديد"},{"$f":"G218","v":16},{"$f":"H218","v":"ألم يأن للذين آمنوا أن تخشع"},{"$f":"I222","v":"الممتحنة"},{"$f":"J222","v":14},{"$f":"K222","v":"يَا أَيُّهَا الَّذِينَ آَمَنُوا كُونوا أَنصَارَ اللَّهِ كَمَا قَالَ عِيسَى ابْنُ مَرْيَمَ لِلْحَوَارِيِّينَ مَنْ أَنصَارِي إِلَى اللَّهِ قَالَ الْحَوَارِيُّونَ نَحْنُ أَنصَارُ اللَّهِ فَآَمَنَت طَّائِفَةٌ مِّن بَنِي إِسْرَائِيلَ وَكَفَرَت طَّائِفَةٌ فَأَيَّدْنَا الَّذِينَ آَمَنُوا عَلَى عَدُوِّهِمْ فَأَصْبَحُوا ظَاهِرِينَ "}]
[null,null,null,null,null,null,null,null,null,null,null,null,null,null,null,null,null,{"$f":"F223","v":"الجمعة"},{"$f":"G223","v":1},{"$f":"H223","v":"يسبح لله ما فى السموات"},{"$f":"I227","v":"الملك"},{"$f":"J227","v":30},{"$f":"K227","v":"قُلْ أَرَأَيْتُمْ إِنْ أَصْبَحَ مَاؤُكُمْ غَوْرًا فَمَن يَأْتِيكُم بِمَاء مَّعِينٍ "}]
[null,null,null,null,null,null,null,null,null,null,null,null,null,null,null,null,null,{"$f":"F228","v":"القلم"},{"$f":"G228","v":1},{"$f":"H228","v":"ن والقلم وما يسطرون"},{"$f":"I232","v":"المدثر"},{"$f":"J232","v":56},{"$f":"K232","v":"وَمَا يَذْكُرُونَ إِلَّا أَن يَشَاء اللَّهُ هُوَ أَهْلُ التَّقْوَى وَأَهْلُ الْمَغْفِرَةِ "}]
[null,null,null,null,null,null,null,null,null,null,null,null,null,null,null,null,null,{"$f":"F233","v":"القيامة"},{"$f":"G233","v":1},{"$f":"H233","v":"لا أقسم بيوم القيامة"},{"$f":"I237","v":"المطففين"},{"$f":"J237","v":36},{"$f":"K237","v":"هَلْ ثُوِّبَ الْكُفَّارُ مَا كَانُوا يَفْعَلُونَ "}]
[null,null,null,null,null,null,null,null,null,null,null,null,null,null,null,null,null,{"$f":"F238","v":"الإنشقاق"},{"$f":"G238","v":1},{"$f":"H238","v":"إذا السماء انشقت"},{"$f":"I242","v":"الناس"},{"$f":"J242","v":6},{"$f":"K242","v":"مِنَ الْجِنَّةِ وَ النَّاسِ "}]